{"text_format":"1","workbook":"xlsx","n_sheets":9,"sheets":["Asiakkuustietojen_kirjaaminen","Lyhyet asiakaskontaktit","Asiakkuustiedot","Yhteenveto","tekstivastaukset","Asumiseen liittyv tilastointia","2016","Taul2","Taul1"],"not_rendered":{"charts":13,"images":0,"macros":1,"external_links":0,"defined_names":19,"comments":1,"pivot_tables":0},"unopened":[],"bounds":{"document_bytes":16777216,"sheet_cells":100000,"rows_first":2000,"rows_last":500,"rows_between":2000,"halvings":0,"cell_chars":16384,"cell_head_chars":4096},"cells_cut":0,"cells_raw":0,"read":"whole","date_system":"1900"}

{"sheet":"Asiakkuustietojen_kirjaaminen","index":0,"n_rows":93,"n_cols":3,"rows_kept":93,"cut":false,"hidden":false,"merged":[]}
[]
["Toiminnan nimi:"]
["Organisaatio:"]
["Vastuuhenkilö:"]
["Yhteystiedot:"]
[]
[]
[]
[]
[]
[null,null,"<- Klikkaamalla tästä avautuu asiakkuustietojen syöttölomake"]
[null,null,"Lyhyet asiakaskontaktit, kuten yksittäiset puhelinsoitot, kirjataan välilehden \"Lyhyet asiakaskontaktit\" -taulukkoon."]
[]
[]
[]
[]
[]
[]
[]
[]
[]
[]
["versio heinä 2025"]
[]
[]
[]
[]
[]
[]
[]
[]
[]
[]
[]
[]
[]
[]
[]
[]
[]
[]
[]
[]
[]
[]
[]
[]
[]
[]
[]
[]
[]
[]
[]
[]
[]
[]
[]
[]
[]
[]
[]
[]
[]
[]
[]
[]
[]
[]
[]
[]
[]
[]
[]
[]
[]
[]
[]
[]
[]
[]
[]
[]
[]
[]
[]
[]
[]
[]
[]
[]
[]
["ohjelmaversio 19 tammi 2016"]

{"sheet":"Lyhyet asiakaskontaktit","index":1,"n_rows":47,"n_cols":17,"rows_kept":47,"cut":false,"hidden":false,"merged":[]}
[]
[null,"Merkitse, kuinka paljon kuukauden aikana on ollut lyhyitä asiakaskontakteja, jotka eivät johtaneet asiakkuuteen."]
[null,"Klikkaa solua, ja sen jälkeen klikkaa solun oikealla puolella näkyvää nuolta. Valitse pudotusvalikosta sopivin vaihtoehto."]
[]
[null,"2023","2024","2025","2026","2027","2028","2029","2030","2031","2032","2033",null,null,"0 - 30",0,30]
["tammi",null,null,null,null,null,null,null,null,null,null,null,null,null,"30 -60",30,60]
["helmi",null,null,null,null,null,null,null,null,null,null,null,null,null,"60 - 100",60,100]
["maalis",null,null,null,null,null,null,null,null,null,null,null,null,null,"yli 100",100,200]
["huhti"]
["touko"]
["kesä"]
["heinä"]
["elo"]
["syys"]
["loka"]
["marras"]
["joulu"]
["yhteensä vuodessa vähintään",{"$f":"SUM(B23:B34)","v":0},{"$f":"SUM(C23:C34)","v":0},{"$f":"SUM(D23:D34)","v":0},0,0,0,0,0,0,0,0]
["yhteensä vuodessa enintään",{"$f":"SUM(B36:B47)","v":0},{"$f":"SUM(C36:C47)","v":0},0,0,0,0,0,0,0,0,0]
[]
[]
[]
["tammi",{"$f":"IFERROR(LOOKUP(B6,$O$5:$O$8,$P$5:$P$8),0)","v":0},{"$f":"IFERROR(LOOKUP(C6,$O$5:$O$8,$P$5:$P$8),0)","v":0},0,0,0,0,0,0,0,0,0]
["helmi",{"$f":"IFERROR(LOOKUP(B7,$O$5:$O$8,$P$5:$P$8),0)","v":0},0,0,0,0,0,0,0,0,0,0]
["maalis",0,0,0,0,0,0,0,0,0,0,0]
["huhti",0,0,0,0,0,0,0,0,0,0,0]
["touko",0,0,0,0,0,0,0,0,0,0,0]
["kesä",0,0,0,0,0,0,0,0,0,0,0]
["heinä",0,0,0,0,0,0,0,0,0,0,0]
["elo",0,0,0,0,0,0,0,0,0,0,0]
["syys",0,0,0,0,0,0,0,0,0,0,0]
["loka",0,0,0,0,0,0,0,0,0,0,0]
["marras",0,0,0,0,0,0,0,0,0,0,0]
["joulu",0,0,0,0,0,0,0,0,0,0,0]
[]
["tammi",{"$f":"IFERROR(LOOKUP(B6,$O$5:$O$8,$Q$5:$Q$8),0)","v":0},{"$f":"IFERROR(LOOKUP(C6,$O$5:$O$8,$Q$5:$Q$8),0)","v":0},0,0,0,0,0,0,0,0,0]
["helmi",{"$f":"IFERROR(LOOKUP(B7,$O$5:$O$8,$Q$5:$Q$8),0)","v":0},0,0,0,0,0,0,0,0,0,0]
["maalis",{"$f":"IFERROR(LOOKUP(B8,$O$5:$O$8,$Q$5:$Q$8),0)","v":0},0,0,0,0,0,0,0,0,0,0]
["huhti",{"$f":"IFERROR(LOOKUP(B9,$O$5:$O$8,$Q$5:$Q$8),0)","v":0},0,0,0,0,0,0,0,0,0,0]
["touko",{"$f":"IFERROR(LOOKUP(B10,$O$5:$O$8,$Q$5:$Q$8),0)","v":0},0,0,0,0,0,0,0,0,0,0]
["kesä",{"$f":"IFERROR(LOOKUP(B11,$O$5:$O$8,$Q$5:$Q$8),0)","v":0},0,0,0,0,0,0,0,0,0,0]
["heinä",{"$f":"IFERROR(LOOKUP(B12,$O$5:$O$8,$Q$5:$Q$8),0)","v":0},0,0,0,0,0,0,0,0,0,0]
["elo",{"$f":"IFERROR(LOOKUP(B13,$O$5:$O$8,$Q$5:$Q$8),0)","v":0},0,0,0,0,0,0,0,0,0,0]
["syys",{"$f":"IFERROR(LOOKUP(B14,$O$5:$O$8,$Q$5:$Q$8),0)","v":0},0,0,0,0,0,0,0,0,0,0]
["loka",{"$f":"IFERROR(LOOKUP(B15,$O$5:$O$8,$Q$5:$Q$8),0)","v":0},0,0,0,0,0,0,0,0,0,0]
["marras",{"$f":"IFERROR(LOOKUP(B16,$O$5:$O$8,$Q$5:$Q$8),0)","v":0},0,0,0,0,0,0,0,0,0,0]
["joulu",{"$f":"IFERROR(LOOKUP(B17,$O$5:$O$8,$Q$5:$Q$8),0)","v":0},0,0,0,0,0,0,0,0,0,0]

{"sheet":"Asiakkuustiedot","index":2,"n_rows":130,"n_cols":2,"rows_kept":130,"cut":false,"hidden":false,"merged":[]}
["Asumisneuvontatilasto","syöttölomakkeen elementtien nimet"]
["Asiakas ensimmäistä kertaa asiakkaana","chkAsiakasEnsimmäistäKertaa"]
["Asiakkuusnumero"]
["Onko tämä ensimmäinen asiakaskontakti?"]
["Asiakkaan viimeisin asiakaskontakti"]
["Asiakkuus kesken"]
["Asiakkuus päättyy asumisneuvonnassa","cboAsiakkuus"]
["Asiakkuuden päättymispäivä"]
["Mistä asiakas on ohjautunut asumisneuvontaan?","cboMistäOhjautunut"]
["muualta, mistä?","txtMistäOhjautunutMuualta"]
["Asiakaskontaktin alkamispvm"]
["Tietojen kirjaamispäivämäärä"]
["Sukupuoli","cboSukupuoli"]
["Ikä","cboIkä"]
["Asumismuoto","cboAsumismuoto"]
["Perhemuoto"]
["Yksinelävä","chkYksinelävä"]
["Perhe","chkPerhe"]
["Yksinhuoltaja","chkYksinhuoltaja"]
["Pariskunta (ei lapsia)","chkPariskunta"]
[]
[]
[]
[]
["Syy asumisneuvonnalle"]
["Vuokran/vastikemaksun ongelmat","chkVuokranmaksunOngelmat"]
["Sähkövelka","chkSähkövelka"]
["Taloustilanteen selvittely","chkTaloustilanteenSelvittely"]
["Asunnon huono hoito","chkAsunnonHuonoHoito"]
["Häiritsevä elämä","chkHäiritseväElämä"]
["Valitus häiritsevästä elämästä","chkValitushäiritsevästäElämästä"]
["Naapuririidat","chkNaapuririidat"]
["Asunnon haku tai vaihto","chkAsunnonHakuTaiVaihto"]
["Asumistilanteen tai asumisen tuen selvittely","chkAsumistilanteenSelvittely"]
["Häätöuhka","chkHäätöuhka"]
["Toteutunut häätö","chkToteutunutHäätö"]
["Kriisitilanne","chkKriisitilanne"]
["Työttömyys","chkTyöttömyys"]
["Pienituloisuus","chkPienituloisuus"]
["Velkaantuminen","chkVelkaantuminen"]
["Avio/avoero","chkAvioero"]
["Toimintakyvyn heikkeneminen","chkToimintakyvynHeikkeneminen"]
["Terveysongelma","chkTerveysongelma"]
["Päihdeongelma","chkPäihde"]
["Mielenterveysongelma","chkMielenterveys"]
["Peliriippuvuus","chkPeliriippuvuus"]
["Vankeusrangaistus","chkVankeusrangaistus"]
["Asunnottomuus","cboAsunnottomuus"]
[]
[]
[]
[]
["Yhteistyötahot"]
["KELA","chkKela"]
["Sosiaalipalvelut","chkSosiaalipalvelut"]
["Terveyspalvelut","chkTerveyspalvelut"]
["Vuokranantaja (yksityishenkilö)","chkVuokranantaja"]
["Vuokrataloyhtiö","chkVuokrataloyhtiö"]
["Palotarkastaja/terveystarkastaja","chkPalotarkastajaTerveystarkastaja"]
["Tuetun asumisen/laitoksen henkilökunta","chkTuettuAsuminen"]
["Nuorisotyö","chkNuorisotyö"]
["Talous- ja velkaneuvonta","chkTalousVelkaneuvonta"]
["Poliisi","chkPoliisi"]
["Edunvalvonta","chkEdunvalvonta"]
["Ulosottovirasto","chkUlosottovirasto"]
["Diakonia/seurakunta","chkDiakoniaSeurakunta"]
["Kolmas sektori","chkKolmasSektori"]
["Ei lupaa yhteistyöhön","chkEiLupaaYhteistyöhön"]
["Muu","chkYhteistyötahotMuu"]
[]
[]
[]
[]
[]
[]
[]
[]
["Asumisneuvonnan vaikutukset"]
["Maksusuunnitelma tehty","chkMaksusuunnitelmaTehty"]
["Vuokravelka selvitetty","chkVuokravelkaSelvitetty"]
["Taloustietoisuus lisääntynyt","chkTaloustietoisuusLisääntynyt"]
["Asunnon huono hoito selvitetty","chkHuonoHoitoSelvitetty"]
["Asumishäiriö selvitetty","chkAsumishäiriöSelvitetty"]
["Naapuririita sovitettu","chkNaapuririitaSovitettu"]
["Vuokrasopimus jatkuu","chkVuokrasopimusJatkuu"]
["Vuokrasopimusta ei jatketa","chkVuokrasopimustaEiJatketa"]
["Asuntohakemus vireille","chkAsuntohakemusVireille"]
["Muutto / uusi asunto","chkMuuttoUusiAsunto"]
["Neuvonta ja ohjaus","chkNeuvontaJaOhjaus"]
["Edunvalvontaprosessi käynnissä","chkEdunvalvontaprosessiKäynnissä"]
["Ohjattu muihin palveluihin","chkMuihinPalveluihin"]
["Muu","chkAsumisneuvonnanVaikutuksetMuu"]
[]
["Asiakkuus","cboAsiakkuus"]
["Asiakkuuden kesto","cboAsiakkuudenKesto"]
[]
["Estetyt häädöt"]
["Estetty vuokravelan päätyminen oikeuteen","chkEstettyVuokravelkaOikeuteen"]
["Vuokravelka-asia pois käräjäoikeudesta","chkVuokravelkaOikeudesta"]
["Häätö peruuntunut ulosotosta","chkHäätöPeruuntunutUlosotosta"]
[]
[]
["Toteutuneet häädöt, häädön kustannukset"]
["0 - 2 100 €","chkHäätö1"]
["2 100 - 5 100 €","chkHäätö2"]
["5 100 - 16 000 €","chkHäätö3"]
["Yli 16 000 €","chkHäätö4"]
[]
[]
[]
[]
[]
[]
["Kustannussäästöt yhteensä vähintään","txtKustannussäästöYhtMin"]
["Kustannussäästöt yhteensä enintään","txtKustannussäästöYhtMax"]
["Organisaatio","Organisaatio"]
[]
[]
[]
[]
[]
[]
[]
[]
["seuraava tapausnumero:"]
[1,"SeuraavaTapausnumero"]
[]
[1]
[]
[4]

{"sheet":"Yhteenveto","index":3,"n_rows":134,"n_cols":12,"rows_kept":134,"cut":false,"hidden":false,"merged":[]}
[null,null,null,"rivinumero:",null,null,null,null,null,null,null,"rajaa aikaväli vuoden mukaan:"]
[null,"x",true,5,null,"Asiakkuudet",{"$f":"SUM(G3,G4)","v":0},null,null,null,4]
[null,"x",false,7,null,"Päättyneet",{"$f":"COUNTIFS(Asiakkuustiedot!C7:XFD7, \"Asiakkuus päättyy asumisneuvonnassa\",Asiakkuustiedot!C5:XFD5, \"viimeisin\",Asiakkuustiedot!C8:XFD8, \">=1.1.2025\",Asiakkuustiedot!C8:XFD8, \"<=31.12.2025\")","v":0},null,null,null,{"$f":"INDEX(K8:K18,K2,0)","v":2025},"tai kirjoita tarkka aikaväli:"]
[null,"x",false,6,null,"Keskeneräiset",{"$f":"COUNTIFS(Asiakkuustiedot!C6:XFD6, \"kesken\",Asiakkuustiedot!C5:XFD5, \"viimeisin\")","v":0},null,null,"mistä:","00:00:00","1.1.2025"]
[null,null,null,null,null,null,null,null,null,"mihin:","00:00:00","31.12.2025"]
[]
[null,null,null,null,null,"Mistä ohjautunut asumisneuvontaan?"]
[null,"x",false,9,"cboMistäOhjautunut","asumisneuvonnan yhteydenotto",{"$f":"COUNTIFS(Asiakkuustiedot!C9:XFD9, \"asumisneuvonnan yhteydenotto\",Asiakkuustiedot!C5:XFD5, \"viimeisin\",Asiakkuustiedot!C8:XFD8, \">=1.1.2025\",Asiakkuustiedot!C8:XFD8, \"<=31.12.2025\")","v":0}]
[null,"x",false,9,"cboMistäOhjautunut","asiakkaan oma yhteydenotto",{"$f":"COUNTIFS(Asiakkuustiedot!C9:XFD9, \"asiakkaan oma yhteydenotto\",Asiakkuustiedot!C5:XFD5, \"viimeisin\",Asiakkuustiedot!C8:XFD8, \">=1.1.2025\",Asiakkuustiedot!C8:XFD8, \"<=31.12.2025\")","v":0},null,null,null,2023]
[null,"x",false,9,"cboMistäOhjautunut","naapuri",{"$f":"COUNTIFS(Asiakkuustiedot!C9:XFD9, \"naapuri\",Asiakkuustiedot!C5:XFD5, \"viimeisin\",Asiakkuustiedot!C8:XFD8, \">=1.1.2025\",Asiakkuustiedot!C8:XFD8, \"<=31.12.2025\")","v":0},null,null,null,2024]
[null,"x",false,9,"cboMistäOhjautunut","läheiset",{"$f":"COUNTIFS(Asiakkuustiedot!C9:XFD9, \"läheiset\",Asiakkuustiedot!C5:XFD5, \"viimeisin\",Asiakkuustiedot!C8:XFD8, \">=1.1.2025\",Asiakkuustiedot!C8:XFD8, \"<=31.12.2025\")","v":0},null,null,null,2025]
[null,"x",false,9,"cboMistäOhjautunut","sosiaaliviranomainen",{"$f":"COUNTIFS(Asiakkuustiedot!C9:XFD9, \"sosiaaliviranomainen\",Asiakkuustiedot!C5:XFD5, \"viimeisin\",Asiakkuustiedot!C8:XFD8, \">=1.1.2025\",Asiakkuustiedot!C8:XFD8, \"<=31.12.2025\")","v":0},null,null,null,2026]
[null,"x",false,9,"cboMistäOhjautunut","terveysviranomainen",{"$f":"COUNTIFS(Asiakkuustiedot!C9:XFD9, \"terveysviranomainen\",Asiakkuustiedot!C5:XFD5, \"viimeisin\",Asiakkuustiedot!C8:XFD8, \">=1.1.2025\",Asiakkuustiedot!C8:XFD8, \"<=31.12.2025\")","v":0},null,null,null,2027]
[null,"x",false,9,"cboMistäOhjautunut","poliisi",{"$f":"COUNTIFS(Asiakkuustiedot!C9:XFD9, \"poliisi\",Asiakkuustiedot!C5:XFD5, \"viimeisin\",Asiakkuustiedot!C8:XFD8, \">=1.1.2025\",Asiakkuustiedot!C8:XFD8, \"<=31.12.2025\")","v":0},null,null,null,2028]
[null,"x",null,9,"cboMistäOhjautunut","vuokranantaja, isännöitsijä tai vuokravalvonta",{"$f":"COUNTIFS(Asiakkuustiedot!C9:XFD9, \"vuokranantaja, isännöitsijä tai vuokravalvonta\",Asiakkuustiedot!C5:XFD5, \"viimeisin\",Asiakkuustiedot!C8:XFD8, \">=1.1.2025\",Asiakkuustiedot!C8:XFD8, \"<=31.12.2025\")","v":0},null,null,null,2029]
[null,null,null,null,null,null,null,null,null,null,2030]
[null,null,null,null,null,"Sukupuoli",null,null,null,null,2031]
[null,"x",null,13,"cboSukupuoli","mies",{"$f":"COUNTIFS(Asiakkuustiedot!C13:XFD13, \"mies\",Asiakkuustiedot!C5:XFD5, \"viimeisin\",Asiakkuustiedot!C8:XFD8, \">=1.1.2025\",Asiakkuustiedot!C8:XFD8, \"<=31.12.2025\")","v":0},null,null,null,2032]
[null,"x",null,13,"cboSukupuoli","nainen",{"$f":"COUNTIFS(Asiakkuustiedot!C13:XFD13, \"nainen\",Asiakkuustiedot!C5:XFD5, \"viimeisin\",Asiakkuustiedot!C8:XFD8, \">=1.1.2025\",Asiakkuustiedot!C8:XFD8, \"<=31.12.2025\")","v":0}]
[null,"x",null,13,"cboSukupuoli","muu, ei tietoa",{"$f":"COUNTIFS(Asiakkuustiedot!C13:XFD13, \"muu, ei tietoa\",Asiakkuustiedot!C5:XFD5, \"viimeisin\",Asiakkuustiedot!C8:XFD8, \">=1.1.2025\",Asiakkuustiedot!C8:XFD8, \"<=31.12.2025\")","v":0}]
[]
[null,null,null,null,null,"Ikä"]
[null,"x",null,14,"cboIkä","alle 18 vuotta",{"$f":"COUNTIFS(Asiakkuustiedot!C14:XFD14, \"alle 18 vuotta\",Asiakkuustiedot!C5:XFD5, \"viimeisin\",Asiakkuustiedot!C8:XFD8, \">=1.1.2025\",Asiakkuustiedot!C8:XFD8, \"<=31.12.2025\")","v":0}]
[null,"x",null,14,"cboIkä","18-29 vuotta",{"$f":"COUNTIFS(Asiakkuustiedot!C14:XFD14, \"18-29 vuotta\",Asiakkuustiedot!C5:XFD5, \"viimeisin\",Asiakkuustiedot!C8:XFD8, \">=1.1.2025\",Asiakkuustiedot!C8:XFD8, \"<=31.12.2025\")","v":0}]
[null,"x",null,14,"cboIkä","30-64 vuotta",{"$f":"COUNTIFS(Asiakkuustiedot!C14:XFD14, \"30-64 vuotta\",Asiakkuustiedot!C5:XFD5, \"viimeisin\",Asiakkuustiedot!C8:XFD8, \">=1.1.2025\",Asiakkuustiedot!C8:XFD8, \"<=31.12.2025\")","v":0}]
[null,"x",null,14,"cboIkä","yli 65 vuotta",{"$f":"COUNTIFS(Asiakkuustiedot!C14:XFD14, \"yli 65 vuotta\",Asiakkuustiedot!C5:XFD5, \"viimeisin\",Asiakkuustiedot!C8:XFD8, \">=1.1.2025\",Asiakkuustiedot!C8:XFD8, \"<=31.12.2025\")","v":0}]
[]
[null,null,null,null,null,"Asumismuoto"]
[null,"x",null,15,"cboAsumismuoto","Kunta vuokranantajana",{"$f":"COUNTIFS(Asiakkuustiedot!C15:XFD15, \"Kunta vuokranantajana\",Asiakkuustiedot!C5:XFD5, \"viimeisin\",Asiakkuustiedot!C8:XFD8, \">=1.1.2025\",Asiakkuustiedot!C8:XFD8, \"<=31.12.2025\")","v":0}]
[null,"x",null,15,"cboAsumismuoto","Yleishyödyllinen vuokranantaja",{"$f":"COUNTIFS(Asiakkuustiedot!C15:XFD15, \"Yleishyödyllinen vuokranantaja\",Asiakkuustiedot!C5:XFD5, \"viimeisin\",Asiakkuustiedot!C8:XFD8, \">=1.1.2025\",Asiakkuustiedot!C8:XFD8, \"<=31.12.2025\")","v":0}]
[null,"x",null,15,"cboAsumismuoto","Yksityinen vuokranantaja",{"$f":"COUNTIFS(Asiakkuustiedot!C15:XFD15, \"Yksityinen vuokranantaja\",Asiakkuustiedot!C5:XFD5, \"viimeisin\",Asiakkuustiedot!C8:XFD8, \">=1.1.2025\",Asiakkuustiedot!C8:XFD8, \"<=31.12.2025\")","v":0}]
[null,"x",null,15,"cboAsumismuoto","Omistusasunto",{"$f":"COUNTIFS(Asiakkuustiedot!C15:XFD15, \"Omistusasunto\",Asiakkuustiedot!C5:XFD5, \"viimeisin\",Asiakkuustiedot!C8:XFD8, \">=1.1.2025\",Asiakkuustiedot!C8:XFD8, \"<=31.12.2025\")","v":0}]
[null,"x",null,15,"cboAsumismuoto","Asumisoikeusasunto",{"$f":"COUNTIFS(Asiakkuustiedot!C15:XFD15, \"Asumisoikeusasunto\",Asiakkuustiedot!C5:XFD5, \"viimeisin\",Asiakkuustiedot!C8:XFD8, \">=1.1.2025\",Asiakkuustiedot!C8:XFD8, \"<=31.12.2025\")","v":0}]
[null,"x",null,15,"cboAsumismuoto","Tuettu asuminen",{"$f":"COUNTIFS(Asiakkuustiedot!C15:XFD15, \"Tuettu asuminen\",Asiakkuustiedot!C5:XFD5, \"viimeisin\",Asiakkuustiedot!C8:XFD8, \">=1.1.2025\",Asiakkuustiedot!C8:XFD8, \"<=31.12.2025\")","v":0}]
[null,"x",null,15,"cboAsumismuoto","Laitos (sis. vankila, lastensuojelulaitos, sairaala yms.)",{"$f":"COUNTIFS(Asiakkuustiedot!C15:XFD15, \"Laitos (sis. vankila, lastensuojelulaitos, sairaala yms.)\",Asiakkuustiedot!C5:XFD5, \"viimeisin\",Asiakkuustiedot!C8:XFD8, \">=1.1.2025\",Asiakkuustiedot!C8:XFD8, \"<=31.12.2025\")","v":0}]
[null,"x",null,15,"cboAsumismuoto","Asunnoton",{"$f":"COUNTIFS(Asiakkuustiedot!C15:XFD15, \"Asunnoton\",Asiakkuustiedot!C5:XFD5, \"viimeisin\",Asiakkuustiedot!C8:XFD8, \">=1.1.2025\",Asiakkuustiedot!C8:XFD8, \"<=31.12.2025\")","v":0}]
[null,"x",null,15,"cboAsumismuoto","Muu",{"$f":"COUNTIFS(Asiakkuustiedot!C15:XFD15, \"Muu\",Asiakkuustiedot!C5:XFD5, \"viimeisin\",Asiakkuustiedot!C8:XFD8, \">=1.1.2025\",Asiakkuustiedot!C8:XFD8, \"<=31.12.2025\")","v":0}]
[]
[null,null,null,null,null,"Perhemuoto"]
[null,"x",null,17,"chkYksinelävä","Yksinelävä",{"$f":"COUNTIFS(Asiakkuustiedot!C17:XFD17, \"Yksinelävä\",Asiakkuustiedot!C5:XFD5, \"viimeisin\",Asiakkuustiedot!C8:XFD8, \">=1.1.2025\",Asiakkuustiedot!C8:XFD8, \"<=31.12.2025\")","v":0}]
[null,"x",null,18,"chkPerhe","Perhe",{"$f":"COUNTIFS(Asiakkuustiedot!C18:XFD18, \"Perhe\",Asiakkuustiedot!C5:XFD5, \"viimeisin\",Asiakkuustiedot!C8:XFD8, \">=1.1.2025\",Asiakkuustiedot!C8:XFD8, \"<=31.12.2025\")","v":0}]
[null,"x",null,19,"chkYksinhuoltaja","Yksinhuoltaja",{"$f":"COUNTIFS(Asiakkuustiedot!C19:XFD19, \"Yksinhuoltaja\",Asiakkuustiedot!C5:XFD5, \"viimeisin\",Asiakkuustiedot!C8:XFD8, \">=1.1.2025\",Asiakkuustiedot!C8:XFD8, \"<=31.12.2025\")","v":0}]
[null,"x",false,20,"chkPariskunta","Pariskunta (ei lapsia)",{"$f":"COUNTIFS(Asiakkuustiedot!C20:XFD20, \"Pariskunta (ei lapsia)\",Asiakkuustiedot!C5:XFD5, \"viimeisin\",Asiakkuustiedot!C8:XFD8, \">=1.1.2025\",Asiakkuustiedot!C8:XFD8, \"<=31.12.2025\")","v":0}]
[]
[]
[]
[null,null,null,null,null,"Syy asumisneuvonnalle"]
[null,"x",false,26,"chkVuokranmaksunOngelmat","Vuokran/vastikemaksun ongelmat",{"$f":"COUNTIFS(Asiakkuustiedot!C26:XFD26, \"Vuokran/vastikemaksun ongelmat\",Asiakkuustiedot!C5:XFD5, \"viimeisin\",Asiakkuustiedot!C8:XFD8, \">=1.1.2025\",Asiakkuustiedot!C8:XFD8, \"<=31.12.2025\")","v":0}]
[null,"x",null,27,"chkSähkövelka","Sähkövelka",{"$f":"COUNTIFS(Asiakkuustiedot!C27:XFD27, \"Sähkövelka\",Asiakkuustiedot!C5:XFD5, \"viimeisin\",Asiakkuustiedot!C8:XFD8, \">=1.1.2025\",Asiakkuustiedot!C8:XFD8, \"<=31.12.2025\")","v":0}]
[null,"x",null,28,"chkTaloustilanteenSelvittely","Taloustilanteen selvittely",{"$f":"COUNTIFS(Asiakkuustiedot!C28:XFD28, \"Taloustilanteen selvittely\",Asiakkuustiedot!C5:XFD5, \"viimeisin\",Asiakkuustiedot!C8:XFD8, \">=1.1.2025\",Asiakkuustiedot!C8:XFD8, \"<=31.12.2025\")","v":0}]
[null,"x",null,29,"chkAsunnonHuonoHoito","Asunnon huono hoito",{"$f":"COUNTIFS(Asiakkuustiedot!C29:XFD29, \"Asunnon huono hoito\",Asiakkuustiedot!C5:XFD5, \"viimeisin\",Asiakkuustiedot!C8:XFD8, \">=1.1.2025\",Asiakkuustiedot!C8:XFD8, \"<=31.12.2025\")","v":0}]
[null,"x",null,30,"chkHäiritseväElämä","Häiritsevä elämä",{"$f":"COUNTIFS(Asiakkuustiedot!C30:XFD30, \"Häiritsevä elämä\",Asiakkuustiedot!C5:XFD5, \"viimeisin\",Asiakkuustiedot!C8:XFD8, \">=1.1.2025\",Asiakkuustiedot!C8:XFD8, \"<=31.12.2025\")","v":0}]
[null,"x",null,31,"chkValitushäiritsevästäElämästä","Valitus häiritsevästä elämästä",{"$f":"COUNTIFS(Asiakkuustiedot!C31:XFD31, \"Valitus häiritsevästä elämästä\",Asiakkuustiedot!C5:XFD5, \"viimeisin\",Asiakkuustiedot!C8:XFD8, \">=1.1.2025\",Asiakkuustiedot!C8:XFD8, \"<=31.12.2025\")","v":0}]
[null,"x",null,32,"chkNaapuririidat","Naapuririidat",{"$f":"COUNTIFS(Asiakkuustiedot!C32:XFD32, \"Naapuririidat\",Asiakkuustiedot!C5:XFD5, \"viimeisin\",Asiakkuustiedot!C8:XFD8, \">=1.1.2025\",Asiakkuustiedot!C8:XFD8, \"<=31.12.2025\")","v":0}]
[null,"x",null,33,"chkAsunnonHakuTaiVaihto","Asunnon haku tai vaihto",{"$f":"COUNTIFS(Asiakkuustiedot!C33:XFD33, \"Asunnon haku tai vaihto\",Asiakkuustiedot!C5:XFD5, \"viimeisin\",Asiakkuustiedot!C8:XFD8, \">=1.1.2025\",Asiakkuustiedot!C8:XFD8, \"<=31.12.2025\")","v":0}]
[null,"x",false,34,"chkAsumistilanteenSelvittely","Asumistilanteen tai asumisen tuen selvittely",{"$f":"COUNTIFS(Asiakkuustiedot!C34:XFD34, \"Asumistilanteen tai asumisen tuen selvittely\",Asiakkuustiedot!C5:XFD5, \"viimeisin\",Asiakkuustiedot!C8:XFD8, \">=1.1.2025\",Asiakkuustiedot!C8:XFD8, \"<=31.12.2025\")","v":0}]
[null,"x",false,35,"chkHäätöuhka","Häätöuhka",{"$f":"COUNTIFS(Asiakkuustiedot!C35:XFD35, \"Häätöuhka\",Asiakkuustiedot!C5:XFD5, \"viimeisin\",Asiakkuustiedot!C8:XFD8, \">=1.1.2025\",Asiakkuustiedot!C8:XFD8, \"<=31.12.2025\")","v":0}]
[null,"x",null,36,"chkToteutunutHäätö","Toteutunut häätö",{"$f":"COUNTIFS(Asiakkuustiedot!C36:XFD36, \"Toteutunut häätö\",Asiakkuustiedot!C5:XFD5, \"viimeisin\",Asiakkuustiedot!C8:XFD8, \">=1.1.2025\",Asiakkuustiedot!C8:XFD8, \"<=31.12.2025\")","v":0}]
[null,"x",null,37,"chkKriisitilanne","Kriisitilanne",{"$f":"COUNTIFS(Asiakkuustiedot!C37:XFD37, \"Kriisitilanne\",Asiakkuustiedot!C5:XFD5, \"viimeisin\",Asiakkuustiedot!C8:XFD8, \">=1.1.2025\",Asiakkuustiedot!C8:XFD8, \"<=31.12.2025\")","v":0}]
[null,"x",null,38,"chkTyöttömyys","Työttömyys",{"$f":"COUNTIFS(Asiakkuustiedot!C38:XFD38, \"Työttömyys\",Asiakkuustiedot!C5:XFD5, \"viimeisin\",Asiakkuustiedot!C8:XFD8, \">=1.1.2025\",Asiakkuustiedot!C8:XFD8, \"<=31.12.2025\")","v":0}]
[null,"x",null,39,"chkPienituloisuus","Pienituloisuus",{"$f":"COUNTIFS(Asiakkuustiedot!C39:XFD39, \"Pienituloisuus\",Asiakkuustiedot!C5:XFD5, \"viimeisin\",Asiakkuustiedot!C8:XFD8, \">=1.1.2025\",Asiakkuustiedot!C8:XFD8, \"<=31.12.2025\")","v":0}]
[null,"x",null,40,"chkVelkaantuminen","Velkaantuminen",{"$f":"COUNTIFS(Asiakkuustiedot!C40:XFD40, \"Velkaantuminen\",Asiakkuustiedot!C5:XFD5, \"viimeisin\",Asiakkuustiedot!C8:XFD8, \">=1.1.2025\",Asiakkuustiedot!C8:XFD8, \"<=31.12.2025\")","v":0}]
[null,"x",false,41,"chkAvioero","Avio/avoero",{"$f":"COUNTIFS(Asiakkuustiedot!C41:XFD41, \"Avio/avoero\",Asiakkuustiedot!C5:XFD5, \"viimeisin\",Asiakkuustiedot!C8:XFD8, \">=1.1.2025\",Asiakkuustiedot!C8:XFD8, \"<=31.12.2025\")","v":0}]
[null,"x",null,42,"chkToimintakyvynHeikkeneminen","Toimintakyvyn heikkeneminen",{"$f":"COUNTIFS(Asiakkuustiedot!C42:XFD42, \"Toimintakyvyn heikkeneminen\",Asiakkuustiedot!C5:XFD5, \"viimeisin\",Asiakkuustiedot!C8:XFD8, \">=1.1.2025\",Asiakkuustiedot!C8:XFD8, \"<=31.12.2025\")","v":0}]
[null,"x",false,43,"chkTerveysongelma","Terveysongelma",{"$f":"COUNTIFS(Asiakkuustiedot!C43:XFD43, \"Terveysongelma\",Asiakkuustiedot!C5:XFD5, \"viimeisin\",Asiakkuustiedot!C8:XFD8, \">=1.1.2025\",Asiakkuustiedot!C8:XFD8, \"<=31.12.2025\")","v":0}]
[null,"x",false,45,"chkMielenterveys","Mielenterveysongelma",{"$f":"COUNTIFS(Asiakkuustiedot!C45:XFD45, \"Mielenterveysongelma\",Asiakkuustiedot!C5:XFD5, \"viimeisin\",Asiakkuustiedot!C8:XFD8, \">=1.1.2025\",Asiakkuustiedot!C8:XFD8, \"<=31.12.2025\")","v":0}]
[null,"x",false,44,"chkPäihde","Päihdeongelma",{"$f":"COUNTIFS(Asiakkuustiedot!C44:XFD44, \"Päihdeongelma\",Asiakkuustiedot!C5:XFD5, \"viimeisin\",Asiakkuustiedot!C8:XFD8, \">=1.1.2025\",Asiakkuustiedot!C8:XFD8, \"<=31.12.2025\")","v":0}]
[null,"x",false,46,"chkPeliriippuvuus","Peliriippuvuus",{"$f":"COUNTIFS(Asiakkuustiedot!C46:XFD46, \"Peliriippuvuus\",Asiakkuustiedot!C5:XFD5, \"viimeisin\",Asiakkuustiedot!C8:XFD8, \">=1.1.2025\",Asiakkuustiedot!C8:XFD8, \"<=31.12.2025\")","v":0}]
[null,"x",null,47,"chkVankeusrangaistus","Vankeusrangaistus",{"$f":"COUNTIFS(Asiakkuustiedot!C47:XFD47, \"Vankeusrangaistus\",Asiakkuustiedot!C5:XFD5, \"viimeisin\",Asiakkuustiedot!C8:XFD8, \">=1.1.2025\",Asiakkuustiedot!C8:XFD8, \"<=31.12.2025\")","v":0}]
[null,null,null,null,null,"Asunnottomuus"]
[null,"x",null,48,"cboAsunnottomuus","Kadulla",{"$f":"COUNTIFS(Asiakkuustiedot!C48:XFD48, \"Kadulla\",Asiakkuustiedot!C5:XFD5, \"viimeisin\",Asiakkuustiedot!C8:XFD8, \">=1.1.2025\",Asiakkuustiedot!C8:XFD8, \"<=31.12.2025\")","v":0}]
[null,"x",false,48,"cboAsunnottomuus","Tilapäisesti sukulaisten/tuttavien luona",{"$f":"COUNTIFS(Asiakkuustiedot!C48:XFD48, \"Tilapäisesti sukulaisten/tuttavien luona\",Asiakkuustiedot!C5:XFD5, \"viimeisin\",Asiakkuustiedot!C8:XFD8, \">=1.1.2025\",Asiakkuustiedot!C8:XFD8, \"<=31.12.2025\")","v":0}]
[null,"x",false,48,"cboAsunnottomuus","Ensisuojissa, tilapäismajoituksessa",{"$f":"COUNTIFS(Asiakkuustiedot!C48:XFD48, \"Ensisuojissa, tilapäismajoituksessa\",Asiakkuustiedot!C5:XFD5, \"viimeisin\",Asiakkuustiedot!C8:XFD8, \">=1.1.2025\",Asiakkuustiedot!C8:XFD8, \"<=31.12.2025\")","v":0}]
[]
[null,null,null,null,null,"Yhteistyötahot"]
[null,"x",null,54,"chkKela","KELA",{"$f":"COUNTIFS(Asiakkuustiedot!C54:XFD54, \"KELA\",Asiakkuustiedot!C5:XFD5, \"viimeisin\",Asiakkuustiedot!C8:XFD8, \">=1.1.2025\",Asiakkuustiedot!C8:XFD8, \"<=31.12.2025\")","v":0}]
[null,"x",false,55,"chkSosiaalipalvelut","Sosiaalipalvelut",{"$f":"COUNTIFS(Asiakkuustiedot!C55:XFD55, \"Sosiaalipalvelut\",Asiakkuustiedot!C5:XFD5, \"viimeisin\",Asiakkuustiedot!C8:XFD8, \">=1.1.2025\",Asiakkuustiedot!C8:XFD8, \"<=31.12.2025\")","v":0}]
[null,"x",false,56,"chkTerveyspalvelut","Terveyspalvelut",{"$f":"COUNTIFS(Asiakkuustiedot!C56:XFD56, \"Terveyspalvelut\",Asiakkuustiedot!C5:XFD5, \"viimeisin\",Asiakkuustiedot!C8:XFD8, \">=1.1.2025\",Asiakkuustiedot!C8:XFD8, \"<=31.12.2025\")","v":0}]
[null,"x",null,57,"chkVuokranantaja","Vuokranantaja (yksityishenkilö)",{"$f":"COUNTIFS(Asiakkuustiedot!C57:XFD57, \"Vuokranantaja (yksityishenkilö)\",Asiakkuustiedot!C5:XFD5, \"viimeisin\",Asiakkuustiedot!C8:XFD8, \">=1.1.2025\",Asiakkuustiedot!C8:XFD8, \"<=31.12.2025\")","v":0}]
[null,"x",null,58,"chkVuokrataloyhtiö","Vuokrataloyhtiö",{"$f":"COUNTIFS(Asiakkuustiedot!C58:XFD58, \"Vuokrataloyhtiö\",Asiakkuustiedot!C5:XFD5, \"viimeisin\",Asiakkuustiedot!C8:XFD8, \">=1.1.2025\",Asiakkuustiedot!C8:XFD8, \"<=31.12.2025\")","v":0}]
[null,"x",null,59,"chkPalotarkastajaTerveystarkastaja","Palotarkastaja/terveystarkastaja",{"$f":"COUNTIFS(Asiakkuustiedot!C59:XFD59, \"Palotarkastaja/terveystarkastaja\",Asiakkuustiedot!C5:XFD5, \"viimeisin\",Asiakkuustiedot!C8:XFD8, \">=1.1.2025\",Asiakkuustiedot!C8:XFD8, \"<=31.12.2025\")","v":0}]
[null,"x",null,60,"chkTuettuAsuminen","Tuetun asumisen/laitoksen henkilökunta",{"$f":"COUNTIFS(Asiakkuustiedot!C60:XFD60, \"Tuetun asumisen/laitoksen henkilökunta\",Asiakkuustiedot!C5:XFD5, \"viimeisin\",Asiakkuustiedot!C8:XFD8, \">=1.1.2025\",Asiakkuustiedot!C8:XFD8, \"<=31.12.2025\")","v":0}]
[null,"x",null,61,"chkNuorisotyö","Nuorisotyö",{"$f":"COUNTIFS(Asiakkuustiedot!C61:XFD61, \"Nuorisotyö\",Asiakkuustiedot!C5:XFD5, \"viimeisin\",Asiakkuustiedot!C8:XFD8, \">=1.1.2025\",Asiakkuustiedot!C8:XFD8, \"<=31.12.2025\")","v":0}]
[null,"x",null,62,"chkTalousVelkaneuvonta","Talous- ja velkaneuvonta",{"$f":"COUNTIFS(Asiakkuustiedot!C62:XFD62, \"Talous- ja velkaneuvonta\",Asiakkuustiedot!C5:XFD5, \"viimeisin\",Asiakkuustiedot!C8:XFD8, \">=1.1.2025\",Asiakkuustiedot!C8:XFD8, \"<=31.12.2025\")","v":0}]
[null,"x",null,63,"chkPoliisi","Poliisi",{"$f":"COUNTIFS(Asiakkuustiedot!C63:XFD63, \"Poliisi\",Asiakkuustiedot!C5:XFD5, \"viimeisin\",Asiakkuustiedot!C8:XFD8, \">=1.1.2025\",Asiakkuustiedot!C8:XFD8, \"<=31.12.2025\")","v":0}]
[null,"x",null,64,"chkEdunvalvonta","Edunvalvonta",{"$f":"COUNTIFS(Asiakkuustiedot!C64:XFD64, \"Edunvalvonta\",Asiakkuustiedot!C5:XFD5, \"viimeisin\",Asiakkuustiedot!C8:XFD8, \">=1.1.2025\",Asiakkuustiedot!C8:XFD8, \"<=31.12.2025\")","v":0}]
[null,"x",null,65,"chkUlosottovirasto","Ulosottovirasto",{"$f":"COUNTIFS(Asiakkuustiedot!C65:XFD65, \"Ulosottovirasto\",Asiakkuustiedot!C5:XFD5, \"viimeisin\",Asiakkuustiedot!C8:XFD8, \">=1.1.2025\",Asiakkuustiedot!C8:XFD8, \"<=31.12.2025\")","v":0}]
[null,"x",null,66,"chkDiakoniaSeurakunta","Diakonia/seurakunta",{"$f":"COUNTIFS(Asiakkuustiedot!C66:XFD66, \"Diakonia/seurakunta\",Asiakkuustiedot!C5:XFD5, \"viimeisin\",Asiakkuustiedot!C8:XFD8, \">=1.1.2025\",Asiakkuustiedot!C8:XFD8, \"<=31.12.2025\")","v":0}]
[null,"x",null,67,"chkKolmasSektori","Kolmas sektori",{"$f":"COUNTIFS(Asiakkuustiedot!C67:XFD67, \"Kolmas sektori\",Asiakkuustiedot!C5:XFD5, \"viimeisin\",Asiakkuustiedot!C8:XFD8, \">=1.1.2025\",Asiakkuustiedot!C8:XFD8, \"<=31.12.2025\")","v":0}]
[null,"x",null,68,"chkEiLupaaYhteistyöhön","Ei lupaa yhteistyöhön",{"$f":"COUNTIFS(Asiakkuustiedot!C68:XFD68, \"Ei lupaa yhteistyöhön\",Asiakkuustiedot!C5:XFD5, \"viimeisin\",Asiakkuustiedot!C8:XFD8, \">=1.1.2025\",Asiakkuustiedot!C8:XFD8, \"<=31.12.2025\")","v":0}]
[null,"x",null,69,"chkYhteistyötahotMuu","Muu",{"$f":"COUNTIFS(Asiakkuustiedot!C69:XFD69, \"Muu\",Asiakkuustiedot!C5:XFD5, \"viimeisin\",Asiakkuustiedot!C8:XFD8, \">=1.1.2025\",Asiakkuustiedot!C8:XFD8, \"<=31.12.2025\")","v":0}]
[]
[null,null,null,null,null,"Asumisneuvonnan vaikutukset"]
[null,"x",null,79,"chkMaksusuunnitelmaTehty","Maksusuunnitelma tehty",{"$f":"COUNTIFS(Asiakkuustiedot!C79:XFD79, \"Maksusuunnitelma tehty\",Asiakkuustiedot!C5:XFD5, \"viimeisin\",Asiakkuustiedot!C8:XFD8, \">=1.1.2025\",Asiakkuustiedot!C8:XFD8, \"<=31.12.2025\")","v":0}]
[null,"x",null,80,"chkVuokravelkaSelvitetty","Vuokravelka selvitetty",{"$f":"COUNTIFS(Asiakkuustiedot!C80:XFD80, \"Vuokravelka selvitetty\",Asiakkuustiedot!C5:XFD5, \"viimeisin\",Asiakkuustiedot!C8:XFD8, \">=1.1.2025\",Asiakkuustiedot!C8:XFD8, \"<=31.12.2025\")","v":0}]
[null,"x",null,81,"chkTaloustietoisuusLisääntynyt","Taloustietoisuus lisääntynyt",{"$f":"COUNTIFS(Asiakkuustiedot!C81:XFD81, \"Taloustietoisuus lisääntynyt\",Asiakkuustiedot!C5:XFD5, \"viimeisin\",Asiakkuustiedot!C8:XFD8, \">=1.1.2025\",Asiakkuustiedot!C8:XFD8, \"<=31.12.2025\")","v":0}]
[null,"x",null,82,"chkHuonoHoitoSelvitetty","Asunnon huono hoito selvitetty",{"$f":"COUNTIFS(Asiakkuustiedot!C82:XFD82, \"Asunnon huono hoito selvitetty\",Asiakkuustiedot!C5:XFD5, \"viimeisin\",Asiakkuustiedot!C8:XFD8, \">=1.1.2025\",Asiakkuustiedot!C8:XFD8, \"<=31.12.2025\")","v":0}]
[null,"x",null,83,"chkAsumishäiriöSelvitetty","Asumishäiriö selvitetty",{"$f":"COUNTIFS(Asiakkuustiedot!C83:XFD83, \"Asumishäiriö selvitetty\",Asiakkuustiedot!C5:XFD5, \"viimeisin\",Asiakkuustiedot!C8:XFD8, \">=1.1.2025\",Asiakkuustiedot!C8:XFD8, \"<=31.12.2025\")","v":0}]
[null,"x",null,84,"chkNaapuririitaSovitettu","Naapuririita sovitettu",{"$f":"COUNTIFS(Asiakkuustiedot!C84:XFD84, \"Naapuririita sovitettu\",Asiakkuustiedot!C5:XFD5, \"viimeisin\",Asiakkuustiedot!C8:XFD8, \">=1.1.2025\",Asiakkuustiedot!C8:XFD8, \"<=31.12.2025\")","v":0}]
[null,"x",null,85,"chkVuokrasopimusJatkuu","Vuokrasopimus jatkuu",{"$f":"COUNTIFS(Asiakkuustiedot!C85:XFD85, \"Vuokrasopimus jatkuu\",Asiakkuustiedot!C5:XFD5, \"viimeisin\",Asiakkuustiedot!C8:XFD8, \">=1.1.2025\",Asiakkuustiedot!C8:XFD8, \"<=31.12.2025\")","v":0}]
[null,"x",null,86,"chkVuokrasopimustaEiJatketa","Vuokrasopimusta ei jatketa",{"$f":"COUNTIFS(Asiakkuustiedot!C86:XFD86, \"Vuokrasopimusta ei jatketa\",Asiakkuustiedot!C5:XFD5, \"viimeisin\",Asiakkuustiedot!C8:XFD8, \">=1.1.2025\",Asiakkuustiedot!C8:XFD8, \"<=31.12.2025\")","v":0}]
[null,"x",null,87,"chkAsuntohakemusVireille","Asuntohakemus vireille",{"$f":"COUNTIFS(Asiakkuustiedot!C87:XFD87, \"Asuntohakemus vireille\",Asiakkuustiedot!C5:XFD5, \"viimeisin\",Asiakkuustiedot!C8:XFD8, \">=1.1.2025\",Asiakkuustiedot!C8:XFD8, \"<=31.12.2025\")","v":0}]
[null,"x",null,88,"chkMuuttoUusiAsunto","Muutto / uusi asunto",{"$f":"COUNTIFS(Asiakkuustiedot!C88:XFD88, \"Muutto / uusi asunto\",Asiakkuustiedot!C5:XFD5, \"viimeisin\",Asiakkuustiedot!C8:XFD8, \">=1.1.2025\",Asiakkuustiedot!C8:XFD8, \"<=31.12.2025\")","v":0}]
[null,"x",null,89,"chkNeuvontaJaOhjaus","Neuvonta ja ohjaus",{"$f":"COUNTIFS(Asiakkuustiedot!C89:XFD89, \"Neuvonta ja ohjaus\",Asiakkuustiedot!C5:XFD5, \"viimeisin\",Asiakkuustiedot!C8:XFD8, \">=1.1.2025\",Asiakkuustiedot!C8:XFD8, \"<=31.12.2025\")","v":0}]
[null,"x",null,90,"chkEdunvalvontaprosessiKäynnissä","Edunvalvontaprosessi käynnissä",{"$f":"COUNTIFS(Asiakkuustiedot!C90:XFD90, \"Edunvalvontaprosessi käynnissä\",Asiakkuustiedot!C5:XFD5, \"viimeisin\",Asiakkuustiedot!C8:XFD8, \">=1.1.2025\",Asiakkuustiedot!C8:XFD8, \"<=31.12.2025\")","v":0}]
[null,"x",null,91,"chkMuihinPalveluihin","Ohjattu muihin palveluihin",{"$f":"COUNTIFS(Asiakkuustiedot!C91:XFD91, \"Ohjattu muihin palveluihin\",Asiakkuustiedot!C5:XFD5, \"viimeisin\",Asiakkuustiedot!C8:XFD8, \">=1.1.2025\",Asiakkuustiedot!C8:XFD8, \"<=31.12.2025\")","v":0}]
[null,"x",null,92,"chkAsumisneuvonnanVaikutuksetMuu","Muu",{"$f":"COUNTIFS(Asiakkuustiedot!C92:XFD92, \"Muu\",Asiakkuustiedot!C5:XFD5, \"viimeisin\",Asiakkuustiedot!C8:XFD8, \">=1.1.2025\",Asiakkuustiedot!C8:XFD8, \"<=31.12.2025\")","v":0}]
[]
[]
[]
[]
[]
[]
[]
[null,null,null,null,null,"Asiakkuus"]
[null,"x",false,7,"cboAsiakkuus","Asiakkuus jatkuu asumisneuvonnassa",{"$f":"COUNTIFS(Asiakkuustiedot!C7:XFD7, \"Asiakkuus jatkuu asumisneuvonnassa\",Asiakkuustiedot!C5:XFD5, \"viimeisin\",Asiakkuustiedot!C8:XFD8, \">=1.1.2025\",Asiakkuustiedot!C8:XFD8, \"<=31.12.2025\")","v":0}]
[null,"x",false,7,"cboAsiakkuus","Asiakkuus päättyy asumisneuvonnassa",{"$f":"COUNTIFS(Asiakkuustiedot!C7:XFD7, \"Asiakkuus päättyy asumisneuvonnassa\",Asiakkuustiedot!C5:XFD5, \"viimeisin\",Asiakkuustiedot!C8:XFD8, \">=1.1.2025\",Asiakkuustiedot!C8:XFD8, \"<=31.12.2025\")","v":0}]
[null,null,null,null,null,"Asiakkuuden kesto"]
[null,"x",false,95,"cboAsiakkuudenKesto","0-3 kk",{"$f":"COUNTIFS(Asiakkuustiedot!C95:XFD95, \"0-3 kk\",Asiakkuustiedot!C5:XFD5, \"viimeisin\",Asiakkuustiedot!C8:XFD8, \">=1.1.2025\",Asiakkuustiedot!C8:XFD8, \"<=31.12.2025\")","v":0}]
[null,"x",false,95,"cboAsiakkuudenKesto","3-6 kk",{"$f":"COUNTIFS(Asiakkuustiedot!C95:XFD95, \"3-6 kk\",Asiakkuustiedot!C5:XFD5, \"viimeisin\",Asiakkuustiedot!C8:XFD8, \">=1.1.2025\",Asiakkuustiedot!C8:XFD8, \"<=31.12.2025\")","v":0}]
[null,"x",false,95,"cboAsiakkuudenKesto","6 kk - 1 vuosi",{"$f":"COUNTIFS(Asiakkuustiedot!C95:XFD95, \"6 kk - 1 vuosi\",Asiakkuustiedot!C5:XFD5, \"viimeisin\",Asiakkuustiedot!C8:XFD8, \">=1.1.2025\",Asiakkuustiedot!C8:XFD8, \"<=31.12.2025\")","v":0}]
[null,"x",false,95,"cboAsiakkuudenKesto","alle 2 vuotta",{"$f":"COUNTIFS(Asiakkuustiedot!C95:XFD95, \"alle 2 vuotta\",Asiakkuustiedot!C5:XFD5, \"viimeisin\",Asiakkuustiedot!C8:XFD8, \">=1.1.2025\",Asiakkuustiedot!C8:XFD8, \"<=31.12.2025\")","v":0}]
[null,"x",false,95,"cboAsiakkuudenKesto","yli 2 vuotta",{"$f":"COUNTIFS(Asiakkuustiedot!C95:XFD95, \"yli 2 vuotta\",Asiakkuustiedot!C5:XFD5, \"viimeisin\",Asiakkuustiedot!C8:XFD8, \">=1.1.2025\",Asiakkuustiedot!C8:XFD8, \"<=31.12.2025\")","v":0}]
[]
[null,null,null,null,null,"Estetyt häädöt"]
[null,"x",false,98,"chkEstettyVuokravelkaOikeuteen","Estetty vuokravelan päätyminen oikeuteen",{"$f":"COUNTIFS(Asiakkuustiedot!C98:XFD98, \"Estetty vuokravelan päätyminen oikeuteen\",Asiakkuustiedot!C5:XFD5, \"viimeisin\",Asiakkuustiedot!C8:XFD8, \">=1.1.2025\",Asiakkuustiedot!C8:XFD8, \"<=31.12.2025\")","v":0}]
[null,"x",false,99,"chkVuokravelkaOikeudesta","Vuokravelka-asia pois käräjäoikeudesta",{"$f":"COUNTIFS(Asiakkuustiedot!C99:XFD99, \"Vuokravelka-asia pois käräjäoikeudesta\",Asiakkuustiedot!C5:XFD5, \"viimeisin\",Asiakkuustiedot!C8:XFD8, \">=1.1.2025\",Asiakkuustiedot!C8:XFD8, \"<=31.12.2025\")","v":0}]
[null,"x",false,100,"chkHäätöPeruuntunutUlosotosta","Häätö peruuntunut ulosotosta",{"$f":"COUNTIFS(Asiakkuustiedot!C100:XFD100, \"Häätö peruuntunut ulosotosta\",Asiakkuustiedot!C5:XFD5, \"viimeisin\",Asiakkuustiedot!C8:XFD8, \">=1.1.2025\",Asiakkuustiedot!C8:XFD8, \"<=31.12.2025\")","v":0}]
[]
[null,null,null,null,null,"Toteutuneet häädöt"]
[null,"x",false,104,"chkHäätö1","0 - 2 100 €",{"$f":"COUNTIFS(Asiakkuustiedot!C104:XFD104, \"0 - 2 100 €\",Asiakkuustiedot!C5:XFD5, \"viimeisin\",Asiakkuustiedot!C8:XFD8, \">=1.1.2025\",Asiakkuustiedot!C8:XFD8, \"<=31.12.2025\")","v":0}]
[null,"x",false,105,"chkHäätö2","2 100 - 5 100 €",{"$f":"COUNTIFS(Asiakkuustiedot!C105:XFD105, \"2 100 - 5 100 €\",Asiakkuustiedot!C5:XFD5, \"viimeisin\",Asiakkuustiedot!C8:XFD8, \">=1.1.2025\",Asiakkuustiedot!C8:XFD8, \"<=31.12.2025\")","v":0}]
[null,"x",false,106,"chkHäätö3","5 100 - 16 000 €",{"$f":"COUNTIFS(Asiakkuustiedot!C106:XFD106, \"5 100 - 16 000 €\",Asiakkuustiedot!C5:XFD5, \"viimeisin\",Asiakkuustiedot!C8:XFD8, \">=1.1.2025\",Asiakkuustiedot!C8:XFD8, \"<=31.12.2025\")","v":0}]
[null,"x",false,107,"chkHäätö4","Yli 16 000 €",{"$f":"COUNTIFS(Asiakkuustiedot!C107:XFD107, \"Yli 16 000 €\",Asiakkuustiedot!C5:XFD5, \"viimeisin\",Asiakkuustiedot!C8:XFD8, \">=1.1.2025\",Asiakkuustiedot!C8:XFD8, \"<=31.12.2025\")","v":0}]

{"sheet":"tekstivastaukset","index":4,"n_rows":14,"n_cols":28,"rows_kept":14,"cut":false,"hidden":true,"merged":[]}
[]
[]
[null,"Kustannussäästöt yhteensä vähintään",0,0,0,0,0,0,0,0,0,0,0,0,0,0,0]
[null,"Kustannussäästöt yhteensä enintään",0,0,0,0,0,0,0,0,0,0,0,0,0,0,0,0,0]
[null,"Jos tiedät häätökustannuksen..",0,0,0,0,0,0,0,0,0,0,0,0,0,0,0]
[null,"Jos tiedät raivaussiivouksen kustannuksen..",0,0,0,0,0,0,0,0,0,0,0,0,0,0,0,0,0,0,0,0,0,0,0,0,0,0]
[null,"Vuokravelkasaatavat",0,0,0,0,0,0,0,0,0,0,0,0,0,0,0,0,0]
[null,"Remontointikulut",0,0,0,0,0,0,0,0,0,0,0,0,0,0,0,0,0]
[null,"Muut kustannukset, kustannukset euroina",0,0,0,0,0,0,0,0,0,0,0,0,0,0,0,0,0,0,0,0,0,0,0,0,0,0]
[null,"Kustannussäästöt yhteensä vähintään",0,0,0,0,0,0,0,0,0,0,0,0,0,0,0,0,0]
[null,"Kustannussäästöt yhteensä enintään",0,0,0,0,0,0,0,0,0,0,0,0,0,0,0,0]
[null,"Kustannussäästöt yhteensä enintään",0,0,0,0,0,0,0,0,0,0,0,0,0,0,0,0,0,0,0,0,0,0,0,0,0,0]
[null,"Kustannussäästöt yhteensä vähintään",0,15325,0,5000,0,0,0,0,0,0,0,0,0]
[null,"Kustannussäästöt yhteensä enintään",0,0,0,15325,0,0,0,0,5000,0,0,0,0,0,0,0,0,0,0,0,0,0,0,0]

{"sheet":"Asumiseen liittyv tilastointia","index":5,"n_rows":77,"n_cols":5,"rows_kept":77,"cut":false,"hidden":true,"merged":[]}
["Tilastointia 1.9.2015 alkaen/pilotoidaan syksyn 2015 aikana",null,null,null,"asunn ja 18"]
[null,null,null,null,{"$f":"COUNTIFS(Asiakkuustiedot!B13:XFD13, \"alle 18 v\", Asiakkuustiedot!B72:XFD72, \"Asunnoton\")","v":0}]
["Ikä"]
["alle 18 v"]
["alle 18 v, ls"]
["18-24 v"]
["18-21v, jälkihuolto"]
["25-30 v"]
[]
["Kieli"]
["suomi äidinkielenä"]
["ruotsi äidinkielenä"]
["muu kieli äidinkielenä"]
["Tulot (voi valita useamman)"]
["Ansiotulo"]
["Työttömyysturva"]
["Opintotuki"]
["Toimeentulotuki"]
["Eläke"]
["Sairauspäiväraha"]
["Kuntoutustuki"]
["Ei tuloja"]
["Muu tulo"]
[]
["Asumisen status"]
["Toistaiseksi voimassa oleva vuokrasopimus"]
["Määräaikainen vuokrasopimus"]
["Asuu lapsuudenkodissa, alle 24 v"]
["Asuu lapsuudenkodissa, yli 25 v "]
["Lastenkodissa/sijoitettu"]
["Häätöuhka"]
["Asunnoton"]
["Muu, mikä?"]
[]
["Jos asunnoton, niin missä majailee  "]
["Kaverilla/sukulaisilla"]
["turvatalo, tilapäismajoitus"]
["Kadulla"]
["Jossain muualla"]
[]
["Missä on nyt kirjoilla Vantaalla? (sos.palveluiden jaottelu)"]
["Hakunilan / Tikkurila alue"]
["Koivukylän / Korson alue"]
["Myyrmäen ja Martinlaakson alue"]
[]
[]
["Itsenäisen asumisen tukipalvelut "]
["Tarvitsee vain asunnon"]
["Ohjaamon tuki riittää"]
["Tarvitsee alkuvaiheen tukea, muuta kuin Ohjaamon tuki"]
["Tarvitsee pitkäkestoisempaa tukea"]
[]
["Missä asumisen asioissa tarvitsi apua? "]
["Yleistä neuvontaa asunnonhaussa"]
["Yleistä neuvontaa asumisasioissa (talous, siivous…)"]
["Tehtiin asuntohakemus"]
["Osallistui asumiskurssille"]
["Asumistukiasioissa"]
["Käytiin asuntonäytössä"]
["Neuvontaa, jos asumisessa ongelmia (kun asunto jo on)"]
["Muuta, mitä?"]
[]
["Nostiko tapaaminen esiin jonkun epäkohdan? "]
["Asuntoa on vaikea saada, koska…."]
["* luottotiedot on menneet"]
["* on häätö taustalla"]
["* ei ole ansiotuloja"]
["* on sosiaalitoimen asiakas"]
["* on vieraskielinen nimi"]
["* on ollut vankilassa"]
["* muu syy"]
["Muu epäkohta"]
[]
[]
["Ratkesiko asia? Miten?"]
[]
["Lisäksi kysytään meiliosoite/puhnro erilliselle listalle, jotta voidaan tiedustella myöhemmin, onko asumiseen liittyvä haaste ratkennut!"]

{"sheet":"2016","index":6,"n_rows":99,"n_cols":24,"rows_kept":99,"cut":false,"hidden":true,"merged":[]}
[null,null,null,"rivinumero:",null,2016,null,null,null,null,"rajaa aikaväli:",null,"tam","hel","maa","huh","tou","kesä","hei","elo","syys","loka","mar","jou"]
[null,null,null,null,null,null,null,null,true,null,"pvm"]
[null,"x",{"$f":"IF(C5=TRUE,FALSE,TRUE)","v":true},4,"Asiakkaita",{"$f":"COUNTIFS(Asiakkuustiedot!B4:XFD4, \"ensimmäinen asiakaskäynti\",Asiakkuustiedot!B4:XFD4, \"ensimmäinen asiakaskäynti\",Asiakkuustiedot!B11:XFD11, \">=1.1.2016\",Asiakkuustiedot!B11:XFD11, \"<=31.12.2016\")","v":0},null,null,null,"mistä:","2016-01-01",null,{"$f":"COUNTIFS(Asiakkuustiedot!B4:XFD4, \"ensimmäinen asiakaskäynti\",Asiakkuustiedot!B4:XFD4, \"ensimmäinen asiakaskäynti\",Asiakkuustiedot!B11:XFD11, \">=1.1.2016\",Asiakkuustiedot!B11:XFD11, \"<=31.1.2016\")","v":0},{"$f":"COUNTIFS(Asiakkuustiedot!B4:XFD4, \"ensimmäinen asiakaskäynti\",Asiakkuustiedot!B4:XFD4, \"ensimmäinen asiakaskäynti\",Asiakkuustiedot!B11:XFD11, \">=1.2.2016\",Asiakkuustiedot!B11:XFD11, \"<=28.2.2016\")","v":0},{"$f":"COUNTIFS(Asiakkuustiedot!B4:XFD4, \"ensimmäinen asiakaskäynti\",Asiakkuustiedot!B4:XFD4, \"ensimmäinen asiakaskäynti\",Asiakkuustiedot!B11:XFD11, \">=1.3.2016\",Asiakkuustiedot!B11:XFD11, \"<=31.3.2016\")","v":0},{"$f":"COUNTIFS(Asiakkuustiedot!B4:XFD4, \"ensimmäinen asiakaskäynti\",Asiakkuustiedot!B4:XFD4, \"ensimmäinen asiakaskäynti\",Asiakkuustiedot!B11:XFD11, \">=1.4.2016\",Asiakkuustiedot!B11:XFD11, \"<=30.4.2016\")","v":0},{"$f":"COUNTIFS(Asiakkuustiedot!B4:XFD4, \"ensimmäinen asiakaskäynti\",Asiakkuustiedot!B4:XFD4, \"ensimmäinen asiakaskäynti\",Asiakkuustiedot!B11:XFD11, \">=1.5.2016\",Asiakkuustiedot!B11:XFD11, \"<=31.5.2016\")","v":0},{"$f":"COUNTIFS(Asiakkuustiedot!B4:XFD4, \"ensimmäinen asiakaskäynti\",Asiakkuustiedot!B4:XFD4, \"ensimmäinen asiakaskäynti\",Asiakkuustiedot!B11:XFD11, \">=1.6.2016\",Asiakkuustiedot!B11:XFD11, \"<=30.6.2016\")","v":0},{"$f":"COUNTIFS(Asiakkuustiedot!B4:XFD4, \"ensimmäinen asiakaskäynti\",Asiakkuustiedot!B4:XFD4, \"ensimmäinen asiakaskäynti\",Asiakkuustiedot!B11:XFD11, \">=1.7.2016\",Asiakkuustiedot!B11:XFD11, \"<=31.7.2016\")","v":0},{"$f":"COUNTIFS(Asiakkuustiedot!B4:XFD4, \"ensimmäinen asiakaskäynti\",Asiakkuustiedot!B4:XFD4, \"ensimmäinen asiakaskäynti\",Asiakkuustiedot!B11:XFD11, \">=1.8.2016\",Asiakkuustiedot!B11:XFD11, \"<=31.8.2016\")","v":0},{"$f":"COUNTIFS(Asiakkuustiedot!B4:XFD4, \"ensimmäinen asiakaskäynti\",Asiakkuustiedot!B4:XFD4, \"ensimmäinen asiakaskäynti\",Asiakkuustiedot!B11:XFD11, \">=1.9.2016\",Asiakkuustiedot!B11:XFD11, \"<=30.9.2016\")","v":0},{"$f":"COUNTIFS(Asiakkuustiedot!B4:XFD4, \"ensimmäinen asiakaskäynti\",Asiakkuustiedot!B4:XFD4, \"ensimmäinen asiakaskäynti\",Asiakkuustiedot!B11:XFD11, \">=1.10.2016\",Asiakkuustiedot!B11:XFD11, \"<=31.10.2016\")","v":0},{"$f":"COUNTIFS(Asiakkuustiedot!B4:XFD4, \"ensimmäinen asiakaskäynti\",Asiakkuustiedot!B4:XFD4, \"ensimmäinen asiakaskäynti\",Asiakkuustiedot!B11:XFD11, \">=1.11.2016\",Asiakkuustiedot!B11:XFD11, \"<=30.11.2016\")","v":0},{"$f":"COUNTIFS(Asiakkuustiedot!B4:XFD4, \"ensimmäinen asiakaskäynti\",Asiakkuustiedot!B4:XFD4, \"ensimmäinen asiakaskäynti\",Asiakkuustiedot!B11:XFD11, \">=1.12.2016\",Asiakkuustiedot!B11:XFD11, \"<=31.12.2016\")","v":0}]
[null,null,null,null,"Asiakaskäyntejä",{"$f":"COUNTIFS(Asiakkuustiedot!B1:XFD1, \"*\",Asiakkuustiedot!B11:XFD11, \">=1.1.2016\",Asiakkuustiedot!B11:XFD11, \"<=31.12.2016\")","v":0},null,null,null,"mihin:","2016-12-31",null,{"$f":"COUNTIFS(Asiakkuustiedot!B1:XFD1, \"*\",Asiakkuustiedot!B11:XFD11, \">=1.1.2016\",Asiakkuustiedot!B11:XFD11, \"<=31.1.2016\")","v":0},{"$f":"COUNTIFS(Asiakkuustiedot!B1:XFD1, \"*\",Asiakkuustiedot!B11:XFD11, \">=1.2.2016\",Asiakkuustiedot!B11:XFD11, \"<=28.2.2016\")","v":0},{"$f":"COUNTIFS(Asiakkuustiedot!B1:XFD1, \"*\",Asiakkuustiedot!B11:XFD11, \">=1.3.2016\",Asiakkuustiedot!B11:XFD11, \"<=31.3.2016\")","v":0},{"$f":"COUNTIFS(Asiakkuustiedot!B1:XFD1, \"*\",Asiakkuustiedot!B11:XFD11, \">=1.4.2016\",Asiakkuustiedot!B11:XFD11, \"<=30.4.2016\")","v":0},{"$f":"COUNTIFS(Asiakkuustiedot!B1:XFD1, \"*\",Asiakkuustiedot!B11:XFD11, \">=1.5.2016\",Asiakkuustiedot!B11:XFD11, \"<=31.5.2016\")","v":0},{"$f":"COUNTIFS(Asiakkuustiedot!B1:XFD1, \"*\",Asiakkuustiedot!B11:XFD11, \">=1.6.2016\",Asiakkuustiedot!B11:XFD11, \"<=30.6.2016\")","v":0},{"$f":"COUNTIFS(Asiakkuustiedot!B1:XFD1, \"*\",Asiakkuustiedot!B11:XFD11, \">=1.7.2016\",Asiakkuustiedot!B11:XFD11, \"<=31.7.2016\")","v":0},{"$f":"COUNTIFS(Asiakkuustiedot!B1:XFD1, \"*\",Asiakkuustiedot!B11:XFD11, \">=1.8.2016\",Asiakkuustiedot!B11:XFD11, \"<=31.8.2016\")","v":0},{"$f":"COUNTIFS(Asiakkuustiedot!B1:XFD1, \"*\",Asiakkuustiedot!B11:XFD11, \">=1.9.2016\",Asiakkuustiedot!B11:XFD11, \"<=30.9.2016\")","v":0},{"$f":"COUNTIFS(Asiakkuustiedot!B1:XFD1, \"*\",Asiakkuustiedot!B11:XFD11, \">=1.10.2016\",Asiakkuustiedot!B11:XFD11, \"<=31.10.2016\")","v":0},{"$f":"COUNTIFS(Asiakkuustiedot!B1:XFD1, \"*\",Asiakkuustiedot!B11:XFD11, \">=1.11.2016\",Asiakkuustiedot!B11:XFD11, \"<=30.11.2016\")","v":0},{"$f":"COUNTIFS(Asiakkuustiedot!B1:XFD1, \"*\",Asiakkuustiedot!B11:XFD11, \">=1.12.2016\",Asiakkuustiedot!B11:XFD11, \"<=31.12.2016\")","v":0}]
[null,null,false]
[]
[null,null,null,null,"Ikä"]
[null,"x",false,8,"alle 18 v",{"$f":"COUNTIFS(Asiakkuustiedot!B13:XFD13, \"alle 18 v\",Asiakkuustiedot!B4:XFD4, \"ensimmäinen asiakaskäynti\",Asiakkuustiedot!B11:XFD11, \">=1.1.2016\",Asiakkuustiedot!B11:XFD11, \"<=31.12.2016\")","v":0},null,null,null,null,null,null,{"$f":"COUNTIFS(Asiakkuustiedot!B13:XFD13, \"alle 18 v\",Asiakkuustiedot!B4:XFD4, \"ensimmäinen asiakaskäynti\",Asiakkuustiedot!B11:XFD11, \">=1.1.2016\",Asiakkuustiedot!B11:XFD11, \"<=31.1.2016\")","v":0},{"$f":"COUNTIFS(Asiakkuustiedot!B13:XFD13, \"alle 18 v\",Asiakkuustiedot!B4:XFD4, \"ensimmäinen asiakaskäynti\",Asiakkuustiedot!B11:XFD11, \">=1.2.2016\",Asiakkuustiedot!B11:XFD11, \"<=28.2.2016\")","v":0},{"$f":"COUNTIFS(Asiakkuustiedot!B13:XFD13, \"alle 18 v\",Asiakkuustiedot!B4:XFD4, \"ensimmäinen asiakaskäynti\",Asiakkuustiedot!B11:XFD11, \">=1.3.2016\",Asiakkuustiedot!B11:XFD11, \"<=31.3.2016\")","v":0},{"$f":"COUNTIFS(Asiakkuustiedot!B13:XFD13, \"alle 18 v\",Asiakkuustiedot!B4:XFD4, \"ensimmäinen asiakaskäynti\",Asiakkuustiedot!B11:XFD11, \">=1.4.2016\",Asiakkuustiedot!B11:XFD11, \"<=30.4.2016\")","v":0},{"$f":"COUNTIFS(Asiakkuustiedot!B13:XFD13, \"alle 18 v\",Asiakkuustiedot!B4:XFD4, \"ensimmäinen asiakaskäynti\",Asiakkuustiedot!B11:XFD11, \">=1.5.2016\",Asiakkuustiedot!B11:XFD11, \"<=31.5.2016\")","v":0},{"$f":"COUNTIFS(Asiakkuustiedot!B13:XFD13, \"alle 18 v\",Asiakkuustiedot!B4:XFD4, \"ensimmäinen asiakaskäynti\",Asiakkuustiedot!B11:XFD11, \">=1.6.2016\",Asiakkuustiedot!B11:XFD11, \"<=30.6.2016\")","v":0},{"$f":"COUNTIFS(Asiakkuustiedot!B13:XFD13, \"alle 18 v\",Asiakkuustiedot!B4:XFD4, \"ensimmäinen asiakaskäynti\",Asiakkuustiedot!B11:XFD11, \">=1.7.2016\",Asiakkuustiedot!B11:XFD11, \"<=31.7.2016\")","v":0},{"$f":"COUNTIFS(Asiakkuustiedot!B13:XFD13, \"alle 18 v\",Asiakkuustiedot!B4:XFD4, \"ensimmäinen asiakaskäynti\",Asiakkuustiedot!B11:XFD11, \">=1.8.2016\",Asiakkuustiedot!B11:XFD11, \"<=31.8.2016\")","v":0},{"$f":"COUNTIFS(Asiakkuustiedot!B13:XFD13, \"alle 18 v\",Asiakkuustiedot!B4:XFD4, \"ensimmäinen asiakaskäynti\",Asiakkuustiedot!B11:XFD11, \">=1.9.2016\",Asiakkuustiedot!B11:XFD11, \"<=30.9.2016\")","v":0},{"$f":"COUNTIFS(Asiakkuustiedot!B13:XFD13, \"alle 18 v\",Asiakkuustiedot!B4:XFD4, \"ensimmäinen asiakaskäynti\",Asiakkuustiedot!B11:XFD11, \">=1.10.2016\",Asiakkuustiedot!B11:XFD11, \"<=31.10.2016\")","v":0},{"$f":"COUNTIFS(Asiakkuustiedot!B13:XFD13, \"alle 18 v\",Asiakkuustiedot!B4:XFD4, \"ensimmäinen asiakaskäynti\",Asiakkuustiedot!B11:XFD11, \">=1.11.2016\",Asiakkuustiedot!B11:XFD11, \"<=30.11.2016\")","v":0},{"$f":"COUNTIFS(Asiakkuustiedot!B13:XFD13, \"alle 18 v\",Asiakkuustiedot!B4:XFD4, \"ensimmäinen asiakaskäynti\",Asiakkuustiedot!B11:XFD11, \">=1.12.2016\",Asiakkuustiedot!B11:XFD11, \"<=31.12.2016\")","v":0}]
[null,"x",false,8,"alle 18 v, ls",{"$f":"COUNTIFS(Asiakkuustiedot!B13:XFD13, \"alle 18 v, ls\",Asiakkuustiedot!B4:XFD4, \"ensimmäinen asiakaskäynti\",Asiakkuustiedot!B11:XFD11, \">=1.1.2016\",Asiakkuustiedot!B11:XFD11, \"<=31.12.2016\")","v":0},null,null,null,null,null,null,{"$f":"COUNTIFS(Asiakkuustiedot!B13:XFD13, \"alle 18 v, ls\",Asiakkuustiedot!B4:XFD4, \"ensimmäinen asiakaskäynti\",Asiakkuustiedot!B11:XFD11, \">=1.1.2016\",Asiakkuustiedot!B11:XFD11, \"<=31.1.2016\")","v":0},{"$f":"COUNTIFS(Asiakkuustiedot!B13:XFD13, \"alle 18 v, ls\",Asiakkuustiedot!B4:XFD4, \"ensimmäinen asiakaskäynti\",Asiakkuustiedot!B11:XFD11, \">=1.2.2016\",Asiakkuustiedot!B11:XFD11, \"<=28.2.2016\")","v":0},{"$f":"COUNTIFS(Asiakkuustiedot!B13:XFD13, \"alle 18 v, ls\",Asiakkuustiedot!B4:XFD4, \"ensimmäinen asiakaskäynti\",Asiakkuustiedot!B11:XFD11, \">=1.3.2016\",Asiakkuustiedot!B11:XFD11, \"<=31.3.2016\")","v":0},{"$f":"COUNTIFS(Asiakkuustiedot!B13:XFD13, \"alle 18 v, ls\",Asiakkuustiedot!B4:XFD4, \"ensimmäinen asiakaskäynti\",Asiakkuustiedot!B11:XFD11, \">=1.4.2016\",Asiakkuustiedot!B11:XFD11, \"<=30.4.2016\")","v":0},{"$f":"COUNTIFS(Asiakkuustiedot!B13:XFD13, \"alle 18 v, ls\",Asiakkuustiedot!B4:XFD4, \"ensimmäinen asiakaskäynti\",Asiakkuustiedot!B11:XFD11, \">=1.5.2016\",Asiakkuustiedot!B11:XFD11, \"<=31.5.2016\")","v":0},{"$f":"COUNTIFS(Asiakkuustiedot!B13:XFD13, \"alle 18 v, ls\",Asiakkuustiedot!B4:XFD4, \"ensimmäinen asiakaskäynti\",Asiakkuustiedot!B11:XFD11, \">=1.6.2016\",Asiakkuustiedot!B11:XFD11, \"<=30.6.2016\")","v":0},{"$f":"COUNTIFS(Asiakkuustiedot!B13:XFD13, \"alle 18 v, ls\",Asiakkuustiedot!B4:XFD4, \"ensimmäinen asiakaskäynti\",Asiakkuustiedot!B11:XFD11, \">=1.7.2016\",Asiakkuustiedot!B11:XFD11, \"<=31.7.2016\")","v":0},{"$f":"COUNTIFS(Asiakkuustiedot!B13:XFD13, \"alle 18 v, ls\",Asiakkuustiedot!B4:XFD4, \"ensimmäinen asiakaskäynti\",Asiakkuustiedot!B11:XFD11, \">=1.8.2016\",Asiakkuustiedot!B11:XFD11, \"<=31.8.2016\")","v":0},{"$f":"COUNTIFS(Asiakkuustiedot!B13:XFD13, \"alle 18 v, ls\",Asiakkuustiedot!B4:XFD4, \"ensimmäinen asiakaskäynti\",Asiakkuustiedot!B11:XFD11, \">=1.9.2016\",Asiakkuustiedot!B11:XFD11, \"<=30.9.2016\")","v":0},{"$f":"COUNTIFS(Asiakkuustiedot!B13:XFD13, \"alle 18 v, ls\",Asiakkuustiedot!B4:XFD4, \"ensimmäinen asiakaskäynti\",Asiakkuustiedot!B11:XFD11, \">=1.10.2016\",Asiakkuustiedot!B11:XFD11, \"<=31.10.2016\")","v":0},{"$f":"COUNTIFS(Asiakkuustiedot!B13:XFD13, \"alle 18 v, ls\",Asiakkuustiedot!B4:XFD4, \"ensimmäinen asiakaskäynti\",Asiakkuustiedot!B11:XFD11, \">=1.11.2016\",Asiakkuustiedot!B11:XFD11, \"<=30.11.2016\")","v":0},{"$f":"COUNTIFS(Asiakkuustiedot!B13:XFD13, \"alle 18 v, ls\",Asiakkuustiedot!B4:XFD4, \"ensimmäinen asiakaskäynti\",Asiakkuustiedot!B11:XFD11, \">=1.12.2016\",Asiakkuustiedot!B11:XFD11, \"<=31.12.2016\")","v":0}]
[null,"x",false,8,"18-21 v, jälkihuolto",{"$f":"COUNTIFS(Asiakkuustiedot!B13:XFD13, \"18-21 v, jälkihuolto\",Asiakkuustiedot!B4:XFD4, \"ensimmäinen asiakaskäynti\",Asiakkuustiedot!B11:XFD11, \">=1.1.2016\",Asiakkuustiedot!B11:XFD11, \"<=31.12.2016\")","v":0},null,null,null,null,null,null,{"$f":"COUNTIFS(Asiakkuustiedot!B13:XFD13, \"18-21 v, jälkihuolto\",Asiakkuustiedot!B4:XFD4, \"ensimmäinen asiakaskäynti\",Asiakkuustiedot!B11:XFD11, \">=1.1.2016\",Asiakkuustiedot!B11:XFD11, \"<=31.1.2016\")","v":0},{"$f":"COUNTIFS(Asiakkuustiedot!B13:XFD13, \"18-21 v, jälkihuolto\",Asiakkuustiedot!B4:XFD4, \"ensimmäinen asiakaskäynti\",Asiakkuustiedot!B11:XFD11, \">=1.2.2016\",Asiakkuustiedot!B11:XFD11, \"<=28.2.2016\")","v":0},{"$f":"COUNTIFS(Asiakkuustiedot!B13:XFD13, \"18-21 v, jälkihuolto\",Asiakkuustiedot!B4:XFD4, \"ensimmäinen asiakaskäynti\",Asiakkuustiedot!B11:XFD11, \">=1.3.2016\",Asiakkuustiedot!B11:XFD11, \"<=31.3.2016\")","v":0},{"$f":"COUNTIFS(Asiakkuustiedot!B13:XFD13, \"18-21 v, jälkihuolto\",Asiakkuustiedot!B4:XFD4, \"ensimmäinen asiakaskäynti\",Asiakkuustiedot!B11:XFD11, \">=1.4.2016\",Asiakkuustiedot!B11:XFD11, \"<=30.4.2016\")","v":0},{"$f":"COUNTIFS(Asiakkuustiedot!B13:XFD13, \"18-21 v, jälkihuolto\",Asiakkuustiedot!B4:XFD4, \"ensimmäinen asiakaskäynti\",Asiakkuustiedot!B11:XFD11, \">=1.5.2016\",Asiakkuustiedot!B11:XFD11, \"<=31.5.2016\")","v":0},{"$f":"COUNTIFS(Asiakkuustiedot!B13:XFD13, \"18-21 v, jälkihuolto\",Asiakkuustiedot!B4:XFD4, \"ensimmäinen asiakaskäynti\",Asiakkuustiedot!B11:XFD11, \">=1.6.2016\",Asiakkuustiedot!B11:XFD11, \"<=30.6.2016\")","v":0},{"$f":"COUNTIFS(Asiakkuustiedot!B13:XFD13, \"18-21 v, jälkihuolto\",Asiakkuustiedot!B4:XFD4, \"ensimmäinen asiakaskäynti\",Asiakkuustiedot!B11:XFD11, \">=1.7.2016\",Asiakkuustiedot!B11:XFD11, \"<=31.7.2016\")","v":0},{"$f":"COUNTIFS(Asiakkuustiedot!B13:XFD13, \"18-21 v, jälkihuolto\",Asiakkuustiedot!B4:XFD4, \"ensimmäinen asiakaskäynti\",Asiakkuustiedot!B11:XFD11, \">=1.8.2016\",Asiakkuustiedot!B11:XFD11, \"<=31.8.2016\")","v":0},{"$f":"COUNTIFS(Asiakkuustiedot!B13:XFD13, \"18-21 v, jälkihuolto\",Asiakkuustiedot!B4:XFD4, \"ensimmäinen asiakaskäynti\",Asiakkuustiedot!B11:XFD11, \">=1.9.2016\",Asiakkuustiedot!B11:XFD11, \"<=30.9.2016\")","v":0},{"$f":"COUNTIFS(Asiakkuustiedot!B13:XFD13, \"18-21 v, jälkihuolto\",Asiakkuustiedot!B4:XFD4, \"ensimmäinen asiakaskäynti\",Asiakkuustiedot!B11:XFD11, \">=1.10.2016\",Asiakkuustiedot!B11:XFD11, \"<=31.10.2016\")","v":0},{"$f":"COUNTIFS(Asiakkuustiedot!B13:XFD13, \"18-21 v, jälkihuolto\",Asiakkuustiedot!B4:XFD4, \"ensimmäinen asiakaskäynti\",Asiakkuustiedot!B11:XFD11, \">=1.11.2016\",Asiakkuustiedot!B11:XFD11, \"<=30.11.2016\")","v":0},{"$f":"COUNTIFS(Asiakkuustiedot!B13:XFD13, \"18-21 v, jälkihuolto\",Asiakkuustiedot!B4:XFD4, \"ensimmäinen asiakaskäynti\",Asiakkuustiedot!B11:XFD11, \">=1.12.2016\",Asiakkuustiedot!B11:XFD11, \"<=31.12.2016\")","v":0}]
[null,"x",false,8,"18-24 v",{"$f":"COUNTIFS(Asiakkuustiedot!B13:XFD13, \"18-24 v\",Asiakkuustiedot!B4:XFD4, \"ensimmäinen asiakaskäynti\",Asiakkuustiedot!B11:XFD11, \">=1.1.2016\",Asiakkuustiedot!B11:XFD11, \"<=31.12.2016\")","v":0},null,null,null,null,null,null,{"$f":"COUNTIFS(Asiakkuustiedot!B13:XFD13, \"18-24 v\",Asiakkuustiedot!B4:XFD4, \"ensimmäinen asiakaskäynti\",Asiakkuustiedot!B11:XFD11, \">=1.1.2016\",Asiakkuustiedot!B11:XFD11, \"<=31.1.2016\")","v":0},{"$f":"COUNTIFS(Asiakkuustiedot!B13:XFD13, \"18-24 v\",Asiakkuustiedot!B4:XFD4, \"ensimmäinen asiakaskäynti\",Asiakkuustiedot!B11:XFD11, \">=1.2.2016\",Asiakkuustiedot!B11:XFD11, \"<=28.2.2016\")","v":0},{"$f":"COUNTIFS(Asiakkuustiedot!B13:XFD13, \"18-24 v\",Asiakkuustiedot!B4:XFD4, \"ensimmäinen asiakaskäynti\",Asiakkuustiedot!B11:XFD11, \">=1.3.2016\",Asiakkuustiedot!B11:XFD11, \"<=31.3.2016\")","v":0},{"$f":"COUNTIFS(Asiakkuustiedot!B13:XFD13, \"18-24 v\",Asiakkuustiedot!B4:XFD4, \"ensimmäinen asiakaskäynti\",Asiakkuustiedot!B11:XFD11, \">=1.4.2016\",Asiakkuustiedot!B11:XFD11, \"<=30.4.2016\")","v":0},{"$f":"COUNTIFS(Asiakkuustiedot!B13:XFD13, \"18-24 v\",Asiakkuustiedot!B4:XFD4, \"ensimmäinen asiakaskäynti\",Asiakkuustiedot!B11:XFD11, \">=1.5.2016\",Asiakkuustiedot!B11:XFD11, \"<=31.5.2016\")","v":0},{"$f":"COUNTIFS(Asiakkuustiedot!B13:XFD13, \"18-24 v\",Asiakkuustiedot!B4:XFD4, \"ensimmäinen asiakaskäynti\",Asiakkuustiedot!B11:XFD11, \">=1.6.2016\",Asiakkuustiedot!B11:XFD11, \"<=30.6.2016\")","v":0},{"$f":"COUNTIFS(Asiakkuustiedot!B13:XFD13, \"18-24 v\",Asiakkuustiedot!B4:XFD4, \"ensimmäinen asiakaskäynti\",Asiakkuustiedot!B11:XFD11, \">=1.7.2016\",Asiakkuustiedot!B11:XFD11, \"<=31.7.2016\")","v":0},{"$f":"COUNTIFS(Asiakkuustiedot!B13:XFD13, \"18-24 v\",Asiakkuustiedot!B4:XFD4, \"ensimmäinen asiakaskäynti\",Asiakkuustiedot!B11:XFD11, \">=1.8.2016\",Asiakkuustiedot!B11:XFD11, \"<=31.8.2016\")","v":0},{"$f":"COUNTIFS(Asiakkuustiedot!B13:XFD13, \"18-24 v\",Asiakkuustiedot!B4:XFD4, \"ensimmäinen asiakaskäynti\",Asiakkuustiedot!B11:XFD11, \">=1.9.2016\",Asiakkuustiedot!B11:XFD11, \"<=30.9.2016\")","v":0},{"$f":"COUNTIFS(Asiakkuustiedot!B13:XFD13, \"18-24 v\",Asiakkuustiedot!B4:XFD4, \"ensimmäinen asiakaskäynti\",Asiakkuustiedot!B11:XFD11, \">=1.10.2016\",Asiakkuustiedot!B11:XFD11, \"<=31.10.2016\")","v":0},{"$f":"COUNTIFS(Asiakkuustiedot!B13:XFD13, \"18-24 v\",Asiakkuustiedot!B4:XFD4, \"ensimmäinen asiakaskäynti\",Asiakkuustiedot!B11:XFD11, \">=1.11.2016\",Asiakkuustiedot!B11:XFD11, \"<=30.11.2016\")","v":0},{"$f":"COUNTIFS(Asiakkuustiedot!B13:XFD13, \"18-24 v\",Asiakkuustiedot!B4:XFD4, \"ensimmäinen asiakaskäynti\",Asiakkuustiedot!B11:XFD11, \">=1.12.2016\",Asiakkuustiedot!B11:XFD11, \"<=31.12.2016\")","v":0}]
[null,"x",false,8,"25-30 v",{"$f":"COUNTIFS(Asiakkuustiedot!B13:XFD13, \"25-30 v\",Asiakkuustiedot!B4:XFD4, \"ensimmäinen asiakaskäynti\",Asiakkuustiedot!B11:XFD11, \">=1.1.2016\",Asiakkuustiedot!B11:XFD11, \"<=31.12.2016\")","v":0},null,null,null,null,null,null,{"$f":"COUNTIFS(Asiakkuustiedot!B13:XFD13, \"25-30 v\",Asiakkuustiedot!B4:XFD4, \"ensimmäinen asiakaskäynti\",Asiakkuustiedot!B11:XFD11, \">=1.1.2016\",Asiakkuustiedot!B11:XFD11, \"<=31.1.2016\")","v":0},{"$f":"COUNTIFS(Asiakkuustiedot!B13:XFD13, \"25-30 v\",Asiakkuustiedot!B4:XFD4, \"ensimmäinen asiakaskäynti\",Asiakkuustiedot!B11:XFD11, \">=1.2.2016\",Asiakkuustiedot!B11:XFD11, \"<=28.2.2016\")","v":0},{"$f":"COUNTIFS(Asiakkuustiedot!B13:XFD13, \"25-30 v\",Asiakkuustiedot!B4:XFD4, \"ensimmäinen asiakaskäynti\",Asiakkuustiedot!B11:XFD11, \">=1.3.2016\",Asiakkuustiedot!B11:XFD11, \"<=31.3.2016\")","v":0},{"$f":"COUNTIFS(Asiakkuustiedot!B13:XFD13, \"25-30 v\",Asiakkuustiedot!B4:XFD4, \"ensimmäinen asiakaskäynti\",Asiakkuustiedot!B11:XFD11, \">=1.4.2016\",Asiakkuustiedot!B11:XFD11, \"<=30.4.2016\")","v":0},{"$f":"COUNTIFS(Asiakkuustiedot!B13:XFD13, \"25-30 v\",Asiakkuustiedot!B4:XFD4, \"ensimmäinen asiakaskäynti\",Asiakkuustiedot!B11:XFD11, \">=1.5.2016\",Asiakkuustiedot!B11:XFD11, \"<=31.5.2016\")","v":0},{"$f":"COUNTIFS(Asiakkuustiedot!B13:XFD13, \"25-30 v\",Asiakkuustiedot!B4:XFD4, \"ensimmäinen asiakaskäynti\",Asiakkuustiedot!B11:XFD11, \">=1.6.2016\",Asiakkuustiedot!B11:XFD11, \"<=30.6.2016\")","v":0},{"$f":"COUNTIFS(Asiakkuustiedot!B13:XFD13, \"25-30 v\",Asiakkuustiedot!B4:XFD4, \"ensimmäinen asiakaskäynti\",Asiakkuustiedot!B11:XFD11, \">=1.7.2016\",Asiakkuustiedot!B11:XFD11, \"<=31.7.2016\")","v":0},{"$f":"COUNTIFS(Asiakkuustiedot!B13:XFD13, \"25-30 v\",Asiakkuustiedot!B4:XFD4, \"ensimmäinen asiakaskäynti\",Asiakkuustiedot!B11:XFD11, \">=1.8.2016\",Asiakkuustiedot!B11:XFD11, \"<=31.8.2016\")","v":0},{"$f":"COUNTIFS(Asiakkuustiedot!B13:XFD13, \"25-30 v\",Asiakkuustiedot!B4:XFD4, \"ensimmäinen asiakaskäynti\",Asiakkuustiedot!B11:XFD11, \">=1.9.2016\",Asiakkuustiedot!B11:XFD11, \"<=30.9.2016\")","v":0},{"$f":"COUNTIFS(Asiakkuustiedot!B13:XFD13, \"25-30 v\",Asiakkuustiedot!B4:XFD4, \"ensimmäinen asiakaskäynti\",Asiakkuustiedot!B11:XFD11, \">=1.10.2016\",Asiakkuustiedot!B11:XFD11, \"<=31.10.2016\")","v":0},{"$f":"COUNTIFS(Asiakkuustiedot!B13:XFD13, \"25-30 v\",Asiakkuustiedot!B4:XFD4, \"ensimmäinen asiakaskäynti\",Asiakkuustiedot!B11:XFD11, \">=1.11.2016\",Asiakkuustiedot!B11:XFD11, \"<=30.11.2016\")","v":0},{"$f":"COUNTIFS(Asiakkuustiedot!B13:XFD13, \"25-30 v\",Asiakkuustiedot!B4:XFD4, \"ensimmäinen asiakaskäynti\",Asiakkuustiedot!B11:XFD11, \">=1.12.2016\",Asiakkuustiedot!B11:XFD11, \"<=31.12.2016\")","v":0}]
[]
[null,null,null,null,"Kieli"]
[null,"x",false,9,"suomi äidinkielenä",{"$f":"COUNTIFS(Asiakkuustiedot!B14:XFD14, \"suomi äidinkielenä\",Asiakkuustiedot!B4:XFD4, \"ensimmäinen asiakaskäynti\",Asiakkuustiedot!B11:XFD11, \">=1.1.2016\",Asiakkuustiedot!B11:XFD11, \"<=31.12.2016\")","v":0},null,null,null,null,null,null,{"$f":"COUNTIFS(Asiakkuustiedot!B14:XFD14, \"suomi äidinkielenä\",Asiakkuustiedot!B4:XFD4, \"ensimmäinen asiakaskäynti\",Asiakkuustiedot!B11:XFD11, \">=1.1.2016\",Asiakkuustiedot!B11:XFD11, \"<=31.1.2016\")","v":0},{"$f":"COUNTIFS(Asiakkuustiedot!B14:XFD14, \"suomi äidinkielenä\",Asiakkuustiedot!B4:XFD4, \"ensimmäinen asiakaskäynti\",Asiakkuustiedot!B11:XFD11, \">=1.2.2016\",Asiakkuustiedot!B11:XFD11, \"<=28.2.2016\")","v":0},{"$f":"COUNTIFS(Asiakkuustiedot!B14:XFD14, \"suomi äidinkielenä\",Asiakkuustiedot!B4:XFD4, \"ensimmäinen asiakaskäynti\",Asiakkuustiedot!B11:XFD11, \">=1.3.2016\",Asiakkuustiedot!B11:XFD11, \"<=31.3.2016\")","v":0},{"$f":"COUNTIFS(Asiakkuustiedot!B14:XFD14, \"suomi äidinkielenä\",Asiakkuustiedot!B4:XFD4, \"ensimmäinen asiakaskäynti\",Asiakkuustiedot!B11:XFD11, \">=1.4.2016\",Asiakkuustiedot!B11:XFD11, \"<=30.4.2016\")","v":0},{"$f":"COUNTIFS(Asiakkuustiedot!B14:XFD14, \"suomi äidinkielenä\",Asiakkuustiedot!B4:XFD4, \"ensimmäinen asiakaskäynti\",Asiakkuustiedot!B11:XFD11, \">=1.5.2016\",Asiakkuustiedot!B11:XFD11, \"<=31.5.2016\")","v":0},{"$f":"COUNTIFS(Asiakkuustiedot!B14:XFD14, \"suomi äidinkielenä\",Asiakkuustiedot!B4:XFD4, \"ensimmäinen asiakaskäynti\",Asiakkuustiedot!B11:XFD11, \">=1.6.2016\",Asiakkuustiedot!B11:XFD11, \"<=30.6.2016\")","v":0},{"$f":"COUNTIFS(Asiakkuustiedot!B14:XFD14, \"suomi äidinkielenä\",Asiakkuustiedot!B4:XFD4, \"ensimmäinen asiakaskäynti\",Asiakkuustiedot!B11:XFD11, \">=1.7.2016\",Asiakkuustiedot!B11:XFD11, \"<=31.7.2016\")","v":0},{"$f":"COUNTIFS(Asiakkuustiedot!B14:XFD14, \"suomi äidinkielenä\",Asiakkuustiedot!B4:XFD4, \"ensimmäinen asiakaskäynti\",Asiakkuustiedot!B11:XFD11, \">=1.8.2016\",Asiakkuustiedot!B11:XFD11, \"<=31.8.2016\")","v":0},{"$f":"COUNTIFS(Asiakkuustiedot!B14:XFD14, \"suomi äidinkielenä\",Asiakkuustiedot!B4:XFD4, \"ensimmäinen asiakaskäynti\",Asiakkuustiedot!B11:XFD11, \">=1.9.2016\",Asiakkuustiedot!B11:XFD11, \"<=30.9.2016\")","v":0},{"$f":"COUNTIFS(Asiakkuustiedot!B14:XFD14, \"suomi äidinkielenä\",Asiakkuustiedot!B4:XFD4, \"ensimmäinen asiakaskäynti\",Asiakkuustiedot!B11:XFD11, \">=1.10.2016\",Asiakkuustiedot!B11:XFD11, \"<=31.10.2016\")","v":0},{"$f":"COUNTIFS(Asiakkuustiedot!B14:XFD14, \"suomi äidinkielenä\",Asiakkuustiedot!B4:XFD4, \"ensimmäinen asiakaskäynti\",Asiakkuustiedot!B11:XFD11, \">=1.11.2016\",Asiakkuustiedot!B11:XFD11, \"<=30.11.2016\")","v":0},{"$f":"COUNTIFS(Asiakkuustiedot!B14:XFD14, \"suomi äidinkielenä\",Asiakkuustiedot!B4:XFD4, \"ensimmäinen asiakaskäynti\",Asiakkuustiedot!B11:XFD11, \">=1.12.2016\",Asiakkuustiedot!B11:XFD11, \"<=31.12.2016\")","v":0}]
[null,"x",false,9,"ruotsi äidinkielenä",{"$f":"COUNTIFS(Asiakkuustiedot!B14:XFD14, \"ruotsi äidinkielenä\",Asiakkuustiedot!B4:XFD4, \"ensimmäinen asiakaskäynti\",Asiakkuustiedot!B11:XFD11, \">=1.1.2016\",Asiakkuustiedot!B11:XFD11, \"<=31.12.2016\")","v":0},null,null,null,null,null,null,{"$f":"COUNTIFS(Asiakkuustiedot!B14:XFD14, \"ruotsi äidinkielenä\",Asiakkuustiedot!B4:XFD4, \"ensimmäinen asiakaskäynti\",Asiakkuustiedot!B11:XFD11, \">=1.1.2016\",Asiakkuustiedot!B11:XFD11, \"<=31.1.2016\")","v":0},{"$f":"COUNTIFS(Asiakkuustiedot!B14:XFD14, \"ruotsi äidinkielenä\",Asiakkuustiedot!B4:XFD4, \"ensimmäinen asiakaskäynti\",Asiakkuustiedot!B11:XFD11, \">=1.2.2016\",Asiakkuustiedot!B11:XFD11, \"<=28.2.2016\")","v":0},{"$f":"COUNTIFS(Asiakkuustiedot!B14:XFD14, \"ruotsi äidinkielenä\",Asiakkuustiedot!B4:XFD4, \"ensimmäinen asiakaskäynti\",Asiakkuustiedot!B11:XFD11, \">=1.3.2016\",Asiakkuustiedot!B11:XFD11, \"<=31.3.2016\")","v":0},{"$f":"COUNTIFS(Asiakkuustiedot!B14:XFD14, \"ruotsi äidinkielenä\",Asiakkuustiedot!B4:XFD4, \"ensimmäinen asiakaskäynti\",Asiakkuustiedot!B11:XFD11, \">=1.4.2016\",Asiakkuustiedot!B11:XFD11, \"<=30.4.2016\")","v":0},{"$f":"COUNTIFS(Asiakkuustiedot!B14:XFD14, \"ruotsi äidinkielenä\",Asiakkuustiedot!B4:XFD4, \"ensimmäinen asiakaskäynti\",Asiakkuustiedot!B11:XFD11, \">=1.5.2016\",Asiakkuustiedot!B11:XFD11, \"<=31.5.2016\")","v":0},{"$f":"COUNTIFS(Asiakkuustiedot!B14:XFD14, \"ruotsi äidinkielenä\",Asiakkuustiedot!B4:XFD4, \"ensimmäinen asiakaskäynti\",Asiakkuustiedot!B11:XFD11, \">=1.6.2016\",Asiakkuustiedot!B11:XFD11, \"<=30.6.2016\")","v":0},{"$f":"COUNTIFS(Asiakkuustiedot!B14:XFD14, \"ruotsi äidinkielenä\",Asiakkuustiedot!B4:XFD4, \"ensimmäinen asiakaskäynti\",Asiakkuustiedot!B11:XFD11, \">=1.7.2016\",Asiakkuustiedot!B11:XFD11, \"<=31.7.2016\")","v":0},{"$f":"COUNTIFS(Asiakkuustiedot!B14:XFD14, \"ruotsi äidinkielenä\",Asiakkuustiedot!B4:XFD4, \"ensimmäinen asiakaskäynti\",Asiakkuustiedot!B11:XFD11, \">=1.8.2016\",Asiakkuustiedot!B11:XFD11, \"<=31.8.2016\")","v":0},{"$f":"COUNTIFS(Asiakkuustiedot!B14:XFD14, \"ruotsi äidinkielenä\",Asiakkuustiedot!B4:XFD4, \"ensimmäinen asiakaskäynti\",Asiakkuustiedot!B11:XFD11, \">=1.9.2016\",Asiakkuustiedot!B11:XFD11, \"<=30.9.2016\")","v":0},{"$f":"COUNTIFS(Asiakkuustiedot!B14:XFD14, \"ruotsi äidinkielenä\",Asiakkuustiedot!B4:XFD4, \"ensimmäinen asiakaskäynti\",Asiakkuustiedot!B11:XFD11, \">=1.10.2016\",Asiakkuustiedot!B11:XFD11, \"<=31.10.2016\")","v":0},{"$f":"COUNTIFS(Asiakkuustiedot!B14:XFD14, \"ruotsi äidinkielenä\",Asiakkuustiedot!B4:XFD4, \"ensimmäinen asiakaskäynti\",Asiakkuustiedot!B11:XFD11, \">=1.11.2016\",Asiakkuustiedot!B11:XFD11, \"<=30.11.2016\")","v":0},{"$f":"COUNTIFS(Asiakkuustiedot!B14:XFD14, \"ruotsi äidinkielenä\",Asiakkuustiedot!B4:XFD4, \"ensimmäinen asiakaskäynti\",Asiakkuustiedot!B11:XFD11, \">=1.12.2016\",Asiakkuustiedot!B11:XFD11, \"<=31.12.2016\")","v":0}]
[null,"x",false,9,"muu kieli äidinkielenä",{"$f":"COUNTIFS(Asiakkuustiedot!B14:XFD14, \"muu kieli äidinkielenä\",Asiakkuustiedot!B4:XFD4, \"ensimmäinen asiakaskäynti\",Asiakkuustiedot!B11:XFD11, \">=1.1.2016\",Asiakkuustiedot!B11:XFD11, \"<=31.12.2016\")","v":0},null,null,null,null,null,null,{"$f":"COUNTIFS(Asiakkuustiedot!B14:XFD14, \"muu kieli äidinkielenä\",Asiakkuustiedot!B4:XFD4, \"ensimmäinen asiakaskäynti\",Asiakkuustiedot!B11:XFD11, \">=1.1.2016\",Asiakkuustiedot!B11:XFD11, \"<=31.1.2016\")","v":0},{"$f":"COUNTIFS(Asiakkuustiedot!B14:XFD14, \"muu kieli äidinkielenä\",Asiakkuustiedot!B4:XFD4, \"ensimmäinen asiakaskäynti\",Asiakkuustiedot!B11:XFD11, \">=1.2.2016\",Asiakkuustiedot!B11:XFD11, \"<=28.2.2016\")","v":0},{"$f":"COUNTIFS(Asiakkuustiedot!B14:XFD14, \"muu kieli äidinkielenä\",Asiakkuustiedot!B4:XFD4, \"ensimmäinen asiakaskäynti\",Asiakkuustiedot!B11:XFD11, \">=1.3.2016\",Asiakkuustiedot!B11:XFD11, \"<=31.3.2016\")","v":0},{"$f":"COUNTIFS(Asiakkuustiedot!B14:XFD14, \"muu kieli äidinkielenä\",Asiakkuustiedot!B4:XFD4, \"ensimmäinen asiakaskäynti\",Asiakkuustiedot!B11:XFD11, \">=1.4.2016\",Asiakkuustiedot!B11:XFD11, \"<=30.4.2016\")","v":0},{"$f":"COUNTIFS(Asiakkuustiedot!B14:XFD14, \"muu kieli äidinkielenä\",Asiakkuustiedot!B4:XFD4, \"ensimmäinen asiakaskäynti\",Asiakkuustiedot!B11:XFD11, \">=1.5.2016\",Asiakkuustiedot!B11:XFD11, \"<=31.5.2016\")","v":0},{"$f":"COUNTIFS(Asiakkuustiedot!B14:XFD14, \"muu kieli äidinkielenä\",Asiakkuustiedot!B4:XFD4, \"ensimmäinen asiakaskäynti\",Asiakkuustiedot!B11:XFD11, \">=1.6.2016\",Asiakkuustiedot!B11:XFD11, \"<=30.6.2016\")","v":0},{"$f":"COUNTIFS(Asiakkuustiedot!B14:XFD14, \"muu kieli äidinkielenä\",Asiakkuustiedot!B4:XFD4, \"ensimmäinen asiakaskäynti\",Asiakkuustiedot!B11:XFD11, \">=1.7.2016\",Asiakkuustiedot!B11:XFD11, \"<=31.7.2016\")","v":0},{"$f":"COUNTIFS(Asiakkuustiedot!B14:XFD14, \"muu kieli äidinkielenä\",Asiakkuustiedot!B4:XFD4, \"ensimmäinen asiakaskäynti\",Asiakkuustiedot!B11:XFD11, \">=1.8.2016\",Asiakkuustiedot!B11:XFD11, \"<=31.8.2016\")","v":0},{"$f":"COUNTIFS(Asiakkuustiedot!B14:XFD14, \"muu kieli äidinkielenä\",Asiakkuustiedot!B4:XFD4, \"ensimmäinen asiakaskäynti\",Asiakkuustiedot!B11:XFD11, \">=1.9.2016\",Asiakkuustiedot!B11:XFD11, \"<=30.9.2016\")","v":0},{"$f":"COUNTIFS(Asiakkuustiedot!B14:XFD14, \"muu kieli äidinkielenä\",Asiakkuustiedot!B4:XFD4, \"ensimmäinen asiakaskäynti\",Asiakkuustiedot!B11:XFD11, \">=1.10.2016\",Asiakkuustiedot!B11:XFD11, \"<=31.10.2016\")","v":0},{"$f":"COUNTIFS(Asiakkuustiedot!B14:XFD14, \"muu kieli äidinkielenä\",Asiakkuustiedot!B4:XFD4, \"ensimmäinen asiakaskäynti\",Asiakkuustiedot!B11:XFD11, \">=1.11.2016\",Asiakkuustiedot!B11:XFD11, \"<=30.11.2016\")","v":0},{"$f":"COUNTIFS(Asiakkuustiedot!B14:XFD14, \"muu kieli äidinkielenä\",Asiakkuustiedot!B4:XFD4, \"ensimmäinen asiakaskäynti\",Asiakkuustiedot!B11:XFD11, \">=1.12.2016\",Asiakkuustiedot!B11:XFD11, \"<=31.12.2016\")","v":0}]
[]
[null,null,null,null,"Tulot"]
[null,"x",false,11,"Ansiotulo",{"$f":"COUNTIFS(Asiakkuustiedot!B16:XFD16, \"Ansiotulo\",Asiakkuustiedot!B4:XFD4, \"ensimmäinen asiakaskäynti\",Asiakkuustiedot!B11:XFD11, \">=1.1.2016\",Asiakkuustiedot!B11:XFD11, \"<=31.12.2016\")","v":0},null,null,null,null,null,null,{"$f":"COUNTIFS(Asiakkuustiedot!B16:XFD16, \"Ansiotulo\",Asiakkuustiedot!B4:XFD4, \"ensimmäinen asiakaskäynti\",Asiakkuustiedot!B11:XFD11, \">=1.1.2016\",Asiakkuustiedot!B11:XFD11, \"<=31.1.2016\")","v":0},{"$f":"COUNTIFS(Asiakkuustiedot!B16:XFD16, \"Ansiotulo\",Asiakkuustiedot!B4:XFD4, \"ensimmäinen asiakaskäynti\",Asiakkuustiedot!B11:XFD11, \">=1.2.2016\",Asiakkuustiedot!B11:XFD11, \"<=28.2.2016\")","v":0},{"$f":"COUNTIFS(Asiakkuustiedot!B16:XFD16, \"Ansiotulo\",Asiakkuustiedot!B4:XFD4, \"ensimmäinen asiakaskäynti\",Asiakkuustiedot!B11:XFD11, \">=1.3.2016\",Asiakkuustiedot!B11:XFD11, \"<=31.3.2016\")","v":0},{"$f":"COUNTIFS(Asiakkuustiedot!B16:XFD16, \"Ansiotulo\",Asiakkuustiedot!B4:XFD4, \"ensimmäinen asiakaskäynti\",Asiakkuustiedot!B11:XFD11, \">=1.4.2016\",Asiakkuustiedot!B11:XFD11, \"<=30.4.2016\")","v":0},{"$f":"COUNTIFS(Asiakkuustiedot!B16:XFD16, \"Ansiotulo\",Asiakkuustiedot!B4:XFD4, \"ensimmäinen asiakaskäynti\",Asiakkuustiedot!B11:XFD11, \">=1.5.2016\",Asiakkuustiedot!B11:XFD11, \"<=31.5.2016\")","v":0},{"$f":"COUNTIFS(Asiakkuustiedot!B16:XFD16, \"Ansiotulo\",Asiakkuustiedot!B4:XFD4, \"ensimmäinen asiakaskäynti\",Asiakkuustiedot!B11:XFD11, \">=1.6.2016\",Asiakkuustiedot!B11:XFD11, \"<=30.6.2016\")","v":0},{"$f":"COUNTIFS(Asiakkuustiedot!B16:XFD16, \"Ansiotulo\",Asiakkuustiedot!B4:XFD4, \"ensimmäinen asiakaskäynti\",Asiakkuustiedot!B11:XFD11, \">=1.7.2016\",Asiakkuustiedot!B11:XFD11, \"<=31.7.2016\")","v":0},{"$f":"COUNTIFS(Asiakkuustiedot!B16:XFD16, \"Ansiotulo\",Asiakkuustiedot!B4:XFD4, \"ensimmäinen asiakaskäynti\",Asiakkuustiedot!B11:XFD11, \">=1.8.2016\",Asiakkuustiedot!B11:XFD11, \"<=31.8.2016\")","v":0},{"$f":"COUNTIFS(Asiakkuustiedot!B16:XFD16, \"Ansiotulo\",Asiakkuustiedot!B4:XFD4, \"ensimmäinen asiakaskäynti\",Asiakkuustiedot!B11:XFD11, \">=1.9.2016\",Asiakkuustiedot!B11:XFD11, \"<=30.9.2016\")","v":0},{"$f":"COUNTIFS(Asiakkuustiedot!B16:XFD16, \"Ansiotulo\",Asiakkuustiedot!B4:XFD4, \"ensimmäinen asiakaskäynti\",Asiakkuustiedot!B11:XFD11, \">=1.10.2016\",Asiakkuustiedot!B11:XFD11, \"<=31.10.2016\")","v":0},{"$f":"COUNTIFS(Asiakkuustiedot!B16:XFD16, \"Ansiotulo\",Asiakkuustiedot!B4:XFD4, \"ensimmäinen asiakaskäynti\",Asiakkuustiedot!B11:XFD11, \">=1.11.2016\",Asiakkuustiedot!B11:XFD11, \"<=30.11.2016\")","v":0},{"$f":"COUNTIFS(Asiakkuustiedot!B16:XFD16, \"Ansiotulo\",Asiakkuustiedot!B4:XFD4, \"ensimmäinen asiakaskäynti\",Asiakkuustiedot!B11:XFD11, \">=1.12.2016\",Asiakkuustiedot!B11:XFD11, \"<=31.12.2016\")","v":0}]
[null,"x",false,{"$f":"D20+1","v":12},"Työttömyysturva",{"$f":"COUNTIFS(Asiakkuustiedot!B24:XFD24, \"Työttömyysturva\",Asiakkuustiedot!B4:XFD4, \"ensimmäinen asiakaskäynti\",Asiakkuustiedot!B11:XFD11, \">=1.1.2016\",Asiakkuustiedot!B11:XFD11, \"<=31.12.2016\")","v":0},null,null,null,null,null,null,{"$f":"COUNTIFS(Asiakkuustiedot!B24:XFD24, \"Työttömyysturva\",Asiakkuustiedot!B4:XFD4, \"ensimmäinen asiakaskäynti\",Asiakkuustiedot!B11:XFD11, \">=1.1.2016\",Asiakkuustiedot!B11:XFD11, \"<=31.1.2016\")","v":0},{"$f":"COUNTIFS(Asiakkuustiedot!B24:XFD24, \"Työttömyysturva\",Asiakkuustiedot!B4:XFD4, \"ensimmäinen asiakaskäynti\",Asiakkuustiedot!B11:XFD11, \">=1.2.2016\",Asiakkuustiedot!B11:XFD11, \"<=28.2.2016\")","v":0},{"$f":"COUNTIFS(Asiakkuustiedot!B24:XFD24, \"Työttömyysturva\",Asiakkuustiedot!B4:XFD4, \"ensimmäinen asiakaskäynti\",Asiakkuustiedot!B11:XFD11, \">=1.3.2016\",Asiakkuustiedot!B11:XFD11, \"<=31.3.2016\")","v":0},{"$f":"COUNTIFS(Asiakkuustiedot!B24:XFD24, \"Työttömyysturva\",Asiakkuustiedot!B4:XFD4, \"ensimmäinen asiakaskäynti\",Asiakkuustiedot!B11:XFD11, \">=1.4.2016\",Asiakkuustiedot!B11:XFD11, \"<=30.4.2016\")","v":0},{"$f":"COUNTIFS(Asiakkuustiedot!B24:XFD24, \"Työttömyysturva\",Asiakkuustiedot!B4:XFD4, \"ensimmäinen asiakaskäynti\",Asiakkuustiedot!B11:XFD11, \">=1.5.2016\",Asiakkuustiedot!B11:XFD11, \"<=31.5.2016\")","v":0},{"$f":"COUNTIFS(Asiakkuustiedot!B24:XFD24, \"Työttömyysturva\",Asiakkuustiedot!B4:XFD4, \"ensimmäinen asiakaskäynti\",Asiakkuustiedot!B11:XFD11, \">=1.6.2016\",Asiakkuustiedot!B11:XFD11, \"<=30.6.2016\")","v":0},{"$f":"COUNTIFS(Asiakkuustiedot!B24:XFD24, \"Työttömyysturva\",Asiakkuustiedot!B4:XFD4, \"ensimmäinen asiakaskäynti\",Asiakkuustiedot!B11:XFD11, \">=1.7.2016\",Asiakkuustiedot!B11:XFD11, \"<=31.7.2016\")","v":0},{"$f":"COUNTIFS(Asiakkuustiedot!B24:XFD24, \"Työttömyysturva\",Asiakkuustiedot!B4:XFD4, \"ensimmäinen asiakaskäynti\",Asiakkuustiedot!B11:XFD11, \">=1.8.2016\",Asiakkuustiedot!B11:XFD11, \"<=31.8.2016\")","v":0},{"$f":"COUNTIFS(Asiakkuustiedot!B24:XFD24, \"Työttömyysturva\",Asiakkuustiedot!B4:XFD4, \"ensimmäinen asiakaskäynti\",Asiakkuustiedot!B11:XFD11, \">=1.9.2016\",Asiakkuustiedot!B11:XFD11, \"<=30.9.2016\")","v":0},{"$f":"COUNTIFS(Asiakkuustiedot!B24:XFD24, \"Työttömyysturva\",Asiakkuustiedot!B4:XFD4, \"ensimmäinen asiakaskäynti\",Asiakkuustiedot!B11:XFD11, \">=1.10.2016\",Asiakkuustiedot!B11:XFD11, \"<=31.10.2016\")","v":0},{"$f":"COUNTIFS(Asiakkuustiedot!B24:XFD24, \"Työttömyysturva\",Asiakkuustiedot!B4:XFD4, \"ensimmäinen asiakaskäynti\",Asiakkuustiedot!B11:XFD11, \">=1.11.2016\",Asiakkuustiedot!B11:XFD11, \"<=30.11.2016\")","v":0},{"$f":"COUNTIFS(Asiakkuustiedot!B24:XFD24, \"Työttömyysturva\",Asiakkuustiedot!B4:XFD4, \"ensimmäinen asiakaskäynti\",Asiakkuustiedot!B11:XFD11, \">=1.12.2016\",Asiakkuustiedot!B11:XFD11, \"<=31.12.2016\")","v":0}]
[null,"x",false,{"$f":"D21+1","v":13},"Opintotuki ja asumislisä",{"$f":"COUNTIFS(Asiakkuustiedot!B25:XFD25, \"Opintotuki ja asumislisä\",Asiakkuustiedot!B4:XFD4, \"ensimmäinen asiakaskäynti\",Asiakkuustiedot!B11:XFD11, \">=1.1.2016\",Asiakkuustiedot!B11:XFD11, \"<=31.12.2016\")","v":0},null,null,null,null,null,null,{"$f":"COUNTIFS(Asiakkuustiedot!B25:XFD25, \"Opintotuki ja asumislisä\",Asiakkuustiedot!B4:XFD4, \"ensimmäinen asiakaskäynti\",Asiakkuustiedot!B11:XFD11, \">=1.1.2016\",Asiakkuustiedot!B11:XFD11, \"<=31.1.2016\")","v":0},{"$f":"COUNTIFS(Asiakkuustiedot!B25:XFD25, \"Opintotuki ja asumislisä\",Asiakkuustiedot!B4:XFD4, \"ensimmäinen asiakaskäynti\",Asiakkuustiedot!B11:XFD11, \">=1.2.2016\",Asiakkuustiedot!B11:XFD11, \"<=28.2.2016\")","v":0},{"$f":"COUNTIFS(Asiakkuustiedot!B25:XFD25, \"Opintotuki ja asumislisä\",Asiakkuustiedot!B4:XFD4, \"ensimmäinen asiakaskäynti\",Asiakkuustiedot!B11:XFD11, \">=1.3.2016\",Asiakkuustiedot!B11:XFD11, \"<=31.3.2016\")","v":0},{"$f":"COUNTIFS(Asiakkuustiedot!B25:XFD25, \"Opintotuki ja asumislisä\",Asiakkuustiedot!B4:XFD4, \"ensimmäinen asiakaskäynti\",Asiakkuustiedot!B11:XFD11, \">=1.4.2016\",Asiakkuustiedot!B11:XFD11, \"<=30.4.2016\")","v":0},{"$f":"COUNTIFS(Asiakkuustiedot!B25:XFD25, \"Opintotuki ja asumislisä\",Asiakkuustiedot!B4:XFD4, \"ensimmäinen asiakaskäynti\",Asiakkuustiedot!B11:XFD11, \">=1.5.2016\",Asiakkuustiedot!B11:XFD11, \"<=31.5.2016\")","v":0},{"$f":"COUNTIFS(Asiakkuustiedot!B25:XFD25, \"Opintotuki ja asumislisä\",Asiakkuustiedot!B4:XFD4, \"ensimmäinen asiakaskäynti\",Asiakkuustiedot!B11:XFD11, \">=1.6.2016\",Asiakkuustiedot!B11:XFD11, \"<=30.6.2016\")","v":0},{"$f":"COUNTIFS(Asiakkuustiedot!B25:XFD25, \"Opintotuki ja asumislisä\",Asiakkuustiedot!B4:XFD4, \"ensimmäinen asiakaskäynti\",Asiakkuustiedot!B11:XFD11, \">=1.7.2016\",Asiakkuustiedot!B11:XFD11, \"<=31.7.2016\")","v":0},{"$f":"COUNTIFS(Asiakkuustiedot!B25:XFD25, \"Opintotuki ja asumislisä\",Asiakkuustiedot!B4:XFD4, \"ensimmäinen asiakaskäynti\",Asiakkuustiedot!B11:XFD11, \">=1.8.2016\",Asiakkuustiedot!B11:XFD11, \"<=31.8.2016\")","v":0},{"$f":"COUNTIFS(Asiakkuustiedot!B25:XFD25, \"Opintotuki ja asumislisä\",Asiakkuustiedot!B4:XFD4, \"ensimmäinen asiakaskäynti\",Asiakkuustiedot!B11:XFD11, \">=1.9.2016\",Asiakkuustiedot!B11:XFD11, \"<=30.9.2016\")","v":0},{"$f":"COUNTIFS(Asiakkuustiedot!B25:XFD25, \"Opintotuki ja asumislisä\",Asiakkuustiedot!B4:XFD4, \"ensimmäinen asiakaskäynti\",Asiakkuustiedot!B11:XFD11, \">=1.10.2016\",Asiakkuustiedot!B11:XFD11, \"<=31.10.2016\")","v":0},{"$f":"COUNTIFS(Asiakkuustiedot!B25:XFD25, \"Opintotuki ja asumislisä\",Asiakkuustiedot!B4:XFD4, \"ensimmäinen asiakaskäynti\",Asiakkuustiedot!B11:XFD11, \">=1.11.2016\",Asiakkuustiedot!B11:XFD11, \"<=30.11.2016\")","v":0},{"$f":"COUNTIFS(Asiakkuustiedot!B25:XFD25, \"Opintotuki ja asumislisä\",Asiakkuustiedot!B4:XFD4, \"ensimmäinen asiakaskäynti\",Asiakkuustiedot!B11:XFD11, \">=1.12.2016\",Asiakkuustiedot!B11:XFD11, \"<=31.12.2016\")","v":0}]
[null,"x",false,14,"Yleinen asumistuki (ei opisk)",{"$f":"COUNTIFS(Asiakkuustiedot!B26:XFD26, \"Yleinen asumistuki (ei opisk)\",Asiakkuustiedot!B4:XFD4, \"ensimmäinen asiakaskäynti\",Asiakkuustiedot!B11:XFD11, \">=1.1.2016\",Asiakkuustiedot!B11:XFD11, \"<=31.12.2016\")","v":0},null,null,null,null,null,null,{"$f":"COUNTIFS(Asiakkuustiedot!B26:XFD26, \"Yleinen asumistuki (ei opisk)\",Asiakkuustiedot!B4:XFD4, \"ensimmäinen asiakaskäynti\",Asiakkuustiedot!B11:XFD11, \">=1.1.2016\",Asiakkuustiedot!B11:XFD11, \"<=31.1.2016\")","v":0},{"$f":"COUNTIFS(Asiakkuustiedot!B26:XFD26, \"Yleinen asumistuki (ei opisk)\",Asiakkuustiedot!B4:XFD4, \"ensimmäinen asiakaskäynti\",Asiakkuustiedot!B11:XFD11, \">=1.2.2016\",Asiakkuustiedot!B11:XFD11, \"<=28.2.2016\")","v":0},{"$f":"COUNTIFS(Asiakkuustiedot!B26:XFD26, \"Yleinen asumistuki (ei opisk)\",Asiakkuustiedot!B4:XFD4, \"ensimmäinen asiakaskäynti\",Asiakkuustiedot!B11:XFD11, \">=1.3.2016\",Asiakkuustiedot!B11:XFD11, \"<=31.3.2016\")","v":0},{"$f":"COUNTIFS(Asiakkuustiedot!B26:XFD26, \"Yleinen asumistuki (ei opisk)\",Asiakkuustiedot!B4:XFD4, \"ensimmäinen asiakaskäynti\",Asiakkuustiedot!B11:XFD11, \">=1.4.2016\",Asiakkuustiedot!B11:XFD11, \"<=30.4.2016\")","v":0},{"$f":"COUNTIFS(Asiakkuustiedot!B26:XFD26, \"Yleinen asumistuki (ei opisk)\",Asiakkuustiedot!B4:XFD4, \"ensimmäinen asiakaskäynti\",Asiakkuustiedot!B11:XFD11, \">=1.5.2016\",Asiakkuustiedot!B11:XFD11, \"<=31.5.2016\")","v":0},{"$f":"COUNTIFS(Asiakkuustiedot!B26:XFD26, \"Yleinen asumistuki (ei opisk)\",Asiakkuustiedot!B4:XFD4, \"ensimmäinen asiakaskäynti\",Asiakkuustiedot!B11:XFD11, \">=1.6.2016\",Asiakkuustiedot!B11:XFD11, \"<=30.6.2016\")","v":0},{"$f":"COUNTIFS(Asiakkuustiedot!B26:XFD26, \"Yleinen asumistuki (ei opisk)\",Asiakkuustiedot!B4:XFD4, \"ensimmäinen asiakaskäynti\",Asiakkuustiedot!B11:XFD11, \">=1.7.2016\",Asiakkuustiedot!B11:XFD11, \"<=31.7.2016\")","v":0},{"$f":"COUNTIFS(Asiakkuustiedot!B26:XFD26, \"Yleinen asumistuki (ei opisk)\",Asiakkuustiedot!B4:XFD4, \"ensimmäinen asiakaskäynti\",Asiakkuustiedot!B11:XFD11, \">=1.8.2016\",Asiakkuustiedot!B11:XFD11, \"<=31.8.2016\")","v":0},{"$f":"COUNTIFS(Asiakkuustiedot!B26:XFD26, \"Yleinen asumistuki (ei opisk)\",Asiakkuustiedot!B4:XFD4, \"ensimmäinen asiakaskäynti\",Asiakkuustiedot!B11:XFD11, \">=1.9.2016\",Asiakkuustiedot!B11:XFD11, \"<=30.9.2016\")","v":0},{"$f":"COUNTIFS(Asiakkuustiedot!B26:XFD26, \"Yleinen asumistuki (ei opisk)\",Asiakkuustiedot!B4:XFD4, \"ensimmäinen asiakaskäynti\",Asiakkuustiedot!B11:XFD11, \">=1.10.2016\",Asiakkuustiedot!B11:XFD11, \"<=31.10.2016\")","v":0},{"$f":"COUNTIFS(Asiakkuustiedot!B26:XFD26, \"Yleinen asumistuki (ei opisk)\",Asiakkuustiedot!B4:XFD4, \"ensimmäinen asiakaskäynti\",Asiakkuustiedot!B11:XFD11, \">=1.11.2016\",Asiakkuustiedot!B11:XFD11, \"<=30.11.2016\")","v":0},{"$f":"COUNTIFS(Asiakkuustiedot!B26:XFD26, \"Yleinen asumistuki (ei opisk)\",Asiakkuustiedot!B4:XFD4, \"ensimmäinen asiakaskäynti\",Asiakkuustiedot!B11:XFD11, \">=1.12.2016\",Asiakkuustiedot!B11:XFD11, \"<=31.12.2016\")","v":0}]
[null,"x",false,15,"Toimeentulotuki",{"$f":"COUNTIFS(Asiakkuustiedot!B27:XFD27, \"Toimeentulotuki\",Asiakkuustiedot!B4:XFD4, \"ensimmäinen asiakaskäynti\",Asiakkuustiedot!B11:XFD11, \">=1.1.2016\",Asiakkuustiedot!B11:XFD11, \"<=31.12.2016\")","v":0},null,null,null,null,null,null,{"$f":"COUNTIFS(Asiakkuustiedot!B27:XFD27, \"Toimeentulotuki\",Asiakkuustiedot!B4:XFD4, \"ensimmäinen asiakaskäynti\",Asiakkuustiedot!B11:XFD11, \">=1.1.2016\",Asiakkuustiedot!B11:XFD11, \"<=31.1.2016\")","v":0},{"$f":"COUNTIFS(Asiakkuustiedot!B27:XFD27, \"Toimeentulotuki\",Asiakkuustiedot!B4:XFD4, \"ensimmäinen asiakaskäynti\",Asiakkuustiedot!B11:XFD11, \">=1.2.2016\",Asiakkuustiedot!B11:XFD11, \"<=28.2.2016\")","v":0},{"$f":"COUNTIFS(Asiakkuustiedot!B27:XFD27, \"Toimeentulotuki\",Asiakkuustiedot!B4:XFD4, \"ensimmäinen asiakaskäynti\",Asiakkuustiedot!B11:XFD11, \">=1.3.2016\",Asiakkuustiedot!B11:XFD11, \"<=31.3.2016\")","v":0},{"$f":"COUNTIFS(Asiakkuustiedot!B27:XFD27, \"Toimeentulotuki\",Asiakkuustiedot!B4:XFD4, \"ensimmäinen asiakaskäynti\",Asiakkuustiedot!B11:XFD11, \">=1.4.2016\",Asiakkuustiedot!B11:XFD11, \"<=30.4.2016\")","v":0},{"$f":"COUNTIFS(Asiakkuustiedot!B27:XFD27, \"Toimeentulotuki\",Asiakkuustiedot!B4:XFD4, \"ensimmäinen asiakaskäynti\",Asiakkuustiedot!B11:XFD11, \">=1.5.2016\",Asiakkuustiedot!B11:XFD11, \"<=31.5.2016\")","v":0},{"$f":"COUNTIFS(Asiakkuustiedot!B27:XFD27, \"Toimeentulotuki\",Asiakkuustiedot!B4:XFD4, \"ensimmäinen asiakaskäynti\",Asiakkuustiedot!B11:XFD11, \">=1.6.2016\",Asiakkuustiedot!B11:XFD11, \"<=30.6.2016\")","v":0},{"$f":"COUNTIFS(Asiakkuustiedot!B27:XFD27, \"Toimeentulotuki\",Asiakkuustiedot!B4:XFD4, \"ensimmäinen asiakaskäynti\",Asiakkuustiedot!B11:XFD11, \">=1.7.2016\",Asiakkuustiedot!B11:XFD11, \"<=31.7.2016\")","v":0},{"$f":"COUNTIFS(Asiakkuustiedot!B27:XFD27, \"Toimeentulotuki\",Asiakkuustiedot!B4:XFD4, \"ensimmäinen asiakaskäynti\",Asiakkuustiedot!B11:XFD11, \">=1.8.2016\",Asiakkuustiedot!B11:XFD11, \"<=31.8.2016\")","v":0},{"$f":"COUNTIFS(Asiakkuustiedot!B27:XFD27, \"Toimeentulotuki\",Asiakkuustiedot!B4:XFD4, \"ensimmäinen asiakaskäynti\",Asiakkuustiedot!B11:XFD11, \">=1.9.2016\",Asiakkuustiedot!B11:XFD11, \"<=30.9.2016\")","v":0},{"$f":"COUNTIFS(Asiakkuustiedot!B27:XFD27, \"Toimeentulotuki\",Asiakkuustiedot!B4:XFD4, \"ensimmäinen asiakaskäynti\",Asiakkuustiedot!B11:XFD11, \">=1.10.2016\",Asiakkuustiedot!B11:XFD11, \"<=31.10.2016\")","v":0},{"$f":"COUNTIFS(Asiakkuustiedot!B27:XFD27, \"Toimeentulotuki\",Asiakkuustiedot!B4:XFD4, \"ensimmäinen asiakaskäynti\",Asiakkuustiedot!B11:XFD11, \">=1.11.2016\",Asiakkuustiedot!B11:XFD11, \"<=30.11.2016\")","v":0},{"$f":"COUNTIFS(Asiakkuustiedot!B27:XFD27, \"Toimeentulotuki\",Asiakkuustiedot!B4:XFD4, \"ensimmäinen asiakaskäynti\",Asiakkuustiedot!B11:XFD11, \">=1.12.2016\",Asiakkuustiedot!B11:XFD11, \"<=31.12.2016\")","v":0}]
[null,"x",false,16,"Eläke",{"$f":"COUNTIFS(Asiakkuustiedot!#REF!, \"Eläke\",Asiakkuustiedot!B4:XFD4, \"ensimmäinen asiakaskäynti\",Asiakkuustiedot!B11:XFD11, \">=1.1.2016\",Asiakkuustiedot!B11:XFD11, \"<=31.12.2016\")","v":{"$error":"#REF!"}},null,null,null,null,null,null,{"$f":"COUNTIFS(Asiakkuustiedot!#REF!, \"Eläke\",Asiakkuustiedot!B4:XFD4, \"ensimmäinen asiakaskäynti\",Asiakkuustiedot!B11:XFD11, \">=1.1.2016\",Asiakkuustiedot!B11:XFD11, \"<=31.1.2016\")","v":{"$error":"#REF!"}},{"$f":"COUNTIFS(Asiakkuustiedot!#REF!, \"Eläke\",Asiakkuustiedot!B4:XFD4, \"ensimmäinen asiakaskäynti\",Asiakkuustiedot!B11:XFD11, \">=1.2.2016\",Asiakkuustiedot!B11:XFD11, \"<=28.2.2016\")","v":{"$error":"#REF!"}},{"$f":"COUNTIFS(Asiakkuustiedot!#REF!, \"Eläke\",Asiakkuustiedot!B4:XFD4, \"ensimmäinen asiakaskäynti\",Asiakkuustiedot!B11:XFD11, \">=1.3.2016\",Asiakkuustiedot!B11:XFD11, \"<=31.3.2016\")","v":{"$error":"#REF!"}},{"$f":"COUNTIFS(Asiakkuustiedot!#REF!, \"Eläke\",Asiakkuustiedot!B4:XFD4, \"ensimmäinen asiakaskäynti\",Asiakkuustiedot!B11:XFD11, \">=1.4.2016\",Asiakkuustiedot!B11:XFD11, \"<=30.4.2016\")","v":{"$error":"#REF!"}},{"$f":"COUNTIFS(Asiakkuustiedot!#REF!, \"Eläke\",Asiakkuustiedot!B4:XFD4, \"ensimmäinen asiakaskäynti\",Asiakkuustiedot!B11:XFD11, \">=1.5.2016\",Asiakkuustiedot!B11:XFD11, \"<=31.5.2016\")","v":{"$error":"#REF!"}},{"$f":"COUNTIFS(Asiakkuustiedot!#REF!, \"Eläke\",Asiakkuustiedot!B4:XFD4, \"ensimmäinen asiakaskäynti\",Asiakkuustiedot!B11:XFD11, \">=1.6.2016\",Asiakkuustiedot!B11:XFD11, \"<=30.6.2016\")","v":{"$error":"#REF!"}},{"$f":"COUNTIFS(Asiakkuustiedot!#REF!, \"Eläke\",Asiakkuustiedot!B4:XFD4, \"ensimmäinen asiakaskäynti\",Asiakkuustiedot!B11:XFD11, \">=1.7.2016\",Asiakkuustiedot!B11:XFD11, \"<=31.7.2016\")","v":{"$error":"#REF!"}},{"$f":"COUNTIFS(Asiakkuustiedot!#REF!, \"Eläke\",Asiakkuustiedot!B4:XFD4, \"ensimmäinen asiakaskäynti\",Asiakkuustiedot!B11:XFD11, \">=1.8.2016\",Asiakkuustiedot!B11:XFD11, \"<=31.8.2016\")","v":{"$error":"#REF!"}},{"$f":"COUNTIFS(Asiakkuustiedot!#REF!, \"Eläke\",Asiakkuustiedot!B4:XFD4, \"ensimmäinen asiakaskäynti\",Asiakkuustiedot!B11:XFD11, \">=1.9.2016\",Asiakkuustiedot!B11:XFD11, \"<=30.9.2016\")","v":{"$error":"#REF!"}},{"$f":"COUNTIFS(Asiakkuustiedot!#REF!, \"Eläke\",Asiakkuustiedot!B4:XFD4, \"ensimmäinen asiakaskäynti\",Asiakkuustiedot!B11:XFD11, \">=1.10.2016\",Asiakkuustiedot!B11:XFD11, \"<=31.10.2016\")","v":{"$error":"#REF!"}},{"$f":"COUNTIFS(Asiakkuustiedot!#REF!, \"Eläke\",Asiakkuustiedot!B4:XFD4, \"ensimmäinen asiakaskäynti\",Asiakkuustiedot!B11:XFD11, \">=1.11.2016\",Asiakkuustiedot!B11:XFD11, \"<=30.11.2016\")","v":{"$error":"#REF!"}},{"$f":"COUNTIFS(Asiakkuustiedot!#REF!, \"Eläke\",Asiakkuustiedot!B4:XFD4, \"ensimmäinen asiakaskäynti\",Asiakkuustiedot!B11:XFD11, \">=1.12.2016\",Asiakkuustiedot!B11:XFD11, \"<=31.12.2016\")","v":{"$error":"#REF!"}}]
[null,"x",false,17,"Sairauspäiväraha",{"$f":"COUNTIFS(Asiakkuustiedot!B28:XFD28, \"Sairauspäiväraha\",Asiakkuustiedot!B4:XFD4, \"ensimmäinen asiakaskäynti\",Asiakkuustiedot!B11:XFD11, \">=1.1.2016\",Asiakkuustiedot!B11:XFD11, \"<=31.12.2016\")","v":0},null,null,null,null,null,null,{"$f":"COUNTIFS(Asiakkuustiedot!B28:XFD28, \"Sairauspäiväraha\",Asiakkuustiedot!B4:XFD4, \"ensimmäinen asiakaskäynti\",Asiakkuustiedot!B11:XFD11, \">=1.1.2016\",Asiakkuustiedot!B11:XFD11, \"<=31.1.2016\")","v":0},{"$f":"COUNTIFS(Asiakkuustiedot!B28:XFD28, \"Sairauspäiväraha\",Asiakkuustiedot!B4:XFD4, \"ensimmäinen asiakaskäynti\",Asiakkuustiedot!B11:XFD11, \">=1.2.2016\",Asiakkuustiedot!B11:XFD11, \"<=28.2.2016\")","v":0},{"$f":"COUNTIFS(Asiakkuustiedot!B28:XFD28, \"Sairauspäiväraha\",Asiakkuustiedot!B4:XFD4, \"ensimmäinen asiakaskäynti\",Asiakkuustiedot!B11:XFD11, \">=1.3.2016\",Asiakkuustiedot!B11:XFD11, \"<=31.3.2016\")","v":0},{"$f":"COUNTIFS(Asiakkuustiedot!B28:XFD28, \"Sairauspäiväraha\",Asiakkuustiedot!B4:XFD4, \"ensimmäinen asiakaskäynti\",Asiakkuustiedot!B11:XFD11, \">=1.4.2016\",Asiakkuustiedot!B11:XFD11, \"<=30.4.2016\")","v":0},{"$f":"COUNTIFS(Asiakkuustiedot!B28:XFD28, \"Sairauspäiväraha\",Asiakkuustiedot!B4:XFD4, \"ensimmäinen asiakaskäynti\",Asiakkuustiedot!B11:XFD11, \">=1.5.2016\",Asiakkuustiedot!B11:XFD11, \"<=31.5.2016\")","v":0},{"$f":"COUNTIFS(Asiakkuustiedot!B28:XFD28, \"Sairauspäiväraha\",Asiakkuustiedot!B4:XFD4, \"ensimmäinen asiakaskäynti\",Asiakkuustiedot!B11:XFD11, \">=1.6.2016\",Asiakkuustiedot!B11:XFD11, \"<=30.6.2016\")","v":0},{"$f":"COUNTIFS(Asiakkuustiedot!B28:XFD28, \"Sairauspäiväraha\",Asiakkuustiedot!B4:XFD4, \"ensimmäinen asiakaskäynti\",Asiakkuustiedot!B11:XFD11, \">=1.7.2016\",Asiakkuustiedot!B11:XFD11, \"<=31.7.2016\")","v":0},{"$f":"COUNTIFS(Asiakkuustiedot!B28:XFD28, \"Sairauspäiväraha\",Asiakkuustiedot!B4:XFD4, \"ensimmäinen asiakaskäynti\",Asiakkuustiedot!B11:XFD11, \">=1.8.2016\",Asiakkuustiedot!B11:XFD11, \"<=31.8.2016\")","v":0},{"$f":"COUNTIFS(Asiakkuustiedot!B28:XFD28, \"Sairauspäiväraha\",Asiakkuustiedot!B4:XFD4, \"ensimmäinen asiakaskäynti\",Asiakkuustiedot!B11:XFD11, \">=1.9.2016\",Asiakkuustiedot!B11:XFD11, \"<=30.9.2016\")","v":0},{"$f":"COUNTIFS(Asiakkuustiedot!B28:XFD28, \"Sairauspäiväraha\",Asiakkuustiedot!B4:XFD4, \"ensimmäinen asiakaskäynti\",Asiakkuustiedot!B11:XFD11, \">=1.10.2016\",Asiakkuustiedot!B11:XFD11, \"<=31.10.2016\")","v":0},{"$f":"COUNTIFS(Asiakkuustiedot!B28:XFD28, \"Sairauspäiväraha\",Asiakkuustiedot!B4:XFD4, \"ensimmäinen asiakaskäynti\",Asiakkuustiedot!B11:XFD11, \">=1.11.2016\",Asiakkuustiedot!B11:XFD11, \"<=30.11.2016\")","v":0},{"$f":"COUNTIFS(Asiakkuustiedot!B28:XFD28, \"Sairauspäiväraha\",Asiakkuustiedot!B4:XFD4, \"ensimmäinen asiakaskäynti\",Asiakkuustiedot!B11:XFD11, \">=1.12.2016\",Asiakkuustiedot!B11:XFD11, \"<=31.12.2016\")","v":0}]
[null,"x",false,18,"Kuntoutustuki",{"$f":"COUNTIFS(Asiakkuustiedot!B29:XFD29, \"Kuntoutustuki\",Asiakkuustiedot!B4:XFD4, \"ensimmäinen asiakaskäynti\",Asiakkuustiedot!B11:XFD11, \">=1.1.2016\",Asiakkuustiedot!B11:XFD11, \"<=31.12.2016\")","v":0},null,null,null,null,null,null,{"$f":"COUNTIFS(Asiakkuustiedot!B29:XFD29, \"Kuntoutustuki\",Asiakkuustiedot!B4:XFD4, \"ensimmäinen asiakaskäynti\",Asiakkuustiedot!B11:XFD11, \">=1.1.2016\",Asiakkuustiedot!B11:XFD11, \"<=31.1.2016\")","v":0},{"$f":"COUNTIFS(Asiakkuustiedot!B29:XFD29, \"Kuntoutustuki\",Asiakkuustiedot!B4:XFD4, \"ensimmäinen asiakaskäynti\",Asiakkuustiedot!B11:XFD11, \">=1.2.2016\",Asiakkuustiedot!B11:XFD11, \"<=28.2.2016\")","v":0},{"$f":"COUNTIFS(Asiakkuustiedot!B29:XFD29, \"Kuntoutustuki\",Asiakkuustiedot!B4:XFD4, \"ensimmäinen asiakaskäynti\",Asiakkuustiedot!B11:XFD11, \">=1.3.2016\",Asiakkuustiedot!B11:XFD11, \"<=31.3.2016\")","v":0},{"$f":"COUNTIFS(Asiakkuustiedot!B29:XFD29, \"Kuntoutustuki\",Asiakkuustiedot!B4:XFD4, \"ensimmäinen asiakaskäynti\",Asiakkuustiedot!B11:XFD11, \">=1.4.2016\",Asiakkuustiedot!B11:XFD11, \"<=30.4.2016\")","v":0},{"$f":"COUNTIFS(Asiakkuustiedot!B29:XFD29, \"Kuntoutustuki\",Asiakkuustiedot!B4:XFD4, \"ensimmäinen asiakaskäynti\",Asiakkuustiedot!B11:XFD11, \">=1.5.2016\",Asiakkuustiedot!B11:XFD11, \"<=31.5.2016\")","v":0},{"$f":"COUNTIFS(Asiakkuustiedot!B29:XFD29, \"Kuntoutustuki\",Asiakkuustiedot!B4:XFD4, \"ensimmäinen asiakaskäynti\",Asiakkuustiedot!B11:XFD11, \">=1.6.2016\",Asiakkuustiedot!B11:XFD11, \"<=30.6.2016\")","v":0},{"$f":"COUNTIFS(Asiakkuustiedot!B29:XFD29, \"Kuntoutustuki\",Asiakkuustiedot!B4:XFD4, \"ensimmäinen asiakaskäynti\",Asiakkuustiedot!B11:XFD11, \">=1.7.2016\",Asiakkuustiedot!B11:XFD11, \"<=31.7.2016\")","v":0},{"$f":"COUNTIFS(Asiakkuustiedot!B29:XFD29, \"Kuntoutustuki\",Asiakkuustiedot!B4:XFD4, \"ensimmäinen asiakaskäynti\",Asiakkuustiedot!B11:XFD11, \">=1.8.2016\",Asiakkuustiedot!B11:XFD11, \"<=31.8.2016\")","v":0},{"$f":"COUNTIFS(Asiakkuustiedot!B29:XFD29, \"Kuntoutustuki\",Asiakkuustiedot!B4:XFD4, \"ensimmäinen asiakaskäynti\",Asiakkuustiedot!B11:XFD11, \">=1.9.2016\",Asiakkuustiedot!B11:XFD11, \"<=30.9.2016\")","v":0},{"$f":"COUNTIFS(Asiakkuustiedot!B29:XFD29, \"Kuntoutustuki\",Asiakkuustiedot!B4:XFD4, \"ensimmäinen asiakaskäynti\",Asiakkuustiedot!B11:XFD11, \">=1.10.2016\",Asiakkuustiedot!B11:XFD11, \"<=31.10.2016\")","v":0},{"$f":"COUNTIFS(Asiakkuustiedot!B29:XFD29, \"Kuntoutustuki\",Asiakkuustiedot!B4:XFD4, \"ensimmäinen asiakaskäynti\",Asiakkuustiedot!B11:XFD11, \">=1.11.2016\",Asiakkuustiedot!B11:XFD11, \"<=30.11.2016\")","v":0},{"$f":"COUNTIFS(Asiakkuustiedot!B29:XFD29, \"Kuntoutustuki\",Asiakkuustiedot!B4:XFD4, \"ensimmäinen asiakaskäynti\",Asiakkuustiedot!B11:XFD11, \">=1.12.2016\",Asiakkuustiedot!B11:XFD11, \"<=31.12.2016\")","v":0}]
[null,"x",false,19,"Ei tuloja",{"$f":"COUNTIFS(Asiakkuustiedot!B30:XFD30, \"Ei tuloja\",Asiakkuustiedot!B4:XFD4, \"ensimmäinen asiakaskäynti\",Asiakkuustiedot!B11:XFD11, \">=1.1.2016\",Asiakkuustiedot!B11:XFD11, \"<=31.12.2016\")","v":0},null,null,null,null,null,null,{"$f":"COUNTIFS(Asiakkuustiedot!B30:XFD30, \"Ei tuloja\",Asiakkuustiedot!B4:XFD4, \"ensimmäinen asiakaskäynti\",Asiakkuustiedot!B11:XFD11, \">=1.1.2016\",Asiakkuustiedot!B11:XFD11, \"<=31.1.2016\")","v":0},{"$f":"COUNTIFS(Asiakkuustiedot!B30:XFD30, \"Ei tuloja\",Asiakkuustiedot!B4:XFD4, \"ensimmäinen asiakaskäynti\",Asiakkuustiedot!B11:XFD11, \">=1.2.2016\",Asiakkuustiedot!B11:XFD11, \"<=28.2.2016\")","v":0},{"$f":"COUNTIFS(Asiakkuustiedot!B30:XFD30, \"Ei tuloja\",Asiakkuustiedot!B4:XFD4, \"ensimmäinen asiakaskäynti\",Asiakkuustiedot!B11:XFD11, \">=1.3.2016\",Asiakkuustiedot!B11:XFD11, \"<=31.3.2016\")","v":0},{"$f":"COUNTIFS(Asiakkuustiedot!B30:XFD30, \"Ei tuloja\",Asiakkuustiedot!B4:XFD4, \"ensimmäinen asiakaskäynti\",Asiakkuustiedot!B11:XFD11, \">=1.4.2016\",Asiakkuustiedot!B11:XFD11, \"<=30.4.2016\")","v":0},{"$f":"COUNTIFS(Asiakkuustiedot!B30:XFD30, \"Ei tuloja\",Asiakkuustiedot!B4:XFD4, \"ensimmäinen asiakaskäynti\",Asiakkuustiedot!B11:XFD11, \">=1.5.2016\",Asiakkuustiedot!B11:XFD11, \"<=31.5.2016\")","v":0},{"$f":"COUNTIFS(Asiakkuustiedot!B30:XFD30, \"Ei tuloja\",Asiakkuustiedot!B4:XFD4, \"ensimmäinen asiakaskäynti\",Asiakkuustiedot!B11:XFD11, \">=1.6.2016\",Asiakkuustiedot!B11:XFD11, \"<=30.6.2016\")","v":0},{"$f":"COUNTIFS(Asiakkuustiedot!B30:XFD30, \"Ei tuloja\",Asiakkuustiedot!B4:XFD4, \"ensimmäinen asiakaskäynti\",Asiakkuustiedot!B11:XFD11, \">=1.7.2016\",Asiakkuustiedot!B11:XFD11, \"<=31.7.2016\")","v":0},{"$f":"COUNTIFS(Asiakkuustiedot!B30:XFD30, \"Ei tuloja\",Asiakkuustiedot!B4:XFD4, \"ensimmäinen asiakaskäynti\",Asiakkuustiedot!B11:XFD11, \">=1.8.2016\",Asiakkuustiedot!B11:XFD11, \"<=31.8.2016\")","v":0},{"$f":"COUNTIFS(Asiakkuustiedot!B30:XFD30, \"Ei tuloja\",Asiakkuustiedot!B4:XFD4, \"ensimmäinen asiakaskäynti\",Asiakkuustiedot!B11:XFD11, \">=1.9.2016\",Asiakkuustiedot!B11:XFD11, \"<=30.9.2016\")","v":0},{"$f":"COUNTIFS(Asiakkuustiedot!B30:XFD30, \"Ei tuloja\",Asiakkuustiedot!B4:XFD4, \"ensimmäinen asiakaskäynti\",Asiakkuustiedot!B11:XFD11, \">=1.10.2016\",Asiakkuustiedot!B11:XFD11, \"<=31.10.2016\")","v":0},{"$f":"COUNTIFS(Asiakkuustiedot!B30:XFD30, \"Ei tuloja\",Asiakkuustiedot!B4:XFD4, \"ensimmäinen asiakaskäynti\",Asiakkuustiedot!B11:XFD11, \">=1.11.2016\",Asiakkuustiedot!B11:XFD11, \"<=30.11.2016\")","v":0},{"$f":"COUNTIFS(Asiakkuustiedot!B30:XFD30, \"Ei tuloja\",Asiakkuustiedot!B4:XFD4, \"ensimmäinen asiakaskäynti\",Asiakkuustiedot!B11:XFD11, \">=1.12.2016\",Asiakkuustiedot!B11:XFD11, \"<=31.12.2016\")","v":0}]
[null,"x",false,20,"Ei tietoa",{"$f":"COUNTIFS(Asiakkuustiedot!B32:XFD32, \"Ei tietoa\",Asiakkuustiedot!B4:XFD4, \"ensimmäinen asiakaskäynti\",Asiakkuustiedot!B11:XFD11, \">=1.1.2016\",Asiakkuustiedot!B11:XFD11, \"<=31.12.2016\")","v":0},null,null,null,null,null,null,{"$f":"COUNTIFS(Asiakkuustiedot!B32:XFD32, \"Ei tietoa\",Asiakkuustiedot!B4:XFD4, \"ensimmäinen asiakaskäynti\",Asiakkuustiedot!B11:XFD11, \">=1.1.2016\",Asiakkuustiedot!B11:XFD11, \"<=31.1.2016\")","v":0},{"$f":"COUNTIFS(Asiakkuustiedot!B32:XFD32, \"Ei tietoa\",Asiakkuustiedot!B4:XFD4, \"ensimmäinen asiakaskäynti\",Asiakkuustiedot!B11:XFD11, \">=1.2.2016\",Asiakkuustiedot!B11:XFD11, \"<=28.2.2016\")","v":0},{"$f":"COUNTIFS(Asiakkuustiedot!B32:XFD32, \"Ei tietoa\",Asiakkuustiedot!B4:XFD4, \"ensimmäinen asiakaskäynti\",Asiakkuustiedot!B11:XFD11, \">=1.3.2016\",Asiakkuustiedot!B11:XFD11, \"<=31.3.2016\")","v":0},{"$f":"COUNTIFS(Asiakkuustiedot!B32:XFD32, \"Ei tietoa\",Asiakkuustiedot!B4:XFD4, \"ensimmäinen asiakaskäynti\",Asiakkuustiedot!B11:XFD11, \">=1.4.2016\",Asiakkuustiedot!B11:XFD11, \"<=30.4.2016\")","v":0},{"$f":"COUNTIFS(Asiakkuustiedot!B32:XFD32, \"Ei tietoa\",Asiakkuustiedot!B4:XFD4, \"ensimmäinen asiakaskäynti\",Asiakkuustiedot!B11:XFD11, \">=1.5.2016\",Asiakkuustiedot!B11:XFD11, \"<=31.5.2016\")","v":0},{"$f":"COUNTIFS(Asiakkuustiedot!B32:XFD32, \"Ei tietoa\",Asiakkuustiedot!B4:XFD4, \"ensimmäinen asiakaskäynti\",Asiakkuustiedot!B11:XFD11, \">=1.6.2016\",Asiakkuustiedot!B11:XFD11, \"<=30.6.2016\")","v":0},{"$f":"COUNTIFS(Asiakkuustiedot!B32:XFD32, \"Ei tietoa\",Asiakkuustiedot!B4:XFD4, \"ensimmäinen asiakaskäynti\",Asiakkuustiedot!B11:XFD11, \">=1.7.2016\",Asiakkuustiedot!B11:XFD11, \"<=31.7.2016\")","v":0},{"$f":"COUNTIFS(Asiakkuustiedot!B32:XFD32, \"Ei tietoa\",Asiakkuustiedot!B4:XFD4, \"ensimmäinen asiakaskäynti\",Asiakkuustiedot!B11:XFD11, \">=1.8.2016\",Asiakkuustiedot!B11:XFD11, \"<=31.8.2016\")","v":0},{"$f":"COUNTIFS(Asiakkuustiedot!B32:XFD32, \"Ei tietoa\",Asiakkuustiedot!B4:XFD4, \"ensimmäinen asiakaskäynti\",Asiakkuustiedot!B11:XFD11, \">=1.9.2016\",Asiakkuustiedot!B11:XFD11, \"<=30.9.2016\")","v":0},{"$f":"COUNTIFS(Asiakkuustiedot!B32:XFD32, \"Ei tietoa\",Asiakkuustiedot!B4:XFD4, \"ensimmäinen asiakaskäynti\",Asiakkuustiedot!B11:XFD11, \">=1.10.2016\",Asiakkuustiedot!B11:XFD11, \"<=31.10.2016\")","v":0},{"$f":"COUNTIFS(Asiakkuustiedot!B32:XFD32, \"Ei tietoa\",Asiakkuustiedot!B4:XFD4, \"ensimmäinen asiakaskäynti\",Asiakkuustiedot!B11:XFD11, \">=1.11.2016\",Asiakkuustiedot!B11:XFD11, \"<=30.11.2016\")","v":0},{"$f":"COUNTIFS(Asiakkuustiedot!B32:XFD32, \"Ei tietoa\",Asiakkuustiedot!B4:XFD4, \"ensimmäinen asiakaskäynti\",Asiakkuustiedot!B11:XFD11, \">=1.12.2016\",Asiakkuustiedot!B11:XFD11, \"<=31.12.2016\")","v":0}]
[null,"x",false,21,"Muu tulo",{"$f":"COUNTIFS(Asiakkuustiedot!B33:XFD33, \"Muu tulo\",Asiakkuustiedot!B4:XFD4, \"ensimmäinen asiakaskäynti\",Asiakkuustiedot!B11:XFD11, \">=1.1.2016\",Asiakkuustiedot!B11:XFD11, \"<=31.12.2016\")","v":0},null,null,null,null,null,null,{"$f":"COUNTIFS(Asiakkuustiedot!B33:XFD33, \"Muu tulo\",Asiakkuustiedot!B4:XFD4, \"ensimmäinen asiakaskäynti\",Asiakkuustiedot!B11:XFD11, \">=1.1.2016\",Asiakkuustiedot!B11:XFD11, \"<=31.1.2016\")","v":0},{"$f":"COUNTIFS(Asiakkuustiedot!B33:XFD33, \"Muu tulo\",Asiakkuustiedot!B4:XFD4, \"ensimmäinen asiakaskäynti\",Asiakkuustiedot!B11:XFD11, \">=1.2.2016\",Asiakkuustiedot!B11:XFD11, \"<=28.2.2016\")","v":0},{"$f":"COUNTIFS(Asiakkuustiedot!B33:XFD33, \"Muu tulo\",Asiakkuustiedot!B4:XFD4, \"ensimmäinen asiakaskäynti\",Asiakkuustiedot!B11:XFD11, \">=1.3.2016\",Asiakkuustiedot!B11:XFD11, \"<=31.3.2016\")","v":0},{"$f":"COUNTIFS(Asiakkuustiedot!B33:XFD33, \"Muu tulo\",Asiakkuustiedot!B4:XFD4, \"ensimmäinen asiakaskäynti\",Asiakkuustiedot!B11:XFD11, \">=1.4.2016\",Asiakkuustiedot!B11:XFD11, \"<=30.4.2016\")","v":0},{"$f":"COUNTIFS(Asiakkuustiedot!B33:XFD33, \"Muu tulo\",Asiakkuustiedot!B4:XFD4, \"ensimmäinen asiakaskäynti\",Asiakkuustiedot!B11:XFD11, \">=1.5.2016\",Asiakkuustiedot!B11:XFD11, \"<=31.5.2016\")","v":0},{"$f":"COUNTIFS(Asiakkuustiedot!B33:XFD33, \"Muu tulo\",Asiakkuustiedot!B4:XFD4, \"ensimmäinen asiakaskäynti\",Asiakkuustiedot!B11:XFD11, \">=1.6.2016\",Asiakkuustiedot!B11:XFD11, \"<=30.6.2016\")","v":0},{"$f":"COUNTIFS(Asiakkuustiedot!B33:XFD33, \"Muu tulo\",Asiakkuustiedot!B4:XFD4, \"ensimmäinen asiakaskäynti\",Asiakkuustiedot!B11:XFD11, \">=1.7.2016\",Asiakkuustiedot!B11:XFD11, \"<=31.7.2016\")","v":0},{"$f":"COUNTIFS(Asiakkuustiedot!B33:XFD33, \"Muu tulo\",Asiakkuustiedot!B4:XFD4, \"ensimmäinen asiakaskäynti\",Asiakkuustiedot!B11:XFD11, \">=1.8.2016\",Asiakkuustiedot!B11:XFD11, \"<=31.8.2016\")","v":0},{"$f":"COUNTIFS(Asiakkuustiedot!B33:XFD33, \"Muu tulo\",Asiakkuustiedot!B4:XFD4, \"ensimmäinen asiakaskäynti\",Asiakkuustiedot!B11:XFD11, \">=1.9.2016\",Asiakkuustiedot!B11:XFD11, \"<=30.9.2016\")","v":0},{"$f":"COUNTIFS(Asiakkuustiedot!B33:XFD33, \"Muu tulo\",Asiakkuustiedot!B4:XFD4, \"ensimmäinen asiakaskäynti\",Asiakkuustiedot!B11:XFD11, \">=1.10.2016\",Asiakkuustiedot!B11:XFD11, \"<=31.10.2016\")","v":0},{"$f":"COUNTIFS(Asiakkuustiedot!B33:XFD33, \"Muu tulo\",Asiakkuustiedot!B4:XFD4, \"ensimmäinen asiakaskäynti\",Asiakkuustiedot!B11:XFD11, \">=1.11.2016\",Asiakkuustiedot!B11:XFD11, \"<=30.11.2016\")","v":0},{"$f":"COUNTIFS(Asiakkuustiedot!B33:XFD33, \"Muu tulo\",Asiakkuustiedot!B4:XFD4, \"ensimmäinen asiakaskäynti\",Asiakkuustiedot!B11:XFD11, \">=1.12.2016\",Asiakkuustiedot!B11:XFD11, \"<=31.12.2016\")","v":0}]
[]
[null,null,null,null,"Asumisen status"]
[null,"x",false,24,"Toistaiseksi voimassa oleva vuokrasopimus",{"$f":"COUNTIFS(Asiakkuustiedot!B62:XFD62, \"Toistaiseksi voimassa oleva vuokrasopimus\",Asiakkuustiedot!B4:XFD4, \"ensimmäinen asiakaskäynti\",Asiakkuustiedot!B11:XFD11, \">=1.1.2016\",Asiakkuustiedot!B11:XFD11, \"<=31.12.2016\")","v":0},null,null,null,null,null,null,{"$f":"COUNTIFS(Asiakkuustiedot!B62:XFD62, \"Toistaiseksi voimassa oleva vuokrasopimus\",Asiakkuustiedot!B4:XFD4, \"ensimmäinen asiakaskäynti\",Asiakkuustiedot!B11:XFD11, \">=1.1.2016\",Asiakkuustiedot!B11:XFD11, \"<=31.1.2016\")","v":0},{"$f":"COUNTIFS(Asiakkuustiedot!B62:XFD62, \"Toistaiseksi voimassa oleva vuokrasopimus\",Asiakkuustiedot!B4:XFD4, \"ensimmäinen asiakaskäynti\",Asiakkuustiedot!B11:XFD11, \">=1.2.2016\",Asiakkuustiedot!B11:XFD11, \"<=28.2.2016\")","v":0},{"$f":"COUNTIFS(Asiakkuustiedot!B62:XFD62, \"Toistaiseksi voimassa oleva vuokrasopimus\",Asiakkuustiedot!B4:XFD4, \"ensimmäinen asiakaskäynti\",Asiakkuustiedot!B11:XFD11, \">=1.3.2016\",Asiakkuustiedot!B11:XFD11, \"<=31.3.2016\")","v":0},{"$f":"COUNTIFS(Asiakkuustiedot!B62:XFD62, \"Toistaiseksi voimassa oleva vuokrasopimus\",Asiakkuustiedot!B4:XFD4, \"ensimmäinen asiakaskäynti\",Asiakkuustiedot!B11:XFD11, \">=1.4.2016\",Asiakkuustiedot!B11:XFD11, \"<=30.4.2016\")","v":0},{"$f":"COUNTIFS(Asiakkuustiedot!B62:XFD62, \"Toistaiseksi voimassa oleva vuokrasopimus\",Asiakkuustiedot!B4:XFD4, \"ensimmäinen asiakaskäynti\",Asiakkuustiedot!B11:XFD11, \">=1.5.2016\",Asiakkuustiedot!B11:XFD11, \"<=31.5.2016\")","v":0},{"$f":"COUNTIFS(Asiakkuustiedot!B62:XFD62, \"Toistaiseksi voimassa oleva vuokrasopimus\",Asiakkuustiedot!B4:XFD4, \"ensimmäinen asiakaskäynti\",Asiakkuustiedot!B11:XFD11, \">=1.6.2016\",Asiakkuustiedot!B11:XFD11, \"<=30.6.2016\")","v":0},{"$f":"COUNTIFS(Asiakkuustiedot!B62:XFD62, \"Toistaiseksi voimassa oleva vuokrasopimus\",Asiakkuustiedot!B4:XFD4, \"ensimmäinen asiakaskäynti\",Asiakkuustiedot!B11:XFD11, \">=1.7.2016\",Asiakkuustiedot!B11:XFD11, \"<=31.7.2016\")","v":0},{"$f":"COUNTIFS(Asiakkuustiedot!B62:XFD62, \"Toistaiseksi voimassa oleva vuokrasopimus\",Asiakkuustiedot!B4:XFD4, \"ensimmäinen asiakaskäynti\",Asiakkuustiedot!B11:XFD11, \">=1.8.2016\",Asiakkuustiedot!B11:XFD11, \"<=31.8.2016\")","v":0},{"$f":"COUNTIFS(Asiakkuustiedot!B62:XFD62, \"Toistaiseksi voimassa oleva vuokrasopimus\",Asiakkuustiedot!B4:XFD4, \"ensimmäinen asiakaskäynti\",Asiakkuustiedot!B11:XFD11, \">=1.9.2016\",Asiakkuustiedot!B11:XFD11, \"<=30.9.2016\")","v":0},{"$f":"COUNTIFS(Asiakkuustiedot!B62:XFD62, \"Toistaiseksi voimassa oleva vuokrasopimus\",Asiakkuustiedot!B4:XFD4, \"ensimmäinen asiakaskäynti\",Asiakkuustiedot!B11:XFD11, \">=1.10.2016\",Asiakkuustiedot!B11:XFD11, \"<=31.10.2016\")","v":0},{"$f":"COUNTIFS(Asiakkuustiedot!B62:XFD62, \"Toistaiseksi voimassa oleva vuokrasopimus\",Asiakkuustiedot!B4:XFD4, \"ensimmäinen asiakaskäynti\",Asiakkuustiedot!B11:XFD11, \">=1.11.2016\",Asiakkuustiedot!B11:XFD11, \"<=30.11.2016\")","v":0},{"$f":"COUNTIFS(Asiakkuustiedot!B62:XFD62, \"Toistaiseksi voimassa oleva vuokrasopimus\",Asiakkuustiedot!B4:XFD4, \"ensimmäinen asiakaskäynti\",Asiakkuustiedot!B11:XFD11, \">=1.12.2016\",Asiakkuustiedot!B11:XFD11, \"<=31.12.2016\")","v":0}]
[null,"x",false,{"$f":"D33+1","v":25},"Määräaikainen vuokrasopimus",{"$f":"COUNTIFS(Asiakkuustiedot!B66:XFD66, \"Määräaikainen vuokrasopimus\",Asiakkuustiedot!B4:XFD4, \"ensimmäinen asiakaskäynti\",Asiakkuustiedot!B11:XFD11, \">=1.1.2016\",Asiakkuustiedot!B11:XFD11, \"<=31.12.2016\")","v":0},null,null,null,null,null,null,{"$f":"COUNTIFS(Asiakkuustiedot!B66:XFD66, \"Määräaikainen vuokrasopimus\",Asiakkuustiedot!B4:XFD4, \"ensimmäinen asiakaskäynti\",Asiakkuustiedot!B11:XFD11, \">=1.1.2016\",Asiakkuustiedot!B11:XFD11, \"<=31.1.2016\")","v":0},{"$f":"COUNTIFS(Asiakkuustiedot!B66:XFD66, \"Määräaikainen vuokrasopimus\",Asiakkuustiedot!B4:XFD4, \"ensimmäinen asiakaskäynti\",Asiakkuustiedot!B11:XFD11, \">=1.2.2016\",Asiakkuustiedot!B11:XFD11, \"<=28.2.2016\")","v":0},{"$f":"COUNTIFS(Asiakkuustiedot!B66:XFD66, \"Määräaikainen vuokrasopimus\",Asiakkuustiedot!B4:XFD4, \"ensimmäinen asiakaskäynti\",Asiakkuustiedot!B11:XFD11, \">=1.3.2016\",Asiakkuustiedot!B11:XFD11, \"<=31.3.2016\")","v":0},{"$f":"COUNTIFS(Asiakkuustiedot!B66:XFD66, \"Määräaikainen vuokrasopimus\",Asiakkuustiedot!B4:XFD4, \"ensimmäinen asiakaskäynti\",Asiakkuustiedot!B11:XFD11, \">=1.4.2016\",Asiakkuustiedot!B11:XFD11, \"<=30.4.2016\")","v":0},{"$f":"COUNTIFS(Asiakkuustiedot!B66:XFD66, \"Määräaikainen vuokrasopimus\",Asiakkuustiedot!B4:XFD4, \"ensimmäinen asiakaskäynti\",Asiakkuustiedot!B11:XFD11, \">=1.5.2016\",Asiakkuustiedot!B11:XFD11, \"<=31.5.2016\")","v":0},{"$f":"COUNTIFS(Asiakkuustiedot!B66:XFD66, \"Määräaikainen vuokrasopimus\",Asiakkuustiedot!B4:XFD4, \"ensimmäinen asiakaskäynti\",Asiakkuustiedot!B11:XFD11, \">=1.6.2016\",Asiakkuustiedot!B11:XFD11, \"<=30.6.2016\")","v":0},{"$f":"COUNTIFS(Asiakkuustiedot!B66:XFD66, \"Määräaikainen vuokrasopimus\",Asiakkuustiedot!B4:XFD4, \"ensimmäinen asiakaskäynti\",Asiakkuustiedot!B11:XFD11, \">=1.7.2016\",Asiakkuustiedot!B11:XFD11, \"<=31.7.2016\")","v":0},{"$f":"COUNTIFS(Asiakkuustiedot!B66:XFD66, \"Määräaikainen vuokrasopimus\",Asiakkuustiedot!B4:XFD4, \"ensimmäinen asiakaskäynti\",Asiakkuustiedot!B11:XFD11, \">=1.8.2016\",Asiakkuustiedot!B11:XFD11, \"<=31.8.2016\")","v":0},{"$f":"COUNTIFS(Asiakkuustiedot!B66:XFD66, \"Määräaikainen vuokrasopimus\",Asiakkuustiedot!B4:XFD4, \"ensimmäinen asiakaskäynti\",Asiakkuustiedot!B11:XFD11, \">=1.9.2016\",Asiakkuustiedot!B11:XFD11, \"<=30.9.2016\")","v":0},{"$f":"COUNTIFS(Asiakkuustiedot!B66:XFD66, \"Määräaikainen vuokrasopimus\",Asiakkuustiedot!B4:XFD4, \"ensimmäinen asiakaskäynti\",Asiakkuustiedot!B11:XFD11, \">=1.10.2016\",Asiakkuustiedot!B11:XFD11, \"<=31.10.2016\")","v":0},{"$f":"COUNTIFS(Asiakkuustiedot!B66:XFD66, \"Määräaikainen vuokrasopimus\",Asiakkuustiedot!B4:XFD4, \"ensimmäinen asiakaskäynti\",Asiakkuustiedot!B11:XFD11, \">=1.11.2016\",Asiakkuustiedot!B11:XFD11, \"<=30.11.2016\")","v":0},{"$f":"COUNTIFS(Asiakkuustiedot!B66:XFD66, \"Määräaikainen vuokrasopimus\",Asiakkuustiedot!B4:XFD4, \"ensimmäinen asiakaskäynti\",Asiakkuustiedot!B11:XFD11, \">=1.12.2016\",Asiakkuustiedot!B11:XFD11, \"<=31.12.2016\")","v":0}]
[null,"x",false,26,"Opiskelija-asunto",{"$f":"COUNTIFS(Asiakkuustiedot!B67:XFD67, \"Opiskelija-asunto\",Asiakkuustiedot!B4:XFD4, \"ensimmäinen asiakaskäynti\",Asiakkuustiedot!B11:XFD11, \">=1.1.2016\",Asiakkuustiedot!B11:XFD11, \"<=31.12.2016\")","v":0},null,null,null,null,null,null,{"$f":"COUNTIFS(Asiakkuustiedot!B67:XFD67, \"Opiskelija-asunto\",Asiakkuustiedot!B4:XFD4, \"ensimmäinen asiakaskäynti\",Asiakkuustiedot!B11:XFD11, \">=1.1.2016\",Asiakkuustiedot!B11:XFD11, \"<=31.1.2016\")","v":0},{"$f":"COUNTIFS(Asiakkuustiedot!B67:XFD67, \"Opiskelija-asunto\",Asiakkuustiedot!B4:XFD4, \"ensimmäinen asiakaskäynti\",Asiakkuustiedot!B11:XFD11, \">=1.2.2016\",Asiakkuustiedot!B11:XFD11, \"<=28.2.2016\")","v":0},{"$f":"COUNTIFS(Asiakkuustiedot!B67:XFD67, \"Opiskelija-asunto\",Asiakkuustiedot!B4:XFD4, \"ensimmäinen asiakaskäynti\",Asiakkuustiedot!B11:XFD11, \">=1.3.2016\",Asiakkuustiedot!B11:XFD11, \"<=31.3.2016\")","v":0},{"$f":"COUNTIFS(Asiakkuustiedot!B67:XFD67, \"Opiskelija-asunto\",Asiakkuustiedot!B4:XFD4, \"ensimmäinen asiakaskäynti\",Asiakkuustiedot!B11:XFD11, \">=1.4.2016\",Asiakkuustiedot!B11:XFD11, \"<=30.4.2016\")","v":0},{"$f":"COUNTIFS(Asiakkuustiedot!B67:XFD67, \"Opiskelija-asunto\",Asiakkuustiedot!B4:XFD4, \"ensimmäinen asiakaskäynti\",Asiakkuustiedot!B11:XFD11, \">=1.5.2016\",Asiakkuustiedot!B11:XFD11, \"<=31.5.2016\")","v":0},{"$f":"COUNTIFS(Asiakkuustiedot!B67:XFD67, \"Opiskelija-asunto\",Asiakkuustiedot!B4:XFD4, \"ensimmäinen asiakaskäynti\",Asiakkuustiedot!B11:XFD11, \">=1.6.2016\",Asiakkuustiedot!B11:XFD11, \"<=30.6.2016\")","v":0},{"$f":"COUNTIFS(Asiakkuustiedot!B67:XFD67, \"Opiskelija-asunto\",Asiakkuustiedot!B4:XFD4, \"ensimmäinen asiakaskäynti\",Asiakkuustiedot!B11:XFD11, \">=1.7.2016\",Asiakkuustiedot!B11:XFD11, \"<=31.7.2016\")","v":0},{"$f":"COUNTIFS(Asiakkuustiedot!B67:XFD67, \"Opiskelija-asunto\",Asiakkuustiedot!B4:XFD4, \"ensimmäinen asiakaskäynti\",Asiakkuustiedot!B11:XFD11, \">=1.8.2016\",Asiakkuustiedot!B11:XFD11, \"<=31.8.2016\")","v":0},{"$f":"COUNTIFS(Asiakkuustiedot!B67:XFD67, \"Opiskelija-asunto\",Asiakkuustiedot!B4:XFD4, \"ensimmäinen asiakaskäynti\",Asiakkuustiedot!B11:XFD11, \">=1.9.2016\",Asiakkuustiedot!B11:XFD11, \"<=30.9.2016\")","v":0},{"$f":"COUNTIFS(Asiakkuustiedot!B67:XFD67, \"Opiskelija-asunto\",Asiakkuustiedot!B4:XFD4, \"ensimmäinen asiakaskäynti\",Asiakkuustiedot!B11:XFD11, \">=1.10.2016\",Asiakkuustiedot!B11:XFD11, \"<=31.10.2016\")","v":0},{"$f":"COUNTIFS(Asiakkuustiedot!B67:XFD67, \"Opiskelija-asunto\",Asiakkuustiedot!B4:XFD4, \"ensimmäinen asiakaskäynti\",Asiakkuustiedot!B11:XFD11, \">=1.11.2016\",Asiakkuustiedot!B11:XFD11, \"<=30.11.2016\")","v":0},{"$f":"COUNTIFS(Asiakkuustiedot!B67:XFD67, \"Opiskelija-asunto\",Asiakkuustiedot!B4:XFD4, \"ensimmäinen asiakaskäynti\",Asiakkuustiedot!B11:XFD11, \">=1.12.2016\",Asiakkuustiedot!B11:XFD11, \"<=31.12.2016\")","v":0}]
[null,"x",false,27,"Asuu lapsuudenkodissa",{"$f":"COUNTIFS(Asiakkuustiedot!#REF!, \"Asuu lapsuudenkodissa\",Asiakkuustiedot!B4:XFD4, \"ensimmäinen asiakaskäynti\",Asiakkuustiedot!B11:XFD11, \">=1.1.2016\",Asiakkuustiedot!B11:XFD11, \"<=31.12.2016\")","v":{"$error":"#REF!"}},null,null,null,null,null,null,{"$f":"COUNTIFS(Asiakkuustiedot!#REF!, \"Asuu lapsuudenkodissa\",Asiakkuustiedot!B4:XFD4, \"ensimmäinen asiakaskäynti\",Asiakkuustiedot!B11:XFD11, \">=1.1.2016\",Asiakkuustiedot!B11:XFD11, \"<=31.1.2016\")","v":{"$error":"#REF!"}},{"$f":"COUNTIFS(Asiakkuustiedot!#REF!, \"Asuu lapsuudenkodissa\",Asiakkuustiedot!B4:XFD4, \"ensimmäinen asiakaskäynti\",Asiakkuustiedot!B11:XFD11, \">=1.2.2016\",Asiakkuustiedot!B11:XFD11, \"<=28.2.2016\")","v":{"$error":"#REF!"}},{"$f":"COUNTIFS(Asiakkuustiedot!#REF!, \"Asuu lapsuudenkodissa\",Asiakkuustiedot!B4:XFD4, \"ensimmäinen asiakaskäynti\",Asiakkuustiedot!B11:XFD11, \">=1.3.2016\",Asiakkuustiedot!B11:XFD11, \"<=31.3.2016\")","v":{"$error":"#REF!"}},{"$f":"COUNTIFS(Asiakkuustiedot!#REF!, \"Asuu lapsuudenkodissa\",Asiakkuustiedot!B4:XFD4, \"ensimmäinen asiakaskäynti\",Asiakkuustiedot!B11:XFD11, \">=1.4.2016\",Asiakkuustiedot!B11:XFD11, \"<=30.4.2016\")","v":{"$error":"#REF!"}},{"$f":"COUNTIFS(Asiakkuustiedot!#REF!, \"Asuu lapsuudenkodissa\",Asiakkuustiedot!B4:XFD4, \"ensimmäinen asiakaskäynti\",Asiakkuustiedot!B11:XFD11, \">=1.5.2016\",Asiakkuustiedot!B11:XFD11, \"<=31.5.2016\")","v":{"$error":"#REF!"}},{"$f":"COUNTIFS(Asiakkuustiedot!#REF!, \"Asuu lapsuudenkodissa\",Asiakkuustiedot!B4:XFD4, \"ensimmäinen asiakaskäynti\",Asiakkuustiedot!B11:XFD11, \">=1.6.2016\",Asiakkuustiedot!B11:XFD11, \"<=30.6.2016\")","v":{"$error":"#REF!"}},{"$f":"COUNTIFS(Asiakkuustiedot!#REF!, \"Asuu lapsuudenkodissa\",Asiakkuustiedot!B4:XFD4, \"ensimmäinen asiakaskäynti\",Asiakkuustiedot!B11:XFD11, \">=1.7.2016\",Asiakkuustiedot!B11:XFD11, \"<=31.7.2016\")","v":{"$error":"#REF!"}},{"$f":"COUNTIFS(Asiakkuustiedot!#REF!, \"Asuu lapsuudenkodissa\",Asiakkuustiedot!B4:XFD4, \"ensimmäinen asiakaskäynti\",Asiakkuustiedot!B11:XFD11, \">=1.8.2016\",Asiakkuustiedot!B11:XFD11, \"<=31.8.2016\")","v":{"$error":"#REF!"}},{"$f":"COUNTIFS(Asiakkuustiedot!#REF!, \"Asuu lapsuudenkodissa\",Asiakkuustiedot!B4:XFD4, \"ensimmäinen asiakaskäynti\",Asiakkuustiedot!B11:XFD11, \">=1.9.2016\",Asiakkuustiedot!B11:XFD11, \"<=30.9.2016\")","v":{"$error":"#REF!"}},{"$f":"COUNTIFS(Asiakkuustiedot!#REF!, \"Asuu lapsuudenkodissa\",Asiakkuustiedot!B4:XFD4, \"ensimmäinen asiakaskäynti\",Asiakkuustiedot!B11:XFD11, \">=1.10.2016\",Asiakkuustiedot!B11:XFD11, \"<=31.10.2016\")","v":{"$error":"#REF!"}},{"$f":"COUNTIFS(Asiakkuustiedot!#REF!, \"Asuu lapsuudenkodissa\",Asiakkuustiedot!B4:XFD4, \"ensimmäinen asiakaskäynti\",Asiakkuustiedot!B11:XFD11, \">=1.11.2016\",Asiakkuustiedot!B11:XFD11, \"<=30.11.2016\")","v":{"$error":"#REF!"}},{"$f":"COUNTIFS(Asiakkuustiedot!#REF!, \"Asuu lapsuudenkodissa\",Asiakkuustiedot!B4:XFD4, \"ensimmäinen asiakaskäynti\",Asiakkuustiedot!B11:XFD11, \">=1.12.2016\",Asiakkuustiedot!B11:XFD11, \"<=31.12.2016\")","v":{"$error":"#REF!"}}]
[null,"x",false,{"$f":"D36+1","v":28},"Lastensuojelun sijoitus",{"$f":"COUNTIFS(Asiakkuustiedot!B68:XFD68, \"Lastensuojelun sijoitus\",Asiakkuustiedot!B4:XFD4, \"ensimmäinen asiakaskäynti\",Asiakkuustiedot!B11:XFD11, \">=1.1.2016\",Asiakkuustiedot!B11:XFD11, \"<=31.12.2016\")","v":0},null,null,null,null,null,null,{"$f":"COUNTIFS(Asiakkuustiedot!B68:XFD68, \"Lastensuojelun sijoitus\",Asiakkuustiedot!B4:XFD4, \"ensimmäinen asiakaskäynti\",Asiakkuustiedot!B11:XFD11, \">=1.1.2016\",Asiakkuustiedot!B11:XFD11, \"<=31.1.2016\")","v":0},{"$f":"COUNTIFS(Asiakkuustiedot!B68:XFD68, \"Lastensuojelun sijoitus\",Asiakkuustiedot!B4:XFD4, \"ensimmäinen asiakaskäynti\",Asiakkuustiedot!B11:XFD11, \">=1.2.2016\",Asiakkuustiedot!B11:XFD11, \"<=28.2.2016\")","v":0},{"$f":"COUNTIFS(Asiakkuustiedot!B68:XFD68, \"Lastensuojelun sijoitus\",Asiakkuustiedot!B4:XFD4, \"ensimmäinen asiakaskäynti\",Asiakkuustiedot!B11:XFD11, \">=1.3.2016\",Asiakkuustiedot!B11:XFD11, \"<=31.3.2016\")","v":0},{"$f":"COUNTIFS(Asiakkuustiedot!B68:XFD68, \"Lastensuojelun sijoitus\",Asiakkuustiedot!B4:XFD4, \"ensimmäinen asiakaskäynti\",Asiakkuustiedot!B11:XFD11, \">=1.4.2016\",Asiakkuustiedot!B11:XFD11, \"<=30.4.2016\")","v":0},{"$f":"COUNTIFS(Asiakkuustiedot!B68:XFD68, \"Lastensuojelun sijoitus\",Asiakkuustiedot!B4:XFD4, \"ensimmäinen asiakaskäynti\",Asiakkuustiedot!B11:XFD11, \">=1.5.2016\",Asiakkuustiedot!B11:XFD11, \"<=31.5.2016\")","v":0},{"$f":"COUNTIFS(Asiakkuustiedot!B68:XFD68, \"Lastensuojelun sijoitus\",Asiakkuustiedot!B4:XFD4, \"ensimmäinen asiakaskäynti\",Asiakkuustiedot!B11:XFD11, \">=1.6.2016\",Asiakkuustiedot!B11:XFD11, \"<=30.6.2016\")","v":0},{"$f":"COUNTIFS(Asiakkuustiedot!B68:XFD68, \"Lastensuojelun sijoitus\",Asiakkuustiedot!B4:XFD4, \"ensimmäinen asiakaskäynti\",Asiakkuustiedot!B11:XFD11, \">=1.7.2016\",Asiakkuustiedot!B11:XFD11, \"<=31.7.2016\")","v":0},{"$f":"COUNTIFS(Asiakkuustiedot!B68:XFD68, \"Lastensuojelun sijoitus\",Asiakkuustiedot!B4:XFD4, \"ensimmäinen asiakaskäynti\",Asiakkuustiedot!B11:XFD11, \">=1.8.2016\",Asiakkuustiedot!B11:XFD11, \"<=31.8.2016\")","v":0},{"$f":"COUNTIFS(Asiakkuustiedot!B68:XFD68, \"Lastensuojelun sijoitus\",Asiakkuustiedot!B4:XFD4, \"ensimmäinen asiakaskäynti\",Asiakkuustiedot!B11:XFD11, \">=1.9.2016\",Asiakkuustiedot!B11:XFD11, \"<=30.9.2016\")","v":0},{"$f":"COUNTIFS(Asiakkuustiedot!B68:XFD68, \"Lastensuojelun sijoitus\",Asiakkuustiedot!B4:XFD4, \"ensimmäinen asiakaskäynti\",Asiakkuustiedot!B11:XFD11, \">=1.10.2016\",Asiakkuustiedot!B11:XFD11, \"<=31.10.2016\")","v":0},{"$f":"COUNTIFS(Asiakkuustiedot!B68:XFD68, \"Lastensuojelun sijoitus\",Asiakkuustiedot!B4:XFD4, \"ensimmäinen asiakaskäynti\",Asiakkuustiedot!B11:XFD11, \">=1.11.2016\",Asiakkuustiedot!B11:XFD11, \"<=30.11.2016\")","v":0},{"$f":"COUNTIFS(Asiakkuustiedot!B68:XFD68, \"Lastensuojelun sijoitus\",Asiakkuustiedot!B4:XFD4, \"ensimmäinen asiakaskäynti\",Asiakkuustiedot!B11:XFD11, \">=1.12.2016\",Asiakkuustiedot!B11:XFD11, \"<=31.12.2016\")","v":0}]
[null,"x",false,29,"Avoero / avioero",{"$f":"COUNTIFS(Asiakkuustiedot!B69:XFD69, \"Avoero / avioero\",Asiakkuustiedot!B4:XFD4, \"ensimmäinen asiakaskäynti\",Asiakkuustiedot!B11:XFD11, \">=1.1.2016\",Asiakkuustiedot!B11:XFD11, \"<=31.12.2016\")","v":0},null,null,null,null,null,null,{"$f":"COUNTIFS(Asiakkuustiedot!B69:XFD69, \"Avoero / avioero\",Asiakkuustiedot!B4:XFD4, \"ensimmäinen asiakaskäynti\",Asiakkuustiedot!B11:XFD11, \">=1.1.2016\",Asiakkuustiedot!B11:XFD11, \"<=31.1.2016\")","v":0},{"$f":"COUNTIFS(Asiakkuustiedot!B69:XFD69, \"Avoero / avioero\",Asiakkuustiedot!B4:XFD4, \"ensimmäinen asiakaskäynti\",Asiakkuustiedot!B11:XFD11, \">=1.2.2016\",Asiakkuustiedot!B11:XFD11, \"<=28.2.2016\")","v":0},{"$f":"COUNTIFS(Asiakkuustiedot!B69:XFD69, \"Avoero / avioero\",Asiakkuustiedot!B4:XFD4, \"ensimmäinen asiakaskäynti\",Asiakkuustiedot!B11:XFD11, \">=1.3.2016\",Asiakkuustiedot!B11:XFD11, \"<=31.3.2016\")","v":0},{"$f":"COUNTIFS(Asiakkuustiedot!B69:XFD69, \"Avoero / avioero\",Asiakkuustiedot!B4:XFD4, \"ensimmäinen asiakaskäynti\",Asiakkuustiedot!B11:XFD11, \">=1.4.2016\",Asiakkuustiedot!B11:XFD11, \"<=30.4.2016\")","v":0},{"$f":"COUNTIFS(Asiakkuustiedot!B69:XFD69, \"Avoero / avioero\",Asiakkuustiedot!B4:XFD4, \"ensimmäinen asiakaskäynti\",Asiakkuustiedot!B11:XFD11, \">=1.5.2016\",Asiakkuustiedot!B11:XFD11, \"<=31.5.2016\")","v":0},{"$f":"COUNTIFS(Asiakkuustiedot!B69:XFD69, \"Avoero / avioero\",Asiakkuustiedot!B4:XFD4, \"ensimmäinen asiakaskäynti\",Asiakkuustiedot!B11:XFD11, \">=1.6.2016\",Asiakkuustiedot!B11:XFD11, \"<=30.6.2016\")","v":0},{"$f":"COUNTIFS(Asiakkuustiedot!B69:XFD69, \"Avoero / avioero\",Asiakkuustiedot!B4:XFD4, \"ensimmäinen asiakaskäynti\",Asiakkuustiedot!B11:XFD11, \">=1.7.2016\",Asiakkuustiedot!B11:XFD11, \"<=31.7.2016\")","v":0},{"$f":"COUNTIFS(Asiakkuustiedot!B69:XFD69, \"Avoero / avioero\",Asiakkuustiedot!B4:XFD4, \"ensimmäinen asiakaskäynti\",Asiakkuustiedot!B11:XFD11, \">=1.8.2016\",Asiakkuustiedot!B11:XFD11, \"<=31.8.2016\")","v":0},{"$f":"COUNTIFS(Asiakkuustiedot!B69:XFD69, \"Avoero / avioero\",Asiakkuustiedot!B4:XFD4, \"ensimmäinen asiakaskäynti\",Asiakkuustiedot!B11:XFD11, \">=1.9.2016\",Asiakkuustiedot!B11:XFD11, \"<=30.9.2016\")","v":0},{"$f":"COUNTIFS(Asiakkuustiedot!B69:XFD69, \"Avoero / avioero\",Asiakkuustiedot!B4:XFD4, \"ensimmäinen asiakaskäynti\",Asiakkuustiedot!B11:XFD11, \">=1.10.2016\",Asiakkuustiedot!B11:XFD11, \"<=31.10.2016\")","v":0},{"$f":"COUNTIFS(Asiakkuustiedot!B69:XFD69, \"Avoero / avioero\",Asiakkuustiedot!B4:XFD4, \"ensimmäinen asiakaskäynti\",Asiakkuustiedot!B11:XFD11, \">=1.11.2016\",Asiakkuustiedot!B11:XFD11, \"<=30.11.2016\")","v":0},{"$f":"COUNTIFS(Asiakkuustiedot!B69:XFD69, \"Avoero / avioero\",Asiakkuustiedot!B4:XFD4, \"ensimmäinen asiakaskäynti\",Asiakkuustiedot!B11:XFD11, \">=1.12.2016\",Asiakkuustiedot!B11:XFD11, \"<=31.12.2016\")","v":0}]
[null,"x",false,30,"Häätöuhka",{"$f":"COUNTIFS(Asiakkuustiedot!B71:XFD71, \"Häätöuhka\",Asiakkuustiedot!B4:XFD4, \"ensimmäinen asiakaskäynti\",Asiakkuustiedot!B11:XFD11, \">=1.1.2016\",Asiakkuustiedot!B11:XFD11, \"<=31.12.2016\")","v":0},null,null,null,null,null,null,{"$f":"COUNTIFS(Asiakkuustiedot!B71:XFD71, \"Häätöuhka\",Asiakkuustiedot!B4:XFD4, \"ensimmäinen asiakaskäynti\",Asiakkuustiedot!B11:XFD11, \">=1.1.2016\",Asiakkuustiedot!B11:XFD11, \"<=31.1.2016\")","v":0},{"$f":"COUNTIFS(Asiakkuustiedot!B71:XFD71, \"Häätöuhka\",Asiakkuustiedot!B4:XFD4, \"ensimmäinen asiakaskäynti\",Asiakkuustiedot!B11:XFD11, \">=1.2.2016\",Asiakkuustiedot!B11:XFD11, \"<=28.2.2016\")","v":0},{"$f":"COUNTIFS(Asiakkuustiedot!B71:XFD71, \"Häätöuhka\",Asiakkuustiedot!B4:XFD4, \"ensimmäinen asiakaskäynti\",Asiakkuustiedot!B11:XFD11, \">=1.3.2016\",Asiakkuustiedot!B11:XFD11, \"<=31.3.2016\")","v":0},{"$f":"COUNTIFS(Asiakkuustiedot!B71:XFD71, \"Häätöuhka\",Asiakkuustiedot!B4:XFD4, \"ensimmäinen asiakaskäynti\",Asiakkuustiedot!B11:XFD11, \">=1.4.2016\",Asiakkuustiedot!B11:XFD11, \"<=30.4.2016\")","v":0},{"$f":"COUNTIFS(Asiakkuustiedot!B71:XFD71, \"Häätöuhka\",Asiakkuustiedot!B4:XFD4, \"ensimmäinen asiakaskäynti\",Asiakkuustiedot!B11:XFD11, \">=1.5.2016\",Asiakkuustiedot!B11:XFD11, \"<=31.5.2016\")","v":0},{"$f":"COUNTIFS(Asiakkuustiedot!B71:XFD71, \"Häätöuhka\",Asiakkuustiedot!B4:XFD4, \"ensimmäinen asiakaskäynti\",Asiakkuustiedot!B11:XFD11, \">=1.6.2016\",Asiakkuustiedot!B11:XFD11, \"<=30.6.2016\")","v":0},{"$f":"COUNTIFS(Asiakkuustiedot!B71:XFD71, \"Häätöuhka\",Asiakkuustiedot!B4:XFD4, \"ensimmäinen asiakaskäynti\",Asiakkuustiedot!B11:XFD11, \">=1.7.2016\",Asiakkuustiedot!B11:XFD11, \"<=31.7.2016\")","v":0},{"$f":"COUNTIFS(Asiakkuustiedot!B71:XFD71, \"Häätöuhka\",Asiakkuustiedot!B4:XFD4, \"ensimmäinen asiakaskäynti\",Asiakkuustiedot!B11:XFD11, \">=1.8.2016\",Asiakkuustiedot!B11:XFD11, \"<=31.8.2016\")","v":0},{"$f":"COUNTIFS(Asiakkuustiedot!B71:XFD71, \"Häätöuhka\",Asiakkuustiedot!B4:XFD4, \"ensimmäinen asiakaskäynti\",Asiakkuustiedot!B11:XFD11, \">=1.9.2016\",Asiakkuustiedot!B11:XFD11, \"<=30.9.2016\")","v":0},{"$f":"COUNTIFS(Asiakkuustiedot!B71:XFD71, \"Häätöuhka\",Asiakkuustiedot!B4:XFD4, \"ensimmäinen asiakaskäynti\",Asiakkuustiedot!B11:XFD11, \">=1.10.2016\",Asiakkuustiedot!B11:XFD11, \"<=31.10.2016\")","v":0},{"$f":"COUNTIFS(Asiakkuustiedot!B71:XFD71, \"Häätöuhka\",Asiakkuustiedot!B4:XFD4, \"ensimmäinen asiakaskäynti\",Asiakkuustiedot!B11:XFD11, \">=1.11.2016\",Asiakkuustiedot!B11:XFD11, \"<=30.11.2016\")","v":0},{"$f":"COUNTIFS(Asiakkuustiedot!B71:XFD71, \"Häätöuhka\",Asiakkuustiedot!B4:XFD4, \"ensimmäinen asiakaskäynti\",Asiakkuustiedot!B11:XFD11, \">=1.12.2016\",Asiakkuustiedot!B11:XFD11, \"<=31.12.2016\")","v":0}]
[null,"x",false,{"$f":"D39+1","v":31},"Asunnoton",{"$f":"COUNTIFS(Asiakkuustiedot!B72:XFD72, \"Asunnoton\",Asiakkuustiedot!B4:XFD4, \"ensimmäinen asiakaskäynti\",Asiakkuustiedot!B11:XFD11, \">=1.1.2016\",Asiakkuustiedot!B11:XFD11, \"<=31.12.2016\")","v":0},null,null,null,null,null,null,{"$f":"COUNTIFS(Asiakkuustiedot!B72:XFD72, \"Asunnoton\",Asiakkuustiedot!B4:XFD4, \"ensimmäinen asiakaskäynti\",Asiakkuustiedot!B11:XFD11, \">=1.1.2016\",Asiakkuustiedot!B11:XFD11, \"<=31.1.2016\")","v":0},{"$f":"COUNTIFS(Asiakkuustiedot!B72:XFD72, \"Asunnoton\",Asiakkuustiedot!B4:XFD4, \"ensimmäinen asiakaskäynti\",Asiakkuustiedot!B11:XFD11, \">=1.2.2016\",Asiakkuustiedot!B11:XFD11, \"<=28.2.2016\")","v":0},{"$f":"COUNTIFS(Asiakkuustiedot!B72:XFD72, \"Asunnoton\",Asiakkuustiedot!B4:XFD4, \"ensimmäinen asiakaskäynti\",Asiakkuustiedot!B11:XFD11, \">=1.3.2016\",Asiakkuustiedot!B11:XFD11, \"<=31.3.2016\")","v":0},{"$f":"COUNTIFS(Asiakkuustiedot!B72:XFD72, \"Asunnoton\",Asiakkuustiedot!B4:XFD4, \"ensimmäinen asiakaskäynti\",Asiakkuustiedot!B11:XFD11, \">=1.4.2016\",Asiakkuustiedot!B11:XFD11, \"<=30.4.2016\")","v":0},{"$f":"COUNTIFS(Asiakkuustiedot!B72:XFD72, \"Asunnoton\",Asiakkuustiedot!B4:XFD4, \"ensimmäinen asiakaskäynti\",Asiakkuustiedot!B11:XFD11, \">=1.5.2016\",Asiakkuustiedot!B11:XFD11, \"<=31.5.2016\")","v":0},{"$f":"COUNTIFS(Asiakkuustiedot!B72:XFD72, \"Asunnoton\",Asiakkuustiedot!B4:XFD4, \"ensimmäinen asiakaskäynti\",Asiakkuustiedot!B11:XFD11, \">=1.6.2016\",Asiakkuustiedot!B11:XFD11, \"<=30.6.2016\")","v":0},{"$f":"COUNTIFS(Asiakkuustiedot!B72:XFD72, \"Asunnoton\",Asiakkuustiedot!B4:XFD4, \"ensimmäinen asiakaskäynti\",Asiakkuustiedot!B11:XFD11, \">=1.7.2016\",Asiakkuustiedot!B11:XFD11, \"<=31.7.2016\")","v":0},{"$f":"COUNTIFS(Asiakkuustiedot!B72:XFD72, \"Asunnoton\",Asiakkuustiedot!B4:XFD4, \"ensimmäinen asiakaskäynti\",Asiakkuustiedot!B11:XFD11, \">=1.8.2016\",Asiakkuustiedot!B11:XFD11, \"<=31.8.2016\")","v":0},{"$f":"COUNTIFS(Asiakkuustiedot!B72:XFD72, \"Asunnoton\",Asiakkuustiedot!B4:XFD4, \"ensimmäinen asiakaskäynti\",Asiakkuustiedot!B11:XFD11, \">=1.9.2016\",Asiakkuustiedot!B11:XFD11, \"<=30.9.2016\")","v":0},{"$f":"COUNTIFS(Asiakkuustiedot!B72:XFD72, \"Asunnoton\",Asiakkuustiedot!B4:XFD4, \"ensimmäinen asiakaskäynti\",Asiakkuustiedot!B11:XFD11, \">=1.10.2016\",Asiakkuustiedot!B11:XFD11, \"<=31.10.2016\")","v":0},{"$f":"COUNTIFS(Asiakkuustiedot!B72:XFD72, \"Asunnoton\",Asiakkuustiedot!B4:XFD4, \"ensimmäinen asiakaskäynti\",Asiakkuustiedot!B11:XFD11, \">=1.11.2016\",Asiakkuustiedot!B11:XFD11, \"<=30.11.2016\")","v":0},{"$f":"COUNTIFS(Asiakkuustiedot!B72:XFD72, \"Asunnoton\",Asiakkuustiedot!B4:XFD4, \"ensimmäinen asiakaskäynti\",Asiakkuustiedot!B11:XFD11, \">=1.12.2016\",Asiakkuustiedot!B11:XFD11, \"<=31.12.2016\")","v":0}]
[null,"x",false,32,"Tilapäismajoitus",{"$f":"COUNTIFS(Asiakkuustiedot!#REF!, \"Tilapäismajoitus\",Asiakkuustiedot!B4:XFD4, \"ensimmäinen asiakaskäynti\",Asiakkuustiedot!B11:XFD11, \">=1.1.2016\",Asiakkuustiedot!B11:XFD11, \"<=31.12.2016\")","v":{"$error":"#REF!"}},null,null,null,null,null,null,{"$f":"COUNTIFS(Asiakkuustiedot!#REF!, \"Tilapäismajoitus\",Asiakkuustiedot!B4:XFD4, \"ensimmäinen asiakaskäynti\",Asiakkuustiedot!B11:XFD11, \">=1.1.2016\",Asiakkuustiedot!B11:XFD11, \"<=31.1.2016\")","v":{"$error":"#REF!"}},{"$f":"COUNTIFS(Asiakkuustiedot!#REF!, \"Tilapäismajoitus\",Asiakkuustiedot!B4:XFD4, \"ensimmäinen asiakaskäynti\",Asiakkuustiedot!B11:XFD11, \">=1.2.2016\",Asiakkuustiedot!B11:XFD11, \"<=28.2.2016\")","v":{"$error":"#REF!"}},{"$f":"COUNTIFS(Asiakkuustiedot!#REF!, \"Tilapäismajoitus\",Asiakkuustiedot!B4:XFD4, \"ensimmäinen asiakaskäynti\",Asiakkuustiedot!B11:XFD11, \">=1.3.2016\",Asiakkuustiedot!B11:XFD11, \"<=31.3.2016\")","v":{"$error":"#REF!"}},{"$f":"COUNTIFS(Asiakkuustiedot!#REF!, \"Tilapäismajoitus\",Asiakkuustiedot!B4:XFD4, \"ensimmäinen asiakaskäynti\",Asiakkuustiedot!B11:XFD11, \">=1.4.2016\",Asiakkuustiedot!B11:XFD11, \"<=30.4.2016\")","v":{"$error":"#REF!"}},{"$f":"COUNTIFS(Asiakkuustiedot!#REF!, \"Tilapäismajoitus\",Asiakkuustiedot!B4:XFD4, \"ensimmäinen asiakaskäynti\",Asiakkuustiedot!B11:XFD11, \">=1.5.2016\",Asiakkuustiedot!B11:XFD11, \"<=31.5.2016\")","v":{"$error":"#REF!"}},{"$f":"COUNTIFS(Asiakkuustiedot!#REF!, \"Tilapäismajoitus\",Asiakkuustiedot!B4:XFD4, \"ensimmäinen asiakaskäynti\",Asiakkuustiedot!B11:XFD11, \">=1.6.2016\",Asiakkuustiedot!B11:XFD11, \"<=30.6.2016\")","v":{"$error":"#REF!"}},{"$f":"COUNTIFS(Asiakkuustiedot!#REF!, \"Tilapäismajoitus\",Asiakkuustiedot!B4:XFD4, \"ensimmäinen asiakaskäynti\",Asiakkuustiedot!B11:XFD11, \">=1.7.2016\",Asiakkuustiedot!B11:XFD11, \"<=31.7.2016\")","v":{"$error":"#REF!"}},{"$f":"COUNTIFS(Asiakkuustiedot!#REF!, \"Tilapäismajoitus\",Asiakkuustiedot!B4:XFD4, \"ensimmäinen asiakaskäynti\",Asiakkuustiedot!B11:XFD11, \">=1.8.2016\",Asiakkuustiedot!B11:XFD11, \"<=31.8.2016\")","v":{"$error":"#REF!"}},{"$f":"COUNTIFS(Asiakkuustiedot!#REF!, \"Tilapäismajoitus\",Asiakkuustiedot!B4:XFD4, \"ensimmäinen asiakaskäynti\",Asiakkuustiedot!B11:XFD11, \">=1.9.2016\",Asiakkuustiedot!B11:XFD11, \"<=30.9.2016\")","v":{"$error":"#REF!"}},{"$f":"COUNTIFS(Asiakkuustiedot!#REF!, \"Tilapäismajoitus\",Asiakkuustiedot!B4:XFD4, \"ensimmäinen asiakaskäynti\",Asiakkuustiedot!B11:XFD11, \">=1.10.2016\",Asiakkuustiedot!B11:XFD11, \"<=31.10.2016\")","v":{"$error":"#REF!"}},{"$f":"COUNTIFS(Asiakkuustiedot!#REF!, \"Tilapäismajoitus\",Asiakkuustiedot!B4:XFD4, \"ensimmäinen asiakaskäynti\",Asiakkuustiedot!B11:XFD11, \">=1.11.2016\",Asiakkuustiedot!B11:XFD11, \"<=30.11.2016\")","v":{"$error":"#REF!"}},{"$f":"COUNTIFS(Asiakkuustiedot!#REF!, \"Tilapäismajoitus\",Asiakkuustiedot!B4:XFD4, \"ensimmäinen asiakaskäynti\",Asiakkuustiedot!B11:XFD11, \">=1.12.2016\",Asiakkuustiedot!B11:XFD11, \"<=31.12.2016\")","v":{"$error":"#REF!"}}]
[null,"x",false,33,"Ylikallis asunto",{"$f":"COUNTIFS(Asiakkuustiedot!#REF!, \"Ylikallis asunto\",Asiakkuustiedot!B4:XFD4, \"ensimmäinen asiakaskäynti\",Asiakkuustiedot!B11:XFD11, \">=1.1.2016\",Asiakkuustiedot!B11:XFD11, \"<=31.12.2016\")","v":{"$error":"#REF!"}},null,null,null,null,null,null,{"$f":"COUNTIFS(Asiakkuustiedot!#REF!, \"Ylikallis asunto\",Asiakkuustiedot!B4:XFD4, \"ensimmäinen asiakaskäynti\",Asiakkuustiedot!B11:XFD11, \">=1.1.2016\",Asiakkuustiedot!B11:XFD11, \"<=31.1.2016\")","v":{"$error":"#REF!"}},{"$f":"COUNTIFS(Asiakkuustiedot!#REF!, \"Ylikallis asunto\",Asiakkuustiedot!B4:XFD4, \"ensimmäinen asiakaskäynti\",Asiakkuustiedot!B11:XFD11, \">=1.2.2016\",Asiakkuustiedot!B11:XFD11, \"<=28.2.2016\")","v":{"$error":"#REF!"}},{"$f":"COUNTIFS(Asiakkuustiedot!#REF!, \"Ylikallis asunto\",Asiakkuustiedot!B4:XFD4, \"ensimmäinen asiakaskäynti\",Asiakkuustiedot!B11:XFD11, \">=1.3.2016\",Asiakkuustiedot!B11:XFD11, \"<=31.3.2016\")","v":{"$error":"#REF!"}},{"$f":"COUNTIFS(Asiakkuustiedot!#REF!, \"Ylikallis asunto\",Asiakkuustiedot!B4:XFD4, \"ensimmäinen asiakaskäynti\",Asiakkuustiedot!B11:XFD11, \">=1.4.2016\",Asiakkuustiedot!B11:XFD11, \"<=30.4.2016\")","v":{"$error":"#REF!"}},{"$f":"COUNTIFS(Asiakkuustiedot!#REF!, \"Ylikallis asunto\",Asiakkuustiedot!B4:XFD4, \"ensimmäinen asiakaskäynti\",Asiakkuustiedot!B11:XFD11, \">=1.5.2016\",Asiakkuustiedot!B11:XFD11, \"<=31.5.2016\")","v":{"$error":"#REF!"}},{"$f":"COUNTIFS(Asiakkuustiedot!#REF!, \"Ylikallis asunto\",Asiakkuustiedot!B4:XFD4, \"ensimmäinen asiakaskäynti\",Asiakkuustiedot!B11:XFD11, \">=1.6.2016\",Asiakkuustiedot!B11:XFD11, \"<=30.6.2016\")","v":{"$error":"#REF!"}},{"$f":"COUNTIFS(Asiakkuustiedot!#REF!, \"Ylikallis asunto\",Asiakkuustiedot!B4:XFD4, \"ensimmäinen asiakaskäynti\",Asiakkuustiedot!B11:XFD11, \">=1.7.2016\",Asiakkuustiedot!B11:XFD11, \"<=31.7.2016\")","v":{"$error":"#REF!"}},{"$f":"COUNTIFS(Asiakkuustiedot!#REF!, \"Ylikallis asunto\",Asiakkuustiedot!B4:XFD4, \"ensimmäinen asiakaskäynti\",Asiakkuustiedot!B11:XFD11, \">=1.8.2016\",Asiakkuustiedot!B11:XFD11, \"<=31.8.2016\")","v":{"$error":"#REF!"}},{"$f":"COUNTIFS(Asiakkuustiedot!#REF!, \"Ylikallis asunto\",Asiakkuustiedot!B4:XFD4, \"ensimmäinen asiakaskäynti\",Asiakkuustiedot!B11:XFD11, \">=1.9.2016\",Asiakkuustiedot!B11:XFD11, \"<=30.9.2016\")","v":{"$error":"#REF!"}},{"$f":"COUNTIFS(Asiakkuustiedot!#REF!, \"Ylikallis asunto\",Asiakkuustiedot!B4:XFD4, \"ensimmäinen asiakaskäynti\",Asiakkuustiedot!B11:XFD11, \">=1.10.2016\",Asiakkuustiedot!B11:XFD11, \"<=31.10.2016\")","v":{"$error":"#REF!"}},{"$f":"COUNTIFS(Asiakkuustiedot!#REF!, \"Ylikallis asunto\",Asiakkuustiedot!B4:XFD4, \"ensimmäinen asiakaskäynti\",Asiakkuustiedot!B11:XFD11, \">=1.11.2016\",Asiakkuustiedot!B11:XFD11, \"<=30.11.2016\")","v":{"$error":"#REF!"}},{"$f":"COUNTIFS(Asiakkuustiedot!#REF!, \"Ylikallis asunto\",Asiakkuustiedot!B4:XFD4, \"ensimmäinen asiakaskäynti\",Asiakkuustiedot!B11:XFD11, \">=1.12.2016\",Asiakkuustiedot!B11:XFD11, \"<=31.12.2016\")","v":{"$error":"#REF!"}}]
[null,"x",false,{"$f":"D42+1","v":34},"Asumiskelvoton asunto",{"$f":"COUNTIFS(Asiakkuustiedot!#REF!, \"Asumiskelvoton asunto\",Asiakkuustiedot!B4:XFD4, \"ensimmäinen asiakaskäynti\",Asiakkuustiedot!B11:XFD11, \">=1.1.2016\",Asiakkuustiedot!B11:XFD11, \"<=31.12.2016\")","v":{"$error":"#REF!"}},null,null,null,null,null,null,{"$f":"COUNTIFS(Asiakkuustiedot!#REF!, \"Asumiskelvoton asunto\",Asiakkuustiedot!B4:XFD4, \"ensimmäinen asiakaskäynti\",Asiakkuustiedot!B11:XFD11, \">=1.1.2016\",Asiakkuustiedot!B11:XFD11, \"<=31.1.2016\")","v":{"$error":"#REF!"}},{"$f":"COUNTIFS(Asiakkuustiedot!#REF!, \"Asumiskelvoton asunto\",Asiakkuustiedot!B4:XFD4, \"ensimmäinen asiakaskäynti\",Asiakkuustiedot!B11:XFD11, \">=1.2.2016\",Asiakkuustiedot!B11:XFD11, \"<=28.2.2016\")","v":{"$error":"#REF!"}},{"$f":"COUNTIFS(Asiakkuustiedot!#REF!, \"Asumiskelvoton asunto\",Asiakkuustiedot!B4:XFD4, \"ensimmäinen asiakaskäynti\",Asiakkuustiedot!B11:XFD11, \">=1.3.2016\",Asiakkuustiedot!B11:XFD11, \"<=31.3.2016\")","v":{"$error":"#REF!"}},{"$f":"COUNTIFS(Asiakkuustiedot!#REF!, \"Asumiskelvoton asunto\",Asiakkuustiedot!B4:XFD4, \"ensimmäinen asiakaskäynti\",Asiakkuustiedot!B11:XFD11, \">=1.4.2016\",Asiakkuustiedot!B11:XFD11, \"<=30.4.2016\")","v":{"$error":"#REF!"}},{"$f":"COUNTIFS(Asiakkuustiedot!#REF!, \"Asumiskelvoton asunto\",Asiakkuustiedot!B4:XFD4, \"ensimmäinen asiakaskäynti\",Asiakkuustiedot!B11:XFD11, \">=1.5.2016\",Asiakkuustiedot!B11:XFD11, \"<=31.5.2016\")","v":{"$error":"#REF!"}},{"$f":"COUNTIFS(Asiakkuustiedot!#REF!, \"Asumiskelvoton asunto\",Asiakkuustiedot!B4:XFD4, \"ensimmäinen asiakaskäynti\",Asiakkuustiedot!B11:XFD11, \">=1.6.2016\",Asiakkuustiedot!B11:XFD11, \"<=30.6.2016\")","v":{"$error":"#REF!"}},{"$f":"COUNTIFS(Asiakkuustiedot!#REF!, \"Asumiskelvoton asunto\",Asiakkuustiedot!B4:XFD4, \"ensimmäinen asiakaskäynti\",Asiakkuustiedot!B11:XFD11, \">=1.7.2016\",Asiakkuustiedot!B11:XFD11, \"<=31.7.2016\")","v":{"$error":"#REF!"}},{"$f":"COUNTIFS(Asiakkuustiedot!#REF!, \"Asumiskelvoton asunto\",Asiakkuustiedot!B4:XFD4, \"ensimmäinen asiakaskäynti\",Asiakkuustiedot!B11:XFD11, \">=1.8.2016\",Asiakkuustiedot!B11:XFD11, \"<=31.8.2016\")","v":{"$error":"#REF!"}},{"$f":"COUNTIFS(Asiakkuustiedot!#REF!, \"Asumiskelvoton asunto\",Asiakkuustiedot!B4:XFD4, \"ensimmäinen asiakaskäynti\",Asiakkuustiedot!B11:XFD11, \">=1.9.2016\",Asiakkuustiedot!B11:XFD11, \"<=30.9.2016\")","v":{"$error":"#REF!"}},{"$f":"COUNTIFS(Asiakkuustiedot!#REF!, \"Asumiskelvoton asunto\",Asiakkuustiedot!B4:XFD4, \"ensimmäinen asiakaskäynti\",Asiakkuustiedot!B11:XFD11, \">=1.10.2016\",Asiakkuustiedot!B11:XFD11, \"<=31.10.2016\")","v":{"$error":"#REF!"}},{"$f":"COUNTIFS(Asiakkuustiedot!#REF!, \"Asumiskelvoton asunto\",Asiakkuustiedot!B4:XFD4, \"ensimmäinen asiakaskäynti\",Asiakkuustiedot!B11:XFD11, \">=1.11.2016\",Asiakkuustiedot!B11:XFD11, \"<=30.11.2016\")","v":{"$error":"#REF!"}},{"$f":"COUNTIFS(Asiakkuustiedot!#REF!, \"Asumiskelvoton asunto\",Asiakkuustiedot!B4:XFD4, \"ensimmäinen asiakaskäynti\",Asiakkuustiedot!B11:XFD11, \">=1.12.2016\",Asiakkuustiedot!B11:XFD11, \"<=31.12.2016\")","v":{"$error":"#REF!"}}]
[null,null,null,null,"Muu, mikä?"]
[]
[null,null,null,null,"Jos asunnoton, niin missä majailee  "]
[null,"x",false,37,"kaverilla",{"$f":"COUNTIFS(Asiakkuustiedot!B78:XFD78, \"kaverilla\",Asiakkuustiedot!B4:XFD4, \"ensimmäinen asiakaskäynti\",Asiakkuustiedot!B11:XFD11, \">=1.1.2016\",Asiakkuustiedot!B11:XFD11, \"<=31.12.2016\")","v":0},null,null,null,null,null,null,{"$f":"COUNTIFS(Asiakkuustiedot!B78:XFD78, \"kaverilla\",Asiakkuustiedot!B4:XFD4, \"ensimmäinen asiakaskäynti\",Asiakkuustiedot!B11:XFD11, \">=1.1.2016\",Asiakkuustiedot!B11:XFD11, \"<=31.1.2016\")","v":0},{"$f":"COUNTIFS(Asiakkuustiedot!B78:XFD78, \"kaverilla\",Asiakkuustiedot!B4:XFD4, \"ensimmäinen asiakaskäynti\",Asiakkuustiedot!B11:XFD11, \">=1.2.2016\",Asiakkuustiedot!B11:XFD11, \"<=28.2.2016\")","v":0},{"$f":"COUNTIFS(Asiakkuustiedot!B78:XFD78, \"kaverilla\",Asiakkuustiedot!B4:XFD4, \"ensimmäinen asiakaskäynti\",Asiakkuustiedot!B11:XFD11, \">=1.3.2016\",Asiakkuustiedot!B11:XFD11, \"<=31.3.2016\")","v":0},{"$f":"COUNTIFS(Asiakkuustiedot!B78:XFD78, \"kaverilla\",Asiakkuustiedot!B4:XFD4, \"ensimmäinen asiakaskäynti\",Asiakkuustiedot!B11:XFD11, \">=1.4.2016\",Asiakkuustiedot!B11:XFD11, \"<=30.4.2016\")","v":0},{"$f":"COUNTIFS(Asiakkuustiedot!B78:XFD78, \"kaverilla\",Asiakkuustiedot!B4:XFD4, \"ensimmäinen asiakaskäynti\",Asiakkuustiedot!B11:XFD11, \">=1.5.2016\",Asiakkuustiedot!B11:XFD11, \"<=31.5.2016\")","v":0},{"$f":"COUNTIFS(Asiakkuustiedot!B78:XFD78, \"kaverilla\",Asiakkuustiedot!B4:XFD4, \"ensimmäinen asiakaskäynti\",Asiakkuustiedot!B11:XFD11, \">=1.6.2016\",Asiakkuustiedot!B11:XFD11, \"<=30.6.2016\")","v":0},{"$f":"COUNTIFS(Asiakkuustiedot!B78:XFD78, \"kaverilla\",Asiakkuustiedot!B4:XFD4, \"ensimmäinen asiakaskäynti\",Asiakkuustiedot!B11:XFD11, \">=1.7.2016\",Asiakkuustiedot!B11:XFD11, \"<=31.7.2016\")","v":0},{"$f":"COUNTIFS(Asiakkuustiedot!B78:XFD78, \"kaverilla\",Asiakkuustiedot!B4:XFD4, \"ensimmäinen asiakaskäynti\",Asiakkuustiedot!B11:XFD11, \">=1.8.2016\",Asiakkuustiedot!B11:XFD11, \"<=31.8.2016\")","v":0},{"$f":"COUNTIFS(Asiakkuustiedot!B78:XFD78, \"kaverilla\",Asiakkuustiedot!B4:XFD4, \"ensimmäinen asiakaskäynti\",Asiakkuustiedot!B11:XFD11, \">=1.9.2016\",Asiakkuustiedot!B11:XFD11, \"<=30.9.2016\")","v":0},{"$f":"COUNTIFS(Asiakkuustiedot!B78:XFD78, \"kaverilla\",Asiakkuustiedot!B4:XFD4, \"ensimmäinen asiakaskäynti\",Asiakkuustiedot!B11:XFD11, \">=1.10.2016\",Asiakkuustiedot!B11:XFD11, \"<=31.10.2016\")","v":0},{"$f":"COUNTIFS(Asiakkuustiedot!B78:XFD78, \"kaverilla\",Asiakkuustiedot!B4:XFD4, \"ensimmäinen asiakaskäynti\",Asiakkuustiedot!B11:XFD11, \">=1.11.2016\",Asiakkuustiedot!B11:XFD11, \"<=30.11.2016\")","v":0},{"$f":"COUNTIFS(Asiakkuustiedot!B78:XFD78, \"kaverilla\",Asiakkuustiedot!B4:XFD4, \"ensimmäinen asiakaskäynti\",Asiakkuustiedot!B11:XFD11, \">=1.12.2016\",Asiakkuustiedot!B11:XFD11, \"<=31.12.2016\")","v":0}]
[null,"x",false,37,"sukulaisilla",{"$f":"COUNTIFS(Asiakkuustiedot!B78:XFD78, \"sukulaisilla\",Asiakkuustiedot!B4:XFD4, \"ensimmäinen asiakaskäynti\",Asiakkuustiedot!B11:XFD11, \">=1.1.2016\",Asiakkuustiedot!B11:XFD11, \"<=31.12.2016\")","v":0},null,null,null,null,null,null,{"$f":"COUNTIFS(Asiakkuustiedot!B78:XFD78, \"sukulaisilla\",Asiakkuustiedot!B4:XFD4, \"ensimmäinen asiakaskäynti\",Asiakkuustiedot!B11:XFD11, \">=1.1.2016\",Asiakkuustiedot!B11:XFD11, \"<=31.1.2016\")","v":0},{"$f":"COUNTIFS(Asiakkuustiedot!B78:XFD78, \"sukulaisilla\",Asiakkuustiedot!B4:XFD4, \"ensimmäinen asiakaskäynti\",Asiakkuustiedot!B11:XFD11, \">=1.2.2016\",Asiakkuustiedot!B11:XFD11, \"<=28.2.2016\")","v":0},{"$f":"COUNTIFS(Asiakkuustiedot!B78:XFD78, \"sukulaisilla\",Asiakkuustiedot!B4:XFD4, \"ensimmäinen asiakaskäynti\",Asiakkuustiedot!B11:XFD11, \">=1.3.2016\",Asiakkuustiedot!B11:XFD11, \"<=31.3.2016\")","v":0},{"$f":"COUNTIFS(Asiakkuustiedot!B78:XFD78, \"sukulaisilla\",Asiakkuustiedot!B4:XFD4, \"ensimmäinen asiakaskäynti\",Asiakkuustiedot!B11:XFD11, \">=1.4.2016\",Asiakkuustiedot!B11:XFD11, \"<=30.4.2016\")","v":0},{"$f":"COUNTIFS(Asiakkuustiedot!B78:XFD78, \"sukulaisilla\",Asiakkuustiedot!B4:XFD4, \"ensimmäinen asiakaskäynti\",Asiakkuustiedot!B11:XFD11, \">=1.5.2016\",Asiakkuustiedot!B11:XFD11, \"<=31.5.2016\")","v":0},{"$f":"COUNTIFS(Asiakkuustiedot!B78:XFD78, \"sukulaisilla\",Asiakkuustiedot!B4:XFD4, \"ensimmäinen asiakaskäynti\",Asiakkuustiedot!B11:XFD11, \">=1.6.2016\",Asiakkuustiedot!B11:XFD11, \"<=30.6.2016\")","v":0},{"$f":"COUNTIFS(Asiakkuustiedot!B78:XFD78, \"sukulaisilla\",Asiakkuustiedot!B4:XFD4, \"ensimmäinen asiakaskäynti\",Asiakkuustiedot!B11:XFD11, \">=1.7.2016\",Asiakkuustiedot!B11:XFD11, \"<=31.7.2016\")","v":0},{"$f":"COUNTIFS(Asiakkuustiedot!B78:XFD78, \"sukulaisilla\",Asiakkuustiedot!B4:XFD4, \"ensimmäinen asiakaskäynti\",Asiakkuustiedot!B11:XFD11, \">=1.8.2016\",Asiakkuustiedot!B11:XFD11, \"<=31.8.2016\")","v":0},{"$f":"COUNTIFS(Asiakkuustiedot!B78:XFD78, \"sukulaisilla\",Asiakkuustiedot!B4:XFD4, \"ensimmäinen asiakaskäynti\",Asiakkuustiedot!B11:XFD11, \">=1.9.2016\",Asiakkuustiedot!B11:XFD11, \"<=30.9.2016\")","v":0},{"$f":"COUNTIFS(Asiakkuustiedot!B78:XFD78, \"sukulaisilla\",Asiakkuustiedot!B4:XFD4, \"ensimmäinen asiakaskäynti\",Asiakkuustiedot!B11:XFD11, \">=1.10.2016\",Asiakkuustiedot!B11:XFD11, \"<=31.10.2016\")","v":0},{"$f":"COUNTIFS(Asiakkuustiedot!B78:XFD78, \"sukulaisilla\",Asiakkuustiedot!B4:XFD4, \"ensimmäinen asiakaskäynti\",Asiakkuustiedot!B11:XFD11, \">=1.11.2016\",Asiakkuustiedot!B11:XFD11, \"<=30.11.2016\")","v":0},{"$f":"COUNTIFS(Asiakkuustiedot!B78:XFD78, \"sukulaisilla\",Asiakkuustiedot!B4:XFD4, \"ensimmäinen asiakaskäynti\",Asiakkuustiedot!B11:XFD11, \">=1.12.2016\",Asiakkuustiedot!B11:XFD11, \"<=31.12.2016\")","v":0}]
[null,"x",false,37,"turvatalo",{"$f":"COUNTIFS(Asiakkuustiedot!B78:XFD78, \"turvatalo\",Asiakkuustiedot!B4:XFD4, \"ensimmäinen asiakaskäynti\",Asiakkuustiedot!B11:XFD11, \">=1.1.2016\",Asiakkuustiedot!B11:XFD11, \"<=31.12.2016\")","v":0},null,null,null,null,null,null,{"$f":"COUNTIFS(Asiakkuustiedot!B78:XFD78, \"turvatalo\",Asiakkuustiedot!B4:XFD4, \"ensimmäinen asiakaskäynti\",Asiakkuustiedot!B11:XFD11, \">=1.1.2016\",Asiakkuustiedot!B11:XFD11, \"<=31.1.2016\")","v":0},{"$f":"COUNTIFS(Asiakkuustiedot!B78:XFD78, \"turvatalo\",Asiakkuustiedot!B4:XFD4, \"ensimmäinen asiakaskäynti\",Asiakkuustiedot!B11:XFD11, \">=1.2.2016\",Asiakkuustiedot!B11:XFD11, \"<=28.2.2016\")","v":0},{"$f":"COUNTIFS(Asiakkuustiedot!B78:XFD78, \"turvatalo\",Asiakkuustiedot!B4:XFD4, \"ensimmäinen asiakaskäynti\",Asiakkuustiedot!B11:XFD11, \">=1.3.2016\",Asiakkuustiedot!B11:XFD11, \"<=31.3.2016\")","v":0},{"$f":"COUNTIFS(Asiakkuustiedot!B78:XFD78, \"turvatalo\",Asiakkuustiedot!B4:XFD4, \"ensimmäinen asiakaskäynti\",Asiakkuustiedot!B11:XFD11, \">=1.4.2016\",Asiakkuustiedot!B11:XFD11, \"<=30.4.2016\")","v":0},{"$f":"COUNTIFS(Asiakkuustiedot!B78:XFD78, \"turvatalo\",Asiakkuustiedot!B4:XFD4, \"ensimmäinen asiakaskäynti\",Asiakkuustiedot!B11:XFD11, \">=1.5.2016\",Asiakkuustiedot!B11:XFD11, \"<=31.5.2016\")","v":0},{"$f":"COUNTIFS(Asiakkuustiedot!B78:XFD78, \"turvatalo\",Asiakkuustiedot!B4:XFD4, \"ensimmäinen asiakaskäynti\",Asiakkuustiedot!B11:XFD11, \">=1.6.2016\",Asiakkuustiedot!B11:XFD11, \"<=30.6.2016\")","v":0},{"$f":"COUNTIFS(Asiakkuustiedot!B78:XFD78, \"turvatalo\",Asiakkuustiedot!B4:XFD4, \"ensimmäinen asiakaskäynti\",Asiakkuustiedot!B11:XFD11, \">=1.7.2016\",Asiakkuustiedot!B11:XFD11, \"<=31.7.2016\")","v":0},{"$f":"COUNTIFS(Asiakkuustiedot!B78:XFD78, \"turvatalo\",Asiakkuustiedot!B4:XFD4, \"ensimmäinen asiakaskäynti\",Asiakkuustiedot!B11:XFD11, \">=1.8.2016\",Asiakkuustiedot!B11:XFD11, \"<=31.8.2016\")","v":0},{"$f":"COUNTIFS(Asiakkuustiedot!B78:XFD78, \"turvatalo\",Asiakkuustiedot!B4:XFD4, \"ensimmäinen asiakaskäynti\",Asiakkuustiedot!B11:XFD11, \">=1.9.2016\",Asiakkuustiedot!B11:XFD11, \"<=30.9.2016\")","v":0},{"$f":"COUNTIFS(Asiakkuustiedot!B78:XFD78, \"turvatalo\",Asiakkuustiedot!B4:XFD4, \"ensimmäinen asiakaskäynti\",Asiakkuustiedot!B11:XFD11, \">=1.10.2016\",Asiakkuustiedot!B11:XFD11, \"<=31.10.2016\")","v":0},{"$f":"COUNTIFS(Asiakkuustiedot!B78:XFD78, \"turvatalo\",Asiakkuustiedot!B4:XFD4, \"ensimmäinen asiakaskäynti\",Asiakkuustiedot!B11:XFD11, \">=1.11.2016\",Asiakkuustiedot!B11:XFD11, \"<=30.11.2016\")","v":0},{"$f":"COUNTIFS(Asiakkuustiedot!B78:XFD78, \"turvatalo\",Asiakkuustiedot!B4:XFD4, \"ensimmäinen asiakaskäynti\",Asiakkuustiedot!B11:XFD11, \">=1.12.2016\",Asiakkuustiedot!B11:XFD11, \"<=31.12.2016\")","v":0}]
[null,"x",false,37,"ensisuoja",{"$f":"COUNTIFS(Asiakkuustiedot!B78:XFD78, \"ensisuoja\",Asiakkuustiedot!B4:XFD4, \"ensimmäinen asiakaskäynti\",Asiakkuustiedot!B11:XFD11, \">=1.1.2016\",Asiakkuustiedot!B11:XFD11, \"<=31.12.2016\")","v":0},null,null,null,null,null,null,{"$f":"COUNTIFS(Asiakkuustiedot!B78:XFD78, \"ensisuoja\",Asiakkuustiedot!B4:XFD4, \"ensimmäinen asiakaskäynti\",Asiakkuustiedot!B11:XFD11, \">=1.1.2016\",Asiakkuustiedot!B11:XFD11, \"<=31.1.2016\")","v":0},{"$f":"COUNTIFS(Asiakkuustiedot!B78:XFD78, \"ensisuoja\",Asiakkuustiedot!B4:XFD4, \"ensimmäinen asiakaskäynti\",Asiakkuustiedot!B11:XFD11, \">=1.2.2016\",Asiakkuustiedot!B11:XFD11, \"<=28.2.2016\")","v":0},{"$f":"COUNTIFS(Asiakkuustiedot!B78:XFD78, \"ensisuoja\",Asiakkuustiedot!B4:XFD4, \"ensimmäinen asiakaskäynti\",Asiakkuustiedot!B11:XFD11, \">=1.3.2016\",Asiakkuustiedot!B11:XFD11, \"<=31.3.2016\")","v":0},{"$f":"COUNTIFS(Asiakkuustiedot!B78:XFD78, \"ensisuoja\",Asiakkuustiedot!B4:XFD4, \"ensimmäinen asiakaskäynti\",Asiakkuustiedot!B11:XFD11, \">=1.4.2016\",Asiakkuustiedot!B11:XFD11, \"<=30.4.2016\")","v":0},{"$f":"COUNTIFS(Asiakkuustiedot!B78:XFD78, \"ensisuoja\",Asiakkuustiedot!B4:XFD4, \"ensimmäinen asiakaskäynti\",Asiakkuustiedot!B11:XFD11, \">=1.5.2016\",Asiakkuustiedot!B11:XFD11, \"<=31.5.2016\")","v":0},{"$f":"COUNTIFS(Asiakkuustiedot!B78:XFD78, \"ensisuoja\",Asiakkuustiedot!B4:XFD4, \"ensimmäinen asiakaskäynti\",Asiakkuustiedot!B11:XFD11, \">=1.6.2016\",Asiakkuustiedot!B11:XFD11, \"<=30.6.2016\")","v":0},{"$f":"COUNTIFS(Asiakkuustiedot!B78:XFD78, \"ensisuoja\",Asiakkuustiedot!B4:XFD4, \"ensimmäinen asiakaskäynti\",Asiakkuustiedot!B11:XFD11, \">=1.7.2016\",Asiakkuustiedot!B11:XFD11, \"<=31.7.2016\")","v":0},{"$f":"COUNTIFS(Asiakkuustiedot!B78:XFD78, \"ensisuoja\",Asiakkuustiedot!B4:XFD4, \"ensimmäinen asiakaskäynti\",Asiakkuustiedot!B11:XFD11, \">=1.8.2016\",Asiakkuustiedot!B11:XFD11, \"<=31.8.2016\")","v":0},{"$f":"COUNTIFS(Asiakkuustiedot!B78:XFD78, \"ensisuoja\",Asiakkuustiedot!B4:XFD4, \"ensimmäinen asiakaskäynti\",Asiakkuustiedot!B11:XFD11, \">=1.9.2016\",Asiakkuustiedot!B11:XFD11, \"<=30.9.2016\")","v":0},{"$f":"COUNTIFS(Asiakkuustiedot!B78:XFD78, \"ensisuoja\",Asiakkuustiedot!B4:XFD4, \"ensimmäinen asiakaskäynti\",Asiakkuustiedot!B11:XFD11, \">=1.10.2016\",Asiakkuustiedot!B11:XFD11, \"<=31.10.2016\")","v":0},{"$f":"COUNTIFS(Asiakkuustiedot!B78:XFD78, \"ensisuoja\",Asiakkuustiedot!B4:XFD4, \"ensimmäinen asiakaskäynti\",Asiakkuustiedot!B11:XFD11, \">=1.11.2016\",Asiakkuustiedot!B11:XFD11, \"<=30.11.2016\")","v":0},{"$f":"COUNTIFS(Asiakkuustiedot!B78:XFD78, \"ensisuoja\",Asiakkuustiedot!B4:XFD4, \"ensimmäinen asiakaskäynti\",Asiakkuustiedot!B11:XFD11, \">=1.12.2016\",Asiakkuustiedot!B11:XFD11, \"<=31.12.2016\")","v":0}]
[null,"x",false,37,"kadulla",{"$f":"COUNTIFS(Asiakkuustiedot!B78:XFD78, \"kadulla\",Asiakkuustiedot!B4:XFD4, \"ensimmäinen asiakaskäynti\",Asiakkuustiedot!B11:XFD11, \">=1.1.2016\",Asiakkuustiedot!B11:XFD11, \"<=31.12.2016\")","v":0},null,null,null,null,null,null,{"$f":"COUNTIFS(Asiakkuustiedot!B78:XFD78, \"kadulla\",Asiakkuustiedot!B4:XFD4, \"ensimmäinen asiakaskäynti\",Asiakkuustiedot!B11:XFD11, \">=1.1.2016\",Asiakkuustiedot!B11:XFD11, \"<=31.1.2016\")","v":0},{"$f":"COUNTIFS(Asiakkuustiedot!B78:XFD78, \"kadulla\",Asiakkuustiedot!B4:XFD4, \"ensimmäinen asiakaskäynti\",Asiakkuustiedot!B11:XFD11, \">=1.2.2016\",Asiakkuustiedot!B11:XFD11, \"<=28.2.2016\")","v":0},{"$f":"COUNTIFS(Asiakkuustiedot!B78:XFD78, \"kadulla\",Asiakkuustiedot!B4:XFD4, \"ensimmäinen asiakaskäynti\",Asiakkuustiedot!B11:XFD11, \">=1.3.2016\",Asiakkuustiedot!B11:XFD11, \"<=31.3.2016\")","v":0},{"$f":"COUNTIFS(Asiakkuustiedot!B78:XFD78, \"kadulla\",Asiakkuustiedot!B4:XFD4, \"ensimmäinen asiakaskäynti\",Asiakkuustiedot!B11:XFD11, \">=1.4.2016\",Asiakkuustiedot!B11:XFD11, \"<=30.4.2016\")","v":0},{"$f":"COUNTIFS(Asiakkuustiedot!B78:XFD78, \"kadulla\",Asiakkuustiedot!B4:XFD4, \"ensimmäinen asiakaskäynti\",Asiakkuustiedot!B11:XFD11, \">=1.5.2016\",Asiakkuustiedot!B11:XFD11, \"<=31.5.2016\")","v":0},{"$f":"COUNTIFS(Asiakkuustiedot!B78:XFD78, \"kadulla\",Asiakkuustiedot!B4:XFD4, \"ensimmäinen asiakaskäynti\",Asiakkuustiedot!B11:XFD11, \">=1.6.2016\",Asiakkuustiedot!B11:XFD11, \"<=30.6.2016\")","v":0},{"$f":"COUNTIFS(Asiakkuustiedot!B78:XFD78, \"kadulla\",Asiakkuustiedot!B4:XFD4, \"ensimmäinen asiakaskäynti\",Asiakkuustiedot!B11:XFD11, \">=1.7.2016\",Asiakkuustiedot!B11:XFD11, \"<=31.7.2016\")","v":0},{"$f":"COUNTIFS(Asiakkuustiedot!B78:XFD78, \"kadulla\",Asiakkuustiedot!B4:XFD4, \"ensimmäinen asiakaskäynti\",Asiakkuustiedot!B11:XFD11, \">=1.8.2016\",Asiakkuustiedot!B11:XFD11, \"<=31.8.2016\")","v":0},{"$f":"COUNTIFS(Asiakkuustiedot!B78:XFD78, \"kadulla\",Asiakkuustiedot!B4:XFD4, \"ensimmäinen asiakaskäynti\",Asiakkuustiedot!B11:XFD11, \">=1.9.2016\",Asiakkuustiedot!B11:XFD11, \"<=30.9.2016\")","v":0},{"$f":"COUNTIFS(Asiakkuustiedot!B78:XFD78, \"kadulla\",Asiakkuustiedot!B4:XFD4, \"ensimmäinen asiakaskäynti\",Asiakkuustiedot!B11:XFD11, \">=1.10.2016\",Asiakkuustiedot!B11:XFD11, \"<=31.10.2016\")","v":0},{"$f":"COUNTIFS(Asiakkuustiedot!B78:XFD78, \"kadulla\",Asiakkuustiedot!B4:XFD4, \"ensimmäinen asiakaskäynti\",Asiakkuustiedot!B11:XFD11, \">=1.11.2016\",Asiakkuustiedot!B11:XFD11, \"<=30.11.2016\")","v":0},{"$f":"COUNTIFS(Asiakkuustiedot!B78:XFD78, \"kadulla\",Asiakkuustiedot!B4:XFD4, \"ensimmäinen asiakaskäynti\",Asiakkuustiedot!B11:XFD11, \">=1.12.2016\",Asiakkuustiedot!B11:XFD11, \"<=31.12.2016\")","v":0}]
[null,"x",false,37,"jossain muualla",{"$f":"COUNTIFS(Asiakkuustiedot!B78:XFD78, \"jossain muualla\",Asiakkuustiedot!B4:XFD4, \"ensimmäinen asiakaskäynti\",Asiakkuustiedot!B11:XFD11, \">=1.1.2016\",Asiakkuustiedot!B11:XFD11, \"<=31.12.2016\")","v":0},null,null,null,null,null,null,{"$f":"COUNTIFS(Asiakkuustiedot!B78:XFD78, \"jossain muualla\",Asiakkuustiedot!B4:XFD4, \"ensimmäinen asiakaskäynti\",Asiakkuustiedot!B11:XFD11, \">=1.1.2016\",Asiakkuustiedot!B11:XFD11, \"<=31.1.2016\")","v":0},{"$f":"COUNTIFS(Asiakkuustiedot!B78:XFD78, \"jossain muualla\",Asiakkuustiedot!B4:XFD4, \"ensimmäinen asiakaskäynti\",Asiakkuustiedot!B11:XFD11, \">=1.2.2016\",Asiakkuustiedot!B11:XFD11, \"<=28.2.2016\")","v":0},{"$f":"COUNTIFS(Asiakkuustiedot!B78:XFD78, \"jossain muualla\",Asiakkuustiedot!B4:XFD4, \"ensimmäinen asiakaskäynti\",Asiakkuustiedot!B11:XFD11, \">=1.3.2016\",Asiakkuustiedot!B11:XFD11, \"<=31.3.2016\")","v":0},{"$f":"COUNTIFS(Asiakkuustiedot!B78:XFD78, \"jossain muualla\",Asiakkuustiedot!B4:XFD4, \"ensimmäinen asiakaskäynti\",Asiakkuustiedot!B11:XFD11, \">=1.4.2016\",Asiakkuustiedot!B11:XFD11, \"<=30.4.2016\")","v":0},{"$f":"COUNTIFS(Asiakkuustiedot!B78:XFD78, \"jossain muualla\",Asiakkuustiedot!B4:XFD4, \"ensimmäinen asiakaskäynti\",Asiakkuustiedot!B11:XFD11, \">=1.5.2016\",Asiakkuustiedot!B11:XFD11, \"<=31.5.2016\")","v":0},{"$f":"COUNTIFS(Asiakkuustiedot!B78:XFD78, \"jossain muualla\",Asiakkuustiedot!B4:XFD4, \"ensimmäinen asiakaskäynti\",Asiakkuustiedot!B11:XFD11, \">=1.6.2016\",Asiakkuustiedot!B11:XFD11, \"<=30.6.2016\")","v":0},{"$f":"COUNTIFS(Asiakkuustiedot!B78:XFD78, \"jossain muualla\",Asiakkuustiedot!B4:XFD4, \"ensimmäinen asiakaskäynti\",Asiakkuustiedot!B11:XFD11, \">=1.7.2016\",Asiakkuustiedot!B11:XFD11, \"<=31.7.2016\")","v":0},{"$f":"COUNTIFS(Asiakkuustiedot!B78:XFD78, \"jossain muualla\",Asiakkuustiedot!B4:XFD4, \"ensimmäinen asiakaskäynti\",Asiakkuustiedot!B11:XFD11, \">=1.8.2016\",Asiakkuustiedot!B11:XFD11, \"<=31.8.2016\")","v":0},{"$f":"COUNTIFS(Asiakkuustiedot!B78:XFD78, \"jossain muualla\",Asiakkuustiedot!B4:XFD4, \"ensimmäinen asiakaskäynti\",Asiakkuustiedot!B11:XFD11, \">=1.9.2016\",Asiakkuustiedot!B11:XFD11, \"<=30.9.2016\")","v":0},{"$f":"COUNTIFS(Asiakkuustiedot!B78:XFD78, \"jossain muualla\",Asiakkuustiedot!B4:XFD4, \"ensimmäinen asiakaskäynti\",Asiakkuustiedot!B11:XFD11, \">=1.10.2016\",Asiakkuustiedot!B11:XFD11, \"<=31.10.2016\")","v":0},{"$f":"COUNTIFS(Asiakkuustiedot!B78:XFD78, \"jossain muualla\",Asiakkuustiedot!B4:XFD4, \"ensimmäinen asiakaskäynti\",Asiakkuustiedot!B11:XFD11, \">=1.11.2016\",Asiakkuustiedot!B11:XFD11, \"<=30.11.2016\")","v":0},{"$f":"COUNTIFS(Asiakkuustiedot!B78:XFD78, \"jossain muualla\",Asiakkuustiedot!B4:XFD4, \"ensimmäinen asiakaskäynti\",Asiakkuustiedot!B11:XFD11, \">=1.12.2016\",Asiakkuustiedot!B11:XFD11, \"<=31.12.2016\")","v":0}]
[]
[null,null,null,null,"Missä on nyt kirjoilla? (sos.palveluiden jaottelu)"]
[null,"x",false,39,"Hakunilan / Tikkurilan alue",{"$f":"COUNTIFS(Asiakkuustiedot!B97:XFD97, \"Hakunilan / Tikkurilan alue\",Asiakkuustiedot!B4:XFD4, \"ensimmäinen asiakaskäynti\",Asiakkuustiedot!B11:XFD11, \">=1.1.2016\",Asiakkuustiedot!B11:XFD11, \"<=31.12.2016\")","v":0},null,null,null,null,null,null,{"$f":"COUNTIFS(Asiakkuustiedot!B97:XFD97, \"Hakunilan / Tikkurilan alue\",Asiakkuustiedot!B4:XFD4, \"ensimmäinen asiakaskäynti\",Asiakkuustiedot!B11:XFD11, \">=1.1.2016\",Asiakkuustiedot!B11:XFD11, \"<=31.1.2016\")","v":0},{"$f":"COUNTIFS(Asiakkuustiedot!B97:XFD97, \"Hakunilan / Tikkurilan alue\",Asiakkuustiedot!B4:XFD4, \"ensimmäinen asiakaskäynti\",Asiakkuustiedot!B11:XFD11, \">=1.2.2016\",Asiakkuustiedot!B11:XFD11, \"<=28.2.2016\")","v":0},{"$f":"COUNTIFS(Asiakkuustiedot!B97:XFD97, \"Hakunilan / Tikkurilan alue\",Asiakkuustiedot!B4:XFD4, \"ensimmäinen asiakaskäynti\",Asiakkuustiedot!B11:XFD11, \">=1.3.2016\",Asiakkuustiedot!B11:XFD11, \"<=31.3.2016\")","v":0},{"$f":"COUNTIFS(Asiakkuustiedot!B97:XFD97, \"Hakunilan / Tikkurilan alue\",Asiakkuustiedot!B4:XFD4, \"ensimmäinen asiakaskäynti\",Asiakkuustiedot!B11:XFD11, \">=1.4.2016\",Asiakkuustiedot!B11:XFD11, \"<=30.4.2016\")","v":0},{"$f":"COUNTIFS(Asiakkuustiedot!B97:XFD97, \"Hakunilan / Tikkurilan alue\",Asiakkuustiedot!B4:XFD4, \"ensimmäinen asiakaskäynti\",Asiakkuustiedot!B11:XFD11, \">=1.5.2016\",Asiakkuustiedot!B11:XFD11, \"<=31.5.2016\")","v":0},{"$f":"COUNTIFS(Asiakkuustiedot!B97:XFD97, \"Hakunilan / Tikkurilan alue\",Asiakkuustiedot!B4:XFD4, \"ensimmäinen asiakaskäynti\",Asiakkuustiedot!B11:XFD11, \">=1.6.2016\",Asiakkuustiedot!B11:XFD11, \"<=30.6.2016\")","v":0},{"$f":"COUNTIFS(Asiakkuustiedot!B97:XFD97, \"Hakunilan / Tikkurilan alue\",Asiakkuustiedot!B4:XFD4, \"ensimmäinen asiakaskäynti\",Asiakkuustiedot!B11:XFD11, \">=1.7.2016\",Asiakkuustiedot!B11:XFD11, \"<=31.7.2016\")","v":0},{"$f":"COUNTIFS(Asiakkuustiedot!B97:XFD97, \"Hakunilan / Tikkurilan alue\",Asiakkuustiedot!B4:XFD4, \"ensimmäinen asiakaskäynti\",Asiakkuustiedot!B11:XFD11, \">=1.8.2016\",Asiakkuustiedot!B11:XFD11, \"<=31.8.2016\")","v":0},{"$f":"COUNTIFS(Asiakkuustiedot!B97:XFD97, \"Hakunilan / Tikkurilan alue\",Asiakkuustiedot!B4:XFD4, \"ensimmäinen asiakaskäynti\",Asiakkuustiedot!B11:XFD11, \">=1.9.2016\",Asiakkuustiedot!B11:XFD11, \"<=30.9.2016\")","v":0},{"$f":"COUNTIFS(Asiakkuustiedot!B97:XFD97, \"Hakunilan / Tikkurilan alue\",Asiakkuustiedot!B4:XFD4, \"ensimmäinen asiakaskäynti\",Asiakkuustiedot!B11:XFD11, \">=1.10.2016\",Asiakkuustiedot!B11:XFD11, \"<=31.10.2016\")","v":0},{"$f":"COUNTIFS(Asiakkuustiedot!B97:XFD97, \"Hakunilan / Tikkurilan alue\",Asiakkuustiedot!B4:XFD4, \"ensimmäinen asiakaskäynti\",Asiakkuustiedot!B11:XFD11, \">=1.11.2016\",Asiakkuustiedot!B11:XFD11, \"<=30.11.2016\")","v":0},{"$f":"COUNTIFS(Asiakkuustiedot!B97:XFD97, \"Hakunilan / Tikkurilan alue\",Asiakkuustiedot!B4:XFD4, \"ensimmäinen asiakaskäynti\",Asiakkuustiedot!B11:XFD11, \">=1.12.2016\",Asiakkuustiedot!B11:XFD11, \"<=31.12.2016\")","v":0}]
[null,"x",false,39,"Koivukylän / Korson alue",{"$f":"COUNTIFS(Asiakkuustiedot!B97:XFD97, \"Koivukylän / Korson alue\",Asiakkuustiedot!B4:XFD4, \"ensimmäinen asiakaskäynti\",Asiakkuustiedot!B11:XFD11, \">=1.1.2016\",Asiakkuustiedot!B11:XFD11, \"<=31.12.2016\")","v":0},null,null,null,null,null,null,{"$f":"COUNTIFS(Asiakkuustiedot!B97:XFD97, \"Koivukylän / Korson alue\",Asiakkuustiedot!B4:XFD4, \"ensimmäinen asiakaskäynti\",Asiakkuustiedot!B11:XFD11, \">=1.1.2016\",Asiakkuustiedot!B11:XFD11, \"<=31.1.2016\")","v":0},{"$f":"COUNTIFS(Asiakkuustiedot!B97:XFD97, \"Koivukylän / Korson alue\",Asiakkuustiedot!B4:XFD4, \"ensimmäinen asiakaskäynti\",Asiakkuustiedot!B11:XFD11, \">=1.2.2016\",Asiakkuustiedot!B11:XFD11, \"<=28.2.2016\")","v":0},{"$f":"COUNTIFS(Asiakkuustiedot!B97:XFD97, \"Koivukylän / Korson alue\",Asiakkuustiedot!B4:XFD4, \"ensimmäinen asiakaskäynti\",Asiakkuustiedot!B11:XFD11, \">=1.3.2016\",Asiakkuustiedot!B11:XFD11, \"<=31.3.2016\")","v":0},{"$f":"COUNTIFS(Asiakkuustiedot!B97:XFD97, \"Koivukylän / Korson alue\",Asiakkuustiedot!B4:XFD4, \"ensimmäinen asiakaskäynti\",Asiakkuustiedot!B11:XFD11, \">=1.4.2016\",Asiakkuustiedot!B11:XFD11, \"<=30.4.2016\")","v":0},{"$f":"COUNTIFS(Asiakkuustiedot!B97:XFD97, \"Koivukylän / Korson alue\",Asiakkuustiedot!B4:XFD4, \"ensimmäinen asiakaskäynti\",Asiakkuustiedot!B11:XFD11, \">=1.5.2016\",Asiakkuustiedot!B11:XFD11, \"<=31.5.2016\")","v":0},{"$f":"COUNTIFS(Asiakkuustiedot!B97:XFD97, \"Koivukylän / Korson alue\",Asiakkuustiedot!B4:XFD4, \"ensimmäinen asiakaskäynti\",Asiakkuustiedot!B11:XFD11, \">=1.6.2016\",Asiakkuustiedot!B11:XFD11, \"<=30.6.2016\")","v":0},{"$f":"COUNTIFS(Asiakkuustiedot!B97:XFD97, \"Koivukylän / Korson alue\",Asiakkuustiedot!B4:XFD4, \"ensimmäinen asiakaskäynti\",Asiakkuustiedot!B11:XFD11, \">=1.7.2016\",Asiakkuustiedot!B11:XFD11, \"<=31.7.2016\")","v":0},{"$f":"COUNTIFS(Asiakkuustiedot!B97:XFD97, \"Koivukylän / Korson alue\",Asiakkuustiedot!B4:XFD4, \"ensimmäinen asiakaskäynti\",Asiakkuustiedot!B11:XFD11, \">=1.8.2016\",Asiakkuustiedot!B11:XFD11, \"<=31.8.2016\")","v":0},{"$f":"COUNTIFS(Asiakkuustiedot!B97:XFD97, \"Koivukylän / Korson alue\",Asiakkuustiedot!B4:XFD4, \"ensimmäinen asiakaskäynti\",Asiakkuustiedot!B11:XFD11, \">=1.9.2016\",Asiakkuustiedot!B11:XFD11, \"<=30.9.2016\")","v":0},{"$f":"COUNTIFS(Asiakkuustiedot!B97:XFD97, \"Koivukylän / Korson alue\",Asiakkuustiedot!B4:XFD4, \"ensimmäinen asiakaskäynti\",Asiakkuustiedot!B11:XFD11, \">=1.10.2016\",Asiakkuustiedot!B11:XFD11, \"<=31.10.2016\")","v":0},{"$f":"COUNTIFS(Asiakkuustiedot!B97:XFD97, \"Koivukylän / Korson alue\",Asiakkuustiedot!B4:XFD4, \"ensimmäinen asiakaskäynti\",Asiakkuustiedot!B11:XFD11, \">=1.11.2016\",Asiakkuustiedot!B11:XFD11, \"<=30.11.2016\")","v":0},{"$f":"COUNTIFS(Asiakkuustiedot!B97:XFD97, \"Koivukylän / Korson alue\",Asiakkuustiedot!B4:XFD4, \"ensimmäinen asiakaskäynti\",Asiakkuustiedot!B11:XFD11, \">=1.12.2016\",Asiakkuustiedot!B11:XFD11, \"<=31.12.2016\")","v":0}]
[null,"x",false,39,"Myyrmäen / Martinlaakson alue",{"$f":"COUNTIFS(Asiakkuustiedot!B97:XFD97, \"Myyrmäen / Martinlaakson alue\",Asiakkuustiedot!B4:XFD4, \"ensimmäinen asiakaskäynti\",Asiakkuustiedot!B11:XFD11, \">=1.1.2016\",Asiakkuustiedot!B11:XFD11, \"<=31.12.2016\")","v":0},null,null,null,null,null,null,{"$f":"COUNTIFS(Asiakkuustiedot!B97:XFD97, \"Myyrmäen / Martinlaakson alue\",Asiakkuustiedot!B4:XFD4, \"ensimmäinen asiakaskäynti\",Asiakkuustiedot!B11:XFD11, \">=1.1.2016\",Asiakkuustiedot!B11:XFD11, \"<=31.1.2016\")","v":0},{"$f":"COUNTIFS(Asiakkuustiedot!B97:XFD97, \"Myyrmäen / Martinlaakson alue\",Asiakkuustiedot!B4:XFD4, \"ensimmäinen asiakaskäynti\",Asiakkuustiedot!B11:XFD11, \">=1.2.2016\",Asiakkuustiedot!B11:XFD11, \"<=28.2.2016\")","v":0},{"$f":"COUNTIFS(Asiakkuustiedot!B97:XFD97, \"Myyrmäen / Martinlaakson alue\",Asiakkuustiedot!B4:XFD4, \"ensimmäinen asiakaskäynti\",Asiakkuustiedot!B11:XFD11, \">=1.3.2016\",Asiakkuustiedot!B11:XFD11, \"<=31.3.2016\")","v":0},{"$f":"COUNTIFS(Asiakkuustiedot!B97:XFD97, \"Myyrmäen / Martinlaakson alue\",Asiakkuustiedot!B4:XFD4, \"ensimmäinen asiakaskäynti\",Asiakkuustiedot!B11:XFD11, \">=1.4.2016\",Asiakkuustiedot!B11:XFD11, \"<=30.4.2016\")","v":0},{"$f":"COUNTIFS(Asiakkuustiedot!B97:XFD97, \"Myyrmäen / Martinlaakson alue\",Asiakkuustiedot!B4:XFD4, \"ensimmäinen asiakaskäynti\",Asiakkuustiedot!B11:XFD11, \">=1.5.2016\",Asiakkuustiedot!B11:XFD11, \"<=31.5.2016\")","v":0},{"$f":"COUNTIFS(Asiakkuustiedot!B97:XFD97, \"Myyrmäen / Martinlaakson alue\",Asiakkuustiedot!B4:XFD4, \"ensimmäinen asiakaskäynti\",Asiakkuustiedot!B11:XFD11, \">=1.6.2016\",Asiakkuustiedot!B11:XFD11, \"<=30.6.2016\")","v":0},{"$f":"COUNTIFS(Asiakkuustiedot!B97:XFD97, \"Myyrmäen / Martinlaakson alue\",Asiakkuustiedot!B4:XFD4, \"ensimmäinen asiakaskäynti\",Asiakkuustiedot!B11:XFD11, \">=1.7.2016\",Asiakkuustiedot!B11:XFD11, \"<=31.7.2016\")","v":0},{"$f":"COUNTIFS(Asiakkuustiedot!B97:XFD97, \"Myyrmäen / Martinlaakson alue\",Asiakkuustiedot!B4:XFD4, \"ensimmäinen asiakaskäynti\",Asiakkuustiedot!B11:XFD11, \">=1.8.2016\",Asiakkuustiedot!B11:XFD11, \"<=31.8.2016\")","v":0},{"$f":"COUNTIFS(Asiakkuustiedot!B97:XFD97, \"Myyrmäen / Martinlaakson alue\",Asiakkuustiedot!B4:XFD4, \"ensimmäinen asiakaskäynti\",Asiakkuustiedot!B11:XFD11, \">=1.9.2016\",Asiakkuustiedot!B11:XFD11, \"<=30.9.2016\")","v":0},{"$f":"COUNTIFS(Asiakkuustiedot!B97:XFD97, \"Myyrmäen / Martinlaakson alue\",Asiakkuustiedot!B4:XFD4, \"ensimmäinen asiakaskäynti\",Asiakkuustiedot!B11:XFD11, \">=1.10.2016\",Asiakkuustiedot!B11:XFD11, \"<=31.10.2016\")","v":0},{"$f":"COUNTIFS(Asiakkuustiedot!B97:XFD97, \"Myyrmäen / Martinlaakson alue\",Asiakkuustiedot!B4:XFD4, \"ensimmäinen asiakaskäynti\",Asiakkuustiedot!B11:XFD11, \">=1.11.2016\",Asiakkuustiedot!B11:XFD11, \"<=30.11.2016\")","v":0},{"$f":"COUNTIFS(Asiakkuustiedot!B97:XFD97, \"Myyrmäen / Martinlaakson alue\",Asiakkuustiedot!B4:XFD4, \"ensimmäinen asiakaskäynti\",Asiakkuustiedot!B11:XFD11, \">=1.12.2016\",Asiakkuustiedot!B11:XFD11, \"<=31.12.2016\")","v":0}]
[null,"x",false,39,"ei Vantaalla, toisessa kunnassa",{"$f":"COUNTIFS(Asiakkuustiedot!B97:XFD97, \"ei Vantaalla, toisessa kunnassa\",Asiakkuustiedot!B4:XFD4, \"ensimmäinen asiakaskäynti\",Asiakkuustiedot!B11:XFD11, \">=1.1.2016\",Asiakkuustiedot!B11:XFD11, \"<=31.12.2016\")","v":0},null,null,null,null,null,null,{"$f":"COUNTIFS(Asiakkuustiedot!B97:XFD97, \"ei Vantaalla, toisessa kunnassa\",Asiakkuustiedot!B4:XFD4, \"ensimmäinen asiakaskäynti\",Asiakkuustiedot!B11:XFD11, \">=1.1.2016\",Asiakkuustiedot!B11:XFD11, \"<=31.1.2016\")","v":0},{"$f":"COUNTIFS(Asiakkuustiedot!B97:XFD97, \"ei Vantaalla, toisessa kunnassa\",Asiakkuustiedot!B4:XFD4, \"ensimmäinen asiakaskäynti\",Asiakkuustiedot!B11:XFD11, \">=1.2.2016\",Asiakkuustiedot!B11:XFD11, \"<=28.2.2016\")","v":0},{"$f":"COUNTIFS(Asiakkuustiedot!B97:XFD97, \"ei Vantaalla, toisessa kunnassa\",Asiakkuustiedot!B4:XFD4, \"ensimmäinen asiakaskäynti\",Asiakkuustiedot!B11:XFD11, \">=1.3.2016\",Asiakkuustiedot!B11:XFD11, \"<=31.3.2016\")","v":0},{"$f":"COUNTIFS(Asiakkuustiedot!B97:XFD97, \"ei Vantaalla, toisessa kunnassa\",Asiakkuustiedot!B4:XFD4, \"ensimmäinen asiakaskäynti\",Asiakkuustiedot!B11:XFD11, \">=1.4.2016\",Asiakkuustiedot!B11:XFD11, \"<=30.4.2016\")","v":0},{"$f":"COUNTIFS(Asiakkuustiedot!B97:XFD97, \"ei Vantaalla, toisessa kunnassa\",Asiakkuustiedot!B4:XFD4, \"ensimmäinen asiakaskäynti\",Asiakkuustiedot!B11:XFD11, \">=1.5.2016\",Asiakkuustiedot!B11:XFD11, \"<=31.5.2016\")","v":0},{"$f":"COUNTIFS(Asiakkuustiedot!B97:XFD97, \"ei Vantaalla, toisessa kunnassa\",Asiakkuustiedot!B4:XFD4, \"ensimmäinen asiakaskäynti\",Asiakkuustiedot!B11:XFD11, \">=1.6.2016\",Asiakkuustiedot!B11:XFD11, \"<=30.6.2016\")","v":0},{"$f":"COUNTIFS(Asiakkuustiedot!B97:XFD97, \"ei Vantaalla, toisessa kunnassa\",Asiakkuustiedot!B4:XFD4, \"ensimmäinen asiakaskäynti\",Asiakkuustiedot!B11:XFD11, \">=1.7.2016\",Asiakkuustiedot!B11:XFD11, \"<=31.7.2016\")","v":0},{"$f":"COUNTIFS(Asiakkuustiedot!B97:XFD97, \"ei Vantaalla, toisessa kunnassa\",Asiakkuustiedot!B4:XFD4, \"ensimmäinen asiakaskäynti\",Asiakkuustiedot!B11:XFD11, \">=1.8.2016\",Asiakkuustiedot!B11:XFD11, \"<=31.8.2016\")","v":0},{"$f":"COUNTIFS(Asiakkuustiedot!B97:XFD97, \"ei Vantaalla, toisessa kunnassa\",Asiakkuustiedot!B4:XFD4, \"ensimmäinen asiakaskäynti\",Asiakkuustiedot!B11:XFD11, \">=1.9.2016\",Asiakkuustiedot!B11:XFD11, \"<=30.9.2016\")","v":0},{"$f":"COUNTIFS(Asiakkuustiedot!B97:XFD97, \"ei Vantaalla, toisessa kunnassa\",Asiakkuustiedot!B4:XFD4, \"ensimmäinen asiakaskäynti\",Asiakkuustiedot!B11:XFD11, \">=1.10.2016\",Asiakkuustiedot!B11:XFD11, \"<=31.10.2016\")","v":0},{"$f":"COUNTIFS(Asiakkuustiedot!B97:XFD97, \"ei Vantaalla, toisessa kunnassa\",Asiakkuustiedot!B4:XFD4, \"ensimmäinen asiakaskäynti\",Asiakkuustiedot!B11:XFD11, \">=1.11.2016\",Asiakkuustiedot!B11:XFD11, \"<=30.11.2016\")","v":0},{"$f":"COUNTIFS(Asiakkuustiedot!B97:XFD97, \"ei Vantaalla, toisessa kunnassa\",Asiakkuustiedot!B4:XFD4, \"ensimmäinen asiakaskäynti\",Asiakkuustiedot!B11:XFD11, \">=1.12.2016\",Asiakkuustiedot!B11:XFD11, \"<=31.12.2016\")","v":0}]
[null,"x",false,39,"ei tietoa",{"$f":"COUNTIFS(Asiakkuustiedot!B97:XFD97, \"ei tietoa\",Asiakkuustiedot!B4:XFD4, \"ensimmäinen asiakaskäynti\",Asiakkuustiedot!B11:XFD11, \">=1.1.2016\",Asiakkuustiedot!B11:XFD11, \"<=31.12.2016\")","v":0},null,null,null,null,null,null,{"$f":"COUNTIFS(Asiakkuustiedot!B97:XFD97, \"ei tietoa\",Asiakkuustiedot!B4:XFD4, \"ensimmäinen asiakaskäynti\",Asiakkuustiedot!B11:XFD11, \">=1.1.2016\",Asiakkuustiedot!B11:XFD11, \"<=31.1.2016\")","v":0},{"$f":"COUNTIFS(Asiakkuustiedot!B97:XFD97, \"ei tietoa\",Asiakkuustiedot!B4:XFD4, \"ensimmäinen asiakaskäynti\",Asiakkuustiedot!B11:XFD11, \">=1.2.2016\",Asiakkuustiedot!B11:XFD11, \"<=28.2.2016\")","v":0},{"$f":"COUNTIFS(Asiakkuustiedot!B97:XFD97, \"ei tietoa\",Asiakkuustiedot!B4:XFD4, \"ensimmäinen asiakaskäynti\",Asiakkuustiedot!B11:XFD11, \">=1.3.2016\",Asiakkuustiedot!B11:XFD11, \"<=31.3.2016\")","v":0},{"$f":"COUNTIFS(Asiakkuustiedot!B97:XFD97, \"ei tietoa\",Asiakkuustiedot!B4:XFD4, \"ensimmäinen asiakaskäynti\",Asiakkuustiedot!B11:XFD11, \">=1.4.2016\",Asiakkuustiedot!B11:XFD11, \"<=30.4.2016\")","v":0},{"$f":"COUNTIFS(Asiakkuustiedot!B97:XFD97, \"ei tietoa\",Asiakkuustiedot!B4:XFD4, \"ensimmäinen asiakaskäynti\",Asiakkuustiedot!B11:XFD11, \">=1.5.2016\",Asiakkuustiedot!B11:XFD11, \"<=31.5.2016\")","v":0},{"$f":"COUNTIFS(Asiakkuustiedot!B97:XFD97, \"ei tietoa\",Asiakkuustiedot!B4:XFD4, \"ensimmäinen asiakaskäynti\",Asiakkuustiedot!B11:XFD11, \">=1.6.2016\",Asiakkuustiedot!B11:XFD11, \"<=30.6.2016\")","v":0},{"$f":"COUNTIFS(Asiakkuustiedot!B97:XFD97, \"ei tietoa\",Asiakkuustiedot!B4:XFD4, \"ensimmäinen asiakaskäynti\",Asiakkuustiedot!B11:XFD11, \">=1.7.2016\",Asiakkuustiedot!B11:XFD11, \"<=31.7.2016\")","v":0},{"$f":"COUNTIFS(Asiakkuustiedot!B97:XFD97, \"ei tietoa\",Asiakkuustiedot!B4:XFD4, \"ensimmäinen asiakaskäynti\",Asiakkuustiedot!B11:XFD11, \">=1.8.2016\",Asiakkuustiedot!B11:XFD11, \"<=31.8.2016\")","v":0},{"$f":"COUNTIFS(Asiakkuustiedot!B97:XFD97, \"ei tietoa\",Asiakkuustiedot!B4:XFD4, \"ensimmäinen asiakaskäynti\",Asiakkuustiedot!B11:XFD11, \">=1.9.2016\",Asiakkuustiedot!B11:XFD11, \"<=30.9.2016\")","v":0},{"$f":"COUNTIFS(Asiakkuustiedot!B97:XFD97, \"ei tietoa\",Asiakkuustiedot!B4:XFD4, \"ensimmäinen asiakaskäynti\",Asiakkuustiedot!B11:XFD11, \">=1.10.2016\",Asiakkuustiedot!B11:XFD11, \"<=31.10.2016\")","v":0},{"$f":"COUNTIFS(Asiakkuustiedot!B97:XFD97, \"ei tietoa\",Asiakkuustiedot!B4:XFD4, \"ensimmäinen asiakaskäynti\",Asiakkuustiedot!B11:XFD11, \">=1.11.2016\",Asiakkuustiedot!B11:XFD11, \"<=30.11.2016\")","v":0},{"$f":"COUNTIFS(Asiakkuustiedot!B97:XFD97, \"ei tietoa\",Asiakkuustiedot!B4:XFD4, \"ensimmäinen asiakaskäynti\",Asiakkuustiedot!B11:XFD11, \">=1.12.2016\",Asiakkuustiedot!B11:XFD11, \"<=31.12.2016\")","v":0}]
[]
[null,null,null,null,"Itsenäisen asumisen tuen tarve"]
[null,"x",false,41,"Tarvitsee vain asunnon",{"$f":"COUNTIFS(Asiakkuustiedot!B104:XFD104, \"Tarvitsee vain asunnon\",Asiakkuustiedot!B4:XFD4, \"ensimmäinen asiakaskäynti\",Asiakkuustiedot!B11:XFD11, \">=1.1.2016\",Asiakkuustiedot!B11:XFD11, \"<=31.12.2016\")","v":0},null,null,null,null,null,null,{"$f":"COUNTIFS(Asiakkuustiedot!B104:XFD104, \"Tarvitsee vain asunnon\",Asiakkuustiedot!B4:XFD4, \"ensimmäinen asiakaskäynti\",Asiakkuustiedot!B11:XFD11, \">=1.1.2016\",Asiakkuustiedot!B11:XFD11, \"<=31.1.2016\")","v":0},{"$f":"COUNTIFS(Asiakkuustiedot!B104:XFD104, \"Tarvitsee vain asunnon\",Asiakkuustiedot!B4:XFD4, \"ensimmäinen asiakaskäynti\",Asiakkuustiedot!B11:XFD11, \">=1.2.2016\",Asiakkuustiedot!B11:XFD11, \"<=28.2.2016\")","v":0},{"$f":"COUNTIFS(Asiakkuustiedot!B104:XFD104, \"Tarvitsee vain asunnon\",Asiakkuustiedot!B4:XFD4, \"ensimmäinen asiakaskäynti\",Asiakkuustiedot!B11:XFD11, \">=1.3.2016\",Asiakkuustiedot!B11:XFD11, \"<=31.3.2016\")","v":0},{"$f":"COUNTIFS(Asiakkuustiedot!B104:XFD104, \"Tarvitsee vain asunnon\",Asiakkuustiedot!B4:XFD4, \"ensimmäinen asiakaskäynti\",Asiakkuustiedot!B11:XFD11, \">=1.4.2016\",Asiakkuustiedot!B11:XFD11, \"<=30.4.2016\")","v":0},{"$f":"COUNTIFS(Asiakkuustiedot!B104:XFD104, \"Tarvitsee vain asunnon\",Asiakkuustiedot!B4:XFD4, \"ensimmäinen asiakaskäynti\",Asiakkuustiedot!B11:XFD11, \">=1.5.2016\",Asiakkuustiedot!B11:XFD11, \"<=31.5.2016\")","v":0},{"$f":"COUNTIFS(Asiakkuustiedot!B104:XFD104, \"Tarvitsee vain asunnon\",Asiakkuustiedot!B4:XFD4, \"ensimmäinen asiakaskäynti\",Asiakkuustiedot!B11:XFD11, \">=1.6.2016\",Asiakkuustiedot!B11:XFD11, \"<=30.6.2016\")","v":0},{"$f":"COUNTIFS(Asiakkuustiedot!B104:XFD104, \"Tarvitsee vain asunnon\",Asiakkuustiedot!B4:XFD4, \"ensimmäinen asiakaskäynti\",Asiakkuustiedot!B11:XFD11, \">=1.7.2016\",Asiakkuustiedot!B11:XFD11, \"<=31.7.2016\")","v":0},{"$f":"COUNTIFS(Asiakkuustiedot!B104:XFD104, \"Tarvitsee vain asunnon\",Asiakkuustiedot!B4:XFD4, \"ensimmäinen asiakaskäynti\",Asiakkuustiedot!B11:XFD11, \">=1.8.2016\",Asiakkuustiedot!B11:XFD11, \"<=31.8.2016\")","v":0},{"$f":"COUNTIFS(Asiakkuustiedot!B104:XFD104, \"Tarvitsee vain asunnon\",Asiakkuustiedot!B4:XFD4, \"ensimmäinen asiakaskäynti\",Asiakkuustiedot!B11:XFD11, \">=1.9.2016\",Asiakkuustiedot!B11:XFD11, \"<=30.9.2016\")","v":0},{"$f":"COUNTIFS(Asiakkuustiedot!B104:XFD104, \"Tarvitsee vain asunnon\",Asiakkuustiedot!B4:XFD4, \"ensimmäinen asiakaskäynti\",Asiakkuustiedot!B11:XFD11, \">=1.10.2016\",Asiakkuustiedot!B11:XFD11, \"<=31.10.2016\")","v":0},{"$f":"COUNTIFS(Asiakkuustiedot!B104:XFD104, \"Tarvitsee vain asunnon\",Asiakkuustiedot!B4:XFD4, \"ensimmäinen asiakaskäynti\",Asiakkuustiedot!B11:XFD11, \">=1.11.2016\",Asiakkuustiedot!B11:XFD11, \"<=30.11.2016\")","v":0},{"$f":"COUNTIFS(Asiakkuustiedot!B104:XFD104, \"Tarvitsee vain asunnon\",Asiakkuustiedot!B4:XFD4, \"ensimmäinen asiakaskäynti\",Asiakkuustiedot!B11:XFD11, \">=1.12.2016\",Asiakkuustiedot!B11:XFD11, \"<=31.12.2016\")","v":0}]
[null,"x",false,41,"Ohjaamon tuki riittää",{"$f":"COUNTIFS(Asiakkuustiedot!B104:XFD104, \"Ohjaamon tuki riittää\",Asiakkuustiedot!B4:XFD4, \"ensimmäinen asiakaskäynti\",Asiakkuustiedot!B11:XFD11, \">=1.1.2016\",Asiakkuustiedot!B11:XFD11, \"<=31.12.2016\")","v":0},null,null,null,null,null,null,{"$f":"COUNTIFS(Asiakkuustiedot!B104:XFD104, \"Ohjaamon tuki riittää\",Asiakkuustiedot!B4:XFD4, \"ensimmäinen asiakaskäynti\",Asiakkuustiedot!B11:XFD11, \">=1.1.2016\",Asiakkuustiedot!B11:XFD11, \"<=31.1.2016\")","v":0},{"$f":"COUNTIFS(Asiakkuustiedot!B104:XFD104, \"Ohjaamon tuki riittää\",Asiakkuustiedot!B4:XFD4, \"ensimmäinen asiakaskäynti\",Asiakkuustiedot!B11:XFD11, \">=1.2.2016\",Asiakkuustiedot!B11:XFD11, \"<=28.2.2016\")","v":0},{"$f":"COUNTIFS(Asiakkuustiedot!B104:XFD104, \"Ohjaamon tuki riittää\",Asiakkuustiedot!B4:XFD4, \"ensimmäinen asiakaskäynti\",Asiakkuustiedot!B11:XFD11, \">=1.3.2016\",Asiakkuustiedot!B11:XFD11, \"<=31.3.2016\")","v":0},{"$f":"COUNTIFS(Asiakkuustiedot!B104:XFD104, \"Ohjaamon tuki riittää\",Asiakkuustiedot!B4:XFD4, \"ensimmäinen asiakaskäynti\",Asiakkuustiedot!B11:XFD11, \">=1.4.2016\",Asiakkuustiedot!B11:XFD11, \"<=30.4.2016\")","v":0},{"$f":"COUNTIFS(Asiakkuustiedot!B104:XFD104, \"Ohjaamon tuki riittää\",Asiakkuustiedot!B4:XFD4, \"ensimmäinen asiakaskäynti\",Asiakkuustiedot!B11:XFD11, \">=1.5.2016\",Asiakkuustiedot!B11:XFD11, \"<=31.5.2016\")","v":0},{"$f":"COUNTIFS(Asiakkuustiedot!B104:XFD104, \"Ohjaamon tuki riittää\",Asiakkuustiedot!B4:XFD4, \"ensimmäinen asiakaskäynti\",Asiakkuustiedot!B11:XFD11, \">=1.6.2016\",Asiakkuustiedot!B11:XFD11, \"<=30.6.2016\")","v":0},{"$f":"COUNTIFS(Asiakkuustiedot!B104:XFD104, \"Ohjaamon tuki riittää\",Asiakkuustiedot!B4:XFD4, \"ensimmäinen asiakaskäynti\",Asiakkuustiedot!B11:XFD11, \">=1.7.2016\",Asiakkuustiedot!B11:XFD11, \"<=31.7.2016\")","v":0},{"$f":"COUNTIFS(Asiakkuustiedot!B104:XFD104, \"Ohjaamon tuki riittää\",Asiakkuustiedot!B4:XFD4, \"ensimmäinen asiakaskäynti\",Asiakkuustiedot!B11:XFD11, \">=1.8.2016\",Asiakkuustiedot!B11:XFD11, \"<=31.8.2016\")","v":0},{"$f":"COUNTIFS(Asiakkuustiedot!B104:XFD104, \"Ohjaamon tuki riittää\",Asiakkuustiedot!B4:XFD4, \"ensimmäinen asiakaskäynti\",Asiakkuustiedot!B11:XFD11, \">=1.9.2016\",Asiakkuustiedot!B11:XFD11, \"<=30.9.2016\")","v":0},{"$f":"COUNTIFS(Asiakkuustiedot!B104:XFD104, \"Ohjaamon tuki riittää\",Asiakkuustiedot!B4:XFD4, \"ensimmäinen asiakaskäynti\",Asiakkuustiedot!B11:XFD11, \">=1.10.2016\",Asiakkuustiedot!B11:XFD11, \"<=31.10.2016\")","v":0},{"$f":"COUNTIFS(Asiakkuustiedot!B104:XFD104, \"Ohjaamon tuki riittää\",Asiakkuustiedot!B4:XFD4, \"ensimmäinen asiakaskäynti\",Asiakkuustiedot!B11:XFD11, \">=1.11.2016\",Asiakkuustiedot!B11:XFD11, \"<=30.11.2016\")","v":0},{"$f":"COUNTIFS(Asiakkuustiedot!B104:XFD104, \"Ohjaamon tuki riittää\",Asiakkuustiedot!B4:XFD4, \"ensimmäinen asiakaskäynti\",Asiakkuustiedot!B11:XFD11, \">=1.12.2016\",Asiakkuustiedot!B11:XFD11, \"<=31.12.2016\")","v":0}]
[null,"x",false,41,"Tarvitsee alkuvaiheen tukea, muuta kuin Ohjaamon tuki",{"$f":"COUNTIFS(Asiakkuustiedot!B104:XFD104, \"Tarvitsee alkuvaiheen tukea, muuta kuin Ohjaamon tuki\",Asiakkuustiedot!B4:XFD4, \"ensimmäinen asiakaskäynti\",Asiakkuustiedot!B11:XFD11, \">=1.1.2016\",Asiakkuustiedot!B11:XFD11, \"<=31.12.2016\")","v":0},null,null,null,null,null,null,{"$f":"COUNTIFS(Asiakkuustiedot!B104:XFD104, \"Tarvitsee alkuvaiheen tukea, muuta kuin Ohjaamon tuki\",Asiakkuustiedot!B4:XFD4, \"ensimmäinen asiakaskäynti\",Asiakkuustiedot!B11:XFD11, \">=1.1.2016\",Asiakkuustiedot!B11:XFD11, \"<=31.1.2016\")","v":0},{"$f":"COUNTIFS(Asiakkuustiedot!B104:XFD104, \"Tarvitsee alkuvaiheen tukea, muuta kuin Ohjaamon tuki\",Asiakkuustiedot!B4:XFD4, \"ensimmäinen asiakaskäynti\",Asiakkuustiedot!B11:XFD11, \">=1.2.2016\",Asiakkuustiedot!B11:XFD11, \"<=28.2.2016\")","v":0},{"$f":"COUNTIFS(Asiakkuustiedot!B104:XFD104, \"Tarvitsee alkuvaiheen tukea, muuta kuin Ohjaamon tuki\",Asiakkuustiedot!B4:XFD4, \"ensimmäinen asiakaskäynti\",Asiakkuustiedot!B11:XFD11, \">=1.3.2016\",Asiakkuustiedot!B11:XFD11, \"<=31.3.2016\")","v":0},{"$f":"COUNTIFS(Asiakkuustiedot!B104:XFD104, \"Tarvitsee alkuvaiheen tukea, muuta kuin Ohjaamon tuki\",Asiakkuustiedot!B4:XFD4, \"ensimmäinen asiakaskäynti\",Asiakkuustiedot!B11:XFD11, \">=1.4.2016\",Asiakkuustiedot!B11:XFD11, \"<=30.4.2016\")","v":0},{"$f":"COUNTIFS(Asiakkuustiedot!B104:XFD104, \"Tarvitsee alkuvaiheen tukea, muuta kuin Ohjaamon tuki\",Asiakkuustiedot!B4:XFD4, \"ensimmäinen asiakaskäynti\",Asiakkuustiedot!B11:XFD11, \">=1.5.2016\",Asiakkuustiedot!B11:XFD11, \"<=31.5.2016\")","v":0},{"$f":"COUNTIFS(Asiakkuustiedot!B104:XFD104, \"Tarvitsee alkuvaiheen tukea, muuta kuin Ohjaamon tuki\",Asiakkuustiedot!B4:XFD4, \"ensimmäinen asiakaskäynti\",Asiakkuustiedot!B11:XFD11, \">=1.6.2016\",Asiakkuustiedot!B11:XFD11, \"<=30.6.2016\")","v":0},{"$f":"COUNTIFS(Asiakkuustiedot!B104:XFD104, \"Tarvitsee alkuvaiheen tukea, muuta kuin Ohjaamon tuki\",Asiakkuustiedot!B4:XFD4, \"ensimmäinen asiakaskäynti\",Asiakkuustiedot!B11:XFD11, \">=1.7.2016\",Asiakkuustiedot!B11:XFD11, \"<=31.7.2016\")","v":0},{"$f":"COUNTIFS(Asiakkuustiedot!B104:XFD104, \"Tarvitsee alkuvaiheen tukea, muuta kuin Ohjaamon tuki\",Asiakkuustiedot!B4:XFD4, \"ensimmäinen asiakaskäynti\",Asiakkuustiedot!B11:XFD11, \">=1.8.2016\",Asiakkuustiedot!B11:XFD11, \"<=31.8.2016\")","v":0},{"$f":"COUNTIFS(Asiakkuustiedot!B104:XFD104, \"Tarvitsee alkuvaiheen tukea, muuta kuin Ohjaamon tuki\",Asiakkuustiedot!B4:XFD4, \"ensimmäinen asiakaskäynti\",Asiakkuustiedot!B11:XFD11, \">=1.9.2016\",Asiakkuustiedot!B11:XFD11, \"<=30.9.2016\")","v":0},{"$f":"COUNTIFS(Asiakkuustiedot!B104:XFD104, \"Tarvitsee alkuvaiheen tukea, muuta kuin Ohjaamon tuki\",Asiakkuustiedot!B4:XFD4, \"ensimmäinen asiakaskäynti\",Asiakkuustiedot!B11:XFD11, \">=1.10.2016\",Asiakkuustiedot!B11:XFD11, \"<=31.10.2016\")","v":0},{"$f":"COUNTIFS(Asiakkuustiedot!B104:XFD104, \"Tarvitsee alkuvaiheen tukea, muuta kuin Ohjaamon tuki\",Asiakkuustiedot!B4:XFD4, \"ensimmäinen asiakaskäynti\",Asiakkuustiedot!B11:XFD11, \">=1.11.2016\",Asiakkuustiedot!B11:XFD11, \"<=30.11.2016\")","v":0},{"$f":"COUNTIFS(Asiakkuustiedot!B104:XFD104, \"Tarvitsee alkuvaiheen tukea, muuta kuin Ohjaamon tuki\",Asiakkuustiedot!B4:XFD4, \"ensimmäinen asiakaskäynti\",Asiakkuustiedot!B11:XFD11, \">=1.12.2016\",Asiakkuustiedot!B11:XFD11, \"<=31.12.2016\")","v":0}]
[null,"x",false,41,"Tarvitsee pitkäkestoisempaa tukea",{"$f":"COUNTIFS(Asiakkuustiedot!B104:XFD104, \"Tarvitsee pitkäkestoisempaa tukea\",Asiakkuustiedot!B4:XFD4, \"ensimmäinen asiakaskäynti\",Asiakkuustiedot!B11:XFD11, \">=1.1.2016\",Asiakkuustiedot!B11:XFD11, \"<=31.12.2016\")","v":0},null,null,null,null,null,null,{"$f":"COUNTIFS(Asiakkuustiedot!B104:XFD104, \"Tarvitsee pitkäkestoisempaa tukea\",Asiakkuustiedot!B4:XFD4, \"ensimmäinen asiakaskäynti\",Asiakkuustiedot!B11:XFD11, \">=1.1.2016\",Asiakkuustiedot!B11:XFD11, \"<=31.1.2016\")","v":0},{"$f":"COUNTIFS(Asiakkuustiedot!B104:XFD104, \"Tarvitsee pitkäkestoisempaa tukea\",Asiakkuustiedot!B4:XFD4, \"ensimmäinen asiakaskäynti\",Asiakkuustiedot!B11:XFD11, \">=1.2.2016\",Asiakkuustiedot!B11:XFD11, \"<=28.2.2016\")","v":0},{"$f":"COUNTIFS(Asiakkuustiedot!B104:XFD104, \"Tarvitsee pitkäkestoisempaa tukea\",Asiakkuustiedot!B4:XFD4, \"ensimmäinen asiakaskäynti\",Asiakkuustiedot!B11:XFD11, \">=1.3.2016\",Asiakkuustiedot!B11:XFD11, \"<=31.3.2016\")","v":0},{"$f":"COUNTIFS(Asiakkuustiedot!B104:XFD104, \"Tarvitsee pitkäkestoisempaa tukea\",Asiakkuustiedot!B4:XFD4, \"ensimmäinen asiakaskäynti\",Asiakkuustiedot!B11:XFD11, \">=1.4.2016\",Asiakkuustiedot!B11:XFD11, \"<=30.4.2016\")","v":0},{"$f":"COUNTIFS(Asiakkuustiedot!B104:XFD104, \"Tarvitsee pitkäkestoisempaa tukea\",Asiakkuustiedot!B4:XFD4, \"ensimmäinen asiakaskäynti\",Asiakkuustiedot!B11:XFD11, \">=1.5.2016\",Asiakkuustiedot!B11:XFD11, \"<=31.5.2016\")","v":0},{"$f":"COUNTIFS(Asiakkuustiedot!B104:XFD104, \"Tarvitsee pitkäkestoisempaa tukea\",Asiakkuustiedot!B4:XFD4, \"ensimmäinen asiakaskäynti\",Asiakkuustiedot!B11:XFD11, \">=1.6.2016\",Asiakkuustiedot!B11:XFD11, \"<=30.6.2016\")","v":0},{"$f":"COUNTIFS(Asiakkuustiedot!B104:XFD104, \"Tarvitsee pitkäkestoisempaa tukea\",Asiakkuustiedot!B4:XFD4, \"ensimmäinen asiakaskäynti\",Asiakkuustiedot!B11:XFD11, \">=1.7.2016\",Asiakkuustiedot!B11:XFD11, \"<=31.7.2016\")","v":0},{"$f":"COUNTIFS(Asiakkuustiedot!B104:XFD104, \"Tarvitsee pitkäkestoisempaa tukea\",Asiakkuustiedot!B4:XFD4, \"ensimmäinen asiakaskäynti\",Asiakkuustiedot!B11:XFD11, \">=1.8.2016\",Asiakkuustiedot!B11:XFD11, \"<=31.8.2016\")","v":0},{"$f":"COUNTIFS(Asiakkuustiedot!B104:XFD104, \"Tarvitsee pitkäkestoisempaa tukea\",Asiakkuustiedot!B4:XFD4, \"ensimmäinen asiakaskäynti\",Asiakkuustiedot!B11:XFD11, \">=1.9.2016\",Asiakkuustiedot!B11:XFD11, \"<=30.9.2016\")","v":0},{"$f":"COUNTIFS(Asiakkuustiedot!B104:XFD104, \"Tarvitsee pitkäkestoisempaa tukea\",Asiakkuustiedot!B4:XFD4, \"ensimmäinen asiakaskäynti\",Asiakkuustiedot!B11:XFD11, \">=1.10.2016\",Asiakkuustiedot!B11:XFD11, \"<=31.10.2016\")","v":0},{"$f":"COUNTIFS(Asiakkuustiedot!B104:XFD104, \"Tarvitsee pitkäkestoisempaa tukea\",Asiakkuustiedot!B4:XFD4, \"ensimmäinen asiakaskäynti\",Asiakkuustiedot!B11:XFD11, \">=1.11.2016\",Asiakkuustiedot!B11:XFD11, \"<=30.11.2016\")","v":0},{"$f":"COUNTIFS(Asiakkuustiedot!B104:XFD104, \"Tarvitsee pitkäkestoisempaa tukea\",Asiakkuustiedot!B4:XFD4, \"ensimmäinen asiakaskäynti\",Asiakkuustiedot!B11:XFD11, \">=1.12.2016\",Asiakkuustiedot!B11:XFD11, \"<=31.12.2016\")","v":0}]
[]
[null,null,null,null,"Missä asumisen asioissa tarvitsi apua? "]
[null,"x",false,44,"Yleistä neuvontaa asunnonhaussa",{"$f":"COUNTIFS(Asiakkuustiedot!B110:XFD110, \"Yleistä neuvontaa asunnonhaussa\",Asiakkuustiedot!B4:XFD4, \"ensimmäinen asiakaskäynti\",Asiakkuustiedot!B11:XFD11, \">=1.1.2016\",Asiakkuustiedot!B11:XFD11, \"<=31.12.2016\")","v":0},null,null,null,null,null,null,{"$f":"COUNTIFS(Asiakkuustiedot!B110:XFD110, \"Yleistä neuvontaa asunnonhaussa\",Asiakkuustiedot!B4:XFD4, \"ensimmäinen asiakaskäynti\",Asiakkuustiedot!B11:XFD11, \">=1.1.2016\",Asiakkuustiedot!B11:XFD11, \"<=31.1.2016\")","v":0},{"$f":"COUNTIFS(Asiakkuustiedot!B110:XFD110, \"Yleistä neuvontaa asunnonhaussa\",Asiakkuustiedot!B4:XFD4, \"ensimmäinen asiakaskäynti\",Asiakkuustiedot!B11:XFD11, \">=1.2.2016\",Asiakkuustiedot!B11:XFD11, \"<=28.2.2016\")","v":0},{"$f":"COUNTIFS(Asiakkuustiedot!B110:XFD110, \"Yleistä neuvontaa asunnonhaussa\",Asiakkuustiedot!B4:XFD4, \"ensimmäinen asiakaskäynti\",Asiakkuustiedot!B11:XFD11, \">=1.3.2016\",Asiakkuustiedot!B11:XFD11, \"<=31.3.2016\")","v":0},{"$f":"COUNTIFS(Asiakkuustiedot!B110:XFD110, \"Yleistä neuvontaa asunnonhaussa\",Asiakkuustiedot!B4:XFD4, \"ensimmäinen asiakaskäynti\",Asiakkuustiedot!B11:XFD11, \">=1.4.2016\",Asiakkuustiedot!B11:XFD11, \"<=30.4.2016\")","v":0},{"$f":"COUNTIFS(Asiakkuustiedot!B110:XFD110, \"Yleistä neuvontaa asunnonhaussa\",Asiakkuustiedot!B4:XFD4, \"ensimmäinen asiakaskäynti\",Asiakkuustiedot!B11:XFD11, \">=1.5.2016\",Asiakkuustiedot!B11:XFD11, \"<=31.5.2016\")","v":0},{"$f":"COUNTIFS(Asiakkuustiedot!B110:XFD110, \"Yleistä neuvontaa asunnonhaussa\",Asiakkuustiedot!B4:XFD4, \"ensimmäinen asiakaskäynti\",Asiakkuustiedot!B11:XFD11, \">=1.6.2016\",Asiakkuustiedot!B11:XFD11, \"<=30.6.2016\")","v":0},{"$f":"COUNTIFS(Asiakkuustiedot!B110:XFD110, \"Yleistä neuvontaa asunnonhaussa\",Asiakkuustiedot!B4:XFD4, \"ensimmäinen asiakaskäynti\",Asiakkuustiedot!B11:XFD11, \">=1.7.2016\",Asiakkuustiedot!B11:XFD11, \"<=31.7.2016\")","v":0},{"$f":"COUNTIFS(Asiakkuustiedot!B110:XFD110, \"Yleistä neuvontaa asunnonhaussa\",Asiakkuustiedot!B4:XFD4, \"ensimmäinen asiakaskäynti\",Asiakkuustiedot!B11:XFD11, \">=1.8.2016\",Asiakkuustiedot!B11:XFD11, \"<=31.8.2016\")","v":0},{"$f":"COUNTIFS(Asiakkuustiedot!B110:XFD110, \"Yleistä neuvontaa asunnonhaussa\",Asiakkuustiedot!B4:XFD4, \"ensimmäinen asiakaskäynti\",Asiakkuustiedot!B11:XFD11, \">=1.9.2016\",Asiakkuustiedot!B11:XFD11, \"<=30.9.2016\")","v":0},{"$f":"COUNTIFS(Asiakkuustiedot!B110:XFD110, \"Yleistä neuvontaa asunnonhaussa\",Asiakkuustiedot!B4:XFD4, \"ensimmäinen asiakaskäynti\",Asiakkuustiedot!B11:XFD11, \">=1.10.2016\",Asiakkuustiedot!B11:XFD11, \"<=31.10.2016\")","v":0},{"$f":"COUNTIFS(Asiakkuustiedot!B110:XFD110, \"Yleistä neuvontaa asunnonhaussa\",Asiakkuustiedot!B4:XFD4, \"ensimmäinen asiakaskäynti\",Asiakkuustiedot!B11:XFD11, \">=1.11.2016\",Asiakkuustiedot!B11:XFD11, \"<=30.11.2016\")","v":0},{"$f":"COUNTIFS(Asiakkuustiedot!B110:XFD110, \"Yleistä neuvontaa asunnonhaussa\",Asiakkuustiedot!B4:XFD4, \"ensimmäinen asiakaskäynti\",Asiakkuustiedot!B11:XFD11, \">=1.12.2016\",Asiakkuustiedot!B11:XFD11, \"<=31.12.2016\")","v":0}]
[null,"x",false,{"$f":"D68+1","v":45},"Yleistä neuvontaa asumisasioissa (talous, siivous..)",{"$f":"COUNTIFS(Asiakkuustiedot!B111:XFD111, \"Yleistä neuvontaa asumisasioissa (talous, siivous..)\",Asiakkuustiedot!B4:XFD4, \"ensimmäinen asiakaskäynti\",Asiakkuustiedot!B11:XFD11, \">=1.1.2016\",Asiakkuustiedot!B11:XFD11, \"<=31.12.2016\")","v":0},null,null,null,null,null,null,{"$f":"COUNTIFS(Asiakkuustiedot!B111:XFD111, \"Yleistä neuvontaa asumisasioissa (talous, siivous..)\",Asiakkuustiedot!B4:XFD4, \"ensimmäinen asiakaskäynti\",Asiakkuustiedot!B11:XFD11, \">=1.1.2016\",Asiakkuustiedot!B11:XFD11, \"<=31.1.2016\")","v":0},{"$f":"COUNTIFS(Asiakkuustiedot!B111:XFD111, \"Yleistä neuvontaa asumisasioissa (talous, siivous..)\",Asiakkuustiedot!B4:XFD4, \"ensimmäinen asiakaskäynti\",Asiakkuustiedot!B11:XFD11, \">=1.2.2016\",Asiakkuustiedot!B11:XFD11, \"<=28.2.2016\")","v":0},{"$f":"COUNTIFS(Asiakkuustiedot!B111:XFD111, \"Yleistä neuvontaa asumisasioissa (talous, siivous..)\",Asiakkuustiedot!B4:XFD4, \"ensimmäinen asiakaskäynti\",Asiakkuustiedot!B11:XFD11, \">=1.3.2016\",Asiakkuustiedot!B11:XFD11, \"<=31.3.2016\")","v":0},{"$f":"COUNTIFS(Asiakkuustiedot!B111:XFD111, \"Yleistä neuvontaa asumisasioissa (talous, siivous..)\",Asiakkuustiedot!B4:XFD4, \"ensimmäinen asiakaskäynti\",Asiakkuustiedot!B11:XFD11, \">=1.4.2016\",Asiakkuustiedot!B11:XFD11, \"<=30.4.2016\")","v":0},{"$f":"COUNTIFS(Asiakkuustiedot!B111:XFD111, \"Yleistä neuvontaa asumisasioissa (talous, siivous..)\",Asiakkuustiedot!B4:XFD4, \"ensimmäinen asiakaskäynti\",Asiakkuustiedot!B11:XFD11, \">=1.5.2016\",Asiakkuustiedot!B11:XFD11, \"<=31.5.2016\")","v":0},{"$f":"COUNTIFS(Asiakkuustiedot!B111:XFD111, \"Yleistä neuvontaa asumisasioissa (talous, siivous..)\",Asiakkuustiedot!B4:XFD4, \"ensimmäinen asiakaskäynti\",Asiakkuustiedot!B11:XFD11, \">=1.6.2016\",Asiakkuustiedot!B11:XFD11, \"<=30.6.2016\")","v":0},{"$f":"COUNTIFS(Asiakkuustiedot!B111:XFD111, \"Yleistä neuvontaa asumisasioissa (talous, siivous..)\",Asiakkuustiedot!B4:XFD4, \"ensimmäinen asiakaskäynti\",Asiakkuustiedot!B11:XFD11, \">=1.7.2016\",Asiakkuustiedot!B11:XFD11, \"<=31.7.2016\")","v":0},{"$f":"COUNTIFS(Asiakkuustiedot!B111:XFD111, \"Yleistä neuvontaa asumisasioissa (talous, siivous..)\",Asiakkuustiedot!B4:XFD4, \"ensimmäinen asiakaskäynti\",Asiakkuustiedot!B11:XFD11, \">=1.8.2016\",Asiakkuustiedot!B11:XFD11, \"<=31.8.2016\")","v":0},{"$f":"COUNTIFS(Asiakkuustiedot!B111:XFD111, \"Yleistä neuvontaa asumisasioissa (talous, siivous..)\",Asiakkuustiedot!B4:XFD4, \"ensimmäinen asiakaskäynti\",Asiakkuustiedot!B11:XFD11, \">=1.9.2016\",Asiakkuustiedot!B11:XFD11, \"<=30.9.2016\")","v":0},{"$f":"COUNTIFS(Asiakkuustiedot!B111:XFD111, \"Yleistä neuvontaa asumisasioissa (talous, siivous..)\",Asiakkuustiedot!B4:XFD4, \"ensimmäinen asiakaskäynti\",Asiakkuustiedot!B11:XFD11, \">=1.10.2016\",Asiakkuustiedot!B11:XFD11, \"<=31.10.2016\")","v":0},{"$f":"COUNTIFS(Asiakkuustiedot!B111:XFD111, \"Yleistä neuvontaa asumisasioissa (talous, siivous..)\",Asiakkuustiedot!B4:XFD4, \"ensimmäinen asiakaskäynti\",Asiakkuustiedot!B11:XFD11, \">=1.11.2016\",Asiakkuustiedot!B11:XFD11, \"<=30.11.2016\")","v":0},{"$f":"COUNTIFS(Asiakkuustiedot!B111:XFD111, \"Yleistä neuvontaa asumisasioissa (talous, siivous..)\",Asiakkuustiedot!B4:XFD4, \"ensimmäinen asiakaskäynti\",Asiakkuustiedot!B11:XFD11, \">=1.12.2016\",Asiakkuustiedot!B11:XFD11, \"<=31.12.2016\")","v":0}]
[null,"x",false,{"$f":"D69+1","v":46},"Tehtiin asuntohakemus",{"$f":"COUNTIFS(Asiakkuustiedot!B114:XFD114, \"Tehtiin asuntohakemus\",Asiakkuustiedot!B4:XFD4, \"ensimmäinen asiakaskäynti\",Asiakkuustiedot!B11:XFD11, \">=1.1.2016\",Asiakkuustiedot!B11:XFD11, \"<=31.12.2016\")","v":0},null,null,null,null,null,null,{"$f":"COUNTIFS(Asiakkuustiedot!B114:XFD114, \"Tehtiin asuntohakemus\",Asiakkuustiedot!B4:XFD4, \"ensimmäinen asiakaskäynti\",Asiakkuustiedot!B11:XFD11, \">=1.1.2016\",Asiakkuustiedot!B11:XFD11, \"<=31.1.2016\")","v":0},{"$f":"COUNTIFS(Asiakkuustiedot!B114:XFD114, \"Tehtiin asuntohakemus\",Asiakkuustiedot!B4:XFD4, \"ensimmäinen asiakaskäynti\",Asiakkuustiedot!B11:XFD11, \">=1.2.2016\",Asiakkuustiedot!B11:XFD11, \"<=28.2.2016\")","v":0},{"$f":"COUNTIFS(Asiakkuustiedot!B114:XFD114, \"Tehtiin asuntohakemus\",Asiakkuustiedot!B4:XFD4, \"ensimmäinen asiakaskäynti\",Asiakkuustiedot!B11:XFD11, \">=1.3.2016\",Asiakkuustiedot!B11:XFD11, \"<=31.3.2016\")","v":0},{"$f":"COUNTIFS(Asiakkuustiedot!B114:XFD114, \"Tehtiin asuntohakemus\",Asiakkuustiedot!B4:XFD4, \"ensimmäinen asiakaskäynti\",Asiakkuustiedot!B11:XFD11, \">=1.4.2016\",Asiakkuustiedot!B11:XFD11, \"<=30.4.2016\")","v":0},{"$f":"COUNTIFS(Asiakkuustiedot!B114:XFD114, \"Tehtiin asuntohakemus\",Asiakkuustiedot!B4:XFD4, \"ensimmäinen asiakaskäynti\",Asiakkuustiedot!B11:XFD11, \">=1.5.2016\",Asiakkuustiedot!B11:XFD11, \"<=31.5.2016\")","v":0},{"$f":"COUNTIFS(Asiakkuustiedot!B114:XFD114, \"Tehtiin asuntohakemus\",Asiakkuustiedot!B4:XFD4, \"ensimmäinen asiakaskäynti\",Asiakkuustiedot!B11:XFD11, \">=1.6.2016\",Asiakkuustiedot!B11:XFD11, \"<=30.6.2016\")","v":0},{"$f":"COUNTIFS(Asiakkuustiedot!B114:XFD114, \"Tehtiin asuntohakemus\",Asiakkuustiedot!B4:XFD4, \"ensimmäinen asiakaskäynti\",Asiakkuustiedot!B11:XFD11, \">=1.7.2016\",Asiakkuustiedot!B11:XFD11, \"<=31.7.2016\")","v":0},{"$f":"COUNTIFS(Asiakkuustiedot!B114:XFD114, \"Tehtiin asuntohakemus\",Asiakkuustiedot!B4:XFD4, \"ensimmäinen asiakaskäynti\",Asiakkuustiedot!B11:XFD11, \">=1.8.2016\",Asiakkuustiedot!B11:XFD11, \"<=31.8.2016\")","v":0},{"$f":"COUNTIFS(Asiakkuustiedot!B114:XFD114, \"Tehtiin asuntohakemus\",Asiakkuustiedot!B4:XFD4, \"ensimmäinen asiakaskäynti\",Asiakkuustiedot!B11:XFD11, \">=1.9.2016\",Asiakkuustiedot!B11:XFD11, \"<=30.9.2016\")","v":0},{"$f":"COUNTIFS(Asiakkuustiedot!B114:XFD114, \"Tehtiin asuntohakemus\",Asiakkuustiedot!B4:XFD4, \"ensimmäinen asiakaskäynti\",Asiakkuustiedot!B11:XFD11, \">=1.10.2016\",Asiakkuustiedot!B11:XFD11, \"<=31.10.2016\")","v":0},{"$f":"COUNTIFS(Asiakkuustiedot!B114:XFD114, \"Tehtiin asuntohakemus\",Asiakkuustiedot!B4:XFD4, \"ensimmäinen asiakaskäynti\",Asiakkuustiedot!B11:XFD11, \">=1.11.2016\",Asiakkuustiedot!B11:XFD11, \"<=30.11.2016\")","v":0},{"$f":"COUNTIFS(Asiakkuustiedot!B114:XFD114, \"Tehtiin asuntohakemus\",Asiakkuustiedot!B4:XFD4, \"ensimmäinen asiakaskäynti\",Asiakkuustiedot!B11:XFD11, \">=1.12.2016\",Asiakkuustiedot!B11:XFD11, \"<=31.12.2016\")","v":0}]
[null,"x",false,47,"Osallistui asumiskurssille",{"$f":"COUNTIFS(Asiakkuustiedot!B115:XFD115, \"Osallistui asumiskurssille\",Asiakkuustiedot!B4:XFD4, \"ensimmäinen asiakaskäynti\",Asiakkuustiedot!B11:XFD11, \">=1.1.2016\",Asiakkuustiedot!B11:XFD11, \"<=31.12.2016\")","v":0},null,null,null,null,null,null,{"$f":"COUNTIFS(Asiakkuustiedot!B115:XFD115, \"Osallistui asumiskurssille\",Asiakkuustiedot!B4:XFD4, \"ensimmäinen asiakaskäynti\",Asiakkuustiedot!B11:XFD11, \">=1.1.2016\",Asiakkuustiedot!B11:XFD11, \"<=31.1.2016\")","v":0},{"$f":"COUNTIFS(Asiakkuustiedot!B115:XFD115, \"Osallistui asumiskurssille\",Asiakkuustiedot!B4:XFD4, \"ensimmäinen asiakaskäynti\",Asiakkuustiedot!B11:XFD11, \">=1.2.2016\",Asiakkuustiedot!B11:XFD11, \"<=28.2.2016\")","v":0},{"$f":"COUNTIFS(Asiakkuustiedot!B115:XFD115, \"Osallistui asumiskurssille\",Asiakkuustiedot!B4:XFD4, \"ensimmäinen asiakaskäynti\",Asiakkuustiedot!B11:XFD11, \">=1.3.2016\",Asiakkuustiedot!B11:XFD11, \"<=31.3.2016\")","v":0},{"$f":"COUNTIFS(Asiakkuustiedot!B115:XFD115, \"Osallistui asumiskurssille\",Asiakkuustiedot!B4:XFD4, \"ensimmäinen asiakaskäynti\",Asiakkuustiedot!B11:XFD11, \">=1.4.2016\",Asiakkuustiedot!B11:XFD11, \"<=30.4.2016\")","v":0},{"$f":"COUNTIFS(Asiakkuustiedot!B115:XFD115, \"Osallistui asumiskurssille\",Asiakkuustiedot!B4:XFD4, \"ensimmäinen asiakaskäynti\",Asiakkuustiedot!B11:XFD11, \">=1.5.2016\",Asiakkuustiedot!B11:XFD11, \"<=31.5.2016\")","v":0},{"$f":"COUNTIFS(Asiakkuustiedot!B115:XFD115, \"Osallistui asumiskurssille\",Asiakkuustiedot!B4:XFD4, \"ensimmäinen asiakaskäynti\",Asiakkuustiedot!B11:XFD11, \">=1.6.2016\",Asiakkuustiedot!B11:XFD11, \"<=30.6.2016\")","v":0},{"$f":"COUNTIFS(Asiakkuustiedot!B115:XFD115, \"Osallistui asumiskurssille\",Asiakkuustiedot!B4:XFD4, \"ensimmäinen asiakaskäynti\",Asiakkuustiedot!B11:XFD11, \">=1.7.2016\",Asiakkuustiedot!B11:XFD11, \"<=31.7.2016\")","v":0},{"$f":"COUNTIFS(Asiakkuustiedot!B115:XFD115, \"Osallistui asumiskurssille\",Asiakkuustiedot!B4:XFD4, \"ensimmäinen asiakaskäynti\",Asiakkuustiedot!B11:XFD11, \">=1.8.2016\",Asiakkuustiedot!B11:XFD11, \"<=31.8.2016\")","v":0},{"$f":"COUNTIFS(Asiakkuustiedot!B115:XFD115, \"Osallistui asumiskurssille\",Asiakkuustiedot!B4:XFD4, \"ensimmäinen asiakaskäynti\",Asiakkuustiedot!B11:XFD11, \">=1.9.2016\",Asiakkuustiedot!B11:XFD11, \"<=30.9.2016\")","v":0},{"$f":"COUNTIFS(Asiakkuustiedot!B115:XFD115, \"Osallistui asumiskurssille\",Asiakkuustiedot!B4:XFD4, \"ensimmäinen asiakaskäynti\",Asiakkuustiedot!B11:XFD11, \">=1.10.2016\",Asiakkuustiedot!B11:XFD11, \"<=31.10.2016\")","v":0},{"$f":"COUNTIFS(Asiakkuustiedot!B115:XFD115, \"Osallistui asumiskurssille\",Asiakkuustiedot!B4:XFD4, \"ensimmäinen asiakaskäynti\",Asiakkuustiedot!B11:XFD11, \">=1.11.2016\",Asiakkuustiedot!B11:XFD11, \"<=30.11.2016\")","v":0},{"$f":"COUNTIFS(Asiakkuustiedot!B115:XFD115, \"Osallistui asumiskurssille\",Asiakkuustiedot!B4:XFD4, \"ensimmäinen asiakaskäynti\",Asiakkuustiedot!B11:XFD11, \">=1.12.2016\",Asiakkuustiedot!B11:XFD11, \"<=31.12.2016\")","v":0}]
[null,"x",false,48,"Asumistukiasioissa",{"$f":"COUNTIFS(Asiakkuustiedot!#REF!, \"Asumistukiasioissa\",Asiakkuustiedot!B4:XFD4, \"ensimmäinen asiakaskäynti\",Asiakkuustiedot!B11:XFD11, \">=1.1.2016\",Asiakkuustiedot!B11:XFD11, \"<=31.12.2016\")","v":{"$error":"#REF!"}},null,null,null,null,null,null,{"$f":"COUNTIFS(Asiakkuustiedot!#REF!, \"Asumistukiasioissa\",Asiakkuustiedot!B4:XFD4, \"ensimmäinen asiakaskäynti\",Asiakkuustiedot!B11:XFD11, \">=1.1.2016\",Asiakkuustiedot!B11:XFD11, \"<=31.1.2016\")","v":{"$error":"#REF!"}},{"$f":"COUNTIFS(Asiakkuustiedot!#REF!, \"Asumistukiasioissa\",Asiakkuustiedot!B4:XFD4, \"ensimmäinen asiakaskäynti\",Asiakkuustiedot!B11:XFD11, \">=1.2.2016\",Asiakkuustiedot!B11:XFD11, \"<=28.2.2016\")","v":{"$error":"#REF!"}},{"$f":"COUNTIFS(Asiakkuustiedot!#REF!, \"Asumistukiasioissa\",Asiakkuustiedot!B4:XFD4, \"ensimmäinen asiakaskäynti\",Asiakkuustiedot!B11:XFD11, \">=1.3.2016\",Asiakkuustiedot!B11:XFD11, \"<=31.3.2016\")","v":{"$error":"#REF!"}},{"$f":"COUNTIFS(Asiakkuustiedot!#REF!, \"Asumistukiasioissa\",Asiakkuustiedot!B4:XFD4, \"ensimmäinen asiakaskäynti\",Asiakkuustiedot!B11:XFD11, \">=1.4.2016\",Asiakkuustiedot!B11:XFD11, \"<=30.4.2016\")","v":{"$error":"#REF!"}},{"$f":"COUNTIFS(Asiakkuustiedot!#REF!, \"Asumistukiasioissa\",Asiakkuustiedot!B4:XFD4, \"ensimmäinen asiakaskäynti\",Asiakkuustiedot!B11:XFD11, \">=1.5.2016\",Asiakkuustiedot!B11:XFD11, \"<=31.5.2016\")","v":{"$error":"#REF!"}},{"$f":"COUNTIFS(Asiakkuustiedot!#REF!, \"Asumistukiasioissa\",Asiakkuustiedot!B4:XFD4, \"ensimmäinen asiakaskäynti\",Asiakkuustiedot!B11:XFD11, \">=1.6.2016\",Asiakkuustiedot!B11:XFD11, \"<=30.6.2016\")","v":{"$error":"#REF!"}},{"$f":"COUNTIFS(Asiakkuustiedot!#REF!, \"Asumistukiasioissa\",Asiakkuustiedot!B4:XFD4, \"ensimmäinen asiakaskäynti\",Asiakkuustiedot!B11:XFD11, \">=1.7.2016\",Asiakkuustiedot!B11:XFD11, \"<=31.7.2016\")","v":{"$error":"#REF!"}},{"$f":"COUNTIFS(Asiakkuustiedot!#REF!, \"Asumistukiasioissa\",Asiakkuustiedot!B4:XFD4, \"ensimmäinen asiakaskäynti\",Asiakkuustiedot!B11:XFD11, \">=1.8.2016\",Asiakkuustiedot!B11:XFD11, \"<=31.8.2016\")","v":{"$error":"#REF!"}},{"$f":"COUNTIFS(Asiakkuustiedot!#REF!, \"Asumistukiasioissa\",Asiakkuustiedot!B4:XFD4, \"ensimmäinen asiakaskäynti\",Asiakkuustiedot!B11:XFD11, \">=1.9.2016\",Asiakkuustiedot!B11:XFD11, \"<=30.9.2016\")","v":{"$error":"#REF!"}},{"$f":"COUNTIFS(Asiakkuustiedot!#REF!, \"Asumistukiasioissa\",Asiakkuustiedot!B4:XFD4, \"ensimmäinen asiakaskäynti\",Asiakkuustiedot!B11:XFD11, \">=1.10.2016\",Asiakkuustiedot!B11:XFD11, \"<=31.10.2016\")","v":{"$error":"#REF!"}},{"$f":"COUNTIFS(Asiakkuustiedot!#REF!, \"Asumistukiasioissa\",Asiakkuustiedot!B4:XFD4, \"ensimmäinen asiakaskäynti\",Asiakkuustiedot!B11:XFD11, \">=1.11.2016\",Asiakkuustiedot!B11:XFD11, \"<=30.11.2016\")","v":{"$error":"#REF!"}},{"$f":"COUNTIFS(Asiakkuustiedot!#REF!, \"Asumistukiasioissa\",Asiakkuustiedot!B4:XFD4, \"ensimmäinen asiakaskäynti\",Asiakkuustiedot!B11:XFD11, \">=1.12.2016\",Asiakkuustiedot!B11:XFD11, \"<=31.12.2016\")","v":{"$error":"#REF!"}}]
[null,"x",false,49,"Käytiin asuntonäytössä",{"$f":"COUNTIFS(Asiakkuustiedot!#REF!, \"Käytiin asuntonäytössä\",Asiakkuustiedot!B4:XFD4, \"ensimmäinen asiakaskäynti\",Asiakkuustiedot!B11:XFD11, \">=1.1.2016\",Asiakkuustiedot!B11:XFD11, \"<=31.12.2016\")","v":{"$error":"#REF!"}},null,null,null,null,null,null,{"$f":"COUNTIFS(Asiakkuustiedot!#REF!, \"Käytiin asuntonäytössä\",Asiakkuustiedot!B4:XFD4, \"ensimmäinen asiakaskäynti\",Asiakkuustiedot!B11:XFD11, \">=1.1.2016\",Asiakkuustiedot!B11:XFD11, \"<=31.1.2016\")","v":{"$error":"#REF!"}},{"$f":"COUNTIFS(Asiakkuustiedot!#REF!, \"Käytiin asuntonäytössä\",Asiakkuustiedot!B4:XFD4, \"ensimmäinen asiakaskäynti\",Asiakkuustiedot!B11:XFD11, \">=1.2.2016\",Asiakkuustiedot!B11:XFD11, \"<=28.2.2016\")","v":{"$error":"#REF!"}},{"$f":"COUNTIFS(Asiakkuustiedot!#REF!, \"Käytiin asuntonäytössä\",Asiakkuustiedot!B4:XFD4, \"ensimmäinen asiakaskäynti\",Asiakkuustiedot!B11:XFD11, \">=1.3.2016\",Asiakkuustiedot!B11:XFD11, \"<=31.3.2016\")","v":{"$error":"#REF!"}},{"$f":"COUNTIFS(Asiakkuustiedot!#REF!, \"Käytiin asuntonäytössä\",Asiakkuustiedot!B4:XFD4, \"ensimmäinen asiakaskäynti\",Asiakkuustiedot!B11:XFD11, \">=1.4.2016\",Asiakkuustiedot!B11:XFD11, \"<=30.4.2016\")","v":{"$error":"#REF!"}},{"$f":"COUNTIFS(Asiakkuustiedot!#REF!, \"Käytiin asuntonäytössä\",Asiakkuustiedot!B4:XFD4, \"ensimmäinen asiakaskäynti\",Asiakkuustiedot!B11:XFD11, \">=1.5.2016\",Asiakkuustiedot!B11:XFD11, \"<=31.5.2016\")","v":{"$error":"#REF!"}},{"$f":"COUNTIFS(Asiakkuustiedot!#REF!, \"Käytiin asuntonäytössä\",Asiakkuustiedot!B4:XFD4, \"ensimmäinen asiakaskäynti\",Asiakkuustiedot!B11:XFD11, \">=1.6.2016\",Asiakkuustiedot!B11:XFD11, \"<=30.6.2016\")","v":{"$error":"#REF!"}},{"$f":"COUNTIFS(Asiakkuustiedot!#REF!, \"Käytiin asuntonäytössä\",Asiakkuustiedot!B4:XFD4, \"ensimmäinen asiakaskäynti\",Asiakkuustiedot!B11:XFD11, \">=1.7.2016\",Asiakkuustiedot!B11:XFD11, \"<=31.7.2016\")","v":{"$error":"#REF!"}},{"$f":"COUNTIFS(Asiakkuustiedot!#REF!, \"Käytiin asuntonäytössä\",Asiakkuustiedot!B4:XFD4, \"ensimmäinen asiakaskäynti\",Asiakkuustiedot!B11:XFD11, \">=1.8.2016\",Asiakkuustiedot!B11:XFD11, \"<=31.8.2016\")","v":{"$error":"#REF!"}},{"$f":"COUNTIFS(Asiakkuustiedot!#REF!, \"Käytiin asuntonäytössä\",Asiakkuustiedot!B4:XFD4, \"ensimmäinen asiakaskäynti\",Asiakkuustiedot!B11:XFD11, \">=1.9.2016\",Asiakkuustiedot!B11:XFD11, \"<=30.9.2016\")","v":{"$error":"#REF!"}},{"$f":"COUNTIFS(Asiakkuustiedot!#REF!, \"Käytiin asuntonäytössä\",Asiakkuustiedot!B4:XFD4, \"ensimmäinen asiakaskäynti\",Asiakkuustiedot!B11:XFD11, \">=1.10.2016\",Asiakkuustiedot!B11:XFD11, \"<=31.10.2016\")","v":{"$error":"#REF!"}},{"$f":"COUNTIFS(Asiakkuustiedot!#REF!, \"Käytiin asuntonäytössä\",Asiakkuustiedot!B4:XFD4, \"ensimmäinen asiakaskäynti\",Asiakkuustiedot!B11:XFD11, \">=1.11.2016\",Asiakkuustiedot!B11:XFD11, \"<=30.11.2016\")","v":{"$error":"#REF!"}},{"$f":"COUNTIFS(Asiakkuustiedot!#REF!, \"Käytiin asuntonäytössä\",Asiakkuustiedot!B4:XFD4, \"ensimmäinen asiakaskäynti\",Asiakkuustiedot!B11:XFD11, \">=1.12.2016\",Asiakkuustiedot!B11:XFD11, \"<=31.12.2016\")","v":{"$error":"#REF!"}}]
[null,"x",false,50,"Neuvontaa, jos asumisessa ongelmia (kun asunto jo on)",{"$f":"COUNTIFS(Asiakkuustiedot!#REF!, \"Neuvontaa, jos asumisessa ongelmia (kun asunto jo on)\",Asiakkuustiedot!B4:XFD4, \"ensimmäinen asiakaskäynti\",Asiakkuustiedot!B11:XFD11, \">=1.1.2016\",Asiakkuustiedot!B11:XFD11, \"<=31.12.2016\")","v":{"$error":"#REF!"}},null,null,null,null,null,null,{"$f":"COUNTIFS(Asiakkuustiedot!#REF!, \"Neuvontaa, jos asumisessa ongelmia (kun asunto jo on)\",Asiakkuustiedot!B4:XFD4, \"ensimmäinen asiakaskäynti\",Asiakkuustiedot!B11:XFD11, \">=1.1.2016\",Asiakkuustiedot!B11:XFD11, \"<=31.1.2016\")","v":{"$error":"#REF!"}},{"$f":"COUNTIFS(Asiakkuustiedot!#REF!, \"Neuvontaa, jos asumisessa ongelmia (kun asunto jo on)\",Asiakkuustiedot!B4:XFD4, \"ensimmäinen asiakaskäynti\",Asiakkuustiedot!B11:XFD11, \">=1.2.2016\",Asiakkuustiedot!B11:XFD11, \"<=28.2.2016\")","v":{"$error":"#REF!"}},{"$f":"COUNTIFS(Asiakkuustiedot!#REF!, \"Neuvontaa, jos asumisessa ongelmia (kun asunto jo on)\",Asiakkuustiedot!B4:XFD4, \"ensimmäinen asiakaskäynti\",Asiakkuustiedot!B11:XFD11, \">=1.3.2016\",Asiakkuustiedot!B11:XFD11, \"<=31.3.2016\")","v":{"$error":"#REF!"}},{"$f":"COUNTIFS(Asiakkuustiedot!#REF!, \"Neuvontaa, jos asumisessa ongelmia (kun asunto jo on)\",Asiakkuustiedot!B4:XFD4, \"ensimmäinen asiakaskäynti\",Asiakkuustiedot!B11:XFD11, \">=1.4.2016\",Asiakkuustiedot!B11:XFD11, \"<=30.4.2016\")","v":{"$error":"#REF!"}},{"$f":"COUNTIFS(Asiakkuustiedot!#REF!, \"Neuvontaa, jos asumisessa ongelmia (kun asunto jo on)\",Asiakkuustiedot!B4:XFD4, \"ensimmäinen asiakaskäynti\",Asiakkuustiedot!B11:XFD11, \">=1.5.2016\",Asiakkuustiedot!B11:XFD11, \"<=31.5.2016\")","v":{"$error":"#REF!"}},{"$f":"COUNTIFS(Asiakkuustiedot!#REF!, \"Neuvontaa, jos asumisessa ongelmia (kun asunto jo on)\",Asiakkuustiedot!B4:XFD4, \"ensimmäinen asiakaskäynti\",Asiakkuustiedot!B11:XFD11, \">=1.6.2016\",Asiakkuustiedot!B11:XFD11, \"<=30.6.2016\")","v":{"$error":"#REF!"}},{"$f":"COUNTIFS(Asiakkuustiedot!#REF!, \"Neuvontaa, jos asumisessa ongelmia (kun asunto jo on)\",Asiakkuustiedot!B4:XFD4, \"ensimmäinen asiakaskäynti\",Asiakkuustiedot!B11:XFD11, \">=1.7.2016\",Asiakkuustiedot!B11:XFD11, \"<=31.7.2016\")","v":{"$error":"#REF!"}},{"$f":"COUNTIFS(Asiakkuustiedot!#REF!, \"Neuvontaa, jos asumisessa ongelmia (kun asunto jo on)\",Asiakkuustiedot!B4:XFD4, \"ensimmäinen asiakaskäynti\",Asiakkuustiedot!B11:XFD11, \">=1.8.2016\",Asiakkuustiedot!B11:XFD11, \"<=31.8.2016\")","v":{"$error":"#REF!"}},{"$f":"COUNTIFS(Asiakkuustiedot!#REF!, \"Neuvontaa, jos asumisessa ongelmia (kun asunto jo on)\",Asiakkuustiedot!B4:XFD4, \"ensimmäinen asiakaskäynti\",Asiakkuustiedot!B11:XFD11, \">=1.9.2016\",Asiakkuustiedot!B11:XFD11, \"<=30.9.2016\")","v":{"$error":"#REF!"}},{"$f":"COUNTIFS(Asiakkuustiedot!#REF!, \"Neuvontaa, jos asumisessa ongelmia (kun asunto jo on)\",Asiakkuustiedot!B4:XFD4, \"ensimmäinen asiakaskäynti\",Asiakkuustiedot!B11:XFD11, \">=1.10.2016\",Asiakkuustiedot!B11:XFD11, \"<=31.10.2016\")","v":{"$error":"#REF!"}},{"$f":"COUNTIFS(Asiakkuustiedot!#REF!, \"Neuvontaa, jos asumisessa ongelmia (kun asunto jo on)\",Asiakkuustiedot!B4:XFD4, \"ensimmäinen asiakaskäynti\",Asiakkuustiedot!B11:XFD11, \">=1.11.2016\",Asiakkuustiedot!B11:XFD11, \"<=30.11.2016\")","v":{"$error":"#REF!"}},{"$f":"COUNTIFS(Asiakkuustiedot!#REF!, \"Neuvontaa, jos asumisessa ongelmia (kun asunto jo on)\",Asiakkuustiedot!B4:XFD4, \"ensimmäinen asiakaskäynti\",Asiakkuustiedot!B11:XFD11, \">=1.12.2016\",Asiakkuustiedot!B11:XFD11, \"<=31.12.2016\")","v":{"$error":"#REF!"}}]
[null,null,null,51,"Muuta, mitä?"]
[]
[null,null,null,null,"Nostiko tapaaminen esiin jonkun esteen? "]
[null,null,null,null,"Asuntoa on vaikea saada, koska…."]
[null,"x",false,57,"luottotietomerkintä",{"$f":"COUNTIFS(Asiakkuustiedot!B121:XFD121, \"luottotietomerkintä\",Asiakkuustiedot!B4:XFD4, \"ensimmäinen asiakaskäynti\",Asiakkuustiedot!B11:XFD11, \">=1.1.2016\",Asiakkuustiedot!B11:XFD11, \"<=31.12.2016\")","v":0},null,null,null,null,null,null,{"$f":"COUNTIFS(Asiakkuustiedot!B121:XFD121, \"luottotietomerkintä\",Asiakkuustiedot!B4:XFD4, \"ensimmäinen asiakaskäynti\",Asiakkuustiedot!B11:XFD11, \">=1.1.2016\",Asiakkuustiedot!B11:XFD11, \"<=31.1.2016\")","v":0},{"$f":"COUNTIFS(Asiakkuustiedot!B121:XFD121, \"luottotietomerkintä\",Asiakkuustiedot!B4:XFD4, \"ensimmäinen asiakaskäynti\",Asiakkuustiedot!B11:XFD11, \">=1.2.2016\",Asiakkuustiedot!B11:XFD11, \"<=28.2.2016\")","v":0},{"$f":"COUNTIFS(Asiakkuustiedot!B121:XFD121, \"luottotietomerkintä\",Asiakkuustiedot!B4:XFD4, \"ensimmäinen asiakaskäynti\",Asiakkuustiedot!B11:XFD11, \">=1.3.2016\",Asiakkuustiedot!B11:XFD11, \"<=31.3.2016\")","v":0},{"$f":"COUNTIFS(Asiakkuustiedot!B121:XFD121, \"luottotietomerkintä\",Asiakkuustiedot!B4:XFD4, \"ensimmäinen asiakaskäynti\",Asiakkuustiedot!B11:XFD11, \">=1.4.2016\",Asiakkuustiedot!B11:XFD11, \"<=30.4.2016\")","v":0},{"$f":"COUNTIFS(Asiakkuustiedot!B121:XFD121, \"luottotietomerkintä\",Asiakkuustiedot!B4:XFD4, \"ensimmäinen asiakaskäynti\",Asiakkuustiedot!B11:XFD11, \">=1.5.2016\",Asiakkuustiedot!B11:XFD11, \"<=31.5.2016\")","v":0},{"$f":"COUNTIFS(Asiakkuustiedot!B121:XFD121, \"luottotietomerkintä\",Asiakkuustiedot!B4:XFD4, \"ensimmäinen asiakaskäynti\",Asiakkuustiedot!B11:XFD11, \">=1.6.2016\",Asiakkuustiedot!B11:XFD11, \"<=30.6.2016\")","v":0},{"$f":"COUNTIFS(Asiakkuustiedot!B121:XFD121, \"luottotietomerkintä\",Asiakkuustiedot!B4:XFD4, \"ensimmäinen asiakaskäynti\",Asiakkuustiedot!B11:XFD11, \">=1.7.2016\",Asiakkuustiedot!B11:XFD11, \"<=31.7.2016\")","v":0},{"$f":"COUNTIFS(Asiakkuustiedot!B121:XFD121, \"luottotietomerkintä\",Asiakkuustiedot!B4:XFD4, \"ensimmäinen asiakaskäynti\",Asiakkuustiedot!B11:XFD11, \">=1.8.2016\",Asiakkuustiedot!B11:XFD11, \"<=31.8.2016\")","v":0},{"$f":"COUNTIFS(Asiakkuustiedot!B121:XFD121, \"luottotietomerkintä\",Asiakkuustiedot!B4:XFD4, \"ensimmäinen asiakaskäynti\",Asiakkuustiedot!B11:XFD11, \">=1.9.2016\",Asiakkuustiedot!B11:XFD11, \"<=30.9.2016\")","v":0},{"$f":"COUNTIFS(Asiakkuustiedot!B121:XFD121, \"luottotietomerkintä\",Asiakkuustiedot!B4:XFD4, \"ensimmäinen asiakaskäynti\",Asiakkuustiedot!B11:XFD11, \">=1.10.2016\",Asiakkuustiedot!B11:XFD11, \"<=31.10.2016\")","v":0},{"$f":"COUNTIFS(Asiakkuustiedot!B121:XFD121, \"luottotietomerkintä\",Asiakkuustiedot!B4:XFD4, \"ensimmäinen asiakaskäynti\",Asiakkuustiedot!B11:XFD11, \">=1.11.2016\",Asiakkuustiedot!B11:XFD11, \"<=30.11.2016\")","v":0},{"$f":"COUNTIFS(Asiakkuustiedot!B121:XFD121, \"luottotietomerkintä\",Asiakkuustiedot!B4:XFD4, \"ensimmäinen asiakaskäynti\",Asiakkuustiedot!B11:XFD11, \">=1.12.2016\",Asiakkuustiedot!B11:XFD11, \"<=31.12.2016\")","v":0}]
[null,"x",false,{"$f":"D79+1","v":58},"on häätö taustalla",{"$f":"COUNTIFS(Asiakkuustiedot!#REF!, \"on häätö taustalla\",Asiakkuustiedot!B4:XFD4, \"ensimmäinen asiakaskäynti\",Asiakkuustiedot!B11:XFD11, \">=1.1.2016\",Asiakkuustiedot!B11:XFD11, \"<=31.12.2016\")","v":{"$error":"#REF!"}},null,null,null,null,null,null,{"$f":"COUNTIFS(Asiakkuustiedot!#REF!, \"on häätö taustalla\",Asiakkuustiedot!B4:XFD4, \"ensimmäinen asiakaskäynti\",Asiakkuustiedot!B11:XFD11, \">=1.1.2016\",Asiakkuustiedot!B11:XFD11, \"<=31.1.2016\")","v":{"$error":"#REF!"}},{"$f":"COUNTIFS(Asiakkuustiedot!#REF!, \"on häätö taustalla\",Asiakkuustiedot!B4:XFD4, \"ensimmäinen asiakaskäynti\",Asiakkuustiedot!B11:XFD11, \">=1.2.2016\",Asiakkuustiedot!B11:XFD11, \"<=28.2.2016\")","v":{"$error":"#REF!"}},{"$f":"COUNTIFS(Asiakkuustiedot!#REF!, \"on häätö taustalla\",Asiakkuustiedot!B4:XFD4, \"ensimmäinen asiakaskäynti\",Asiakkuustiedot!B11:XFD11, \">=1.3.2016\",Asiakkuustiedot!B11:XFD11, \"<=31.3.2016\")","v":{"$error":"#REF!"}},{"$f":"COUNTIFS(Asiakkuustiedot!#REF!, \"on häätö taustalla\",Asiakkuustiedot!B4:XFD4, \"ensimmäinen asiakaskäynti\",Asiakkuustiedot!B11:XFD11, \">=1.4.2016\",Asiakkuustiedot!B11:XFD11, \"<=30.4.2016\")","v":{"$error":"#REF!"}},{"$f":"COUNTIFS(Asiakkuustiedot!#REF!, \"on häätö taustalla\",Asiakkuustiedot!B4:XFD4, \"ensimmäinen asiakaskäynti\",Asiakkuustiedot!B11:XFD11, \">=1.5.2016\",Asiakkuustiedot!B11:XFD11, \"<=31.5.2016\")","v":{"$error":"#REF!"}},{"$f":"COUNTIFS(Asiakkuustiedot!#REF!, \"on häätö taustalla\",Asiakkuustiedot!B4:XFD4, \"ensimmäinen asiakaskäynti\",Asiakkuustiedot!B11:XFD11, \">=1.6.2016\",Asiakkuustiedot!B11:XFD11, \"<=30.6.2016\")","v":{"$error":"#REF!"}},{"$f":"COUNTIFS(Asiakkuustiedot!#REF!, \"on häätö taustalla\",Asiakkuustiedot!B4:XFD4, \"ensimmäinen asiakaskäynti\",Asiakkuustiedot!B11:XFD11, \">=1.7.2016\",Asiakkuustiedot!B11:XFD11, \"<=31.7.2016\")","v":{"$error":"#REF!"}},{"$f":"COUNTIFS(Asiakkuustiedot!#REF!, \"on häätö taustalla\",Asiakkuustiedot!B4:XFD4, \"ensimmäinen asiakaskäynti\",Asiakkuustiedot!B11:XFD11, \">=1.8.2016\",Asiakkuustiedot!B11:XFD11, \"<=31.8.2016\")","v":{"$error":"#REF!"}},{"$f":"COUNTIFS(Asiakkuustiedot!#REF!, \"on häätö taustalla\",Asiakkuustiedot!B4:XFD4, \"ensimmäinen asiakaskäynti\",Asiakkuustiedot!B11:XFD11, \">=1.9.2016\",Asiakkuustiedot!B11:XFD11, \"<=30.9.2016\")","v":{"$error":"#REF!"}},{"$f":"COUNTIFS(Asiakkuustiedot!#REF!, \"on häätö taustalla\",Asiakkuustiedot!B4:XFD4, \"ensimmäinen asiakaskäynti\",Asiakkuustiedot!B11:XFD11, \">=1.10.2016\",Asiakkuustiedot!B11:XFD11, \"<=31.10.2016\")","v":{"$error":"#REF!"}},{"$f":"COUNTIFS(Asiakkuustiedot!#REF!, \"on häätö taustalla\",Asiakkuustiedot!B4:XFD4, \"ensimmäinen asiakaskäynti\",Asiakkuustiedot!B11:XFD11, \">=1.11.2016\",Asiakkuustiedot!B11:XFD11, \"<=30.11.2016\")","v":{"$error":"#REF!"}},{"$f":"COUNTIFS(Asiakkuustiedot!#REF!, \"on häätö taustalla\",Asiakkuustiedot!B4:XFD4, \"ensimmäinen asiakaskäynti\",Asiakkuustiedot!B11:XFD11, \">=1.12.2016\",Asiakkuustiedot!B11:XFD11, \"<=31.12.2016\")","v":{"$error":"#REF!"}}]
[null,"x",false,{"$f":"D80+1","v":59},"ei ole ansiotuloja",{"$f":"COUNTIFS(Asiakkuustiedot!B122:XFD122, \"ei ole ansiotuloja\",Asiakkuustiedot!B4:XFD4, \"ensimmäinen asiakaskäynti\",Asiakkuustiedot!B11:XFD11, \">=1.1.2016\",Asiakkuustiedot!B11:XFD11, \"<=31.12.2016\")","v":0},null,null,null,null,null,null,{"$f":"COUNTIFS(Asiakkuustiedot!B122:XFD122, \"ei ole ansiotuloja\",Asiakkuustiedot!B4:XFD4, \"ensimmäinen asiakaskäynti\",Asiakkuustiedot!B11:XFD11, \">=1.1.2016\",Asiakkuustiedot!B11:XFD11, \"<=31.1.2016\")","v":0},{"$f":"COUNTIFS(Asiakkuustiedot!B122:XFD122, \"ei ole ansiotuloja\",Asiakkuustiedot!B4:XFD4, \"ensimmäinen asiakaskäynti\",Asiakkuustiedot!B11:XFD11, \">=1.2.2016\",Asiakkuustiedot!B11:XFD11, \"<=28.2.2016\")","v":0},{"$f":"COUNTIFS(Asiakkuustiedot!B122:XFD122, \"ei ole ansiotuloja\",Asiakkuustiedot!B4:XFD4, \"ensimmäinen asiakaskäynti\",Asiakkuustiedot!B11:XFD11, \">=1.3.2016\",Asiakkuustiedot!B11:XFD11, \"<=31.3.2016\")","v":0},{"$f":"COUNTIFS(Asiakkuustiedot!B122:XFD122, \"ei ole ansiotuloja\",Asiakkuustiedot!B4:XFD4, \"ensimmäinen asiakaskäynti\",Asiakkuustiedot!B11:XFD11, \">=1.4.2016\",Asiakkuustiedot!B11:XFD11, \"<=30.4.2016\")","v":0},{"$f":"COUNTIFS(Asiakkuustiedot!B122:XFD122, \"ei ole ansiotuloja\",Asiakkuustiedot!B4:XFD4, \"ensimmäinen asiakaskäynti\",Asiakkuustiedot!B11:XFD11, \">=1.5.2016\",Asiakkuustiedot!B11:XFD11, \"<=31.5.2016\")","v":0},{"$f":"COUNTIFS(Asiakkuustiedot!B122:XFD122, \"ei ole ansiotuloja\",Asiakkuustiedot!B4:XFD4, \"ensimmäinen asiakaskäynti\",Asiakkuustiedot!B11:XFD11, \">=1.6.2016\",Asiakkuustiedot!B11:XFD11, \"<=30.6.2016\")","v":0},{"$f":"COUNTIFS(Asiakkuustiedot!B122:XFD122, \"ei ole ansiotuloja\",Asiakkuustiedot!B4:XFD4, \"ensimmäinen asiakaskäynti\",Asiakkuustiedot!B11:XFD11, \">=1.7.2016\",Asiakkuustiedot!B11:XFD11, \"<=31.7.2016\")","v":0},{"$f":"COUNTIFS(Asiakkuustiedot!B122:XFD122, \"ei ole ansiotuloja\",Asiakkuustiedot!B4:XFD4, \"ensimmäinen asiakaskäynti\",Asiakkuustiedot!B11:XFD11, \">=1.8.2016\",Asiakkuustiedot!B11:XFD11, \"<=31.8.2016\")","v":0},{"$f":"COUNTIFS(Asiakkuustiedot!B122:XFD122, \"ei ole ansiotuloja\",Asiakkuustiedot!B4:XFD4, \"ensimmäinen asiakaskäynti\",Asiakkuustiedot!B11:XFD11, \">=1.9.2016\",Asiakkuustiedot!B11:XFD11, \"<=30.9.2016\")","v":0},{"$f":"COUNTIFS(Asiakkuustiedot!B122:XFD122, \"ei ole ansiotuloja\",Asiakkuustiedot!B4:XFD4, \"ensimmäinen asiakaskäynti\",Asiakkuustiedot!B11:XFD11, \">=1.10.2016\",Asiakkuustiedot!B11:XFD11, \"<=31.10.2016\")","v":0},{"$f":"COUNTIFS(Asiakkuustiedot!B122:XFD122, \"ei ole ansiotuloja\",Asiakkuustiedot!B4:XFD4, \"ensimmäinen asiakaskäynti\",Asiakkuustiedot!B11:XFD11, \">=1.11.2016\",Asiakkuustiedot!B11:XFD11, \"<=30.11.2016\")","v":0},{"$f":"COUNTIFS(Asiakkuustiedot!B122:XFD122, \"ei ole ansiotuloja\",Asiakkuustiedot!B4:XFD4, \"ensimmäinen asiakaskäynti\",Asiakkuustiedot!B11:XFD11, \">=1.12.2016\",Asiakkuustiedot!B11:XFD11, \"<=31.12.2016\")","v":0}]
[null,"x",false,{"$f":"D81+1","v":60},"on sosiaalitoimen asiakas",{"$f":"COUNTIFS(Asiakkuustiedot!B123:XFD123, \"on sosiaalitoimen asiakas\",Asiakkuustiedot!B4:XFD4, \"ensimmäinen asiakaskäynti\",Asiakkuustiedot!B11:XFD11, \">=1.1.2016\",Asiakkuustiedot!B11:XFD11, \"<=31.12.2016\")","v":0},null,null,null,null,null,null,{"$f":"COUNTIFS(Asiakkuustiedot!B123:XFD123, \"on sosiaalitoimen asiakas\",Asiakkuustiedot!B4:XFD4, \"ensimmäinen asiakaskäynti\",Asiakkuustiedot!B11:XFD11, \">=1.1.2016\",Asiakkuustiedot!B11:XFD11, \"<=31.1.2016\")","v":0},{"$f":"COUNTIFS(Asiakkuustiedot!B123:XFD123, \"on sosiaalitoimen asiakas\",Asiakkuustiedot!B4:XFD4, \"ensimmäinen asiakaskäynti\",Asiakkuustiedot!B11:XFD11, \">=1.2.2016\",Asiakkuustiedot!B11:XFD11, \"<=28.2.2016\")","v":0},{"$f":"COUNTIFS(Asiakkuustiedot!B123:XFD123, \"on sosiaalitoimen asiakas\",Asiakkuustiedot!B4:XFD4, \"ensimmäinen asiakaskäynti\",Asiakkuustiedot!B11:XFD11, \">=1.3.2016\",Asiakkuustiedot!B11:XFD11, \"<=31.3.2016\")","v":0},{"$f":"COUNTIFS(Asiakkuustiedot!B123:XFD123, \"on sosiaalitoimen asiakas\",Asiakkuustiedot!B4:XFD4, \"ensimmäinen asiakaskäynti\",Asiakkuustiedot!B11:XFD11, \">=1.4.2016\",Asiakkuustiedot!B11:XFD11, \"<=30.4.2016\")","v":0},{"$f":"COUNTIFS(Asiakkuustiedot!B123:XFD123, \"on sosiaalitoimen asiakas\",Asiakkuustiedot!B4:XFD4, \"ensimmäinen asiakaskäynti\",Asiakkuustiedot!B11:XFD11, \">=1.5.2016\",Asiakkuustiedot!B11:XFD11, \"<=31.5.2016\")","v":0},{"$f":"COUNTIFS(Asiakkuustiedot!B123:XFD123, \"on sosiaalitoimen asiakas\",Asiakkuustiedot!B4:XFD4, \"ensimmäinen asiakaskäynti\",Asiakkuustiedot!B11:XFD11, \">=1.6.2016\",Asiakkuustiedot!B11:XFD11, \"<=30.6.2016\")","v":0},{"$f":"COUNTIFS(Asiakkuustiedot!B123:XFD123, \"on sosiaalitoimen asiakas\",Asiakkuustiedot!B4:XFD4, \"ensimmäinen asiakaskäynti\",Asiakkuustiedot!B11:XFD11, \">=1.7.2016\",Asiakkuustiedot!B11:XFD11, \"<=31.7.2016\")","v":0},{"$f":"COUNTIFS(Asiakkuustiedot!B123:XFD123, \"on sosiaalitoimen asiakas\",Asiakkuustiedot!B4:XFD4, \"ensimmäinen asiakaskäynti\",Asiakkuustiedot!B11:XFD11, \">=1.8.2016\",Asiakkuustiedot!B11:XFD11, \"<=31.8.2016\")","v":0},{"$f":"COUNTIFS(Asiakkuustiedot!B123:XFD123, \"on sosiaalitoimen asiakas\",Asiakkuustiedot!B4:XFD4, \"ensimmäinen asiakaskäynti\",Asiakkuustiedot!B11:XFD11, \">=1.9.2016\",Asiakkuustiedot!B11:XFD11, \"<=30.9.2016\")","v":0},{"$f":"COUNTIFS(Asiakkuustiedot!B123:XFD123, \"on sosiaalitoimen asiakas\",Asiakkuustiedot!B4:XFD4, \"ensimmäinen asiakaskäynti\",Asiakkuustiedot!B11:XFD11, \">=1.10.2016\",Asiakkuustiedot!B11:XFD11, \"<=31.10.2016\")","v":0},{"$f":"COUNTIFS(Asiakkuustiedot!B123:XFD123, \"on sosiaalitoimen asiakas\",Asiakkuustiedot!B4:XFD4, \"ensimmäinen asiakaskäynti\",Asiakkuustiedot!B11:XFD11, \">=1.11.2016\",Asiakkuustiedot!B11:XFD11, \"<=30.11.2016\")","v":0},{"$f":"COUNTIFS(Asiakkuustiedot!B123:XFD123, \"on sosiaalitoimen asiakas\",Asiakkuustiedot!B4:XFD4, \"ensimmäinen asiakaskäynti\",Asiakkuustiedot!B11:XFD11, \">=1.12.2016\",Asiakkuustiedot!B11:XFD11, \"<=31.12.2016\")","v":0}]
[null,"x",false,{"$f":"D82+1","v":61},"on vieraskielinen nimi",{"$f":"COUNTIFS(Asiakkuustiedot!B124:XFD124, \"on vieraskielinen nimi\",Asiakkuustiedot!B4:XFD4, \"ensimmäinen asiakaskäynti\",Asiakkuustiedot!B11:XFD11, \">=1.1.2016\",Asiakkuustiedot!B11:XFD11, \"<=31.12.2016\")","v":0},null,null,null,null,null,null,{"$f":"COUNTIFS(Asiakkuustiedot!B124:XFD124, \"on vieraskielinen nimi\",Asiakkuustiedot!B4:XFD4, \"ensimmäinen asiakaskäynti\",Asiakkuustiedot!B11:XFD11, \">=1.1.2016\",Asiakkuustiedot!B11:XFD11, \"<=31.1.2016\")","v":0},{"$f":"COUNTIFS(Asiakkuustiedot!B124:XFD124, \"on vieraskielinen nimi\",Asiakkuustiedot!B4:XFD4, \"ensimmäinen asiakaskäynti\",Asiakkuustiedot!B11:XFD11, \">=1.2.2016\",Asiakkuustiedot!B11:XFD11, \"<=28.2.2016\")","v":0},{"$f":"COUNTIFS(Asiakkuustiedot!B124:XFD124, \"on vieraskielinen nimi\",Asiakkuustiedot!B4:XFD4, \"ensimmäinen asiakaskäynti\",Asiakkuustiedot!B11:XFD11, \">=1.3.2016\",Asiakkuustiedot!B11:XFD11, \"<=31.3.2016\")","v":0},{"$f":"COUNTIFS(Asiakkuustiedot!B124:XFD124, \"on vieraskielinen nimi\",Asiakkuustiedot!B4:XFD4, \"ensimmäinen asiakaskäynti\",Asiakkuustiedot!B11:XFD11, \">=1.4.2016\",Asiakkuustiedot!B11:XFD11, \"<=30.4.2016\")","v":0},{"$f":"COUNTIFS(Asiakkuustiedot!B124:XFD124, \"on vieraskielinen nimi\",Asiakkuustiedot!B4:XFD4, \"ensimmäinen asiakaskäynti\",Asiakkuustiedot!B11:XFD11, \">=1.5.2016\",Asiakkuustiedot!B11:XFD11, \"<=31.5.2016\")","v":0},{"$f":"COUNTIFS(Asiakkuustiedot!B124:XFD124, \"on vieraskielinen nimi\",Asiakkuustiedot!B4:XFD4, \"ensimmäinen asiakaskäynti\",Asiakkuustiedot!B11:XFD11, \">=1.6.2016\",Asiakkuustiedot!B11:XFD11, \"<=30.6.2016\")","v":0},{"$f":"COUNTIFS(Asiakkuustiedot!B124:XFD124, \"on vieraskielinen nimi\",Asiakkuustiedot!B4:XFD4, \"ensimmäinen asiakaskäynti\",Asiakkuustiedot!B11:XFD11, \">=1.7.2016\",Asiakkuustiedot!B11:XFD11, \"<=31.7.2016\")","v":0},{"$f":"COUNTIFS(Asiakkuustiedot!B124:XFD124, \"on vieraskielinen nimi\",Asiakkuustiedot!B4:XFD4, \"ensimmäinen asiakaskäynti\",Asiakkuustiedot!B11:XFD11, \">=1.8.2016\",Asiakkuustiedot!B11:XFD11, \"<=31.8.2016\")","v":0},{"$f":"COUNTIFS(Asiakkuustiedot!B124:XFD124, \"on vieraskielinen nimi\",Asiakkuustiedot!B4:XFD4, \"ensimmäinen asiakaskäynti\",Asiakkuustiedot!B11:XFD11, \">=1.9.2016\",Asiakkuustiedot!B11:XFD11, \"<=30.9.2016\")","v":0},{"$f":"COUNTIFS(Asiakkuustiedot!B124:XFD124, \"on vieraskielinen nimi\",Asiakkuustiedot!B4:XFD4, \"ensimmäinen asiakaskäynti\",Asiakkuustiedot!B11:XFD11, \">=1.10.2016\",Asiakkuustiedot!B11:XFD11, \"<=31.10.2016\")","v":0},{"$f":"COUNTIFS(Asiakkuustiedot!B124:XFD124, \"on vieraskielinen nimi\",Asiakkuustiedot!B4:XFD4, \"ensimmäinen asiakaskäynti\",Asiakkuustiedot!B11:XFD11, \">=1.11.2016\",Asiakkuustiedot!B11:XFD11, \"<=30.11.2016\")","v":0},{"$f":"COUNTIFS(Asiakkuustiedot!B124:XFD124, \"on vieraskielinen nimi\",Asiakkuustiedot!B4:XFD4, \"ensimmäinen asiakaskäynti\",Asiakkuustiedot!B11:XFD11, \">=1.12.2016\",Asiakkuustiedot!B11:XFD11, \"<=31.12.2016\")","v":0}]
[null,"x",false,{"$f":"D83+1","v":62},"on ollut vankilassa",{"$f":"COUNTIFS(Asiakkuustiedot!B125:XFD125, \"on ollut vankilassa\",Asiakkuustiedot!B4:XFD4, \"ensimmäinen asiakaskäynti\",Asiakkuustiedot!B11:XFD11, \">=1.1.2016\",Asiakkuustiedot!B11:XFD11, \"<=31.12.2016\")","v":0},null,null,null,null,null,null,{"$f":"COUNTIFS(Asiakkuustiedot!B125:XFD125, \"on ollut vankilassa\",Asiakkuustiedot!B4:XFD4, \"ensimmäinen asiakaskäynti\",Asiakkuustiedot!B11:XFD11, \">=1.1.2016\",Asiakkuustiedot!B11:XFD11, \"<=31.1.2016\")","v":0},{"$f":"COUNTIFS(Asiakkuustiedot!B125:XFD125, \"on ollut vankilassa\",Asiakkuustiedot!B4:XFD4, \"ensimmäinen asiakaskäynti\",Asiakkuustiedot!B11:XFD11, \">=1.2.2016\",Asiakkuustiedot!B11:XFD11, \"<=28.2.2016\")","v":0},{"$f":"COUNTIFS(Asiakkuustiedot!B125:XFD125, \"on ollut vankilassa\",Asiakkuustiedot!B4:XFD4, \"ensimmäinen asiakaskäynti\",Asiakkuustiedot!B11:XFD11, \">=1.3.2016\",Asiakkuustiedot!B11:XFD11, \"<=31.3.2016\")","v":0},{"$f":"COUNTIFS(Asiakkuustiedot!B125:XFD125, \"on ollut vankilassa\",Asiakkuustiedot!B4:XFD4, \"ensimmäinen asiakaskäynti\",Asiakkuustiedot!B11:XFD11, \">=1.4.2016\",Asiakkuustiedot!B11:XFD11, \"<=30.4.2016\")","v":0},{"$f":"COUNTIFS(Asiakkuustiedot!B125:XFD125, \"on ollut vankilassa\",Asiakkuustiedot!B4:XFD4, \"ensimmäinen asiakaskäynti\",Asiakkuustiedot!B11:XFD11, \">=1.5.2016\",Asiakkuustiedot!B11:XFD11, \"<=31.5.2016\")","v":0},{"$f":"COUNTIFS(Asiakkuustiedot!B125:XFD125, \"on ollut vankilassa\",Asiakkuustiedot!B4:XFD4, \"ensimmäinen asiakaskäynti\",Asiakkuustiedot!B11:XFD11, \">=1.6.2016\",Asiakkuustiedot!B11:XFD11, \"<=30.6.2016\")","v":0},{"$f":"COUNTIFS(Asiakkuustiedot!B125:XFD125, \"on ollut vankilassa\",Asiakkuustiedot!B4:XFD4, \"ensimmäinen asiakaskäynti\",Asiakkuustiedot!B11:XFD11, \">=1.7.2016\",Asiakkuustiedot!B11:XFD11, \"<=31.7.2016\")","v":0},{"$f":"COUNTIFS(Asiakkuustiedot!B125:XFD125, \"on ollut vankilassa\",Asiakkuustiedot!B4:XFD4, \"ensimmäinen asiakaskäynti\",Asiakkuustiedot!B11:XFD11, \">=1.8.2016\",Asiakkuustiedot!B11:XFD11, \"<=31.8.2016\")","v":0},{"$f":"COUNTIFS(Asiakkuustiedot!B125:XFD125, \"on ollut vankilassa\",Asiakkuustiedot!B4:XFD4, \"ensimmäinen asiakaskäynti\",Asiakkuustiedot!B11:XFD11, \">=1.9.2016\",Asiakkuustiedot!B11:XFD11, \"<=30.9.2016\")","v":0},{"$f":"COUNTIFS(Asiakkuustiedot!B125:XFD125, \"on ollut vankilassa\",Asiakkuustiedot!B4:XFD4, \"ensimmäinen asiakaskäynti\",Asiakkuustiedot!B11:XFD11, \">=1.10.2016\",Asiakkuustiedot!B11:XFD11, \"<=31.10.2016\")","v":0},{"$f":"COUNTIFS(Asiakkuustiedot!B125:XFD125, \"on ollut vankilassa\",Asiakkuustiedot!B4:XFD4, \"ensimmäinen asiakaskäynti\",Asiakkuustiedot!B11:XFD11, \">=1.11.2016\",Asiakkuustiedot!B11:XFD11, \"<=30.11.2016\")","v":0},{"$f":"COUNTIFS(Asiakkuustiedot!B125:XFD125, \"on ollut vankilassa\",Asiakkuustiedot!B4:XFD4, \"ensimmäinen asiakaskäynti\",Asiakkuustiedot!B11:XFD11, \">=1.12.2016\",Asiakkuustiedot!B11:XFD11, \"<=31.12.2016\")","v":0}]
[null,"x",false,63,"akuutti MT-ongelma",{"$f":"COUNTIFS(Asiakkuustiedot!B126:XFD126, \"akuutti MT-ongelma\",Asiakkuustiedot!B4:XFD4, \"ensimmäinen asiakaskäynti\",Asiakkuustiedot!B11:XFD11, \">=1.1.2016\",Asiakkuustiedot!B11:XFD11, \"<=31.12.2016\")","v":0},null,null,null,null,null,null,{"$f":"COUNTIFS(Asiakkuustiedot!B126:XFD126, \"akuutti MT-ongelma\",Asiakkuustiedot!B4:XFD4, \"ensimmäinen asiakaskäynti\",Asiakkuustiedot!B11:XFD11, \">=1.1.2016\",Asiakkuustiedot!B11:XFD11, \"<=31.1.2016\")","v":0},{"$f":"COUNTIFS(Asiakkuustiedot!B126:XFD126, \"akuutti MT-ongelma\",Asiakkuustiedot!B4:XFD4, \"ensimmäinen asiakaskäynti\",Asiakkuustiedot!B11:XFD11, \">=1.2.2016\",Asiakkuustiedot!B11:XFD11, \"<=28.2.2016\")","v":0},{"$f":"COUNTIFS(Asiakkuustiedot!B126:XFD126, \"akuutti MT-ongelma\",Asiakkuustiedot!B4:XFD4, \"ensimmäinen asiakaskäynti\",Asiakkuustiedot!B11:XFD11, \">=1.3.2016\",Asiakkuustiedot!B11:XFD11, \"<=31.3.2016\")","v":0},{"$f":"COUNTIFS(Asiakkuustiedot!B126:XFD126, \"akuutti MT-ongelma\",Asiakkuustiedot!B4:XFD4, \"ensimmäinen asiakaskäynti\",Asiakkuustiedot!B11:XFD11, \">=1.4.2016\",Asiakkuustiedot!B11:XFD11, \"<=30.4.2016\")","v":0},{"$f":"COUNTIFS(Asiakkuustiedot!B126:XFD126, \"akuutti MT-ongelma\",Asiakkuustiedot!B4:XFD4, \"ensimmäinen asiakaskäynti\",Asiakkuustiedot!B11:XFD11, \">=1.5.2016\",Asiakkuustiedot!B11:XFD11, \"<=31.5.2016\")","v":0},{"$f":"COUNTIFS(Asiakkuustiedot!B126:XFD126, \"akuutti MT-ongelma\",Asiakkuustiedot!B4:XFD4, \"ensimmäinen asiakaskäynti\",Asiakkuustiedot!B11:XFD11, \">=1.6.2016\",Asiakkuustiedot!B11:XFD11, \"<=30.6.2016\")","v":0},{"$f":"COUNTIFS(Asiakkuustiedot!B126:XFD126, \"akuutti MT-ongelma\",Asiakkuustiedot!B4:XFD4, \"ensimmäinen asiakaskäynti\",Asiakkuustiedot!B11:XFD11, \">=1.7.2016\",Asiakkuustiedot!B11:XFD11, \"<=31.7.2016\")","v":0},{"$f":"COUNTIFS(Asiakkuustiedot!B126:XFD126, \"akuutti MT-ongelma\",Asiakkuustiedot!B4:XFD4, \"ensimmäinen asiakaskäynti\",Asiakkuustiedot!B11:XFD11, \">=1.8.2016\",Asiakkuustiedot!B11:XFD11, \"<=31.8.2016\")","v":0},{"$f":"COUNTIFS(Asiakkuustiedot!B126:XFD126, \"akuutti MT-ongelma\",Asiakkuustiedot!B4:XFD4, \"ensimmäinen asiakaskäynti\",Asiakkuustiedot!B11:XFD11, \">=1.9.2016\",Asiakkuustiedot!B11:XFD11, \"<=30.9.2016\")","v":0},{"$f":"COUNTIFS(Asiakkuustiedot!B126:XFD126, \"akuutti MT-ongelma\",Asiakkuustiedot!B4:XFD4, \"ensimmäinen asiakaskäynti\",Asiakkuustiedot!B11:XFD11, \">=1.10.2016\",Asiakkuustiedot!B11:XFD11, \"<=31.10.2016\")","v":0},{"$f":"COUNTIFS(Asiakkuustiedot!B126:XFD126, \"akuutti MT-ongelma\",Asiakkuustiedot!B4:XFD4, \"ensimmäinen asiakaskäynti\",Asiakkuustiedot!B11:XFD11, \">=1.11.2016\",Asiakkuustiedot!B11:XFD11, \"<=30.11.2016\")","v":0},{"$f":"COUNTIFS(Asiakkuustiedot!B126:XFD126, \"akuutti MT-ongelma\",Asiakkuustiedot!B4:XFD4, \"ensimmäinen asiakaskäynti\",Asiakkuustiedot!B11:XFD11, \">=1.12.2016\",Asiakkuustiedot!B11:XFD11, \"<=31.12.2016\")","v":0}]
[null,"x",false,64,"akuutti päihdeongelma",{"$f":"COUNTIFS(Asiakkuustiedot!B127:XFD127, \"akuutti päihdeongelma\",Asiakkuustiedot!B4:XFD4, \"ensimmäinen asiakaskäynti\",Asiakkuustiedot!B11:XFD11, \">=1.1.2016\",Asiakkuustiedot!B11:XFD11, \"<=31.12.2016\")","v":0},null,null,null,null,null,null,{"$f":"COUNTIFS(Asiakkuustiedot!B127:XFD127, \"akuutti päihdeongelma\",Asiakkuustiedot!B4:XFD4, \"ensimmäinen asiakaskäynti\",Asiakkuustiedot!B11:XFD11, \">=1.1.2016\",Asiakkuustiedot!B11:XFD11, \"<=31.1.2016\")","v":0},{"$f":"COUNTIFS(Asiakkuustiedot!B127:XFD127, \"akuutti päihdeongelma\",Asiakkuustiedot!B4:XFD4, \"ensimmäinen asiakaskäynti\",Asiakkuustiedot!B11:XFD11, \">=1.2.2016\",Asiakkuustiedot!B11:XFD11, \"<=28.2.2016\")","v":0},{"$f":"COUNTIFS(Asiakkuustiedot!B127:XFD127, \"akuutti päihdeongelma\",Asiakkuustiedot!B4:XFD4, \"ensimmäinen asiakaskäynti\",Asiakkuustiedot!B11:XFD11, \">=1.3.2016\",Asiakkuustiedot!B11:XFD11, \"<=31.3.2016\")","v":0},{"$f":"COUNTIFS(Asiakkuustiedot!B127:XFD127, \"akuutti päihdeongelma\",Asiakkuustiedot!B4:XFD4, \"ensimmäinen asiakaskäynti\",Asiakkuustiedot!B11:XFD11, \">=1.4.2016\",Asiakkuustiedot!B11:XFD11, \"<=30.4.2016\")","v":0},{"$f":"COUNTIFS(Asiakkuustiedot!B127:XFD127, \"akuutti päihdeongelma\",Asiakkuustiedot!B4:XFD4, \"ensimmäinen asiakaskäynti\",Asiakkuustiedot!B11:XFD11, \">=1.5.2016\",Asiakkuustiedot!B11:XFD11, \"<=31.5.2016\")","v":0},{"$f":"COUNTIFS(Asiakkuustiedot!B127:XFD127, \"akuutti päihdeongelma\",Asiakkuustiedot!B4:XFD4, \"ensimmäinen asiakaskäynti\",Asiakkuustiedot!B11:XFD11, \">=1.6.2016\",Asiakkuustiedot!B11:XFD11, \"<=30.6.2016\")","v":0},{"$f":"COUNTIFS(Asiakkuustiedot!B127:XFD127, \"akuutti päihdeongelma\",Asiakkuustiedot!B4:XFD4, \"ensimmäinen asiakaskäynti\",Asiakkuustiedot!B11:XFD11, \">=1.7.2016\",Asiakkuustiedot!B11:XFD11, \"<=31.7.2016\")","v":0},{"$f":"COUNTIFS(Asiakkuustiedot!B127:XFD127, \"akuutti päihdeongelma\",Asiakkuustiedot!B4:XFD4, \"ensimmäinen asiakaskäynti\",Asiakkuustiedot!B11:XFD11, \">=1.8.2016\",Asiakkuustiedot!B11:XFD11, \"<=31.8.2016\")","v":0},{"$f":"COUNTIFS(Asiakkuustiedot!B127:XFD127, \"akuutti päihdeongelma\",Asiakkuustiedot!B4:XFD4, \"ensimmäinen asiakaskäynti\",Asiakkuustiedot!B11:XFD11, \">=1.9.2016\",Asiakkuustiedot!B11:XFD11, \"<=30.9.2016\")","v":0},{"$f":"COUNTIFS(Asiakkuustiedot!B127:XFD127, \"akuutti päihdeongelma\",Asiakkuustiedot!B4:XFD4, \"ensimmäinen asiakaskäynti\",Asiakkuustiedot!B11:XFD11, \">=1.10.2016\",Asiakkuustiedot!B11:XFD11, \"<=31.10.2016\")","v":0},{"$f":"COUNTIFS(Asiakkuustiedot!B127:XFD127, \"akuutti päihdeongelma\",Asiakkuustiedot!B4:XFD4, \"ensimmäinen asiakaskäynti\",Asiakkuustiedot!B11:XFD11, \">=1.11.2016\",Asiakkuustiedot!B11:XFD11, \"<=30.11.2016\")","v":0},{"$f":"COUNTIFS(Asiakkuustiedot!B127:XFD127, \"akuutti päihdeongelma\",Asiakkuustiedot!B4:XFD4, \"ensimmäinen asiakaskäynti\",Asiakkuustiedot!B11:XFD11, \">=1.12.2016\",Asiakkuustiedot!B11:XFD11, \"<=31.12.2016\")","v":0}]
[]
[null,null,null,null,"Ratkesiko asia? Miten?"]
[null,"x",false,68,"sai asunnon",{"$f":"COUNTIFS(Asiakkuustiedot!B131:XFD131, \"sai asunnon\",Asiakkuustiedot!B4:XFD4, \"*\",Asiakkuustiedot!B11:XFD11, \">=1.1.2016\",Asiakkuustiedot!B11:XFD11, \"<=31.12.2016\")","v":0},null,null,null,null,null,null,{"$f":"COUNTIFS(Asiakkuustiedot!B131:XFD131, \"sai asunnon\",Asiakkuustiedot!B4:XFD4, \"*\",Asiakkuustiedot!B11:XFD11, \">=1.1.2016\",Asiakkuustiedot!B11:XFD11, \"<=31.1.2016\")","v":0},{"$f":"COUNTIFS(Asiakkuustiedot!B131:XFD131, \"sai asunnon\",Asiakkuustiedot!B4:XFD4, \"*\",Asiakkuustiedot!B11:XFD11, \">=1.2.2016\",Asiakkuustiedot!B11:XFD11, \"<=28.2.2016\")","v":0},{"$f":"COUNTIFS(Asiakkuustiedot!B131:XFD131, \"sai asunnon\",Asiakkuustiedot!B4:XFD4, \"*\",Asiakkuustiedot!B11:XFD11, \">=1.3.2016\",Asiakkuustiedot!B11:XFD11, \"<=31.3.2016\")","v":0},{"$f":"COUNTIFS(Asiakkuustiedot!B131:XFD131, \"sai asunnon\",Asiakkuustiedot!B4:XFD4, \"*\",Asiakkuustiedot!B11:XFD11, \">=1.4.2016\",Asiakkuustiedot!B11:XFD11, \"<=30.4.2016\")","v":0},{"$f":"COUNTIFS(Asiakkuustiedot!B131:XFD131, \"sai asunnon\",Asiakkuustiedot!B4:XFD4, \"*\",Asiakkuustiedot!B11:XFD11, \">=1.5.2016\",Asiakkuustiedot!B11:XFD11, \"<=31.5.2016\")","v":0},{"$f":"COUNTIFS(Asiakkuustiedot!B131:XFD131, \"sai asunnon\",Asiakkuustiedot!B4:XFD4, \"*\",Asiakkuustiedot!B11:XFD11, \">=1.6.2016\",Asiakkuustiedot!B11:XFD11, \"<=30.6.2016\")","v":0},{"$f":"COUNTIFS(Asiakkuustiedot!B131:XFD131, \"sai asunnon\",Asiakkuustiedot!B4:XFD4, \"*\",Asiakkuustiedot!B11:XFD11, \">=1.7.2016\",Asiakkuustiedot!B11:XFD11, \"<=31.7.2016\")","v":0},{"$f":"COUNTIFS(Asiakkuustiedot!B131:XFD131, \"sai asunnon\",Asiakkuustiedot!B4:XFD4, \"*\",Asiakkuustiedot!B11:XFD11, \">=1.8.2016\",Asiakkuustiedot!B11:XFD11, \"<=31.8.2016\")","v":0},{"$f":"COUNTIFS(Asiakkuustiedot!B131:XFD131, \"sai asunnon\",Asiakkuustiedot!B4:XFD4, \"*\",Asiakkuustiedot!B11:XFD11, \">=1.9.2016\",Asiakkuustiedot!B11:XFD11, \"<=30.9.2016\")","v":0},{"$f":"COUNTIFS(Asiakkuustiedot!B131:XFD131, \"sai asunnon\",Asiakkuustiedot!B4:XFD4, \"*\",Asiakkuustiedot!B11:XFD11, \">=1.10.2016\",Asiakkuustiedot!B11:XFD11, \"<=31.10.2016\")","v":0},{"$f":"COUNTIFS(Asiakkuustiedot!B131:XFD131, \"sai asunnon\",Asiakkuustiedot!B4:XFD4, \"*\",Asiakkuustiedot!B11:XFD11, \">=1.11.2016\",Asiakkuustiedot!B11:XFD11, \"<=30.11.2016\")","v":0},{"$f":"COUNTIFS(Asiakkuustiedot!B131:XFD131, \"sai asunnon\",Asiakkuustiedot!B4:XFD4, \"*\",Asiakkuustiedot!B11:XFD11, \">=1.12.2016\",Asiakkuustiedot!B11:XFD11, \"<=31.12.2016\")","v":0}]
[null,null,null,null,"Mistä sai asunnon?"]
[null,"x",false,69,"kaupungin asunto",{"$f":"COUNTIFS(Asiakkuustiedot!B132:XFD132, \"kaupungin asunto\",Asiakkuustiedot!B4:XFD4, \"*\",Asiakkuustiedot!B11:XFD11, \">=1.1.2016\",Asiakkuustiedot!B11:XFD11, \"<=31.12.2016\")","v":0},null,null,null,null,null,null,{"$f":"COUNTIFS(Asiakkuustiedot!B132:XFD132, \"kaupungin asunto\",Asiakkuustiedot!B4:XFD4, \"*\",Asiakkuustiedot!B11:XFD11, \">=1.1.2016\",Asiakkuustiedot!B11:XFD11, \"<=31.1.2016\")","v":0},{"$f":"COUNTIFS(Asiakkuustiedot!B132:XFD132, \"kaupungin asunto\",Asiakkuustiedot!B4:XFD4, \"*\",Asiakkuustiedot!B11:XFD11, \">=1.2.2016\",Asiakkuustiedot!B11:XFD11, \"<=28.2.2016\")","v":0},{"$f":"COUNTIFS(Asiakkuustiedot!B132:XFD132, \"kaupungin asunto\",Asiakkuustiedot!B4:XFD4, \"*\",Asiakkuustiedot!B11:XFD11, \">=1.3.2016\",Asiakkuustiedot!B11:XFD11, \"<=31.3.2016\")","v":0},{"$f":"COUNTIFS(Asiakkuustiedot!B132:XFD132, \"kaupungin asunto\",Asiakkuustiedot!B4:XFD4, \"*\",Asiakkuustiedot!B11:XFD11, \">=1.4.2016\",Asiakkuustiedot!B11:XFD11, \"<=30.4.2016\")","v":0},{"$f":"COUNTIFS(Asiakkuustiedot!B132:XFD132, \"kaupungin asunto\",Asiakkuustiedot!B4:XFD4, \"*\",Asiakkuustiedot!B11:XFD11, \">=1.5.2016\",Asiakkuustiedot!B11:XFD11, \"<=31.5.2016\")","v":0},{"$f":"COUNTIFS(Asiakkuustiedot!B132:XFD132, \"kaupungin asunto\",Asiakkuustiedot!B4:XFD4, \"*\",Asiakkuustiedot!B11:XFD11, \">=1.6.2016\",Asiakkuustiedot!B11:XFD11, \"<=30.6.2016\")","v":0},{"$f":"COUNTIFS(Asiakkuustiedot!B132:XFD132, \"kaupungin asunto\",Asiakkuustiedot!B4:XFD4, \"*\",Asiakkuustiedot!B11:XFD11, \">=1.7.2016\",Asiakkuustiedot!B11:XFD11, \"<=31.7.2016\")","v":0},{"$f":"COUNTIFS(Asiakkuustiedot!B132:XFD132, \"kaupungin asunto\",Asiakkuustiedot!B4:XFD4, \"*\",Asiakkuustiedot!B11:XFD11, \">=1.8.2016\",Asiakkuustiedot!B11:XFD11, \"<=31.8.2016\")","v":0},{"$f":"COUNTIFS(Asiakkuustiedot!B132:XFD132, \"kaupungin asunto\",Asiakkuustiedot!B4:XFD4, \"*\",Asiakkuustiedot!B11:XFD11, \">=1.9.2016\",Asiakkuustiedot!B11:XFD11, \"<=30.9.2016\")","v":0},{"$f":"COUNTIFS(Asiakkuustiedot!B132:XFD132, \"kaupungin asunto\",Asiakkuustiedot!B4:XFD4, \"*\",Asiakkuustiedot!B11:XFD11, \">=1.10.2016\",Asiakkuustiedot!B11:XFD11, \"<=31.10.2016\")","v":0},{"$f":"COUNTIFS(Asiakkuustiedot!B132:XFD132, \"kaupungin asunto\",Asiakkuustiedot!B4:XFD4, \"*\",Asiakkuustiedot!B11:XFD11, \">=1.11.2016\",Asiakkuustiedot!B11:XFD11, \"<=30.11.2016\")","v":0},{"$f":"COUNTIFS(Asiakkuustiedot!B132:XFD132, \"kaupungin asunto\",Asiakkuustiedot!B4:XFD4, \"*\",Asiakkuustiedot!B11:XFD11, \">=1.12.2016\",Asiakkuustiedot!B11:XFD11, \"<=31.12.2016\")","v":0}]
[null,"x",false,69,"asunto vapailta markkinoilta",{"$f":"COUNTIFS(Asiakkuustiedot!B132:XFD132, \"asunto vapailta markkinoilta\",Asiakkuustiedot!B4:XFD4, \"*\",Asiakkuustiedot!B11:XFD11, \">=1.1.2016\",Asiakkuustiedot!B11:XFD11, \"<=31.12.2016\")","v":0},null,null,null,null,null,null,{"$f":"COUNTIFS(Asiakkuustiedot!B132:XFD132, \"asunto vapailta markkinoilta\",Asiakkuustiedot!B4:XFD4, \"*\",Asiakkuustiedot!B11:XFD11, \">=1.1.2016\",Asiakkuustiedot!B11:XFD11, \"<=31.1.2016\")","v":0},{"$f":"COUNTIFS(Asiakkuustiedot!B132:XFD132, \"asunto vapailta markkinoilta\",Asiakkuustiedot!B4:XFD4, \"*\",Asiakkuustiedot!B11:XFD11, \">=1.2.2016\",Asiakkuustiedot!B11:XFD11, \"<=28.2.2016\")","v":0},{"$f":"COUNTIFS(Asiakkuustiedot!B132:XFD132, \"asunto vapailta markkinoilta\",Asiakkuustiedot!B4:XFD4, \"*\",Asiakkuustiedot!B11:XFD11, \">=1.3.2016\",Asiakkuustiedot!B11:XFD11, \"<=31.3.2016\")","v":0},{"$f":"COUNTIFS(Asiakkuustiedot!B132:XFD132, \"asunto vapailta markkinoilta\",Asiakkuustiedot!B4:XFD4, \"*\",Asiakkuustiedot!B11:XFD11, \">=1.4.2016\",Asiakkuustiedot!B11:XFD11, \"<=30.4.2016\")","v":0},{"$f":"COUNTIFS(Asiakkuustiedot!B132:XFD132, \"asunto vapailta markkinoilta\",Asiakkuustiedot!B4:XFD4, \"*\",Asiakkuustiedot!B11:XFD11, \">=1.5.2016\",Asiakkuustiedot!B11:XFD11, \"<=31.5.2016\")","v":0},{"$f":"COUNTIFS(Asiakkuustiedot!B132:XFD132, \"asunto vapailta markkinoilta\",Asiakkuustiedot!B4:XFD4, \"*\",Asiakkuustiedot!B11:XFD11, \">=1.6.2016\",Asiakkuustiedot!B11:XFD11, \"<=30.6.2016\")","v":0},{"$f":"COUNTIFS(Asiakkuustiedot!B132:XFD132, \"asunto vapailta markkinoilta\",Asiakkuustiedot!B4:XFD4, \"*\",Asiakkuustiedot!B11:XFD11, \">=1.7.2016\",Asiakkuustiedot!B11:XFD11, \"<=31.7.2016\")","v":0},{"$f":"COUNTIFS(Asiakkuustiedot!B132:XFD132, \"asunto vapailta markkinoilta\",Asiakkuustiedot!B4:XFD4, \"*\",Asiakkuustiedot!B11:XFD11, \">=1.8.2016\",Asiakkuustiedot!B11:XFD11, \"<=31.8.2016\")","v":0},{"$f":"COUNTIFS(Asiakkuustiedot!B132:XFD132, \"asunto vapailta markkinoilta\",Asiakkuustiedot!B4:XFD4, \"*\",Asiakkuustiedot!B11:XFD11, \">=1.9.2016\",Asiakkuustiedot!B11:XFD11, \"<=30.9.2016\")","v":0},{"$f":"COUNTIFS(Asiakkuustiedot!B132:XFD132, \"asunto vapailta markkinoilta\",Asiakkuustiedot!B4:XFD4, \"*\",Asiakkuustiedot!B11:XFD11, \">=1.10.2016\",Asiakkuustiedot!B11:XFD11, \"<=31.10.2016\")","v":0},{"$f":"COUNTIFS(Asiakkuustiedot!B132:XFD132, \"asunto vapailta markkinoilta\",Asiakkuustiedot!B4:XFD4, \"*\",Asiakkuustiedot!B11:XFD11, \">=1.11.2016\",Asiakkuustiedot!B11:XFD11, \"<=30.11.2016\")","v":0},{"$f":"COUNTIFS(Asiakkuustiedot!B132:XFD132, \"asunto vapailta markkinoilta\",Asiakkuustiedot!B4:XFD4, \"*\",Asiakkuustiedot!B11:XFD11, \">=1.12.2016\",Asiakkuustiedot!B11:XFD11, \"<=31.12.2016\")","v":0}]
[null,"x",false,69,"NAL",{"$f":"COUNTIFS(Asiakkuustiedot!B132:XFD132, \"NAL\",Asiakkuustiedot!B4:XFD4, \"*\",Asiakkuustiedot!B11:XFD11, \">=1.1.2016\",Asiakkuustiedot!B11:XFD11, \"<=31.12.2016\")","v":0},null,null,null,null,null,null,{"$f":"COUNTIFS(Asiakkuustiedot!B132:XFD132, \"NAL\",Asiakkuustiedot!B4:XFD4, \"*\",Asiakkuustiedot!B11:XFD11, \">=1.1.2016\",Asiakkuustiedot!B11:XFD11, \"<=31.1.2016\")","v":0},{"$f":"COUNTIFS(Asiakkuustiedot!B132:XFD132, \"NAL\",Asiakkuustiedot!B4:XFD4, \"*\",Asiakkuustiedot!B11:XFD11, \">=1.2.2016\",Asiakkuustiedot!B11:XFD11, \"<=28.2.2016\")","v":0},{"$f":"COUNTIFS(Asiakkuustiedot!B132:XFD132, \"NAL\",Asiakkuustiedot!B4:XFD4, \"*\",Asiakkuustiedot!B11:XFD11, \">=1.3.2016\",Asiakkuustiedot!B11:XFD11, \"<=31.3.2016\")","v":0},{"$f":"COUNTIFS(Asiakkuustiedot!B132:XFD132, \"NAL\",Asiakkuustiedot!B4:XFD4, \"*\",Asiakkuustiedot!B11:XFD11, \">=1.4.2016\",Asiakkuustiedot!B11:XFD11, \"<=30.4.2016\")","v":0},{"$f":"COUNTIFS(Asiakkuustiedot!B132:XFD132, \"NAL\",Asiakkuustiedot!B4:XFD4, \"*\",Asiakkuustiedot!B11:XFD11, \">=1.5.2016\",Asiakkuustiedot!B11:XFD11, \"<=31.5.2016\")","v":0},{"$f":"COUNTIFS(Asiakkuustiedot!B132:XFD132, \"NAL\",Asiakkuustiedot!B4:XFD4, \"*\",Asiakkuustiedot!B11:XFD11, \">=1.6.2016\",Asiakkuustiedot!B11:XFD11, \"<=30.6.2016\")","v":0},{"$f":"COUNTIFS(Asiakkuustiedot!B132:XFD132, \"NAL\",Asiakkuustiedot!B4:XFD4, \"*\",Asiakkuustiedot!B11:XFD11, \">=1.7.2016\",Asiakkuustiedot!B11:XFD11, \"<=31.7.2016\")","v":0},{"$f":"COUNTIFS(Asiakkuustiedot!B132:XFD132, \"NAL\",Asiakkuustiedot!B4:XFD4, \"*\",Asiakkuustiedot!B11:XFD11, \">=1.8.2016\",Asiakkuustiedot!B11:XFD11, \"<=31.8.2016\")","v":0},{"$f":"COUNTIFS(Asiakkuustiedot!B132:XFD132, \"NAL\",Asiakkuustiedot!B4:XFD4, \"*\",Asiakkuustiedot!B11:XFD11, \">=1.9.2016\",Asiakkuustiedot!B11:XFD11, \"<=30.9.2016\")","v":0},{"$f":"COUNTIFS(Asiakkuustiedot!B132:XFD132, \"NAL\",Asiakkuustiedot!B4:XFD4, \"*\",Asiakkuustiedot!B11:XFD11, \">=1.10.2016\",Asiakkuustiedot!B11:XFD11, \"<=31.10.2016\")","v":0},{"$f":"COUNTIFS(Asiakkuustiedot!B132:XFD132, \"NAL\",Asiakkuustiedot!B4:XFD4, \"*\",Asiakkuustiedot!B11:XFD11, \">=1.11.2016\",Asiakkuustiedot!B11:XFD11, \"<=30.11.2016\")","v":0},{"$f":"COUNTIFS(Asiakkuustiedot!B132:XFD132, \"NAL\",Asiakkuustiedot!B4:XFD4, \"*\",Asiakkuustiedot!B11:XFD11, \">=1.12.2016\",Asiakkuustiedot!B11:XFD11, \"<=31.12.2016\")","v":0}]
[null,"x",false,69,"Nuorisosäätiö",{"$f":"COUNTIFS(Asiakkuustiedot!B132:XFD132, \"Nuorisosäätiö\",Asiakkuustiedot!B4:XFD4, \"*\",Asiakkuustiedot!B11:XFD11, \">=1.1.2016\",Asiakkuustiedot!B11:XFD11, \"<=31.12.2016\")","v":0},null,null,null,null,null,null,{"$f":"COUNTIFS(Asiakkuustiedot!B132:XFD132, \"Nuorisosäätiö\",Asiakkuustiedot!B4:XFD4, \"*\",Asiakkuustiedot!B11:XFD11, \">=1.1.2016\",Asiakkuustiedot!B11:XFD11, \"<=31.1.2016\")","v":0},{"$f":"COUNTIFS(Asiakkuustiedot!B132:XFD132, \"Nuorisosäätiö\",Asiakkuustiedot!B4:XFD4, \"*\",Asiakkuustiedot!B11:XFD11, \">=1.2.2016\",Asiakkuustiedot!B11:XFD11, \"<=28.2.2016\")","v":0},{"$f":"COUNTIFS(Asiakkuustiedot!B132:XFD132, \"Nuorisosäätiö\",Asiakkuustiedot!B4:XFD4, \"*\",Asiakkuustiedot!B11:XFD11, \">=1.3.2016\",Asiakkuustiedot!B11:XFD11, \"<=31.3.2016\")","v":0},{"$f":"COUNTIFS(Asiakkuustiedot!B132:XFD132, \"Nuorisosäätiö\",Asiakkuustiedot!B4:XFD4, \"*\",Asiakkuustiedot!B11:XFD11, \">=1.4.2016\",Asiakkuustiedot!B11:XFD11, \"<=30.4.2016\")","v":0},{"$f":"COUNTIFS(Asiakkuustiedot!B132:XFD132, \"Nuorisosäätiö\",Asiakkuustiedot!B4:XFD4, \"*\",Asiakkuustiedot!B11:XFD11, \">=1.5.2016\",Asiakkuustiedot!B11:XFD11, \"<=31.5.2016\")","v":0},{"$f":"COUNTIFS(Asiakkuustiedot!B132:XFD132, \"Nuorisosäätiö\",Asiakkuustiedot!B4:XFD4, \"*\",Asiakkuustiedot!B11:XFD11, \">=1.6.2016\",Asiakkuustiedot!B11:XFD11, \"<=30.6.2016\")","v":0},{"$f":"COUNTIFS(Asiakkuustiedot!B132:XFD132, \"Nuorisosäätiö\",Asiakkuustiedot!B4:XFD4, \"*\",Asiakkuustiedot!B11:XFD11, \">=1.7.2016\",Asiakkuustiedot!B11:XFD11, \"<=31.7.2016\")","v":0},{"$f":"COUNTIFS(Asiakkuustiedot!B132:XFD132, \"Nuorisosäätiö\",Asiakkuustiedot!B4:XFD4, \"*\",Asiakkuustiedot!B11:XFD11, \">=1.8.2016\",Asiakkuustiedot!B11:XFD11, \"<=31.8.2016\")","v":0},{"$f":"COUNTIFS(Asiakkuustiedot!B132:XFD132, \"Nuorisosäätiö\",Asiakkuustiedot!B4:XFD4, \"*\",Asiakkuustiedot!B11:XFD11, \">=1.9.2016\",Asiakkuustiedot!B11:XFD11, \"<=30.9.2016\")","v":0},{"$f":"COUNTIFS(Asiakkuustiedot!B132:XFD132, \"Nuorisosäätiö\",Asiakkuustiedot!B4:XFD4, \"*\",Asiakkuustiedot!B11:XFD11, \">=1.10.2016\",Asiakkuustiedot!B11:XFD11, \"<=31.10.2016\")","v":0},{"$f":"COUNTIFS(Asiakkuustiedot!B132:XFD132, \"Nuorisosäätiö\",Asiakkuustiedot!B4:XFD4, \"*\",Asiakkuustiedot!B11:XFD11, \">=1.11.2016\",Asiakkuustiedot!B11:XFD11, \"<=30.11.2016\")","v":0},{"$f":"COUNTIFS(Asiakkuustiedot!B132:XFD132, \"Nuorisosäätiö\",Asiakkuustiedot!B4:XFD4, \"*\",Asiakkuustiedot!B11:XFD11, \">=1.12.2016\",Asiakkuustiedot!B11:XFD11, \"<=31.12.2016\")","v":0}]
[null,"x",false,69,"HOAS",{"$f":"COUNTIFS(Asiakkuustiedot!B132:XFD132, \"HOAS\",Asiakkuustiedot!B4:XFD4, \"*\",Asiakkuustiedot!B11:XFD11, \">=1.1.2016\",Asiakkuustiedot!B11:XFD11, \"<=31.12.2016\")","v":0},null,null,null,null,null,null,{"$f":"COUNTIFS(Asiakkuustiedot!B132:XFD132, \"HOAS\",Asiakkuustiedot!B4:XFD4, \"*\",Asiakkuustiedot!B11:XFD11, \">=1.1.2016\",Asiakkuustiedot!B11:XFD11, \"<=31.1.2016\")","v":0},{"$f":"COUNTIFS(Asiakkuustiedot!B132:XFD132, \"HOAS\",Asiakkuustiedot!B4:XFD4, \"*\",Asiakkuustiedot!B11:XFD11, \">=1.2.2016\",Asiakkuustiedot!B11:XFD11, \"<=28.2.2016\")","v":0},{"$f":"COUNTIFS(Asiakkuustiedot!B132:XFD132, \"HOAS\",Asiakkuustiedot!B4:XFD4, \"*\",Asiakkuustiedot!B11:XFD11, \">=1.3.2016\",Asiakkuustiedot!B11:XFD11, \"<=31.3.2016\")","v":0},{"$f":"COUNTIFS(Asiakkuustiedot!B132:XFD132, \"HOAS\",Asiakkuustiedot!B4:XFD4, \"*\",Asiakkuustiedot!B11:XFD11, \">=1.4.2016\",Asiakkuustiedot!B11:XFD11, \"<=30.4.2016\")","v":0},{"$f":"COUNTIFS(Asiakkuustiedot!B132:XFD132, \"HOAS\",Asiakkuustiedot!B4:XFD4, \"*\",Asiakkuustiedot!B11:XFD11, \">=1.5.2016\",Asiakkuustiedot!B11:XFD11, \"<=31.5.2016\")","v":0},{"$f":"COUNTIFS(Asiakkuustiedot!B132:XFD132, \"HOAS\",Asiakkuustiedot!B4:XFD4, \"*\",Asiakkuustiedot!B11:XFD11, \">=1.6.2016\",Asiakkuustiedot!B11:XFD11, \"<=30.6.2016\")","v":0},{"$f":"COUNTIFS(Asiakkuustiedot!B132:XFD132, \"HOAS\",Asiakkuustiedot!B4:XFD4, \"*\",Asiakkuustiedot!B11:XFD11, \">=1.7.2016\",Asiakkuustiedot!B11:XFD11, \"<=31.7.2016\")","v":0},{"$f":"COUNTIFS(Asiakkuustiedot!B132:XFD132, \"HOAS\",Asiakkuustiedot!B4:XFD4, \"*\",Asiakkuustiedot!B11:XFD11, \">=1.8.2016\",Asiakkuustiedot!B11:XFD11, \"<=31.8.2016\")","v":0},{"$f":"COUNTIFS(Asiakkuustiedot!B132:XFD132, \"HOAS\",Asiakkuustiedot!B4:XFD4, \"*\",Asiakkuustiedot!B11:XFD11, \">=1.9.2016\",Asiakkuustiedot!B11:XFD11, \"<=30.9.2016\")","v":0},{"$f":"COUNTIFS(Asiakkuustiedot!B132:XFD132, \"HOAS\",Asiakkuustiedot!B4:XFD4, \"*\",Asiakkuustiedot!B11:XFD11, \">=1.10.2016\",Asiakkuustiedot!B11:XFD11, \"<=31.10.2016\")","v":0},{"$f":"COUNTIFS(Asiakkuustiedot!B132:XFD132, \"HOAS\",Asiakkuustiedot!B4:XFD4, \"*\",Asiakkuustiedot!B11:XFD11, \">=1.11.2016\",Asiakkuustiedot!B11:XFD11, \"<=30.11.2016\")","v":0},{"$f":"COUNTIFS(Asiakkuustiedot!B132:XFD132, \"HOAS\",Asiakkuustiedot!B4:XFD4, \"*\",Asiakkuustiedot!B11:XFD11, \">=1.12.2016\",Asiakkuustiedot!B11:XFD11, \"<=31.12.2016\")","v":0}]
[null,"x",false,69,"S-Asunnot",{"$f":"COUNTIFS(Asiakkuustiedot!B132:XFD132, \"S-Asunnot\",Asiakkuustiedot!B4:XFD4, \"*\",Asiakkuustiedot!B11:XFD11, \">=1.1.2016\",Asiakkuustiedot!B11:XFD11, \"<=31.12.2016\")","v":0},null,null,null,null,null,null,{"$f":"COUNTIFS(Asiakkuustiedot!B132:XFD132, \"S-Asunnot\",Asiakkuustiedot!B4:XFD4, \"*\",Asiakkuustiedot!B11:XFD11, \">=1.1.2016\",Asiakkuustiedot!B11:XFD11, \"<=31.1.2016\")","v":0},{"$f":"COUNTIFS(Asiakkuustiedot!B132:XFD132, \"S-Asunnot\",Asiakkuustiedot!B4:XFD4, \"*\",Asiakkuustiedot!B11:XFD11, \">=1.2.2016\",Asiakkuustiedot!B11:XFD11, \"<=28.2.2016\")","v":0},{"$f":"COUNTIFS(Asiakkuustiedot!B132:XFD132, \"S-Asunnot\",Asiakkuustiedot!B4:XFD4, \"*\",Asiakkuustiedot!B11:XFD11, \">=1.3.2016\",Asiakkuustiedot!B11:XFD11, \"<=31.3.2016\")","v":0},{"$f":"COUNTIFS(Asiakkuustiedot!B132:XFD132, \"S-Asunnot\",Asiakkuustiedot!B4:XFD4, \"*\",Asiakkuustiedot!B11:XFD11, \">=1.4.2016\",Asiakkuustiedot!B11:XFD11, \"<=30.4.2016\")","v":0},{"$f":"COUNTIFS(Asiakkuustiedot!B132:XFD132, \"S-Asunnot\",Asiakkuustiedot!B4:XFD4, \"*\",Asiakkuustiedot!B11:XFD11, \">=1.5.2016\",Asiakkuustiedot!B11:XFD11, \"<=31.5.2016\")","v":0},{"$f":"COUNTIFS(Asiakkuustiedot!B132:XFD132, \"S-Asunnot\",Asiakkuustiedot!B4:XFD4, \"*\",Asiakkuustiedot!B11:XFD11, \">=1.6.2016\",Asiakkuustiedot!B11:XFD11, \"<=30.6.2016\")","v":0},{"$f":"COUNTIFS(Asiakkuustiedot!B132:XFD132, \"S-Asunnot\",Asiakkuustiedot!B4:XFD4, \"*\",Asiakkuustiedot!B11:XFD11, \">=1.7.2016\",Asiakkuustiedot!B11:XFD11, \"<=31.7.2016\")","v":0},{"$f":"COUNTIFS(Asiakkuustiedot!B132:XFD132, \"S-Asunnot\",Asiakkuustiedot!B4:XFD4, \"*\",Asiakkuustiedot!B11:XFD11, \">=1.8.2016\",Asiakkuustiedot!B11:XFD11, \"<=31.8.2016\")","v":0},{"$f":"COUNTIFS(Asiakkuustiedot!B132:XFD132, \"S-Asunnot\",Asiakkuustiedot!B4:XFD4, \"*\",Asiakkuustiedot!B11:XFD11, \">=1.9.2016\",Asiakkuustiedot!B11:XFD11, \"<=30.9.2016\")","v":0},{"$f":"COUNTIFS(Asiakkuustiedot!B132:XFD132, \"S-Asunnot\",Asiakkuustiedot!B4:XFD4, \"*\",Asiakkuustiedot!B11:XFD11, \">=1.10.2016\",Asiakkuustiedot!B11:XFD11, \"<=31.10.2016\")","v":0},{"$f":"COUNTIFS(Asiakkuustiedot!B132:XFD132, \"S-Asunnot\",Asiakkuustiedot!B4:XFD4, \"*\",Asiakkuustiedot!B11:XFD11, \">=1.11.2016\",Asiakkuustiedot!B11:XFD11, \"<=30.11.2016\")","v":0},{"$f":"COUNTIFS(Asiakkuustiedot!B132:XFD132, \"S-Asunnot\",Asiakkuustiedot!B4:XFD4, \"*\",Asiakkuustiedot!B11:XFD11, \">=1.12.2016\",Asiakkuustiedot!B11:XFD11, \"<=31.12.2016\")","v":0}]
[null,"x",false,69,"Y-Säätiö",{"$f":"COUNTIFS(Asiakkuustiedot!B132:XFD132, \"Y-Säätiö\",Asiakkuustiedot!B4:XFD4, \"*\",Asiakkuustiedot!B11:XFD11, \">=1.1.2016\",Asiakkuustiedot!B11:XFD11, \"<=31.12.2016\")","v":0},null,null,null,null,null,null,{"$f":"COUNTIFS(Asiakkuustiedot!B132:XFD132, \"Y-Säätiö\",Asiakkuustiedot!B4:XFD4, \"*\",Asiakkuustiedot!B11:XFD11, \">=1.1.2016\",Asiakkuustiedot!B11:XFD11, \"<=31.1.2016\")","v":0},{"$f":"COUNTIFS(Asiakkuustiedot!B132:XFD132, \"Y-Säätiö\",Asiakkuustiedot!B4:XFD4, \"*\",Asiakkuustiedot!B11:XFD11, \">=1.2.2016\",Asiakkuustiedot!B11:XFD11, \"<=28.2.2016\")","v":0},{"$f":"COUNTIFS(Asiakkuustiedot!B132:XFD132, \"Y-Säätiö\",Asiakkuustiedot!B4:XFD4, \"*\",Asiakkuustiedot!B11:XFD11, \">=1.3.2016\",Asiakkuustiedot!B11:XFD11, \"<=31.3.2016\")","v":0},{"$f":"COUNTIFS(Asiakkuustiedot!B132:XFD132, \"Y-Säätiö\",Asiakkuustiedot!B4:XFD4, \"*\",Asiakkuustiedot!B11:XFD11, \">=1.4.2016\",Asiakkuustiedot!B11:XFD11, \"<=30.4.2016\")","v":0},{"$f":"COUNTIFS(Asiakkuustiedot!B132:XFD132, \"Y-Säätiö\",Asiakkuustiedot!B4:XFD4, \"*\",Asiakkuustiedot!B11:XFD11, \">=1.5.2016\",Asiakkuustiedot!B11:XFD11, \"<=31.5.2016\")","v":0},{"$f":"COUNTIFS(Asiakkuustiedot!B132:XFD132, \"Y-Säätiö\",Asiakkuustiedot!B4:XFD4, \"*\",Asiakkuustiedot!B11:XFD11, \">=1.6.2016\",Asiakkuustiedot!B11:XFD11, \"<=30.6.2016\")","v":0},{"$f":"COUNTIFS(Asiakkuustiedot!B132:XFD132, \"Y-Säätiö\",Asiakkuustiedot!B4:XFD4, \"*\",Asiakkuustiedot!B11:XFD11, \">=1.7.2016\",Asiakkuustiedot!B11:XFD11, \"<=31.7.2016\")","v":0},{"$f":"COUNTIFS(Asiakkuustiedot!B132:XFD132, \"Y-Säätiö\",Asiakkuustiedot!B4:XFD4, \"*\",Asiakkuustiedot!B11:XFD11, \">=1.8.2016\",Asiakkuustiedot!B11:XFD11, \"<=31.8.2016\")","v":0},{"$f":"COUNTIFS(Asiakkuustiedot!B132:XFD132, \"Y-Säätiö\",Asiakkuustiedot!B4:XFD4, \"*\",Asiakkuustiedot!B11:XFD11, \">=1.9.2016\",Asiakkuustiedot!B11:XFD11, \"<=30.9.2016\")","v":0},{"$f":"COUNTIFS(Asiakkuustiedot!B132:XFD132, \"Y-Säätiö\",Asiakkuustiedot!B4:XFD4, \"*\",Asiakkuustiedot!B11:XFD11, \">=1.10.2016\",Asiakkuustiedot!B11:XFD11, \"<=31.10.2016\")","v":0},{"$f":"COUNTIFS(Asiakkuustiedot!B132:XFD132, \"Y-Säätiö\",Asiakkuustiedot!B4:XFD4, \"*\",Asiakkuustiedot!B11:XFD11, \">=1.11.2016\",Asiakkuustiedot!B11:XFD11, \"<=30.11.2016\")","v":0},{"$f":"COUNTIFS(Asiakkuustiedot!B132:XFD132, \"Y-Säätiö\",Asiakkuustiedot!B4:XFD4, \"*\",Asiakkuustiedot!B11:XFD11, \">=1.12.2016\",Asiakkuustiedot!B11:XFD11, \"<=31.12.2016\")","v":0}]
[null,"x",false,69,"VVO",{"$f":"COUNTIFS(Asiakkuustiedot!B132:XFD132, \"VVO\",Asiakkuustiedot!B4:XFD4, \"*\",Asiakkuustiedot!B11:XFD11, \">=1.1.2016\",Asiakkuustiedot!B11:XFD11, \"<=31.12.2016\")","v":0},null,null,null,null,null,null,{"$f":"COUNTIFS(Asiakkuustiedot!B132:XFD132, \"VVO\",Asiakkuustiedot!B4:XFD4, \"*\",Asiakkuustiedot!B11:XFD11, \">=1.1.2016\",Asiakkuustiedot!B11:XFD11, \"<=31.1.2016\")","v":0},{"$f":"COUNTIFS(Asiakkuustiedot!B132:XFD132, \"VVO\",Asiakkuustiedot!B4:XFD4, \"*\",Asiakkuustiedot!B11:XFD11, \">=1.2.2016\",Asiakkuustiedot!B11:XFD11, \"<=28.2.2016\")","v":0},{"$f":"COUNTIFS(Asiakkuustiedot!B132:XFD132, \"VVO\",Asiakkuustiedot!B4:XFD4, \"*\",Asiakkuustiedot!B11:XFD11, \">=1.3.2016\",Asiakkuustiedot!B11:XFD11, \"<=31.3.2016\")","v":0},{"$f":"COUNTIFS(Asiakkuustiedot!B132:XFD132, \"VVO\",Asiakkuustiedot!B4:XFD4, \"*\",Asiakkuustiedot!B11:XFD11, \">=1.4.2016\",Asiakkuustiedot!B11:XFD11, \"<=30.4.2016\")","v":0},{"$f":"COUNTIFS(Asiakkuustiedot!B132:XFD132, \"VVO\",Asiakkuustiedot!B4:XFD4, \"*\",Asiakkuustiedot!B11:XFD11, \">=1.5.2016\",Asiakkuustiedot!B11:XFD11, \"<=31.5.2016\")","v":0},{"$f":"COUNTIFS(Asiakkuustiedot!B132:XFD132, \"VVO\",Asiakkuustiedot!B4:XFD4, \"*\",Asiakkuustiedot!B11:XFD11, \">=1.6.2016\",Asiakkuustiedot!B11:XFD11, \"<=30.6.2016\")","v":0},{"$f":"COUNTIFS(Asiakkuustiedot!B132:XFD132, \"VVO\",Asiakkuustiedot!B4:XFD4, \"*\",Asiakkuustiedot!B11:XFD11, \">=1.7.2016\",Asiakkuustiedot!B11:XFD11, \"<=31.7.2016\")","v":0},{"$f":"COUNTIFS(Asiakkuustiedot!B132:XFD132, \"VVO\",Asiakkuustiedot!B4:XFD4, \"*\",Asiakkuustiedot!B11:XFD11, \">=1.8.2016\",Asiakkuustiedot!B11:XFD11, \"<=31.8.2016\")","v":0},{"$f":"COUNTIFS(Asiakkuustiedot!B132:XFD132, \"VVO\",Asiakkuustiedot!B4:XFD4, \"*\",Asiakkuustiedot!B11:XFD11, \">=1.9.2016\",Asiakkuustiedot!B11:XFD11, \"<=30.9.2016\")","v":0},{"$f":"COUNTIFS(Asiakkuustiedot!B132:XFD132, \"VVO\",Asiakkuustiedot!B4:XFD4, \"*\",Asiakkuustiedot!B11:XFD11, \">=1.10.2016\",Asiakkuustiedot!B11:XFD11, \"<=31.10.2016\")","v":0},{"$f":"COUNTIFS(Asiakkuustiedot!B132:XFD132, \"VVO\",Asiakkuustiedot!B4:XFD4, \"*\",Asiakkuustiedot!B11:XFD11, \">=1.11.2016\",Asiakkuustiedot!B11:XFD11, \"<=30.11.2016\")","v":0},{"$f":"COUNTIFS(Asiakkuustiedot!B132:XFD132, \"VVO\",Asiakkuustiedot!B4:XFD4, \"*\",Asiakkuustiedot!B11:XFD11, \">=1.12.2016\",Asiakkuustiedot!B11:XFD11, \"<=31.12.2016\")","v":0}]
[null,"x",false,69,"Sato",{"$f":"COUNTIFS(Asiakkuustiedot!B132:XFD132, \"Sato\",Asiakkuustiedot!B4:XFD4, \"*\",Asiakkuustiedot!B11:XFD11, \">=1.1.2016\",Asiakkuustiedot!B11:XFD11, \"<=31.12.2016\")","v":0},null,null,null,null,null,null,{"$f":"COUNTIFS(Asiakkuustiedot!B132:XFD132, \"Sato\",Asiakkuustiedot!B4:XFD4, \"*\",Asiakkuustiedot!B11:XFD11, \">=1.1.2016\",Asiakkuustiedot!B11:XFD11, \"<=31.1.2016\")","v":0},{"$f":"COUNTIFS(Asiakkuustiedot!B132:XFD132, \"Sato\",Asiakkuustiedot!B4:XFD4, \"*\",Asiakkuustiedot!B11:XFD11, \">=1.2.2016\",Asiakkuustiedot!B11:XFD11, \"<=28.2.2016\")","v":0},{"$f":"COUNTIFS(Asiakkuustiedot!B132:XFD132, \"Sato\",Asiakkuustiedot!B4:XFD4, \"*\",Asiakkuustiedot!B11:XFD11, \">=1.3.2016\",Asiakkuustiedot!B11:XFD11, \"<=31.3.2016\")","v":0},{"$f":"COUNTIFS(Asiakkuustiedot!B132:XFD132, \"Sato\",Asiakkuustiedot!B4:XFD4, \"*\",Asiakkuustiedot!B11:XFD11, \">=1.4.2016\",Asiakkuustiedot!B11:XFD11, \"<=30.4.2016\")","v":0},{"$f":"COUNTIFS(Asiakkuustiedot!B132:XFD132, \"Sato\",Asiakkuustiedot!B4:XFD4, \"*\",Asiakkuustiedot!B11:XFD11, \">=1.5.2016\",Asiakkuustiedot!B11:XFD11, \"<=31.5.2016\")","v":0},{"$f":"COUNTIFS(Asiakkuustiedot!B132:XFD132, \"Sato\",Asiakkuustiedot!B4:XFD4, \"*\",Asiakkuustiedot!B11:XFD11, \">=1.6.2016\",Asiakkuustiedot!B11:XFD11, \"<=30.6.2016\")","v":0},{"$f":"COUNTIFS(Asiakkuustiedot!B132:XFD132, \"Sato\",Asiakkuustiedot!B4:XFD4, \"*\",Asiakkuustiedot!B11:XFD11, \">=1.7.2016\",Asiakkuustiedot!B11:XFD11, \"<=31.7.2016\")","v":0},{"$f":"COUNTIFS(Asiakkuustiedot!B132:XFD132, \"Sato\",Asiakkuustiedot!B4:XFD4, \"*\",Asiakkuustiedot!B11:XFD11, \">=1.8.2016\",Asiakkuustiedot!B11:XFD11, \"<=31.8.2016\")","v":0},{"$f":"COUNTIFS(Asiakkuustiedot!B132:XFD132, \"Sato\",Asiakkuustiedot!B4:XFD4, \"*\",Asiakkuustiedot!B11:XFD11, \">=1.9.2016\",Asiakkuustiedot!B11:XFD11, \"<=30.9.2016\")","v":0},{"$f":"COUNTIFS(Asiakkuustiedot!B132:XFD132, \"Sato\",Asiakkuustiedot!B4:XFD4, \"*\",Asiakkuustiedot!B11:XFD11, \">=1.10.2016\",Asiakkuustiedot!B11:XFD11, \"<=31.10.2016\")","v":0},{"$f":"COUNTIFS(Asiakkuustiedot!B132:XFD132, \"Sato\",Asiakkuustiedot!B4:XFD4, \"*\",Asiakkuustiedot!B11:XFD11, \">=1.11.2016\",Asiakkuustiedot!B11:XFD11, \"<=30.11.2016\")","v":0},{"$f":"COUNTIFS(Asiakkuustiedot!B132:XFD132, \"Sato\",Asiakkuustiedot!B4:XFD4, \"*\",Asiakkuustiedot!B11:XFD11, \">=1.12.2016\",Asiakkuustiedot!B11:XFD11, \"<=31.12.2016\")","v":0}]

{"sheet":"Taul2","index":7,"n_rows":16,"n_cols":4,"rows_kept":16,"cut":false,"hidden":true,"merged":[]}
[null,"tärkein","2. tärkein","3. tärkein"]
["Palveluihin ohjaus",{"$f":"Yhteenveto!G86","v":0},{"$f":"Yhteenveto!G102","v":0},{"$f":"Yhteenveto!#REF!","v":{"$error":"#REF!"}}]
["Neuvonta",{"$f":"Yhteenveto!G87","v":0},{"$f":"Yhteenveto!G103","v":0},{"$f":"Yhteenveto!#REF!","v":{"$error":"#REF!"}}]
["Asumistilanteen selvittely",{"$f":"Yhteenveto!G88","v":0},{"$f":"Yhteenveto!G104","v":0},{"$f":"Yhteenveto!#REF!","v":{"$error":"#REF!"}}]
["Taloudellisen tilanteen selvittely",{"$f":"Yhteenveto!G89","v":0},{"$f":"Yhteenveto!G105","v":0},{"$f":"Yhteenveto!#REF!","v":{"$error":"#REF!"}}]
["Vuokranmaksun selvittely",{"$f":"Yhteenveto!G90","v":0},{"$f":"Yhteenveto!G106","v":0},{"$f":"Yhteenveto!#REF!","v":{"$error":"#REF!"}}]
["Asumishäiriöiden selvittely",{"$f":"Yhteenveto!G91","v":0},{"$f":"Yhteenveto!G107","v":0},{"$f":"Yhteenveto!#REF!","v":{"$error":"#REF!"}}]
["Naapuririidan selvittely",{"$f":"Yhteenveto!G92","v":0},{"$f":"Yhteenveto!G108","v":0},{"$f":"Yhteenveto!#REF!","v":{"$error":"#REF!"}}]
["Häädön selvittely",{"$f":"Yhteenveto!G93","v":0},{"$f":"Yhteenveto!G109","v":0},{"$f":"Yhteenveto!#REF!","v":{"$error":"#REF!"}}]
["Kriisitilanteen selvittely",{"$f":"Yhteenveto!G94","v":0},{"$f":"Yhteenveto!#REF!","v":{"$error":"#REF!"}},{"$f":"Yhteenveto!#REF!","v":{"$error":"#REF!"}}]
["Asunnon huonon hoidon selvittely",{"$f":"Yhteenveto!G95","v":0},{"$f":"Yhteenveto!#REF!","v":{"$error":"#REF!"}},{"$f":"Yhteenveto!#REF!","v":{"$error":"#REF!"}}]
["Asumistilanteen seuranta",{"$f":"Yhteenveto!G96","v":0},{"$f":"Yhteenveto!#REF!","v":{"$error":"#REF!"}},{"$f":"Yhteenveto!#REF!","v":{"$error":"#REF!"}}]
["Asumisen opastus",{"$f":"Yhteenveto!G97","v":0},{"$f":"Yhteenveto!#REF!","v":{"$error":"#REF!"}},{"$f":"Yhteenveto!#REF!","v":{"$error":"#REF!"}}]
["Neuvottelu vuokranantajan kanssa",{"$f":"Yhteenveto!G98","v":0},{"$f":"Yhteenveto!#REF!","v":{"$error":"#REF!"}},{"$f":"Yhteenveto!#REF!","v":{"$error":"#REF!"}}]
["Asunnon hakeminen",{"$f":"Yhteenveto!G99","v":0},{"$f":"Yhteenveto!#REF!","v":{"$error":"#REF!"}},{"$f":"Yhteenveto!#REF!","v":{"$error":"#REF!"}}]
["Viranomaisilmoitus",{"$f":"Yhteenveto!G100","v":0},{"$f":"Yhteenveto!#REF!","v":{"$error":"#REF!"}},{"$f":"Yhteenveto!#REF!","v":{"$error":"#REF!"}}]

{"sheet":"Taul1","index":8,"n_rows":21,"n_cols":10,"rows_kept":21,"cut":false,"hidden":true,"merged":[]}
["2015-11-01",null,{"$f":"A1 - A2","v":148}]
["2015-06-06"]
[]
["2000-11-20",null,{"$f":"IF(A4 < Asiakkuustiedot!B11, \"suurempi\", \"pienempi\")","v":"pienempi"},null,"päivä:","kk:","vuosi:"]
["2016-01-02",null,{"$f":"Asiakkuustiedot!B11","v":0},null,{"$f":"DAY(A5)","v":2},{"$f":"MONTH(A5)","v":1},{"$f":"YEAR(A5)","v":2016},null,null,{"$f":"DATE(G5,F5,E5)","v":"2016-01-02"}]
[]
[]
[]
[]
[]
[null,null,"kirjoita tähän countifs -funktio, joka tutkii asiakastiedot päiväyksiä"]
[null,null,{"$f":"COUNTIFS(Asiakkuustiedot!B11:'Asiakkuustiedot'!V11, \"20.11.2015\")","v":0}]
[]
[null,null,{"$f":"COUNTIFS(A1:A2,\">\"&A5)","v":0}]
[null,null,{"$f":"COUNTIFS(Asiakkuustiedot!B12:'Asiakkuustiedot'!C12, \">\"&A5)","v":0}]
[null,"B5",{"$f":"Asiakkuustiedot!B11","v":0}]
[]
[]
[null,null,"tähän countifs-funktio, joka rajaa aikavälin. Range asiakastiedot:",{"$f":"COUNTIFS(Asiakkuustiedot!B11:V11, \">=\"&#REF!, Asiakkuustiedot!B11:V11, \"<=\"&#REF!)","v":0}]
[]
[null,null,"tähän vertaus solu < solu2 joissa pvm:",{"$f":"A4<A5","v":true}]